Workbook

Sheet Config
A1: Date
A2: 2021-11 | B2: =INDEX(Revenue!A:AZ,3,MATCH(A2,Revenue!2:2,0)) -> 58.76 | D2: =MATCH(A2,Revenue!2:2,0) -> 24

Sheet Revenue
A1: Sum - SalesRevenue | B1: FiscalYearMonth
A2: ProductDescription | B2: 2020-01 | C2: 2020-02 | D2: 2020-03 | E2: 2020-04 | F2: 2020-05 | G2: 2020-06 | H2: 2020-07 | I2: 2020-08 | J2: 2020-09 | K2: 2020-10 | L2: 2020-11 | M2: 2020-12 | N2: 2021-01 | O2: 2021-02 | P2: 2021-03 | Q2: 2021-04 | R2: 2021-05 | S2: 2021-06 | T2: 2021-07 | U2: 2021-08 | V2: 2021-09 | W2: 2021-10 | X2: 2021-11 | Y2: Total Result
A3: 1-RU RACK PANEL FOR 2 INTERFACES | B3: 65.67 | C3: 525.25 | D3: 1032.13 | F3: 56.48 | G3: 49.7 | H3: 56.48 | I3: 112.96 | J3: 275.62 | K3: 388.58 | L3: 395.36 | M3: 225.92 | N3: 112.96 | Q3: 232.22 | R3: 169.44 | S3: 1271.52 | T3: 117.52 | U3: 588.75 | V3: -26.39 | W3: 51.71 | X3: 58.76 | Y3: 5760.64
A4: 1-RU RACK PANEL FOR 3 INTERFACES | E4: 56.48 | J4: 395.36 | K4: 225.92 | U4: 58.76 | V4: 58.76 | X4: 117.52 | Y4: 912.8
A5: 12" Clear Dome Accessory | B5: -127.3 | G5: 260.96 | H5: 229.64 | I5: -260.96 | J5: 314.01 | K5: -114.82 | L5: -104.84 | Q5: 260.11 | R5: 267.57 | S5: 68.51 | T5: 134 | U5: 139.76 | Y5: 1066.64
A6: 12" Smoke Tinted Dome Accessory | C6: 277.89 | I6: 114.82 | L6: 529.06 | M6: 260.96 | N6: 448.85 | O6: 3006.7 | P6: 391.44 | Q6: 65.24 | X6: 446.87 | Y6: 5541.83
A7: 24V 1A Power Adapter (Level VI) | R7: 12.08 | S7: 12.08 | Y7: 24.16
A8: ACTIVE OPTICAL USB 3.0 A/B PLENUM 20M | H8: 363.44 | I8: 19824 | J8: 4493.44 | K8: 5682.88 | L8: 6674.08 | M8: 10291.96 | N8: 6351 | O8: 3105.76 | P8: 12677.33 | Q8: 22224.39 | R8: 18640.35 | S8: 28711.36 | T8: 19349.75 | U8: 29197.43 | V8: 39955.54 | W8: 10185.91 | X8: 8720.87 | Y8: 246449.49
A9: ACTIVE OPTICAL USB 3.0 A/B PLENUM 30M | I9: 5600 | J9: 1779.13 | K9: 4838.4 | L9: 14481.6 | M9: 3248 | N9: 5364.8 | O9: 3785.6 | P9: 5793.13 | Q9: 7292.6 | R9: 11639.96 | S9: 15791.78 | T9: 1864.65 | U9: 34174.36 | V9: 43251.38 | W9: 1410.44 | X9: 846.78 | Y9: 161162.61
A10: ACTIVE OPTICAL USB 3.0 A/B PLENUM 8M | H10: 144.76 | I10: 2796.5 | J10: 1151.5 | K10: 1588.2 | L10: 3088.19 | M10: 2592.52 | N10: 618.52 | O10: 1268.3 | P10: 3252.17 | Q10: 1271.47 | R10: 2059.21 | S10: 4836.21 | T10: 6284.11 | U10: 8945.24 | V10: 6080.24 | W10: 3140.18 | X10: 5386.33 | Y10: 54503.65
A11: ACTIVE OPTICAL USB 3.0 A/C PLENUM 15M | B11: 2090.32 | D11: 20273.77 | E11: 12610.76 | F11: 3234.67 | G11: 3079.65 | H11: 3497.94 | I11: 771.73 | J11: 1394.94 | K11: 11523.96 | L11: -82.88 | M11: 23801.01 | N11: 5431.87 | O11: 10547.09 | P11: 11200.91 | Q11: -7437.98 | R11: 3533.78 | S11: 874.04 | T11: 16861.2 | U11: 2562.14 | V11: 821.6 | W11: 1363.5 | X11: -384.58 | Y11: 127569.44
A12: ACTIVE OPTICAL USB 3.0 A/C PLENUM 30M | B12: 584.25 | D12: 3898.09 | E12: 4859.14 | F12: 3895.33 | G12: 7011 | H12: 3491.33 | I12: 4603.89 | J12: 584.25 | K12: 5632.17 | L12: 8228.96 | M12: 1894.35 | N12: 1774.28 | O12: 5991.72 | P12: 2963.18 | Q12: 1302.73 | R12: 1168.5 | Y12: 57883.17
A13: ACTIVE OPTICAL USB 3.0 A/C PLENUM 8M | B13: 767.37 | C13: 1930.06 | D13: 795.29 | E13: 1675.91 | F13: 1244.11 | G13: 2386.45 | H13: 4261.98 | I13: 8949.17 | J13: 661.71 | K13: 4271.16 | L13: 5999.26 | M13: 22640.74 | N13: 7541.72 | O13: 2707.5 | P13: -2619 | Q13: -214.23 | T13: 3157.34 | Y13: 66156.54
A14: ACTIVEOPTICAL C/A USB 3.0/2.0 PLENUM 15M | Q14: 2906.13 | R14: 7446.91 | S14: 17052.74 | T14: 7486.15 | U14: 7810.59 | V14: 5205.24 | W14: 5512.38 | X14: 3963.02 | Y14: 57383.16
A15: ACTIVEOPTICAL C/A USB 3.0/2.0 PLENUM 30M | Q15: 3084.84 | R15: 4205.21 | S15: 8479.59 | T15: 4097.22 | U15: 7646.68 | V15: 20667.24 | W15: 2285.54 | X15: 14750.1 | Y15: 65216.42
A16: ACTIVEOPTICAL C/A USB 3.0/2.0 PLENUM 8M | Q16: 34471.71 | R16: -14332.85 | S16: 10426.34 | T16: 4295.38 | U16: 5747.45 | V16: 1547.66 | W16: 2404.93 | X16: 2569.73 | Y16: 47130.35
A17: ADAPTER 422 TO 232 | B17: 89.76 | D17: 202.72 | Y17: 292.48
A18: ADAPTER CONTROL DB-9F TO RJ-45F | C18: 28.44 | D18: 3.8 | F18: 82.75 | G18: 33.1 | H18: 33.1 | J18: 16.55 | V18: 34.46 | Y18: 232.2
A19: ADAPTER CONTROL DB-9M TO RJ-45F | B19: 227.55 | C19: 345.89 | D19: 129.22 | E19: 49.65 | F19: 109.04 | G19: 112.93 | H19: 1785.1 | I19: 82.75 | J19: 197.99 | K19: 148.95 | L19: 62.22 | M19: 123.63 | N19: 213.16 | O19: 195.25 | P19: 2602.5 | Q19: 16.55 | R19: 204.18 | S19: 53.84 | T19: 136.48 | U19: 34.46 | V19: 241.22 | W19: 86.15 | X19: 64.78 | Y19: 7223.49
A20: ADAPTER RJ45 TO DB9M | B20: 35.2 | C20: 10 | D20: 67.22 | E20: 70 | F20: 28 | H20: 12 | J20: 10 | K20: -10 | R20: 30 | Y20: 252.42
A21: ADAPTER RS-422 TO CAT5 | B21: 8.8 | D21: 19.88 | Y21: 28.68
A22: Adjustable Mount HuddleSHOT BLACK | C22: 67.2 | D22: 346.39 | E22: -139 | F22: 266.54 | G22: 410.05 | H22: 210.5 | I22: 923.93 | J22: 350.81 | K22: 2380.54 | L22: 638.74 | M22: 331.33 | N22: 370.89 | O22: 553.26 | P22: 1086.12 | Q22: 1236.54 | R22: 3575.33 | S22: 843.77 | T22: 270.38 | W22: 198 | X22: 131.01 | Y22: 14052.33
A23: Adjustable Mount HuddleSHOT WHITE | D23: 195.62 | E23: 370.63 | F23: 205.3 | K23: 1235.82 | M23: 412.65 | O23: 229.28 | S23: 235.85 | Y23: 2885.15
A24: ADJUSTABLE WALL BRACKET FOR CONCEAL | D24: -269.46 | I24: 724.48 | J24: 181.12 | M24: 181.12 | N24: 62.02 | O24: 662.98 | P24: 637.56 | R24: 3511.18 | S24: 181.12 | U24: 387.96 | V24: 170.7 | W24: 193.98 | X24: 193.98 | Y24: 6818.74
A25: Advanced Replacement | B25: 13585 | C25: -28521.73 | D25: -9049.5 | E25: -16649.46 | F25: 32022.05 | G25: 24313.47 | H25: -4887 | I25: -33597.02 | J25: 13186.45 | K25: 28943.76 | L25: 52751.02 | M25: 49830.17 | N25: 22706.01 | O25: 23513.14 | P25: -37846.6 | Q25: 222.77 | R25: 18893.96 | S25: 39535.8 | T25: 31458 | U25: -2506.85 | V25: -9356.28 | W25: 8575.93 | X25: -30558.97 | Y25: 186564.12
A26: ASSY DOME HEATER/BLOWER | C26: 442.72 | Y26: 442.72
A27: ASSY DOME W/SCREWS - CLR | U27: 80.85 | Y27: 80.85
A28: AUTOVIEW IR SENSOR KIT | B28: 1535.68 | C28: 454.16 | D28: 454.16 | F28: 4593.21 | H28: 12580.01 | I28: 6131.15 | J28: 26279.31 | K28: 3963.54 | L28: 4302.32 | M28: 1032.18 | O28: 516.09 | P28: 1362.48 | R28: 8773.53 | S28: 1452.92 | T28: 4640.91 | U28: 5111.78 | V28: 945.04 | W28: 536.95 | X28: 3165.86 | Y28: 87831.28
A29: AUTOVIEW IR SENSOR KIT INT'L | P29: 1494.42 | T29: 343.86 | Y29: 1838.28
A30: AV Bridge 2x1 | Q30: 3120.6 | R30: 1560.3 | S30: 647.36 | V30: 1731.81 | X30: 1560.3 | Y30: 8620.37
A31: AV Bridge 2x1 AUS | M31: 2536.91 | N31: 1697.85 | O31: 4980.36 | Q31: 830.06 | S31: 1374.5 | Y31: 11419.68
A32: AV Bridge 2x1 INT | D32: 19178.03 | E32: 22971.34 | F32: 28023.5 | G32: 23079.57 | H32: 61918.12 | I32: 94445.51 | J32: 23794.82 | K32: 181852.76 | L32: 103763.32 | M32: 191133.09 | N32: 201856.87 | O32: 80218.89 | P32: 76493.17 | Q32: 105951.44 | R32: 155695.83 | S32: 320512.23 | T32: 81883.88 | U32: 154790.75 | V32: 218234.17 | W32: 241139.81 | X32: 153022.85 | Y32: 2539959.95
A33: AV Bridge 2x1 N/A | D33: 14941.08 | E33: 12882.76 | F33: 30814.92 | G33: 164979.88 | H33: 101274.92 | I33: 720214.51 | J33: 187597.81 | K33: 529761.87 | L33: 135664.42 | M33: 187968.91 | N33: 121314.24 | O33: 66606.94 | P33: 217096.36 | Q33: 144912.64 | R33: 313581.95 | S33: 338632.03 | T33: 302880.01 | U33: 489423.22 | V33: 92028.41 | W33: 312156.9 | X33: 138295.31 | Y33: 4623029.09
A34: AV BRIDGE CONFERENCE SYSTEM | B34: 66599.4 | C34: 45460.82 | D34: 86630.36 | E34: 57851.86 | F34: 63506 | G34: 71239.58 | H34: 82226.47 | I34: 102457.11 | J34: 54888.56 | K34: 179223.88 | L34: 124610.76 | M34: 101797.54 | N34: 177114.79 | O34: 66050.64 | P34: 161272.44 | Q34: 50238.06 | R34: 135163.22 | S34: 83892.22 | T34: 104780.07 | U34: 10277.8 | V34: 234446.27 | W34: 148730.12 | X34: 2114.78 | Y34: 2210572.75
A35: AV BRIDGE CONFERENCE SYSTEM AUS/NZ | C35: 3208.24 | G35: 1604.12 | R35: 1472.58 | Y35: 6284.94
A36: AV BRIDGE CONFERENCE SYSTEM INT'L | B36: 12641.12 | C36: 3467.2 | D36: 13018.77 | G36: 1700.31 | H36: 2580.02 | I36: 7237.55 | J36: 7072.91 | K36: 10979.21 | L36: 5356.2 | M36: 7752.96 | N36: 1876.76 | O36: 2459.98 | Q36: 3774.4 | R36: 608.04 | T36: 5153.05 | W36: 8208.59 | X36: 15984.72 | Y36: 109871.79
A37: AV BRIDGE CONFERENCE UNIT | H37: 998 | L37: 998 | W37: 998 | Y37: 2994
A38: AV BRIDGE MATRIX PRO SYSTEM | B38: 52871.19 | C38: 46972.52 | D38: 65361.94 | E38: 25875.76 | F38: 31822.89 | G38: 94056.81 | H38: 152292.88 | I38: -3772.88 | J38: 159993.34 | K38: 118607.69 | L38: 46046.37 | M38: 42866.5 | N38: 74275.91 | O38: 19484.75 | P38: 54356.59 | Q38: 16998.46 | R38: 50365.51 | S38: 75486.28 | T38: 49820.9 | U38: 45845.55 | V38: 38915.09 | W38: 37624.72 | X38: 56096.02 | Y38: 1352264.79
A39: AV BRIDGE MATRIX PRO SYSTEM AUS/NZ | R39: 9444.33 | U39: 3567.86 | Y39: 13012.19
A40: AV BRIDGE MATRIX PRO SYSTEM INT'L | B40: 10047.26 | C40: 3522.12 | D40: 6909.45 | G40: 3635.09 | I40: 3592.64 | L40: 12074.74 | M40: 5507.05 | O40: 3779.95 | R40: 3946.67 | Y40: 53014.97
A41: AV BRIDGE MATRIX PRO UNIT | V41: -3429.32 | Y41: -3429.32
A42: AV Bridge MatrixMIX INTL | B42: 18703.81 | C42: 4829.56 | D42: 2061.52 | E42: 6401.26 | G42: 5976.48 | H42: 4129.37 | I42: 24236.3 | J42: 5075.29 | L42: 7319.89 | M42: 21747.45 | N42: 5074.21 | O42: 5739.87 | P42: 21049.21 | Q42: 4180.31 | R42: 4138.78 | S42: 11218.63 | T42: 567.47 | U42: 8432.09 | V42: 5236.38 | W42: 14531.24 | X42: 5143.47 | Y42: 185792.59
A43: AV Bridge MatrixMIX N/A | B43: 10844.01 | C43: 21603.94 | D43: 15560.91 | E43: 10588.46 | F43: 25772.36 | G43: -4781.03 | H43: 67711.85 | I43: 11276.02 | J43: 53119.56 | K43: 42764.31 | L43: 22552.04 | M43: 37267.25 | N43: 9539.52 | O43: 0 | P43: 84371.13 | Q43: 121053.45 | R43: 16167.58 | S43: 33889.6 | T43: 104965.75 | U43: 65165.48 | V43: 5396.54 | W43: 44263.32 | X43: 904.35 | Y43: 799996.4
A44: AV Bridge MatrixMIX Production Sys INTL | B44: 6910 | D44: 12125.66 | E44: 6746.44 | F44: 6025.48 | H44: 7063.49 | I44: 3283.92 | M44: -6206.77 | O44: 7653.9 | P44: 6301.06 | Q44: 45735.59 | R44: 7302.33 | S44: 15210.99 | T44: 6490.53 | U44: 7009.18 | W44: 14089.69 | X44: 6859.4 | Y44: 152600.89
A45: AV Bridge MatrixMIX Production Sys N/A | B45: 71494.22 | C45: 57590.32 | D45: 62011.47 | E45: 33638.22 | F45: 85633.66 | G45: 207257.53 | H45: 55785.95 | I45: 56237.04 | J45: 185454.12 | K45: 322535.94 | L45: 167012.54 | M45: 90670.95 | N45: 69698.77 | O45: 66161.21 | P45: 32582.18 | Q45: 97783.23 | R45: 79318.26 | S45: 231171.27 | T45: 146514.15 | U45: 66638.71 | V45: 59916.98 | W45: 175753.62 | X45: 139825.66 | Y45: 2560686
A46: AV Bridge Mini | L46: 2802.46 | M46: 1401.23 | N46: 1652.45 | V46: -3701.21 | W46: 1286.33 | Y46: 3441.26
A47: AV Bridge Mini AUS | B47: 1233.08 | G47: 1401.23 | H47: 1233.08 | L47: 8631.56 | M47: 6165.4 | N47: 2466.16 | O47: 2466.16 | P47: 6165.4 | Q47: 1233.08 | R47: 17162.02 | S47: 7472.49 | T47: 6414.55 | U47: 4875.04 | V47: 5131.64 | W47: 8980.32 | X47: 19243.5 | Y47: 100274.71
A48: AV Bridge Mini INT | B48: 33845.37 | C48: 20851.97 | D48: 27110.77 | E48: 23522.64 | F48: 31982.01 | G48: 51115.12 | H48: 174046.28 | I48: 31588.08 | J48: 247226.44 | K48: 55865.07 | L48: 64131.3 | M48: 179186.04 | N48: 145841.98 | O48: 47002.22 | P48: 45694.9 | Q48: 95985.33 | R48: 56179.17 | S48: 91912.54 | T48: 95509.42 | U48: 75165.95 | V48: 96715.05 | W48: 56944.94 | X48: 72461.07 | Y48: 1819883.66
A49: AV Bridge Mini N/A | B49: 178585.98 | C49: 152428.13 | D49: 175395.44 | E49: 123371.61 | F49: 94187.28 | G49: 296231.08 | H49: 225186.74 | I49: 78341.58 | J49: 610170.17 | K49: 374214.68 | L49: 477537.64 | M49: 282634.49 | N49: 235140.72 | O49: 204100.77 | P49: 412158.21 | Q49: 417172.57 | R49: 350200.63 | S49: 529247.95 | T49: 315201.1 | U49: 342329.02 | V49: 405637.56 | W49: 316194.8 | X49: 384357.53 | Y49: 6980025.68
A50: AV BRIDGE SYSTEM | B50: 82824.85 | C50: 134179.55 | D50: 86585.57 | E50: 49053.59 | F50: 95272.88 | G50: 121462.36 | H50: 77217.8 | I50: 126807.48 | J50: 223940.53 | K50: 129622.79 | L50: 75146.66 | M50: 137904.37 | N50: 85815.54 | O50: 115134.54 | P50: 97015.33 | Q50: 96936.84 | R50: 128721.09 | S50: 43606.95 | T50: 210935.66 | U50: 21700.93 | V50: 169792.06 | W50: 138872.9 | X50: 143682.68 | Y50: 2592232.95
A51: AV BRIDGE SYSTEM AUS/NZ | C51: 2596.76 | D51: 1295.63 | J51: 1295.63 | L51: 1295.63 | M51: 3975.24 | O51: 9069.41 | Q51: 2591.28 | Y51: 22119.58
A52: AV BRIDGE SYSTEM INT'L | B52: 4269.27 | C52: 2911.18 | D52: 1804.81 | E52: 1353.78 | F52: 5810.52 | G52: 2746.56 | H52: 2766.28 | I52: 8251.88 | J52: 26130.93 | K52: 10793.92 | M52: 1212.42 | N52: 5957.63 | O52: 6352.81 | P52: 2114.94 | Q52: 2067.36 | R52: 2113.65 | X52: 1347.98 | Y52: 88005.92
A53: AV BRIDGE UNIT | C53: 992 | E53: -992 | R53: 992 | Y53: 992
A54: AV REMOTE COMMANDER INTL | B54: 75.5 | H54: 76.95 | M54: 11.5 | P54: 79.85 | T54: 93.06 | Y54: 336.86
A55: AV REMOTE COMMANDER N/A | B55: 159.7 | C55: 79.85 | D55: 79.85 | G55: 225.68 | H55: 155.6 | I55: 2955.98 | J55: 673.99 | K55: -9.58 | L55: 319.77 | M55: 520.63 | N55: 638.8 | O55: 800.74 | P55: 936.83 | Q55: 454.78 | R55: 526.13 | S55: 830.99 | T55: 210.86 | U55: 153.76 | V55: 626.54 | W55: 320.87 | X55: 81.85 | Y55: 10743.62
A56: Boot Strain Relief Ceiling MIC White | M56: 11.04 | Y56: 11.04
A57: BOSE DS-16 SPEAKER KIT | B57: 2740.82 | C57: 124.53 | D57: 365.33 | F57: 476.62 | G57: 1695.74 | H57: 5619.58 | I57: 521.94 | J57: 1221.33 | K57: 490.62 | L57: 1644.09 | M57: 795.93 | N57: 0 | Q57: 0 | Y57: 15696.53
A58: BOSE FS2C SPEAKER KIT | M58: 2609.7 | N58: 637.03 | P58: 490.62 | V58: 264.16 | Y58: 4001.51
A59: BOX 15" X 9 1/8" X 3 1/8" | H59: 8.89 | K59: 4.45 | L59: 8.89 | Y59: 22.23
A60: BOX 22 x 12 x 20 VAD LOGO | D60: 101.49 | J60: 36.37 | M60: 506.52 | O60: 111.29 | S60: 324.09 | T60: 59.09 | U60: 69 | W60: 131.63 | Y60: 1339.48
A61: BOX 23 1/4" X 14 1/8" X 9 1/2" NG PC | B61: 3.02 | Y61: 3.02
A62: BOX 25 5/16" X 11 3/4" X 11.5" | C62: 31.81 | D62: 5.3 | H62: 106.03 | I62: 5.3 | Q62: 33.07 | Y62: 181.51
A63: BOX 7 9/16" X 4 5/8" X 2 3/4" | M63: 14.7 | Y63: 14.7
A64: BOX 8 3/4" X 6 1/8" X 2.75" | D64: 6.11 | I64: 1.73 | K64: 8.6 | L64: 30.97 | Q64: 12.9 | S64: 14.24 | Y64: 74.55
A65: BOX FILLER FOR SOUND BAR SYSTEM BUNDLE | D65: 3.21 | I65: 1.07 | O65: 1.07 | Q65: 3.32 | S65: 2.3 | T65: 2.3 | U65: 1.15 | W65: 1.15 | X65: 5.75 | Y65: 21.32
A66: BOX OUT 15 7/16" X 12 1/2" X 16 1/2" | D66: 77.68 | G66: 38.85 | H66: 155.39 | L66: 58.68 | M66: 181.95 | R66: 60.62 | S66: 135.48 | T66: 31.2 | U66: 31 | W66: 23.12 | Y66: 793.97
A67: BOX OUT 16 1/2" X 9 3/4" X 13" ZOOM/WALL | N67: 12.24 | Y67: 12.24
A68: BOX OUT 17 5/8" X 12 1/2" X 21" ROBO CCU | I68: 3.55 | M68: 10.21 | O68: 17.03 | Y68: 30.79
A69: BOX OUTER 40 1/2" X 41" FOR ONELINK | K69: 20.63 | L69: 63.97 | Q69: 4.13 | R69: 12.39 | S69: 20.63 | Y69: 121.75
A70: BOX OUTER 9 5/8 x 8 3/16 x 6 3/4 USB EXT | G70: 3.9 | Y70: 3.9
A71: BOX OUTER BOX FOR SPEAKER SYSTEM | B71: 6.05 | D71: 54.43 | F71: 91.41 | G71: 304.83 | H71: 365.87 | J71: 153.23 | K71: 192.66 | L71: 189.67 | M71: 807.74 | Q71: 170.75 | R71: 69.75 | S71: 209.28 | T71: 26.32 | W71: 19.91 | Y71: 2661.9
A72: BOX OUTER CAM 12" X 11 1/2" X 12 15/16" | J72: 22.31 | P72: 10.84 | Q72: 1.37 | S72: 4.09 | Y72: 38.61
A73: BOX OUTER FOR CEIL/TBL MIC AND MIXER/AMP | B73: 90.55 | D73: 164.14 | G73: 224.78 | H73: 280.9 | I73: 488.73 | J73: 112.5 | K73: 112.8 | Y73: 1474.4
A74: BOX OUTER WHT W/LOGO 27 1/4 x 12 1/8 x19 | L74: 168.32 | M74: 488.15 | O74: 224.42 | Q74: 265.7 | S74: 144.64 | Y74: 1291.23
A75: BOX SHIP 26" X 18" X 14" | B75: 5.44 | D75: 2.71 | G75: 5.44 | M75: 10.88 | P75: 27.2 | T75: 5.62 | W75: 16.87 | Y75: 74.16
A76: BUMPER POLY .50 SQ .12 THK BLK ADHESIVE | R76: 1.12 | Y76: 1.12
A77: CABLE 4 FOOT AUDIO/POWER | P77: 21.6 | Y77: 21.6
A78: CABLE ACTIVE 3.0 TYPE-A TO B M/M 20M | B78: 38706.59 | C78: 28303.5 | D78: 24578.46 | E78: 9180.38 | F78: 65464.34 | G78: 118083.5 | H78: 419884.01 | I78: 263233.43 | J78: 88052.16 | K78: 27762.26 | L78: -12912.28 | M78: 69249.32 | N78: 81943.07 | O78: 37473.96 | P78: 42697.48 | Q78: 93630.85 | R78: 105972.15 | S78: 121336.32 | T78: 68182.99 | U78: 107534.77 | V78: 48175.94 | W78: 49163.29 | X78: 58061.48 | Y78: 1953757.97
A79: CABLE ACTIVE 3.0 TYPE-A TO B M/M 30M | B79: 11096.04 | C79: 14468.49 | D79: 7399.89 | E79: 1450.04 | F79: 23454.2 | G79: 63625.36 | H79: 116162.82 | I79: 50441.52 | J79: 40562.09 | K79: 28238.7 | L79: 35405.87 | M79: 197.95 | N79: 10581.24 | O79: 20164.18 | P79: 28286.39 | Q79: 19697.82 | R79: 28887.23 | S79: 29298.52 | T79: 44915.34 | U79: 15353.72 | V79: 26711.86 | W79: 22716.28 | X79: 33716.42 | Y79: 672831.97
A80: CABLE ACTIVE USB 2.0 EXTENSION 20M | B80: 228.86 | C80: 3002.84 | D80: 606.21 | E80: 142.13 | F80: 280.03 | G80: 631.69 | H80: 4437.63 | I80: 1622.5 | J80: 450.46 | K80: 587.75 | L80: 865.5 | M80: 372.83 | N80: 1296.5 | O80: 1075.24 | P80: 276.63 | Q80: 503.6 | R80: 446.19 | S80: 616.8 | T80: 4330.36 | U80: 1873.2 | V80: 1914.7 | W80: 2077.38 | X80: 238.52 | Y80: 27877.55
A81: Cable Assembly Ceiling MIC White | D81: 47.34 | K81: 13.79 | Y81: 61.13
A82: CABLE ASSY CEILING CAMERA | P82: 14.72 | Y82: 14.72
A83: CABLE CAT-5E PATCH 1' BLACK | D83: 1.48 | J83: 3.52 | K83: 9.05 | L83: 28.05 | Q83: 4 | R83: 16.92 | S83: 12.89 | Y83: 75.91
A84: CABLE CAT5E PATCH 10' BLK N002-010-BK | K84: 1.78 | R84: 4.16 | Y84: 5.94
A85: CABLE CAT5E PATCH 3' BLK N002-003-BK | D85: 1.48 | Y85: 1.48
A86: CABLE CONTROL 12" CISCO 1080HD S1 | D86: 1.48 | Y86: 1.48
A87: CABLE CONTROL 3' CISCO SX20 | D87: 1.48 | Y87: 1.48
A88: Cable Cover Eagle White | Q88: 4.92 | U88: 30.07 | Y88: 34.99
A89: CABLE DC-PLUG DC-PLUG CABLE 1' | P89: 4.16 | Y89: 4.16
A90: CABLE EIAJ-04 TO 3MMX6.3MM | F90: 12.96 | K90: 64.81 | M90: 51.85 | O90: 46.12 | Q90: 49.22 | R90: 20.96 | S90: 12.58 | Y90: 258.5
A91: CABLE EIAJ-04 TO 5.5X2.1 1' | B91: 70 | D91: 1.48 | J91: 2.8 | K91: 2.8 | R91: 5.64 | S91: 1.83 | Y91: 84.55
A92: CABLE EIAJ-04 TO EIAJ-04 | B92: 2.38 | D92: 4.75 | H92: 11.87 | J92: 36 | K92: 23.89 | L92: 76.42 | Q92: 8.77 | R92: 9.56 | S92: 7.16 | T92: 4 | Y92: 184.8
A93: CABLE EURO IP 3-CONDUCTOR IEC-C13 | C93: -1 | D93: -127.8 | F93: 11.14 | G93: 75.2 | Q93: 6.57 | Y93: -35.89
A94: CABLE EZIM CCU FOR PANASONIC AW-HE100 | M94: 18.32 | Y94: 18.32
A95: CABLE HDMI 1 METER BLACK QVS HDG-1MC | D95: 1.48 | Y95: 1.48
A96: CABLE HDMI MALE-MALE 1' CABLE | D96: 1.48 | K96: 4.55 | L96: 36.89 | Q96: 10 | R96: 32.33 | W96: 2 | Y96: 87.25
A97: CABLE KEL 30 58CM 30 POS PIN1 TO PIN1 | C97: 17.25 | Y97: 17.25
A98: CABLE ONELINK CODEC SIDE 2' | B98: 169.68 | C98: 82.72 | D98: 120.89 | E98: 37.33 | G98: 77.63 | H98: 190.9 | J98: 271.49 | K98: 120.9 | L98: 40.56 | M98: 498.36 | O98: 40.56 | P98: 84.84 | R98: 380.1 | S98: -75.24 | T98: 212.1 | W98: 74.66 | X98: 42.42 | Y98: 2369.9
A99: CABLE ONELINK EZIM SIDE 1' | C99: 41.88 | D99: 125.65 | G99: 41.88 | M99: 125.65 | N99: 179.7 | O99: 41.88 | R99: 210.38 | Y99: 767.02
A100: CABLE POWER 6' BLACK FIGURE 8 | B100: 8.76 | D100: 25.23 | H100: 8.76 | I100: 0 | K100: 8.76 | M100: 8.76 | N100: 7.76 | U100: 18.24 | V100: 18.24 | X100: 54.72 | Y100: 159.23
A101: CABLE PRODUCTIONVIEW HD COMPONENT 3' | D101: 362.22 | E101: 120.74 | F101: 60.37 | H101: 98.32 | I101: 60.37 | J101: 53.13 | M101: 120.74 | N101: 166.63 | O101: 60.37 | P101: 60.37 | V101: 125.62 | Y101: 1288.88
A102: CABLE PRODUCTIONVIEW HD Y-C & COMP 1' | C102: 427.08 | N102: 84 | Y102: 511.08
A103: CABLE PTZ CAMERA CONTROL 10' | B103: 169.02 | C103: 200.41 | D103: 52.58 | E103: 150.4 | F103: 72.66 | G103: 99.76 | H103: 141.47 | I103: 159.87 | J103: 129.75 | K103: 50.34 | L103: 93.15 | M103: 105.81 | N103: 177.55 | O103: 50.64 | P103: 11.14 | Q103: 575.74 | R103: 109.26 | S103: 69.68 | T103: 267.5 | U103: 1303.94 | V103: 247.28 | W103: 25.42 | X103: 2620.93 | Y103: 6884.3
A104: CABLE RJ45-8PIN MINI-DIN 1 FT | F104: 19.95 | J104: 52.08 | K104: 99.76 | L104: 136.31 | Q104: 8.8 | R104: 10.1 | S104: 15.16 | T104: 8.78 | Y104: 350.94
A105: CABLE UK IP 3-CONDUCTOR IEC-C13 | C105: -1 | D105: -298.8 | F105: 12.86 | Q105: 11.52 | Y105: -275.42
A106: CABLE US IP IEC | D106: -39.8 | G106: 7.71 | Q106: 2.83 | Y106: -29.26
A107: CABLE USB 3.0 6' C to A M/M Black | I107: 5.92 | K107: 11.84 | Y107: 17.76
A108: CABLE USB 3.0 MALE A-B 6' | F108: 7.82 | K108: 30.43 | L108: 69.29 | Q108: 4.81 | R108: 9.45 | S108: 24.64 | Y108: 146.44
A109: CABLE USB TYPE A-B | B109: 1.15 | G109: 2.16 | H109: 5.38 | O109: 1.24 | R109: 4.6 | Y109: 14.53
A110: CAM MODULE SONY ER8300 ROBO20 FW V1.21 | N110: 650.24 | O110: 807.05 | Y110: 1457.29
A111: CAMERA SHELF | S111: 20.06 | T111: 30.35 | Y111: 50.41
A112: CAUTION ACCESSORIES LABEL PACKING LABEL | H112: 0.02 | K112: 0.02 | L112: 0.08 | R112: 0.02 | S112: 0.02 | Y112: 0.16
A113: Ceiling MIC System Black | B113: 2930.02 | C113: 1848.27 | D113: 1954.56 | E113: 412.04 | F113: 1304.29 | G113: 30952.32 | H113: 26734.77 | I113: 11329.55 | J113: 9073.63 | K113: 10463.96 | L113: 6080.97 | M113: 6257.89 | N113: 37661.89 | O113: 5937.72 | P113: 15727.23 | Q113: 6049.82 | R113: 12996.26 | S113: 4935.61 | T113: 4972.87 | U113: 3829.46 | V113: 5477.33 | W113: 4127.29 | X113: 11787.77 | Y113: 222845.52
A114: Ceiling MIC System White | B114: 61195.75 | C114: 38594.25 | D114: 67278.49 | E114: 36170.88 | F114: 50189.35 | G114: 230194.3 | H114: 274932.29 | I114: 661634.54 | J114: 455027.59 | K114: 517044.89 | L114: 55196.72 | M114: 200187.83 | N114: 133833.31 | O114: 58383.43 | P114: 189434.87 | Q114: 247463.39 | R114: 93693.57 | S114: 254912.8 | T114: 55305.47 | U114: 57255.46 | V114: 26946.13 | W114: 144222.79 | X114: 126707.79 | Y114: 4035805.89
A115: Ceiling MICPOD SE White | D115: 197.28 | O115: 58.05 | Y115: 255.33
A116: CEILING MOUNT KIT FOR PENDANT DOMES | B116: 639.73 | C116: 432.36 | F116: -421.55 | Y116: 650.54
A117: CeilingMIC Interface Box | K117: 336 | P117: 353.61 | S117: -250 | T117: 217.98 | U117: -250 | Y117: 407.59
A118: CeilingMIC Interface Box /Dante | I118: 487.81 | Y118: 487.81
A119: CLEARVIEW HD-20SE HD PTZ CAMERA - BLACK | J119: 2000 | Y119: 2000
A120: CLEARVIEW HD-20SE HD PTZ CAMERA - WHITE | E120: -2584.56 | Y120: -2584.56
A121: CLEARVIEW HD-20SE QCCU SYSTEM - WHITE | S121: 3693.36 | Y121: 3693.36
A122: CONFERENCESHOT 10 CAMERA UNIT WHITE | Q122: -1026.08 | Y122: -1026.08
A123: CONFERENCESHOT 10 GOOG WHITE | B123: -1910.46 | D123: -20382.19 | Y123: -22292.65
A124: CONFERENCESHOT 10 SYSTEM | B124: 37523.82 | C124: 53258.29 | D124: 35716.3 | E124: 29065.42 | F124: 39923.34 | G124: 38786.73 | H124: 103465.91 | I124: 55102.39 | J124: 16330.86 | K124: 19968.74 | L124: 30971.15 | M124: 100457.17 | N124: 59053.61 | O124: 28338.15 | P124: 31737.4 | Q124: 40529.52 | R124: 27235.75 | S124: 152875.04 | T124: 211128.35 | U124: 25129.62 | V124: 22739.48 | W124: 33659.22 | X124: 90191.22 | Y124: 1283187.48
A125: CONFERENCESHOT 10 SYSTEM AUS | G125: 857.75 | M125: 1730.09 | S125: 1176.46 | V125: 1199.99 | Y125: 4964.29
A126: CONFERENCESHOT 10 SYSTEM AUS/NZ | B126: 4613.56 | D126: 2306.78 | Y126: 6920.34
A127: CONFERENCESHOT 10 SYSTEM INT WHITE | B127: 1396.42 | C127: 10601.03 | D127: 10104.35 | E127: 15947.69 | F127: 17918.15 | G127: 22162.8 | H127: 5806.23 | I127: 33618.49 | J127: 10398.62 | K127: 12328.3 | L127: 8414.24 | M127: 27408.34 | N127: 7899.24 | O127: 19628.08 | P127: 5209.3 | Q127: 16949.62 | R127: 8830.1 | S127: 8043.29 | T127: 11915.9 | U127: 6807.17 | V127: 14590.78 | W127: 2597.96 | X127: 10171.65 | Y127: 288747.75
A128: CONFERENCESHOT 10 SYSTEM INT'L | B128: 11388.16 | C128: 10208.03 | D128: 15740.79 | E128: 11754.41 | F128: 13152.76 | G128: 4207.39 | H128: 13018.53 | I128: 1589.3 | J128: 6001.47 | K128: 5981.11 | L128: 17953.32 | M128: 20151.68 | N128: 20468.16 | O128: 43211.34 | P128: 16120.91 | Q128: 20804.26 | R128: 18166.26 | S128: 10724.39 | T128: 15530.23 | U128: 8625.2 | V128: 2833.74 | W128: 6961.33 | X128: 3908.7 | Y128: 298501.47
A129: CONFERENCESHOT 10 SYSTEM WHITE | B129: 10419.83 | C129: 30811.62 | D129: 25120.93 | E129: 8655.44 | F129: 261363.14 | G129: 73985.68 | H129: 122049.56 | I129: 153702.41 | J129: 66027.5 | K129: 83063.99 | L129: 41817.9 | M129: 55019.88 | N129: 21107.03 | O129: 18070.31 | P129: 71368.02 | Q129: 15896.92 | R129: 35158.81 | S129: 14355.04 | T129: 51416.18 | U129: 45043.57 | V129: 53630 | W129: 36984.21 | X129: 21354.44 | Y129: 1316422.41
A130: CONFERENCESHOT 10 SYSTEM WHITE AUS/NZ | G130: 857.75 | H130: 857.75 | I130: 3460.17 | J130: 1153.39 | N130: 3460.17 | Y130: 9789.23
A131: CONFERENCESHOT AV CAMERA | B131: 1284.88 | C131: 9963.64 | D131: 6868.73 | E131: 14905.75 | F131: 14232.3 | G131: 80845.46 | H131: 33399.33 | I131: 15245.56 | J131: 4273.87 | K131: 27016.95 | L131: 1500.55 | M131: 33196.58 | N131: 2640.96 | O131: 29650.86 | P131: 9963.66 | Q131: 16506.05 | R131: 126714.07 | S131: 1530.57 | T131: 27621.78 | U131: 84116.38 | W131: 4330.34 | X131: 7618.56 | Y131: 553426.83
A132: CONFERENCESHOT AV CAMERA INTL | B132: 5001.74 | D132: 20737.06 | E132: 9369.52 | F132: 1331.55 | G132: 21382.21 | H132: 20051.23 | I132: 61214.25 | J132: 12087.12 | K132: 38376.76 | L132: 32193.93 | M132: 122166.19 | N132: 4737.76 | O132: 12194.7 | P132: 2968.68 | Q132: 26631.37 | R132: 49815.88 | S132: 15717.04 | T132: 4323.92 | U132: 19800.12 | V132: 1400.65 | W132: 8728.94 | X132: 1375.8 | Y132: 491606.42
A133: CONFERENCESHOT AV CAMERA - WHITE | O133: -1292 | P133: 2764.48 | Q133: -1436.6 | R133: -2739.04 | S133: -2428.96 | U133: -2584 | Y133: -7716.12
A134: CONFERENCESHOT AV CAMERA Black | L134: 735.6 | N134: 2964.32 | P134: 1286.98 | Q134: 0.06 | S134: -1287.04 | Y134: 3699.92
A135: CONFERENCESHOT AV CAMERA WHITE | B135: 20077.37 | C135: 6962.54 | D135: 7243.33 | E135: 32184.66 | F135: 5275.05 | G135: 252762.56 | H135: 303071.71 | I135: 1062558.93 | J135: 624641.06 | K135: 107255.96 | L135: 1320.48 | M135: 15450.58 | N135: 61267.98 | O135: -435.79 | P135: 12979.74 | Q135: 305231.21 | R135: 4348 | S135: 193036.02 | T135: 22112.77 | U135: 8192.94 | V135: 4924.76 | W135: 83830.16 | X135: 27657.84 | Y135: 3161949.86
A136: CONFERENCESHOT AV CAMERA WHITE AUS | M136: 1320.48 | Y136: 1320.48
A137: CONFERENCESHOT AV CAMERA WHITE INTL | B137: 15100.59 | D137: 29220.6 | E137: 1343.3 | F137: 8857.89 | G137: 29952.02 | H137: 30479 | I137: 75929.24 | J137: 50511.9 | K137: 58770.45 | L137: 68943.04 | M137: 254003.05 | N137: 10372.79 | O137: 20843.24 | P137: 7084.35 | Q137: 52408.82 | R137: 55872.58 | S137: 34635.11 | T137: 5514.57 | U137: 61900.52 | V137: 1400.65 | W137: 15669.77 | X137: 4127.4 | Y137: 892940.88
A138: CONFERENCESHOT AV SPEAKER KIT | B138: 1201.15 | D138: 1420.62 | E138: 279.35 | F138: 1413.35 | G138: 317.44 | I138: 6200.96 | J138: 14864.97 | K138: 6808.68 | L138: 5713.17 | M138: 230.6 | N138: 8847.2 | O138: 3115.82 | Q138: 10281.83 | R138: 6666.1 | S138: 2316.03 | T138: 47.41 | W138: 554.65 | X138: 315.37 | Y138: 70594.7
A139: CONFERENCESHOT AV SPEAKER KIT WHITE | D139: 838.05 | G139: 3162.13 | H139: 4185.34 | I139: 7146.32 | J139: 21898.19 | K139: 11184.85 | L139: 19023.92 | M139: 7223.07 | N139: 8594.56 | O139: 16179.04 | P139: 317.44 | Q139: 8637.82 | R139: 1517.66 | S139: 15045.37 | T139: 3404.87 | U139: 8452.4 | W139: 290.64 | X139: 290.64 | Y139: 137392.31
A140: CONFERENCESHOT AV SPEAKER-WHITE | U140: -317.44 | Y140: -317.44
A141: ConferenceSHOT AV Sys Table Mount - BLK | B141: 196.12 | D141: 96.69 | E141: -146.12 | F141: 186.55 | G141: 538.76 | H141: 173.12 | J141: 124.01 | K141: 291.95 | L141: 24.41 | M141: 318.87 | N141: 277.9 | P141: 454.15 | Q141: 411.96 | S141: 151.82 | W141: 555.23 | X141: 110.56 | Y141: 3765.98
A142: ConferenceSHOT AV Sys Table Mount - WHT | B142: 202.11 | F142: 293.2 | G142: 95.5 | H142: 593.75 | I142: 1351.57 | J142: 24.95 | K142: 201.7 | L142: 381.04 | O142: 189.13 | P142: 42.45 | Q142: 42.46 | S142: 63.7 | W142: -89.04 | Y142: 3392.52
A143: ConferenceSHOT ePTZ Camera | X143: 824.25 | Y143: 824.25
A144: ConferenceSHOT ePTZ Camera INT | X144: 7312.55 | Y144: 7312.55
A145: ConferenceSHOT FX Camera Assembly | N145: -950.95 | Y145: -950.95
A146: ConferenceSHOT FX Camera Assembly WHT | T146: 601.46 | Y146: 601.46
A147: ConferenceSHOT FX Camera BLACK | B147: 7160.55 | C147: -3331.65 | D147: -1848.7 | G147: 31715.69 | H147: 7285.75 | I147: 14032.39 | J147: 4794.52 | K147: 10510.19 | L147: 43937.51 | M147: 2625.1 | N147: 153932.47 | O147: 3431.02 | P147: 4288.77 | Q147: 10681.33 | R147: 11061.72 | S147: 2932.95 | T147: 10365.3 | U147: 892.41 | V147: -8920.6 | X147: 2028.2 | Y147: 307574.92
A148: ConferenceSHOT FX Camera WHITE | B148: 4605.02 | C148: -4039.67 | D148: 1949.44 | E148: -784.08 | G148: 4873.6 | H148: -1854.36 | I148: 36649.36 | J148: 35937.78 | K148: 826.73 | L148: 11751.34 | M148: 3758.16 | N148: 3659.84 | O148: 1783.78 | P148: 2807.19 | Q148: 10838.84 | R148: 2427.57 | S148: 12262.68 | T148: 1014.1 | X148: 0 | Y148: 128467.32
A149: CONN EURO-STYLE 5MM 3 POS | D149: 1.12 | I149: 5.13 | M149: 2.09 | R149: 148.6 | S149: -72.39 | Y149: 84.55
A150: CSAV SYS CEILINGMIC 1 (W/O SPKR) | B150: 9199.19 | D150: 8260.5 | H150: 19712.59 | J150: 939 | K150: 48361.48 | L150: 3529.49 | M150: 3754.78 | N150: 13615.13 | P150: 3435.62 | Q150: -32159.61 | R150: 16896.51 | S150: 7541.63 | T150: 1877.39 | V150: 3851.68 | W150: 15406.72 | X150: 1925.84 | Y150: 126147.94
A151: CSAV SYS CEILINGMIC 1 (W/O SPKR) INTL | D151: 4910.38 | H151: 2748.96 | I151: 1813.56 | J151: 1827.34 | M151: 3670.9 | N151: 1881.08 | R151: 1850.31 | S151: 1867.91 | X151: 1729.53 | Y151: 22299.97
A152: CSAV SYS CEILINGMIC 1 (W/O SPKR) WHT | B152: 1652.1 | C152: 4078.97 | D152: 3754.78 | E152: 3379.3 | F152: 3754.78 | G152: 1877.39 | H152: 1877.39 | J152: 189484.88 | K152: 77648.77 | L152: 55439.31 | M152: 225.39 | N152: 17835.2 | O152: 3754.78 | P152: 84951.88 | Q152: 14568.54 | R152: 39053.62 | S152: 11275.03 | T152: 53405.56 | U152: 55108.92 | W152: 177177.46 | X152: 1925.84 | Y152: 802229.89
A153: CSAV SYS CEILINGMIC 1 (W/O SPKR) WHT INT | B153: 1762.3 | C153: 1733.6 | D153: 3445.88 | F153: 1665.33 | H153: 1716.48 | J153: 36546.69 | K153: 5020.5 | L153: 5368.55 | M153: 23860.84 | N153: 22384.85 | O153: 5579.85 | P153: 1856.43 | Q153: 3590.96 | R153: 1601.41 | S153: 10230.83 | T153: 22767.76 | U153: 3499.83 | V153: 1760.77 | X153: 1729.53 | Y153: 156122.39
A154: CSAV SYS CEILINGMIC 2 (W/O SPKR) | B154: 1321.73 | C154: 15687.3 | D154: 9355.99 | E154: 4567.26 | F154: 2181.8 | G154: 15502.43 | H154: 4506.52 | I154: 42811.94 | J154: 268137.82 | K154: 126092.48 | L154: 13128.73 | M154: 49786.77 | N154: 8021.4 | O154: 13761.83 | P154: 17485.3 | Q154: -8026.97 | R154: 15300.9 | S154: 2322.12 | T154: 19455.37 | U154: 127144.85 | V154: 3139.94 | W154: 46779.03 | X154: 51992.5 | Y154: 850457.04
A155: CSAV SYS CEILINGMIC 2 (W/O SPKR) AUS | L155: 1924.6 | Y155: 1924.6
A156: CSAV SYS CEILINGMIC 2 (W/O SPKR) INTL | B156: 2115.35 | C156: 8323.6 | D156: 2068.11 | E156: 4033.54 | F156: 7834.88 | G156: 2045.81 | H156: 3165.69 | I156: 6531.15 | J156: 4387.16 | K156: 8903.19 | L156: 8270.54 | N156: 11290.55 | O156: 2511.83 | P156: 6685.53 | Q156: 4310.72 | R156: 2221.16 | S156: 2214.92 | T156: 9053.04 | U156: 2199.95 | V156: 4383.96 | W156: 4293.21 | X156: 6343.34 | Y156: 113187.23
A157: CSAV SYS CEILINGMIC 2 (W/O SPKR) WHT | B157: 33077.87 | C157: 15327.91 | D157: 15502.43 | E157: 56517.69 | F157: 187944.58 | G157: 248510.59 | H157: 79089.27 | I157: 437866.58 | J157: 1664568.17 | K157: 1090763.48 | L157: 202187.31 | M157: 148792.8 | N157: 146597.28 | O157: 303053.33 | P157: 32571.58 | Q157: 194425.01 | R157: 478974.88 | S157: 67858.99 | T157: 381115.39 | U157: 277608.77 | V157: 131947.27 | W157: 257130.19 | X157: 81620.51 | Y157: 6533051.88
A158: CSAV SYS CEILINGMIC 2 (W/O SPKR) WHT INT | B158: 14807.46 | C158: 6242.7 | D158: 16131.25 | E158: 18587.56 | F158: 20990.73 | G158: 18900.46 | I158: 52249.12 | J158: 96517.84 | K158: 38743.49 | L158: 51341.68 | M158: 41863.27 | N158: 97057.51 | O158: 49120.28 | P158: 6685.53 | Q158: 6466.08 | R158: 4442.32 | S158: 6644.76 | T158: 26876.46 | U158: 9856.59 | V158: 31389.98 | W158: 8586.44 | X158: 6459.26 | Y158: 629960.77
A159: CSAV SYS INTEGRATOR 2 (W/O SPKR) | E159: -3952.96 | Y159: -3952.96
A160: CSAV SYSTEM - BASIC 1 | E160: -2896.96 | Y160: -2896.96
A161: CSAV SYSTEM - BASIC 2 WHT | D161: 0 | Y161: 0
A162: CSAV SYSTEM - CEILINGMIC 1 | C162: 7652.48 | D162: 2102.33 | K162: 5698.4 | L162: 2102.33 | M162: 1850.05 | R162: 2102.33 | T162: 10978.4 | U162: 4210.43 | W162: 8958.36 | Y162: 45655.11
A163: CSAV SYSTEM - CEILINGMIC 1 INTL | G163: 1906.24 | I163: 10142.61 | L163: 3903.17 | M163: 2053.01 | N163: 3682.08 | O163: 2080.42 | P163: 2076.47 | T163: 1931.79 | V163: 2066.21 | Y163: 29842
A164: CSAV SYSTEM - CEILINGMIC 1 WHT | B164: 7652.48 | C164: 2102.33 | I164: 23966.52 | J164: 9986.05 | K164: 4099.54 | L164: 30357.64 | M164: -20468.27 | N164: 18920.97 | O164: 3847.26 | P164: 9502.53 | R164: 7728.8 | S164: 18569.46 | T164: 4103.48 | V164: 1970.84 | W164: 1970.84 | Y164: 124310.47
A165: CSAV SYSTEM - CEILINGMIC 1 WHT AUS | L165: 3330.1 | Y165: 3330.1
A166: CSAV SYSTEM - CEILINGMIC 1 WHT INTL | B166: 5921.79 | I166: 12171.13 | M166: -2053.01 | N166: 12624.31 | O166: 4160.84 | Q166: 1004.16 | R166: 2069.63 | S166: 4177.03 | T166: 5799.45 | V166: 8264.84 | W166: 7891.43 | Y166: 62031.6
A167: CSAV SYSTEM - CEILINGMIC 2 | B167: -66.83 | C167: 22114.2 | D167: 8500.67 | E167: 15618.76 | F167: 2181.67 | G167: 4363.34 | H167: 4660.84 | K167: 54368.17 | L167: 33915.04 | M167: 9321.68 | N167: 2479.17 | P167: 4628.07 | R167: 4495.82 | S167: 15778.32 | T167: 2360.43 | U167: 2682.31 | V167: 2682.31 | W167: 12633.67 | X167: 7403.17 | Y167: 210120.81
A168: CSAV SYSTEM - CEILINGMIC 2 INTL | C168: 2290.07 | F168: 2200.11 | G168: 2251.49 | I168: 2395.92 | J168: 9656.52 | K168: 8764.63 | L168: 13830.36 | M168: 2424.85 | N168: 7455.4 | O168: 2457.22 | S168: 4793.57 | T168: 2792.86 | V168: 14189.88 | W168: 2445.72 | Y168: 77948.6
A169: CSAV SYSTEM - CEILINGMIC 2 WHT | B169: 11740.38 | C169: 4710.42 | G169: 4660.84 | I169: 157625.47 | J169: 456637.69 | K169: 389439.67 | L169: 113044.96 | M169: 41622.31 | N169: 113367.37 | O169: 74930.38 | P169: 37187.53 | Q169: 38005.66 | R169: 65814.2 | S169: 81639.3 | T169: 243256.27 | U169: 138165.87 | V169: 109518.53 | W169: 207235.12 | X169: 153749.94 | Y169: 2442351.91
A170: CSAV SYSTEM - CEILINGMIC 2 WHT AUS | L170: 1963.5 | Y170: 1963.5
A171: CSAV SYSTEM - CEILINGMIC 2 WHT INTL | C171: 2290.07 | D171: 4551.96 | F171: 4400.22 | I171: 7187.76 | J171: 14484.78 | K171: 23688.16 | L171: 23405.22 | M171: 13839.89 | N171: 14662.28 | O171: 22114.96 | P171: 9687.63 | Q171: 28518.56 | R171: 24500.28 | S171: 25177.35 | T171: 32491.36 | U171: 2211.39 | V171: 36212.6 | W171: 30571.55 | X171: 53968.43 | Y171: 373964.45
A172: CSAV SYSTEM - GROUP WHT | Q172: -53.45 | Y172: -53.45
A173: CSAV SYSTEM - HUDDLE WHT | Q173: -222.7 | Y173: -222.7
A174: CSAV SYSTEM - INTEGRATOR 1 WHT | Q174: -49.87 | Y174: -49.87
A175: CSAV-TableMIC 1 | C175: 1877.39 | D175: 3304.2 | G175: 1443.12 | K175: 2590.79 | L175: 15019.12 | M175: 3021.01 | N175: 3754.78 | P175: 5200.55 | Q175: 1877.39 | R175: -1652.1 | S175: 3864.4 | T175: 2239.59 | V175: 3941.68 | W175: 4479.18 | X175: 2239.59 | Y175: 53200.69
A176: CSAV-TableMIC 1 AUS | L176: 5286.72 | Y176: 5286.72
A177: CSAV-TableMIC 1 INTL | B177: 6283.13 | C177: 3177.38 | D177: 1722.93 | E177: 3360.07 | F177: 21044.71 | G177: 20200.7 | H177: -1705.53 | I177: 16321.98 | J177: 23620.25 | K177: 54483.88 | L177: 17647.12 | M177: 4405.07 | N177: 30285.38 | O177: 13019.65 | P177: 3712.86 | Q177: 1795.48 | S177: 2012.03 | W177: -10854.12 | Y177: 210532.97
A178: CSAV-TableMIC 1 w/o Speaker | D178: 10549.13 | G178: 3081.98 | J178: 4756.26 | L178: 11560.36 | M178: 2906.6 | N178: 6605.92 | T178: 15217.92 | W178: 1925.84 | X178: 1925.84 | Y178: 58529.85
A179: CSAV-TableMIC 1 w/o Speaker INTL | F179: 3088.03 | H179: 3026.02 | I179: 1598.58 | K179: 1796.02 | L179: 6309.56 | N179: 3297.58 | P179: 1636.38 | Q179: 3234.14 | R179: 1630.97 | S179: 10018.09 | Y179: 35635.37
A180: CSAV-TableMIC 1 w/o Speaker White | D180: 4871.87 | H180: 1445.05 | J180: 4706.73 | K180: 9116.16 | P180: 1238.61 | T180: 60420.51 | Y180: 81798.93
A181: CSAV-TableMIC 1 w/o Speaker White INTL | D181: 1516.03 | F181: 2935.88 | H181: 756.5 | K181: 6537.52 | L181: 1577.39 | P181: 1636.38 | S181: 1877.58 | Y181: 16837.28
A182: CSAV-TableMIC 1 White | J182: 9912.6 | K182: 27851.9 | L182: 1428.27 | N182: 31389.9 | T182: -34694.1 | W182: -4546.97 | X182: 8353.67 | Y182: 39695.27
A183: CSAV-TableMIC 1 White INTL | D183: 1722.93 | F183: 4995.99 | G183: 5027.47 | H183: 1630.65 | K183: 79790.14 | L183: 21348.94 | M183: 6607.62 | N183: 12979.45 | O183: 17111.53 | P183: 1856.43 | S183: 5655.16 | W183: -7799.95 | Y183: 150926.36
A184: CSAV-TableMIC 1 WHT AUS | K184: 7434.45 | Y184: 7434.45
A185: CSAV-TableMIC 2 | D185: 1982.87 | E185: 6106.34 | F185: 2253.26 | G185: 6489.39 | J185: 29923.3 | K185: 1126.63 | L185: 36856.88 | M185: 4506.52 | N185: 96349.4 | O185: 18936.08 | P185: 2253.26 | Q185: 10995.91 | R185: 18156.98 | S185: 20428.42 | T185: 15852.06 | V185: 28968.92 | W185: 29054.76 | Y185: 330240.98
A186: CSAV-TableMIC 2 AUS | L186: 3569.16 | N186: 3489.86 | U186: 4628.3 | X186: 4720.86 | Y186: 16408.18
A187: CSAV-TableMIC 2 INTL | B187: 4230.7 | G187: 2027.93 | K187: 14851.69 | L187: 7196.43 | M187: 22584.09 | N187: 6774.32 | P187: 6462.68 | Q187: 2155.36 | R187: 3939.79 | T187: 3261.93 | W187: 4596.16 | X187: 4610.04 | Y187: 82691.12
A188: CSAV-TableMIC 2 w/o Speaker | C188: 7133.97 | D188: 5114.28 | G188: 14145.42 | J188: 15357.03 | L188: 7284.27 | M188: 1877.39 | N188: 5632.17 | O188: 1652.1 | P188: 5632.17 | Q188: 1877.39 | R188: 1877.39 | S188: 4644.24 | T188: 4086.94 | U188: 7105.68 | X188: 8905.78 | Y188: 92326.22
A189: CSAV-TableMIC 2 w/o Speaker INTL | C189: 5479.68 | D189: 861.95 | F189: 1842.23 | G189: 1704.23 | H189: 6865.91 | K189: 3586.07 | L189: 7402.1 | M189: -1793.04 | N189: 15006.38 | O189: 1859.95 | P189: 3712.86 | Q189: 3590.96 | T189: 7426.84 | U189: 4443.79 | Y189: 61989.91
A190: CSAV-TableMIC 2 w/o Speaker White | B190: 5688.99 | C190: 1877.39 | D190: -44.54 | F190: 1877.39 | K190: 8925.04 | L190: 5406.88 | N190: 7509.56 | O190: 3754.78 | P190: 3529.49 | Q190: 1877.39 | T190: 29730.07 | U190: 16579.92 | V190: 2250.13 | W190: 4737.12 | Y190: 93699.61
A191: CSAV-TableMIC 2 w/o Speaker White AUS | M191: 3379.3 | Y191: 3379.3
A192: CSAV-TableMIC 2 w/o Speaker White INTL | D192: 5171.72 | F192: 3330.67 | G192: 7359.16 | H192: 1716.48 | K192: 6992.84 | L192: 5368.55 | M192: 3921.19 | N192: 1881.08 | O192: 3719.9 | P192: 1856.43 | R192: 1850.31 | T192: 1956.3 | V192: 2213.85 | W192: 5420.07 | Y192: 52758.55
A193: CSAV-TableMIC 2 White | B193: 9013.04 | D193: 4506.52 | K193: 6759.78 | L193: 14961.65 | M193: 5948.61 | N193: 1982.87 | O193: 1982.87 | P193: 11897.22 | Q193: 4506.52 | R193: 12167.61 | T193: 12365.43 | U193: 19527.22 | V193: 2360.43 | W193: 3328.3 | X193: 187.76 | Y193: 111495.83
A194: CSAV-TableMIC 2 White INTL | B194: 2115.35 | C194: 2080.9 | F194: 9995.59 | G194: 5728.26 | H194: 7623.89 | K194: 20232.71 | L194: 2148.19 | M194: 3745.67 | N194: 13322.84 | O194: 4465.48 | P194: 2228.51 | R194: 4442.32 | S194: 6876.26 | Y194: 85005.97
A195: CSAV-TableMIC 2 WHT AUS | L195: 3569.16 | Y195: 3569.16
A196: DocCAM 20 HDBT C1 | D196: 1751.8 | F196: -1751.81 | Y196: -0.01
A197: DocCAM 20 HDBT Camera | B197: 25340.18 | C197: 5407.5 | D197: 5394.51 | F197: 15488.6 | G197: 4868.76 | H197: 12956.3 | I197: 13676.3 | J197: 45834.21 | K197: 2735.26 | L197: 48225.78 | M197: 17495.76 | N197: 7877.55 | O197: 1094.35 | P197: 87257.04 | Q197: 4887.92 | R197: 21882.08 | S197: 24088.36 | T197: 29625.95 | U197: 24217.5 | V197: 27433.23 | W197: 12551.41 | X197: 5549.25 | Y197: 443887.8
A198: DocCAM 20 HDBT Camera INT | L198: 2310.94 | Y198: 2310.94
A199: DocCAM 20 HDBT OneLINK Bridge System INT | C199: 4420.83 | D199: 3157.5 | M199: 3554.01 | P199: 5686.42 | X199: 7816.18 | Y199: 24634.94
A200: DocCAM 20 HDBT OneLINK Bridge System N/A | B200: 8841.66 | F200: 13127 | G200: 8841.66 | H200: 11936.25 | I200: 25110.28 | J200: 62756.19 | K200: 29354.31 | L200: 8841.66 | M200: 70957.56 | N200: 37665.47 | O200: 17152.82 | P200: 116090.98 | Q200: 92821.24 | R200: 40422.6 | S200: 13527.75 | T200: 42343.7 | U200: 13798.32 | V200: 10222.35 | W200: 22050.52 | X200: 12694.46 | Y200: 658556.78
... 551 more rows

Sheet Quantity
A1: Sum - Quantity | B1: FiscalYearMonth
A2: ProductDescription | B2: 2020-01 | C2: 2020-02 | D2: 2020-03 | E2: 2020-04 | F2: 2020-05 | G2: 2020-06 | H2: 2020-07 | I2: 2020-08 | J2: 2020-09 | K2: 2020-10 | L2: 2020-11 | M2: 2020-12 | N2: 2021-01 | O2: 2021-02 | P2: 2021-03 | Q2: 2021-04 | R2: 2021-05 | S2: 2021-06 | T2: 2021-07 | U2: 2021-08 | V2: 2021-09 | W2: 2021-10 | X2: 2021-11 | Y2: Total Result
A3: 1-RU RACK PANEL FOR 2 INTERFACES | B3: 5 | C3: 10 | D3: 19 | F3: 1 | G3: 1 | H3: 1 | I3: 2 | J3: 5 | K3: 7 | L3: 7 | M3: 4 | N3: 2 | Q3: 17 | R3: 3 | S3: 23 | T3: 2 | U3: 10 | V3: -1 | W3: 1 | X3: 1 | Y3: 120
A4: 1-RU RACK PANEL FOR 3 INTERFACES | E4: 1 | J4: 7 | K4: 4 | U4: 1 | V4: 1 | X4: 2 | Y4: 16
A5: 12" Clear Dome Accessory | B5: -2 | G5: 4 | H5: 4 | I5: -4 | J5: 6 | K5: -2 | L5: -2 | Q5: 4 | R5: 4 | S5: 1 | T5: 2 | U5: 2 | Y5: 17
A6: 12" Smoke Tinted Dome Accessory | C6: 6 | I6: 2 | L6: 10 | M6: 4 | N6: 7 | O6: 47 | P6: 6 | Q6: 1 | X6: 8 | Y6: 91
A7: 24V 1A Power Adapter (Level VI) | R7: 1 | S7: 1 | Y7: 2
A8: ACTIVE OPTICAL USB 3.0 A/B PLENUM 20M | H8: 1 | I8: 48 | J8: 11 | K8: 14 | L8: 17 | M8: 26 | N8: 19 | O8: 8 | P8: 35 | Q8: 59 | R8: 47 | S8: 72 | T8: 51 | U8: 75 | V8: 117 | W8: 32 | X8: 21 | Y8: 653
A9: ACTIVE OPTICAL USB 3.0 A/B PLENUM 30M | I9: 10 | J9: 4 | K9: 9 | L9: 29 | M9: 6 | N9: 10 | O9: 7 | P9: 13 | Q9: 13 | R9: 22 | S9: 31 | T9: 4 | U9: 62 | V9: 82 | W9: 3 | X9: 1 | Y9: 306
A10: ACTIVE OPTICAL USB 3.0 A/B PLENUM 8M | H10: 1 | I10: 17 | J10: 7 | K10: 11 | L10: 21 | M10: 16 | N10: 4 | O10: 8 | P10: 22 | Q10: 9 | R10: 13 | S10: 39 | T10: 45 | U10: 57 | V10: 37 | W10: 20 | X10: 33 | Y10: 360
A11: ACTIVE OPTICAL USB 3.0 A/C PLENUM 15M | B11: 5 | D11: 51 | E11: 38 | F11: 10 | G11: 8 | H11: 10 | I11: 4 | J11: 5 | K11: 31 | L11: 4 | M11: 63 | N11: 16 | O11: 34 | P11: 32 | Q11: -20 | R11: 9 | S11: 2 | T11: 42 | U11: 6 | V11: 2 | W11: 3 | X11: -1 | Y11: 354
A12: ACTIVE OPTICAL USB 3.0 A/C PLENUM 30M | B12: 1 | D12: 7 | E12: 11 | F12: 7 | G12: 12 | H12: 7 | I12: 8 | J12: 1 | K12: 10 | L12: 20 | M12: 6 | N12: 3 | O12: 13 | P12: 6 | Q12: 2 | R12: 2 | Y12: 116
A13: ACTIVE OPTICAL USB 3.0 A/C PLENUM 8M | B13: 11 | C13: 10 | D13: 4 | E13: 13 | F13: 7 | G13: 19 | H13: 34 | I13: 114 | J13: 4 | K13: 23 | L13: 31 | M13: 106 | N13: 36 | O13: 13 | P13: -37 | Q13: -1 | T13: 18 | Y13: 405
A14: ACTIVEOPTICAL C/A USB 3.0/2.0 PLENUM 15M | Q14: 14 | R14: 33 | S14: 59 | T14: 17 | U14: 19 | V14: 15 | W14: 31 | X14: 10 | Y14: 198
A15: ACTIVEOPTICAL C/A USB 3.0/2.0 PLENUM 30M | Q15: 11 | R15: 13 | S15: 28 | T15: 7 | U15: 15 | V15: 34 | W15: 4 | X15: 27 | Y15: 139
A16: ACTIVEOPTICAL C/A USB 3.0/2.0 PLENUM 8M | Q16: 196 | R16: -67 | S16: 63 | T16: 20 | U16: 26 | V16: 4 | W16: 11 | X16: 12 | Y16: 265
A17: ADAPTER 422 TO 232 | B17: 1 | D17: 2 | Y17: 3
A18: ADAPTER CONTROL DB-9F TO RJ-45F | C18: 3 | D18: 2 | F18: 5 | G18: 2 | H18: 2 | J18: 1 | V18: 2 | Y18: 17
A19: ADAPTER CONTROL DB-9M TO RJ-45F | B19: 14 | C19: 21 | D19: 11 | E19: 3 | F19: 7 | G19: 9 | H19: 108 | I19: 5 | J19: 13 | K19: 9 | L19: 4 | M19: 14 | N19: 13 | O19: 13 | P19: 174 | Q19: 1 | R19: 13 | S19: 8 | T19: 8 | U19: 2 | V19: 14 | W19: 5 | X19: 4 | Y19: 473
A20: ADAPTER RJ45 TO DB9M | B20: 4 | C20: 1 | D20: 4 | E20: 7 | F20: 3 | H20: 1 | J20: 1 | K20: -1 | R20: 3 | Y20: 23
A21: ADAPTER RS-422 TO CAT5 | B21: 1 | D21: 2 | Y21: 3
A22: Adjustable Mount HuddleSHOT BLACK | C22: 1 | D22: 3 | E22: -1 | F22: 3 | G22: 3 | H22: 3 | I22: 8 | J22: 5 | K22: 23 | L22: 5 | M22: 4 | N22: 3 | O22: 6 | P22: 8 | Q22: 10 | R22: 37 | S22: 8 | T22: 3 | W22: 1 | X22: 1 | Y22: 134
A23: Adjustable Mount HuddleSHOT WHITE | D23: 2 | E23: 4 | F23: 2 | K23: 13 | M23: 5 | O23: 2 | S23: 2 | Y23: 30
A24: ADJUSTABLE WALL BRACKET FOR CONCEAL | D24: -2 | I24: 4 | J24: 1 | M24: 1 | N24: 1 | O24: 4 | P24: 4 | R24: 26 | S24: 1 | U24: 2 | V24: 1 | W24: 1 | X24: 1 | Y24: 45
A25: Advanced Replacement | B25: 21 | C25: -20 | D25: -13 | E25: -15 | F25: 18 | G25: 22 | H25: -6 | I25: -13 | J25: 21 | K25: 17 | L25: 40 | M25: 41 | N25: 3 | O25: 19 | P25: -24 | Q25: 4 | R25: 17 | S25: 20 | T25: 4 | U25: -4 | V25: -15 | W25: 14 | X25: -10 | Y25: 141
A26: ASSY DOME HEATER/BLOWER | C26: 1 | Y26: 1
A27: ASSY DOME W/SCREWS - CLR | U27: 1 | Y27: 1
A28: AUTOVIEW IR SENSOR KIT | B28: 3 | C28: 1 | D28: 1 | F28: 9 | H28: 25 | I28: 12 | J28: 52 | K28: 10 | L28: 10 | M28: 2 | O28: 1 | P28: 3 | R28: 17 | S28: 3 | T28: 9 | U28: 10 | V28: 2 | W28: 1 | X28: 7 | Y28: 178
A29: AUTOVIEW IR SENSOR KIT INT'L | P29: 3 | T29: 1 | Y29: 4
A30: AV Bridge 2x1 | Q30: 2 | R30: 1 | S30: 1 | V30: 1 | X30: 1 | Y30: 6
A31: AV Bridge 2x1 AUS | M31: 2 | N31: 1 | O31: 3 | Q31: 1 | S31: 1 | Y31: 8
A32: AV Bridge 2x1 INT | D32: 18 | E32: 26 | F32: 19 | G32: 15 | H32: 53 | I32: 72 | J32: 18 | K32: 149 | L32: 87 | M32: 239 | N32: 112 | O32: 69 | P32: 43 | Q32: 83 | R32: 117 | S32: 274 | T32: 53 | U32: 162 | V32: 121 | W32: 170 | X32: 99 | Y32: 1999
A33: AV Bridge 2x1 N/A | D33: 9 | E33: 8 | F33: 17 | G33: 96 | H33: 59 | I33: 414 | J33: 112 | K33: 318 | L33: 76 | M33: 109 | N33: 69 | O33: 37 | P33: 141 | Q33: 84 | R33: 178 | S33: 192 | T33: 178 | U33: 305 | V33: 50 | W33: 178 | X33: 73 | Y33: 2703
A34: AV BRIDGE CONFERENCE SYSTEM | B34: 40 | C34: 26 | D34: 49 | E34: 33 | F34: 36 | G34: 41 | H34: 48 | I34: 59 | J34: 31 | K34: 106 | L34: 70 | M34: 64 | N34: 98 | O34: 38 | P34: 90 | Q34: 29 | R34: 77 | S34: 47 | T34: 58 | U34: 6 | V34: 127 | W34: 81 | X34: 2 | Y34: 1256
A35: AV BRIDGE CONFERENCE SYSTEM AUS/NZ | C35: 2 | G35: 1 | R35: 1 | Y35: 4
A36: AV BRIDGE CONFERENCE SYSTEM INT'L | B36: 15 | C36: 2 | D36: 10 | G36: 1 | H36: 1 | I36: 4 | J36: 6 | K36: 9 | L36: 3 | M36: 5 | N36: 1 | O36: 2 | Q36: 2 | R36: 1 | T36: 3 | W36: 11 | X36: 9 | Y36: 85
A37: AV BRIDGE CONFERENCE UNIT | H37: 1 | L37: 1 | W37: 1 | Y37: 3
A38: AV BRIDGE MATRIX PRO SYSTEM | B38: 14 | C38: 13 | D38: 18 | E38: 7 | F38: 9 | G38: 25 | H38: 42 | I38: -1 | J38: 46 | K38: 33 | L38: 12 | M38: 13 | N38: 20 | O38: 5 | P38: 15 | Q38: 4 | R38: 13 | S38: 20 | T38: 15 | U38: 12 | V38: 11 | W38: 10 | X38: 15 | Y38: 371
A39: AV BRIDGE MATRIX PRO SYSTEM AUS/NZ | R39: 3 | U39: 1 | Y39: 4
A40: AV BRIDGE MATRIX PRO SYSTEM INT'L | B40: 4 | C40: 1 | D40: 3 | G40: 1 | I40: 1 | L40: 5 | M40: 2 | O40: 2 | R40: 1 | Y40: 20
A41: AV BRIDGE MATRIX PRO UNIT | V41: -1 | Y41: -1
A42: AV Bridge MatrixMIX INTL | B42: 6 | C42: 1 | D42: 1 | E42: 2 | G42: 1 | H42: 2 | I42: 7 | J42: 1 | L42: 2 | M42: 9 | N42: 1 | O42: 1 | P42: 7 | Q42: 2 | R42: 2 | S42: 2 | T42: 3 | U42: 4 | V42: 1 | W42: 5 | X42: 1 | Y42: 61
A43: AV Bridge MatrixMIX N/A | B43: 2 | C43: 4 | D43: 3 | E43: 2 | F43: 5 | G43: -1 | H43: 15 | I43: 2 | J43: 9 | K43: 8 | L43: 4 | M43: 7 | N43: 2 | O43: 0 | P43: 20 | Q43: 21 | R43: 3 | S43: 6 | T43: 23 | U43: 14 | V43: 1 | W43: 8 | X43: 0 | Y43: 158
A44: AV Bridge MatrixMIX Production Sys INTL | B44: 1 | D44: 2 | E44: 1 | F44: 1 | H44: 1 | I44: 1 | M44: -1 | O44: 1 | P44: 1 | Q44: 7 | R44: 1 | S44: 2 | T44: 1 | U44: 1 | W44: 2 | X44: 1 | Y44: 23
A45: AV Bridge MatrixMIX Production Sys N/A | B45: 10 | C45: 8 | D45: 9 | E45: 5 | F45: 12 | G45: 28 | H45: 8 | I45: 8 | J45: 27 | K45: 46 | L45: 24 | M45: 13 | N45: 10 | O45: 9 | P45: 6 | Q45: 14 | R45: 11 | S45: 32 | T45: 20 | U45: 9 | V45: 8 | W45: 24 | X45: 19 | Y45: 360
A46: AV Bridge Mini | L46: 2 | M46: 1 | N46: 4 | V46: -3 | W46: 1 | Y46: 5
A47: AV Bridge Mini AUS | B47: 1 | G47: 1 | H47: 1 | L47: 7 | M47: 5 | N47: 2 | O47: 2 | P47: 5 | Q47: 1 | R47: 14 | S47: 6 | T47: 5 | U47: 4 | V47: 4 | W47: 7 | X47: 15 | Y47: 80
A48: AV Bridge Mini INT | B48: 49 | C48: 16 | D48: 37 | E48: 37 | F48: 26 | G48: 39 | H48: 208 | I48: 36 | J48: 289 | K48: 48 | L48: 61 | M48: 333 | N48: 134 | O48: 33 | P48: 37 | Q48: 105 | R48: 42 | S48: 122 | T48: 109 | U48: 105 | V48: 69 | W48: 42 | X48: 53 | Y48: 2030
A49: AV Bridge Mini N/A | B49: 133 | C49: 118 | D49: 132 | E49: 93 | F49: 70 | G49: 222 | H49: 176 | I49: 65 | J49: 494 | K49: 290 | L49: 355 | M49: 214 | N49: 180 | O49: 162 | P49: 319 | Q49: 316 | R49: 270 | S49: 399 | T49: 238 | U49: 250 | V49: 291 | W49: 234 | X49: 284 | Y49: 5305
A50: AV BRIDGE SYSTEM | B50: 58 | C50: 99 | D50: 60 | E50: 36 | F50: 68 | G50: 90 | H50: 57 | I50: 92 | J50: 165 | K50: 95 | L50: 53 | M50: 99 | N50: 60 | O50: 80 | P50: 71 | Q50: 66 | R50: 90 | S50: 30 | T50: 150 | U50: 15 | V50: 113 | W50: 94 | X50: 99 | Y50: 1840
A51: AV BRIDGE SYSTEM AUS/NZ | C51: 2 | D51: 1 | J51: 1 | L51: 1 | M51: 3 | O51: 7 | Q51: 2 | Y51: 17
A52: AV BRIDGE SYSTEM INT'L | B52: 3 | C52: 2 | D52: 3 | E52: 1 | F52: 4 | G52: 2 | H52: 2 | I52: 8 | J52: 25 | K52: 11 | M52: 2 | N52: 4 | O52: 6 | P52: 2 | Q52: 2 | R52: 2 | X52: 1 | Y52: 80
A53: AV BRIDGE UNIT | C53: 1 | E53: -1 | R53: 1 | Y53: 1
A54: AV REMOTE COMMANDER INTL | B54: 1 | H54: 1 | M54: 1 | P54: 1 | T54: 2 | Y54: 6
A55: AV REMOTE COMMANDER N/A | B55: 2 | C55: 1 | D55: 1 | G55: 3 | H55: 2 | I55: 37 | J55: 9 | K55: 0 | L55: 5 | M55: 7 | N55: 8 | O55: 10 | P55: 13 | Q55: 7 | R55: 9 | S55: 17 | T55: 6 | U55: 7 | V55: 9 | W55: 4 | X55: 1 | Y55: 158
A56: Boot Strain Relief Ceiling MIC White | M56: 6 | Y56: 6
A57: BOSE DS-16 SPEAKER KIT | B57: 13 | C57: 1 | D57: 2 | F57: 2 | G57: 8 | H57: 25 | I57: 2 | J57: 5 | K57: 2 | L57: 7 | M57: 3 | N57: 0 | Q57: 0 | Y57: 70
A58: BOSE FS2C SPEAKER KIT | M58: 10 | N58: 2 | P58: 2 | V58: 1 | Y58: 15
A59: BOX 15" X 9 1/8" X 3 1/8" | H59: 10 | K59: 5 | L59: 10 | Y59: 25
A60: BOX 22 x 12 x 20 VAD LOGO | D60: 25 | J60: 10 | M60: 132 | O60: 29 | S60: 79 | T60: 14 | U60: 16 | W60: 30 | Y60: 335
A61: BOX 23 1/4" X 14 1/8" X 9 1/2" NG PC | B61: 1 | Y61: 1
A62: BOX 25 5/16" X 11 3/4" X 11.5" | C62: 6 | D62: 1 | H62: 20 | I62: 1 | Q62: 6 | Y62: 34
A63: BOX 7 9/16" X 4 5/8" X 2 3/4" | M63: 10 | Y63: 10
A64: BOX 8 3/4" X 6 1/8" X 2.75" | D64: 7 | I64: 2 | K64: 10 | L64: 36 | Q64: 15 | S64: 16 | Y64: 86
A65: BOX FILLER FOR SOUND BAR SYSTEM BUNDLE | D65: 3 | I65: 1 | O65: 1 | Q65: 3 | S65: 2 | T65: 2 | U65: 1 | W65: 1 | X65: 5 | Y65: 19
A66: BOX OUT 15 7/16" X 12 1/2" X 16 1/2" | D66: 40 | G66: 20 | H66: 80 | L66: 30 | M66: 93 | R66: 30 | S66: 66 | T66: 15 | U66: 15 | W66: 11 | Y66: 400
A67: BOX OUT 16 1/2" X 9 3/4" X 13" ZOOM/WALL | N67: 4 | Y67: 4
A68: BOX OUT 17 5/8" X 12 1/2" X 21" ROBO CCU | I68: 1 | M68: 3 | O68: 5 | Y68: 9
A69: BOX OUTER 40 1/2" X 41" FOR ONELINK | K69: 10 | L69: 31 | Q69: 2 | R69: 6 | S69: 10 | Y69: 59
A70: BOX OUTER 9 5/8 x 8 3/16 x 6 3/4 USB EXT | G70: 2 | Y70: 2
A71: BOX OUTER BOX FOR SPEAKER SYSTEM | B71: 1 | D71: 9 | F71: 15 | G71: 50 | H71: 60 | J71: 25 | K71: 30 | L71: 30 | M71: 130 | Q71: 27 | R71: 11 | S71: 33 | T71: 4 | W71: 3 | Y71: 428
A72: BOX OUTER CAM 12" X 11 1/2" X 12 15/16" | J72: 17 | P72: 8 | Q72: 1 | S72: 3 | Y72: 29
A73: BOX OUTER FOR CEIL/TBL MIC AND MIXER/AMP | B73: 16 | D73: 29 | G73: 40 | H73: 50 | I73: 87 | J73: 20 | K73: 20 | Y73: 262
A74: BOX OUTER WHT W/LOGO 27 1/4 x 12 1/8 x19 | L74: 60 | M74: 174 | O74: 80 | Q74: 137 | S74: 75 | Y74: 526
A75: BOX SHIP 26" X 18" X 14" | B75: 2 | D75: 1 | G75: 2 | M75: 4 | P75: 10 | T75: 2 | W75: 6 | Y75: 27
A76: BUMPER POLY .50 SQ .12 THK BLK ADHESIVE | R76: 2 | Y76: 2
A77: CABLE 4 FOOT AUDIO/POWER | P77: 4 | Y77: 4
A78: CABLE ACTIVE 3.0 TYPE-A TO B M/M 20M | B78: 105 | C78: 80 | D78: 72 | E78: 25 | F78: 179 | G78: 315 | H78: 1163 | I78: 721 | J78: 261 | K78: 76 | L78: -27 | M78: 208 | N78: 224 | O78: 116 | P78: 112 | Q78: 249 | R78: 292 | S78: 327 | T78: 189 | U78: 279 | V78: 123 | W78: 132 | X78: 151 | Y78: 5372
A79: CABLE ACTIVE 3.0 TYPE-A TO B M/M 30M | B79: 22 | C79: 29 | D79: 15 | E79: 3 | F79: 44 | G79: 121 | H79: 230 | I79: 97 | J79: 103 | K79: 53 | L79: 69 | M79: 57 | N79: 18 | O79: 40 | P79: 56 | Q79: 38 | R79: 56 | S79: 56 | T79: 85 | U79: 28 | V79: 49 | W79: 43 | X79: 61 | Y79: 1373
A80: CABLE ACTIVE USB 2.0 EXTENSION 20M | B80: 3 | C80: 41 | D80: 8 | E80: 2 | F80: 4 | G80: 9 | H80: 64 | I80: 27 | J80: 7 | K80: 8 | L80: 15 | M80: 9 | N80: 17 | O80: 21 | P80: 4 | Q80: 6 | R80: 6 | S80: 8 | T80: 59 | U80: 24 | V80: 26 | W80: 29 | X80: 5 | Y80: 402
A81: Cable Assembly Ceiling MIC White | D81: 2 | K81: 1 | Y81: 3
A82: CABLE ASSY CEILING CAMERA | P82: 2 | Y82: 2
A83: CABLE CAT-5E PATCH 1' BLACK | D83: 2 | J83: 1 | K83: 10 | L83: 31 | Q83: 1 | R83: 3 | S83: 14 | Y83: 62
A84: CABLE CAT5E PATCH 10' BLK N002-010-BK | K84: 1 | R84: 2 | Y84: 3
A85: CABLE CAT5E PATCH 3' BLK N002-003-BK | D85: 2 | Y85: 2
A86: CABLE CONTROL 12" CISCO 1080HD S1 | D86: 2 | Y86: 2
A87: CABLE CONTROL 3' CISCO SX20 | D87: 2 | Y87: 2
A88: Cable Cover Eagle White | Q88: 1 | U88: 6 | Y88: 7
A89: CABLE DC-PLUG DC-PLUG CABLE 1' | P89: 4 | Y89: 4
A90: CABLE EIAJ-04 TO 3MMX6.3MM | F90: 4 | K90: 20 | M90: 16 | O90: 11 | Q90: 11 | R90: 5 | S90: 3 | Y90: 70
A91: CABLE EIAJ-04 TO 5.5X2.1 1' | B91: 25 | D91: 2 | J91: 1 | K91: 1 | R91: 2 | S91: 1 | Y91: 32
A92: CABLE EIAJ-04 TO EIAJ-04 | B92: 1 | D92: 2 | H92: 5 | J92: 9 | K92: 10 | L92: 32 | Q92: 3 | R92: 4 | S92: 3 | T92: 1 | Y92: 70
A93: CABLE EURO IP 3-CONDUCTOR IEC-C13 | C93: 0 | D93: -45 | F93: 1 | G93: 12 | Q93: 2 | Y93: -30
A94: CABLE EZIM CCU FOR PANASONIC AW-HE100 | M94: 1 | Y94: 1
A95: CABLE HDMI 1 METER BLACK QVS HDG-1MC | D95: 2 | Y95: 2
A96: CABLE HDMI MALE-MALE 1' CABLE | D96: 2 | K96: 10 | L96: 33 | Q96: 1 | R96: 23 | W96: 1 | Y96: 70
A97: CABLE KEL 30 58CM 30 POS PIN1 TO PIN1 | C97: 1 | Y97: 1
A98: CABLE ONELINK CODEC SIDE 2' | B98: 4 | C98: 2 | D98: 3 | E98: 1 | G98: 3 | H98: 5 | J98: 7 | K98: 3 | L98: 1 | M98: 12 | O98: 1 | P98: 2 | R98: 6 | S98: 0 | T98: 5 | W98: 2 | X98: 1 | Y98: 58
A99: CABLE ONELINK EZIM SIDE 1' | C99: 1 | D99: 3 | G99: 1 | M99: 3 | N99: 3 | O99: 1 | R99: 3 | Y99: 15
A100: CABLE POWER 6' BLACK FIGURE 8 | B100: 1 | D100: 3 | H100: 1 | I100: 66 | K100: 1 | M100: 1 | N100: 1 | U100: 2 | V100: 2 | X100: 6 | Y100: 84
A101: CABLE PRODUCTIONVIEW HD COMPONENT 3' | D101: 6 | E101: 2 | F101: 1 | H101: 2 | I101: 1 | J101: 1 | M101: 2 | N101: 4 | O101: 1 | P101: 1 | V101: 2 | Y101: 23
A102: CABLE PRODUCTIONVIEW HD Y-C & COMP 1' | C102: 6 | N102: 2 | Y102: 8
A103: CABLE PTZ CAMERA CONTROL 10' | B103: 14 | C103: 16 | D103: 5 | E103: 12 | F103: 8 | G103: 8 | H103: 17 | I103: 14 | J103: 11 | K103: 4 | L103: 8 | M103: 9 | N103: 14 | O103: 4 | P103: 1 | Q103: 51 | R103: 10 | S103: 8 | T103: 21 | U103: 112 | V103: 19 | W103: 2 | X103: 226 | Y103: 594
A104: CABLE RJ45-8PIN MINI-DIN 1 FT | F104: 4 | J104: 6 | K104: 20 | L104: 27 | Q104: 1 | R104: 2 | S104: 3 | T104: 1 | Y104: 64
A105: CABLE UK IP 3-CONDUCTOR IEC-C13 | C105: 0 | D105: -60 | F105: 1 | Q105: 2 | Y105: -57
A106: CABLE US IP IEC | D106: -20 | G106: 1 | Q106: 2 | Y106: -17
A107: CABLE USB 3.0 6' C to A M/M Black | I107: 1 | K107: 2 | Y107: 3
A108: CABLE USB 3.0 MALE A-B 6' | F108: 4 | K108: 15 | L108: 30 | Q108: 2 | R108: 4 | S108: 13 | Y108: 68
A109: CABLE USB TYPE A-B | B109: 1 | G109: 2 | H109: 5 | O109: 1 | R109: 2 | Y109: 11
A110: CAM MODULE SONY ER8300 ROBO20 FW V1.21 | N110: 1 | O110: 1 | Y110: 2
A111: CAMERA SHELF | S111: 1 | T111: 1 | Y111: 2
A112: CAUTION ACCESSORIES LABEL PACKING LABEL | H112: 10 | K112: 10 | L112: 31 | R112: 6 | S112: 10 | Y112: 67
A113: Ceiling MIC System Black | B113: 10 | C113: 6 | D113: 5 | E113: 1 | F113: 3 | G113: 75 | H113: 75 | I113: 28 | J113: 24 | K113: 30 | L113: 18 | M113: 27 | N113: 93 | O113: 16 | P113: 35 | Q113: 18 | R113: 33 | S113: 12 | T113: 14 | U113: 10 | V113: 12 | W113: 9 | X113: 27 | Y113: 581
A114: Ceiling MIC System White | B114: 246 | C114: 92 | D114: 220 | E114: 89 | F114: 119 | G114: 585 | H114: 744 | I114: 1801 | J114: 1264 | K114: 1278 | L114: 250 | M114: 849 | N114: 361 | O114: 230 | P114: 450 | Q114: 763 | R114: 221 | S114: 684 | T114: 189 | U114: 132 | V114: 61 | W114: 328 | X114: 283 | Y114: 11239
A115: Ceiling MICPOD SE White | D115: 2 | O115: 1 | Y115: 3
A116: CEILING MOUNT KIT FOR PENDANT DOMES | B116: 10 | C116: 6 | F116: -6 | Y116: 10
A117: CeilingMIC Interface Box | K117: 2 | P117: 3 | S117: 0 | T117: 2 | U117: 0 | Y117: 7
A118: CeilingMIC Interface Box /Dante | I118: 2 | Y118: 2
A119: CLEARVIEW HD-20SE HD PTZ CAMERA - BLACK | J119: 1 | Y119: 1
A120: CLEARVIEW HD-20SE HD PTZ CAMERA - WHITE | E120: -1 | Y120: -1
A121: CLEARVIEW HD-20SE QCCU SYSTEM - WHITE | S121: 1 | Y121: 1
A122: CONFERENCESHOT 10 CAMERA UNIT WHITE | Q122: -1 | Y122: -1
A123: CONFERENCESHOT 10 GOOG WHITE | B123: -2 | D123: -31 | Y123: -33
A124: CONFERENCESHOT 10 SYSTEM | B124: 30 | C124: 45 | D124: 30 | E124: 24 | F124: 33 | G124: 34 | H124: 83 | I124: 43 | J124: 16 | K124: 18 | L124: 24 | M124: 85 | N124: 47 | O124: 23 | P124: 25 | Q124: 33 | R124: 21 | S124: 123 | T124: 167 | U124: 19 | V124: 18 | W124: 27 | X124: 68 | Y124: 1036
A125: CONFERENCESHOT 10 SYSTEM AUS | G125: 1 | M125: 2 | S125: 1 | V125: 1 | Y125: 5
A126: CONFERENCESHOT 10 SYSTEM AUS/NZ | B126: 4 | D126: 2 | Y126: 6
A127: CONFERENCESHOT 10 SYSTEM INT WHITE | B127: 1 | C127: 9 | D127: 12 | E127: 17 | F127: 15 | G127: 24 | H127: 5 | I127: 34 | J127: 10 | K127: 12 | L127: 10 | M127: 30 | N127: 8 | O127: 19 | P127: 4 | Q127: 15 | R127: 10 | S127: 6 | T127: 14 | U127: 8 | V127: 11 | W127: 2 | X127: 8 | Y127: 284
A128: CONFERENCESHOT 10 SYSTEM INT'L | B128: 10 | C128: 13 | D128: 18 | E128: 10 | F128: 13 | G128: 4 | H128: 16 | I128: 3 | J128: 6 | K128: 6 | L128: 17 | M128: 28 | N128: 20 | O128: 42 | P128: 13 | Q128: 22 | R128: 20 | S128: 8 | T128: 18 | U128: 11 | V128: 2 | W128: 5 | X128: 3 | Y128: 308
A129: CONFERENCESHOT 10 SYSTEM WHITE | B129: 8 | C129: 26 | D129: 20 | E129: 7 | F129: 261 | G129: 80 | H129: 104 | I129: 125 | J129: 52 | K129: 72 | L129: 32 | M129: 46 | N129: 17 | O129: 14 | P129: 68 | Q129: 13 | R129: 28 | S129: 11 | T129: 39 | U129: 35 | V129: 43 | W129: 29 | X129: 16 | Y129: 1146
A130: CONFERENCESHOT 10 SYSTEM WHITE AUS/NZ | G130: 1 | H130: 1 | I130: 3 | J130: 1 | N130: 3 | Y130: 9
A131: CONFERENCESHOT AV CAMERA | B131: 1 | C131: 7 | D131: 6 | E131: 11 | F131: 11 | G131: 59 | H131: 23 | I131: 11 | J131: 3 | K131: 22 | L131: 1 | M131: 25 | N131: 2 | O131: 20 | P131: 7 | Q131: 11 | R131: 89 | S131: 1 | T131: 19 | U131: 54 | W131: 3 | X131: 5 | Y131: 391
A132: CONFERENCESHOT AV CAMERA INTL | B132: 5 | D132: 24 | E132: 11 | F132: 1 | G132: 28 | H132: 23 | I132: 75 | J132: 8 | K132: 48 | L132: 36 | M132: 159 | N132: 3 | O132: 9 | P132: 2 | Q132: 30 | R132: 58 | S132: 12 | T132: 3 | U132: 24 | V132: 1 | W132: 9 | X132: 1 | Y132: 570
A133: CONFERENCESHOT AV CAMERA - WHITE | O133: -1 | P133: 3 | Q133: 0 | R133: -2 | S133: -1 | U133: 0 | Y133: -1
A134: CONFERENCESHOT AV CAMERA Black | L134: 1 | N134: 4 | P134: 1 | Q134: 0 | S134: 0 | Y134: 6
A135: CONFERENCESHOT AV CAMERA WHITE | B135: 14 | C135: 5 | D135: 5 | E135: 28 | F135: 4 | G135: 190 | H135: 253 | I135: 788 | J135: 516 | K135: 74 | L135: 1 | M135: 11 | N135: 51 | O135: 7 | P135: 9 | Q135: 232 | R135: 3 | S135: 144 | T135: 16 | U135: 6 | V135: 3 | W135: 64 | X135: 20 | Y135: 2444
A136: CONFERENCESHOT AV CAMERA WHITE AUS | M136: 1 | Y136: 1
A137: CONFERENCESHOT AV CAMERA WHITE INTL | B137: 14 | D137: 34 | E137: 1 | F137: 11 | G137: 38 | H137: 36 | I137: 97 | J137: 59 | K137: 76 | L137: 76 | M137: 333 | N137: 8 | O137: 25 | P137: 5 | Q137: 61 | R137: 65 | S137: 33 | T137: 4 | U137: 75 | V137: 1 | W137: 17 | X137: 3 | Y137: 1072
A138: CONFERENCESHOT AV SPEAKER KIT | B138: 5 | D138: 6 | E138: 1 | F138: 6 | G138: 1 | I138: 26 | J138: 62 | K138: 29 | L138: 24 | M138: 1 | N138: 36 | O138: 15 | Q138: 45 | R138: 29 | S138: 10 | T138: 0 | W138: 2 | X138: 1 | Y138: 299
A139: CONFERENCESHOT AV SPEAKER KIT WHITE | D139: 3 | G139: 14 | H139: 14 | I139: 30 | J139: 98 | K139: 59 | L139: 67 | M139: 29 | N139: 34 | O139: 70 | P139: 1 | Q139: 36 | R139: 6 | S139: 62 | T139: 14 | U139: 34 | W139: 1 | X139: 1 | Y139: 573
A140: CONFERENCESHOT AV SPEAKER-WHITE | U140: 0 | Y140: 0
A141: ConferenceSHOT AV Sys Table Mount - BLK | B141: 2 | D141: 1 | E141: -2 | F141: 5 | G141: 7 | H141: 2 | J141: 2 | K141: 3 | L141: 1 | M141: 8 | N141: 3 | P141: 5 | Q141: 8 | S141: 3 | W141: 5 | X141: 1 | Y141: 54
A142: ConferenceSHOT AV Sys Table Mount - WHT | B142: 2 | F142: 7 | G142: 1 | H142: 18 | I142: 14 | J142: 1 | K142: 6 | L142: 4 | O142: 5 | P142: 2 | Q142: 2 | S142: 3 | W142: -1 | Y142: 64
A143: ConferenceSHOT ePTZ Camera | X143: 1 | Y143: 1
A144: ConferenceSHOT ePTZ Camera INT | X144: 14 | Y144: 14
A145: ConferenceSHOT FX Camera Assembly | N145: -1 | Y145: -1
A146: ConferenceSHOT FX Camera Assembly WHT | T146: 1 | Y146: 1
A147: ConferenceSHOT FX Camera BLACK | B147: 9 | C147: -13 | D147: -2 | G147: 37 | H147: 10 | I147: 16 | J147: 5 | K147: 12 | L147: 52 | M147: 3 | N147: 182 | O147: 4 | P147: 5 | Q147: 12 | R147: 12 | S147: 3 | T147: 11 | U147: 1 | V147: 0 | X147: 2 | Y147: 361
A148: ConferenceSHOT FX Camera WHITE | B148: 5 | C148: -6 | D148: 2 | E148: -1 | G148: 5 | H148: -2 | I148: 39 | J148: 39 | K148: 1 | L148: 14 | M148: 4 | N148: 4 | O148: 3 | P148: 3 | Q148: 12 | R148: 3 | S148: 15 | T148: 1 | X148: 0 | Y148: 141
A149: CONN EURO-STYLE 5MM 3 POS | D149: 1 | I149: 5 | M149: 2 | R149: 4 | S149: 0 | Y149: 12
A150: CSAV SYS CEILINGMIC 1 (W/O SPKR) | B150: 6 | D150: 5 | H150: 11 | J150: 1 | K150: 29 | L150: 2 | M150: 2 | N150: 8 | P150: 2 | Q150: -20 | R150: 9 | S150: 4 | T150: 1 | V150: 2 | W150: 8 | X150: 1 | Y150: 71
A151: CSAV SYS CEILINGMIC 1 (W/O SPKR) INTL | D151: 3 | H151: 3 | I151: 1 | J151: 1 | M151: 2 | N151: 1 | R151: 1 | S151: 1 | X151: 1 | Y151: 14
A152: CSAV SYS CEILINGMIC 1 (W/O SPKR) WHT | B152: 1 | C152: 2 | D152: 2 | E152: 2 | F152: 2 | G152: 1 | H152: 1 | J152: 109 | K152: 45 | L152: 31 | M152: 1 | N152: 10 | O152: 2 | P152: 47 | Q152: 8 | R152: 22 | S152: 6 | T152: 30 | U152: 32 | W152: 97 | X152: 1 | Y152: 452
A153: CSAV SYS CEILINGMIC 1 (W/O SPKR) WHT INT | B153: 1 | C153: 1 | D153: 2 | F153: 1 | H153: 1 | J153: 22 | K153: 3 | L153: 3 | M153: 14 | N153: 12 | O153: 3 | P153: 1 | Q153: 2 | R153: 1 | S153: 7 | T153: 14 | U153: 2 | V153: 1 | X153: 1 | Y153: 92
A154: CSAV SYS CEILINGMIC 2 (W/O SPKR) | B154: 0 | C154: 8 | D154: 4 | E154: 2 | F154: 1 | G154: 7 | H154: 2 | I154: 19 | J154: 122 | K154: 61 | L154: 6 | M154: 25 | N154: 4 | O154: 7 | P154: 8 | Q154: -6 | R154: 7 | S154: 1 | T154: 9 | U154: 54 | V154: 1 | W154: 21 | X154: 23 | Y154: 386
A155: CSAV SYS CEILINGMIC 2 (W/O SPKR) AUS | L155: 1 | Y155: 1
A156: CSAV SYS CEILINGMIC 2 (W/O SPKR) INTL | B156: 1 | C156: 4 | D156: 1 | E156: 2 | F156: 4 | G156: 1 | H156: 2 | I156: 3 | J156: 2 | K156: 4 | L156: 4 | N156: 5 | O156: 1 | P156: 3 | Q156: 2 | R156: 1 | S156: 1 | T156: 4 | U156: 1 | V156: 2 | W156: 2 | X156: 3 | Y156: 53
A157: CSAV SYS CEILINGMIC 2 (W/O SPKR) WHT | B157: 15 | C157: 7 | D157: 7 | E157: 28 | F157: 97 | G157: 135 | H157: 39 | I157: 202 | J157: 785 | K157: 523 | L157: 98 | M157: 147 | N157: 67 | O157: 141 | P157: 18 | Q157: 89 | R157: 227 | S157: 31 | T157: 177 | U157: 126 | V157: 60 | W157: 116 | X157: 37 | Y157: 3172
A158: CSAV SYS CEILINGMIC 2 (W/O SPKR) WHT INT | B158: 7 | C158: 3 | D158: 8 | E158: 10 | F158: 11 | G158: 9 | I158: 25 | J158: 45 | K158: 19 | L158: 25 | M158: 20 | N158: 46 | O158: 24 | P158: 3 | Q158: 3 | R158: 2 | S158: 3 | T158: 13 | U158: 5 | V158: 15 | W158: 4 | X158: 3 | Y158: 303
A159: CSAV SYS INTEGRATOR 2 (W/O SPKR) | E159: -2 | Y159: -2
A160: CSAV SYSTEM - BASIC 1 | E160: -2 | Y160: -2
A161: CSAV SYSTEM - BASIC 2 WHT | D161: 0 | Y161: 0
A162: CSAV SYSTEM - CEILINGMIC 1 | C162: 4 | D162: 1 | K162: 3 | L162: 1 | M162: 1 | R162: 1 | T162: 5 | U162: 2 | W162: 4 | Y162: 22
A163: CSAV SYSTEM - CEILINGMIC 1 INTL | G163: 1 | I163: 5 | L163: 2 | M163: 1 | N163: 2 | O163: 1 | P163: 1 | T163: 1 | V163: 1 | Y163: 15
A164: CSAV SYSTEM - CEILINGMIC 1 WHT | B164: 4 | C164: 1 | I164: 12 | J164: 5 | K164: 2 | L164: 16 | M164: -11 | N164: 9 | O164: 2 | P164: 5 | R164: 4 | S164: 10 | T164: 3 | V164: 1 | W164: 1 | Y164: 64
A165: CSAV SYSTEM - CEILINGMIC 1 WHT AUS | L165: 2 | Y165: 2
A166: CSAV SYSTEM - CEILINGMIC 1 WHT INTL | B166: 3 | I166: 6 | M166: -1 | N166: 6 | O166: 2 | Q166: 1 | R166: 1 | S166: 2 | T166: 3 | V166: 4 | W166: 4 | Y166: 31
A167: CSAV SYSTEM - CEILINGMIC 2 | B167: 0 | C167: 10 | D167: 4 | E167: 6 | F167: 1 | G167: 2 | H167: 2 | K167: 23 | L167: 14 | M167: 4 | N167: 1 | P167: 2 | R167: 2 | S167: 6 | T167: 1 | U167: 1 | V167: 1 | W167: 5 | X167: 3 | Y167: 88
A168: CSAV SYSTEM - CEILINGMIC 2 INTL | C168: 1 | F168: 1 | G168: 1 | I168: 2 | J168: 4 | K168: 4 | L168: 6 | M168: 1 | N168: 3 | O168: 1 | S168: 2 | T168: 1 | V168: 5 | W168: 1 | Y168: 33
A169: CSAV SYSTEM - CEILINGMIC 2 WHT | B169: 5 | C169: 2 | G169: 2 | I169: 71 | J169: 232 | K169: 191 | L169: 52 | M169: 20 | N169: 55 | O169: 36 | P169: 16 | Q169: 16 | R169: 28 | S169: 35 | T169: 110 | U169: 59 | V169: 43 | W169: 90 | X169: 66 | Y169: 1129
A170: CSAV SYSTEM - CEILINGMIC 2 WHT AUS | L170: 1 | Y170: 1
A171: CSAV SYSTEM - CEILINGMIC 2 WHT INTL | C171: 1 | D171: 2 | F171: 2 | I171: 3 | J171: 6 | K171: 10 | L171: 10 | M171: 6 | N171: 6 | O171: 9 | P171: 4 | Q171: 12 | R171: 10 | S171: 10 | T171: 14 | U171: 1 | V171: 15 | W171: 13 | X171: 23 | Y171: 157
A172: CSAV SYSTEM - GROUP WHT | Q172: 0 | Y172: 0
A173: CSAV SYSTEM - HUDDLE WHT | Q173: 0 | Y173: 0
A174: CSAV SYSTEM - INTEGRATOR 1 WHT | Q174: 0 | Y174: 0
A175: CSAV-TableMIC 1 | C175: 1 | D175: 2 | G175: 1 | K175: 2 | L175: 8 | M175: 2 | N175: 2 | P175: 3 | Q175: 1 | R175: -1 | S175: 2 | T175: 1 | V175: 2 | W175: 2 | X175: 1 | Y175: 29
A176: CSAV-TableMIC 1 AUS | L176: 4 | Y176: 4
A177: CSAV-TableMIC 1 INTL | B177: 4 | C177: 2 | D177: 1 | E177: 2 | F177: 12 | G177: 12 | H177: 0 | I177: 10 | J177: 16 | K177: 33 | L177: 11 | M177: 3 | N177: 18 | O177: 8 | P177: 3 | Q177: 1 | S177: 1 | W177: -7 | Y177: 130
A178: CSAV-TableMIC 1 w/o Speaker | D178: 7 | G178: 2 | J178: 3 | L178: 7 | M178: 2 | N178: 4 | T178: 9 | W178: 1 | X178: 1 | Y178: 36
A179: CSAV-TableMIC 1 w/o Speaker INTL | F179: 2 | H179: 2 | I179: 1 | K179: 1 | L179: 4 | N179: 2 | P179: 1 | Q179: 2 | R179: 1 | S179: 6 | Y179: 22
A180: CSAV-TableMIC 1 w/o Speaker White | D180: 3 | H180: 1 | J180: 3 | K180: 6 | P180: 1 | T180: 38 | Y180: 52
A181: CSAV-TableMIC 1 w/o Speaker White INTL | D181: 1 | F181: 2 | H181: 1 | K181: 4 | L181: 1 | P181: 1 | S181: 1 | Y181: 11
A182: CSAV-TableMIC 1 White | J182: 6 | K182: 17 | L182: 1 | N182: 19 | T182: -21 | W182: -3 | X182: 4 | Y182: 23
A183: CSAV-TableMIC 1 White INTL | D183: 1 | F183: 3 | G183: 3 | H183: 1 | K183: 48 | L183: 13 | M183: 4 | N183: 8 | O183: 10 | P183: 1 | S183: 3 | W183: -6 | Y183: 89
A184: CSAV-TableMIC 1 WHT AUS | K184: 5 | Y184: 5
A185: CSAV-TableMIC 2 | D185: 1 | E185: 3 | F185: 1 | G185: 3 | J185: 14 | K185: 1 | L185: 18 | M185: 2 | N185: 43 | O185: 9 | P185: 1 | Q185: 5 | R185: 8 | S185: 10 | T185: 7 | V185: 12 | W185: 12 | Y185: 150
A186: CSAV-TableMIC 2 AUS | L186: 2 | N186: 2 | U186: 2 | X186: 2 | Y186: 8
A187: CSAV-TableMIC 2 INTL | B187: 2 | G187: 1 | K187: 7 | L187: 4 | M187: 11 | N187: 3 | P187: 3 | Q187: 1 | R187: 2 | T187: 1 | W187: 2 | X187: 2 | Y187: 39
A188: CSAV-TableMIC 2 w/o Speaker | C188: 4 | D188: 3 | G188: 8 | J188: 9 | L188: 4 | M188: 1 | N188: 3 | O188: 1 | P188: 3 | Q188: 1 | R188: 1 | S188: 2 | T188: 2 | U188: 3 | X188: 4 | Y188: 49
A189: CSAV-TableMIC 2 w/o Speaker INTL | C189: 3 | D189: 1 | F189: 1 | G189: 1 | H189: 4 | K189: 2 | L189: 4 | M189: 0 | N189: 8 | O189: 1 | P189: 2 | Q189: 2 | T189: 3 | U189: 2 | Y189: 34
A190: CSAV-TableMIC 2 w/o Speaker White | B190: 3 | C190: 1 | D190: 0 | F190: 1 | K190: 5 | L190: 3 | N190: 4 | O190: 2 | P190: 2 | Q190: 1 | T190: 13 | U190: 7 | V190: 1 | W190: 2 | Y190: 45
A191: CSAV-TableMIC 2 w/o Speaker White AUS | M191: 2 | Y191: 2
A192: CSAV-TableMIC 2 w/o Speaker White INTL | D192: 3 | F192: 2 | G192: 4 | H192: 1 | K192: 4 | L192: 3 | M192: 2 | N192: 1 | O192: 2 | P192: 1 | R192: 1 | T192: 1 | V192: 1 | W192: 3 | Y192: 29
A193: CSAV-TableMIC 2 White | B193: 4 | D193: 2 | K193: 3 | L193: 7 | M193: 3 | N193: 1 | O193: 1 | P193: 6 | Q193: 2 | R193: 6 | T193: 5 | U193: 8 | V193: 1 | W193: 1 | X193: 0 | Y193: 50
A194: CSAV-TableMIC 2 White INTL | B194: 1 | C194: 1 | F194: 5 | G194: 3 | H194: 4 | K194: 10 | L194: 1 | M194: 2 | N194: 6 | O194: 2 | P194: 1 | R194: 2 | S194: 3 | Y194: 41
A195: CSAV-TableMIC 2 WHT AUS | L195: 2 | Y195: 2
A196: DocCAM 20 HDBT C1 | D196: 1 | F196: -1 | Y196: 0
A197: DocCAM 20 HDBT Camera | B197: 10 | C197: 2 | D197: 5 | F197: 6 | G197: 2 | H197: 5 | I197: 5 | J197: 17 | K197: 1 | L197: 18 | M197: 9 | N197: 3 | O197: 1 | P197: 32 | Q197: 3 | R197: 8 | S197: 9 | T197: 13 | U197: 9 | V197: 10 | W197: 6 | X197: 2 | Y197: 176
A198: DocCAM 20 HDBT Camera INT | L198: 1 | Y198: 1
A199: DocCAM 20 HDBT OneLINK Bridge System INT | C199: 1 | D199: 1 | M199: 1 | P199: 2 | X199: 2 | Y199: 7
A200: DocCAM 20 HDBT OneLINK Bridge System N/A | B200: 2 | F200: 3 | G200: 2 | H200: 3 | I200: 6 | J200: 15 | K200: 7 | L200: 2 | M200: 16 | N200: 9 | O200: 4 | P200: 29 | Q200: 22 | R200: 10 | S200: 3 | T200: 10 | U200: 3 | V200: 2 | W200: 5 | X200: 3 | Y200: 156
... 551 more rows

Sheet Rev_Pivot
A3: =Quantity!A2 -> ProductDescription | B3: SKU | C3: Level 2 | D3: Level 3 | E3: FY-Rev | F3: FY-Qty
A4: =Quantity!A3 -> 1-RU RACK PANEL FOR 2 INTERFACES | B4: =INDEX(Export!AJ:AJ,MATCH(A4,Export!AU:AU,0)) -> 998-6000-003 | C4: =INDEX(Export!AF:AF,MATCH(A4,Export!AU:AU,0)) -> ACCESSORIES | D4: =INDEX(Export!AG:AG,MATCH(A4,Export!AU:AU,0)) -> RACK | E4: =SUM(Revenue!N3:Y3) -> 2576.49 | F4: =SUM(Quantity!N3:Y3) -> 58
A5: =Quantity!A4 -> 1-RU RACK PANEL FOR 3 INTERFACES | B5: =INDEX(Export!AJ:AJ,MATCH(A5,Export!AU:AU,0)) -> 998-6000-002 | C5: =INDEX(Export!AF:AF,MATCH(A5,Export!AU:AU,0)) -> ACCESSORIES | D5: =INDEX(Export!AG:AG,MATCH(A5,Export!AU:AU,0)) -> RACK | E5: =SUM(Revenue!N4:Y4) -> 235.04 | F5: =SUM(Quantity!N4:Y4) -> 4
A6: =Quantity!A5 -> 12" Clear Dome Accessory | B6: =INDEX(Export!AJ:AJ,MATCH(A6,Export!AU:AU,0)) -> 998-9000-210 | C6: =INDEX(Export!AF:AF,MATCH(A6,Export!AU:AU,0)) -> CAMERA MOUNT | D6: =INDEX(Export!AG:AG,MATCH(A6,Export!AU:AU,0)) -> DOME | E6: =SUM(Revenue!N5:Y5) -> 869.95 | F6: =SUM(Quantity!N5:Y5) -> 13
A7: =Quantity!A6 -> 12" Smoke Tinted Dome Accessory | B7: =INDEX(Export!AJ:AJ,MATCH(A7,Export!AU:AU,0)) -> 998-9000-220 | C7: =INDEX(Export!AF:AF,MATCH(A7,Export!AU:AU,0)) -> CAMERA MOUNT | D7: =INDEX(Export!AG:AG,MATCH(A7,Export!AU:AU,0)) -> DOME | E7: =SUM(Revenue!N6:Y6) -> 4359.1 | F7: =SUM(Quantity!N6:Y6) -> 69
A8: =Quantity!A7 -> 24V 1A Power Adapter (Level VI) | B8: =INDEX(Export!AJ:AJ,MATCH(A8,Export!AU:AU,0)) -> 802-3292 | C8: =INDEX(Export!AF:AF,MATCH(A8,Export!AU:AU,0)) -> ACCESSORIES | D8: =INDEX(Export!AG:AG,MATCH(A8,Export!AU:AU,0)) -> RAW | E8: =SUM(Revenue!N7:Y7) -> 24.16 | F8: =SUM(Quantity!N7:Y7) -> 2
A9: =Quantity!A8 -> ACTIVE OPTICAL USB 3.0 A/B PLENUM 20M | B9: =INDEX(Export!AJ:AJ,MATCH(A9,Export!AU:AU,0)) -> 440-1005-065 | C9: =INDEX(Export!AF:AF,MATCH(A9,Export!AU:AU,0)) -> CAM EXTENSIONS | D9: =INDEX(Export!AG:AG,MATCH(A9,Export!AU:AU,0)) -> EXT CABLES | E9: =SUM(Revenue!N8:Y8) -> 199119.69 | F9: =SUM(Quantity!N8:Y8) -> 536
A10: =Quantity!A9 -> ACTIVE OPTICAL USB 3.0 A/B PLENUM 30M | B10: =INDEX(Export!AJ:AJ,MATCH(A10,Export!AU:AU,0)) -> 440-1005-067 | C10: =INDEX(Export!AF:AF,MATCH(A10,Export!AU:AU,0)) -> CAM EXTENSIONS | D10: =INDEX(Export!AG:AG,MATCH(A10,Export!AU:AU,0)) -> EXT CABLES | E10: =SUM(Revenue!N9:Y9) -> 131215.48 | F10: =SUM(Quantity!N9:Y9) -> 248
A11: =Quantity!A10 -> ACTIVE OPTICAL USB 3.0 A/B PLENUM 8M | B11: =INDEX(Export!AJ:AJ,MATCH(A11,Export!AU:AU,0)) -> 440-1005-061 | C11: =INDEX(Export!AF:AF,MATCH(A11,Export!AU:AU,0)) -> CAM EXTENSIONS | D11: =INDEX(Export!AG:AG,MATCH(A11,Export!AU:AU,0)) -> EXT CABLES | E11: =SUM(Revenue!N10:Y10) -> 43141.98 | F11: =SUM(Quantity!N10:Y10) -> 287
A12: =Quantity!A11 -> ACTIVE OPTICAL USB 3.0 A/C PLENUM 15M | B12: =INDEX(Export!AJ:AJ,MATCH(A12,Export!AU:AU,0)) -> 440-1005-051 | C12: =INDEX(Export!AF:AF,MATCH(A12,Export!AU:AU,0)) -> CAM EXTENSIONS | D12: =INDEX(Export!AG:AG,MATCH(A12,Export!AU:AU,0)) -> EXT CABLES | E12: =SUM(Revenue!N11:Y11) -> 45373.57 | F12: =SUM(Quantity!N11:Y11) -> 125
A13: =Quantity!A12 -> ACTIVE OPTICAL USB 3.0 A/C PLENUM 30M | B13: =INDEX(Export!AJ:AJ,MATCH(A13,Export!AU:AU,0)) -> 440-1005-054 | C13: =INDEX(Export!AF:AF,MATCH(A13,Export!AU:AU,0)) -> CAM EXTENSIONS | D13: =INDEX(Export!AG:AG,MATCH(A13,Export!AU:AU,0)) -> EXT CABLES | E13: =SUM(Revenue!N12:Y12) -> 13200.41 | F13: =SUM(Quantity!N12:Y12) -> 26
A14: =Quantity!A13 -> ACTIVE OPTICAL USB 3.0 A/C PLENUM 8M | B14: =INDEX(Export!AJ:AJ,MATCH(A14,Export!AU:AU,0)) -> 440-1005-048 | C14: =INDEX(Export!AF:AF,MATCH(A14,Export!AU:AU,0)) -> CAM EXTENSIONS | D14: =INDEX(Export!AG:AG,MATCH(A14,Export!AU:AU,0)) -> EXT CABLES | E14: =SUM(Revenue!N13:Y13) -> 10573.33 | F14: =SUM(Quantity!N13:Y13) -> 29
A15: =Quantity!A14 -> ACTIVEOPTICAL C/A USB 3.0/2.0 PLENUM 15M | B15: =INDEX(Export!AJ:AJ,MATCH(A15,Export!AU:AU,0)) -> 440-1007-015 | C15: =INDEX(Export!AF:AF,MATCH(A15,Export!AU:AU,0)) -> CAM EXTENSIONS | D15: =INDEX(Export!AG:AG,MATCH(A15,Export!AU:AU,0)) -> EXT CABLES | E15: =SUM(Revenue!N14:Y14) -> 57383.16 | F15: =SUM(Quantity!N14:Y14) -> 198
A16: =Quantity!A15 -> ACTIVEOPTICAL C/A USB 3.0/2.0 PLENUM 30M | B16: =INDEX(Export!AJ:AJ,MATCH(A16,Export!AU:AU,0)) -> 440-1007-030 | C16: =INDEX(Export!AF:AF,MATCH(A16,Export!AU:AU,0)) -> CAM EXTENSIONS | D16: =INDEX(Export!AG:AG,MATCH(A16,Export!AU:AU,0)) -> EXT CABLES | E16: =SUM(Revenue!N15:Y15) -> 65216.42 | F16: =SUM(Quantity!N15:Y15) -> 139
A17: =Quantity!A16 -> ACTIVEOPTICAL C/A USB 3.0/2.0 PLENUM 8M | B17: =INDEX(Export!AJ:AJ,MATCH(A17,Export!AU:AU,0)) -> 440-1007-008 | C17: =INDEX(Export!AF:AF,MATCH(A17,Export!AU:AU,0)) -> CAM EXTENSIONS | D17: =INDEX(Export!AG:AG,MATCH(A17,Export!AU:AU,0)) -> EXT CABLES | E17: =SUM(Revenue!N16:Y16) -> 47130.35 | F17: =SUM(Quantity!N16:Y16) -> 265
A18: =Quantity!A17 -> ADAPTER 422 TO 232 | B18: =INDEX(Export!AJ:AJ,MATCH(A18,Export!AU:AU,0)) -> 998-1000-422 | C18: =INDEX(Export!AF:AF,MATCH(A18,Export!AU:AU,0)) -> ACCESSORIES | D18: =INDEX(Export!AG:AG,MATCH(A18,Export!AU:AU,0)) -> CABLES & CONNECTORS | E18: =SUM(Revenue!N17:Y17) -> 0 | F18: =SUM(Quantity!N17:Y17) -> 0
A19: =Quantity!A18 -> ADAPTER CONTROL DB-9F TO RJ-45F | B19: =INDEX(Export!AJ:AJ,MATCH(A19,Export!AU:AU,0)) -> 998-1002-232 | C19: =INDEX(Export!AF:AF,MATCH(A19,Export!AU:AU,0)) -> ACCESSORIES | D19: =INDEX(Export!AG:AG,MATCH(A19,Export!AU:AU,0)) -> CABLES & CONNECTORS | E19: =SUM(Revenue!N18:Y18) -> 34.46 | F19: =SUM(Quantity!N18:Y18) -> 2
A20: =Quantity!A19 -> ADAPTER CONTROL DB-9M TO RJ-45F | B20: =INDEX(Export!AJ:AJ,MATCH(A20,Export!AU:AU,0)) -> 998-1001-232 | C20: =INDEX(Export!AF:AF,MATCH(A20,Export!AU:AU,0)) -> ACCESSORIES | D20: =INDEX(Export!AG:AG,MATCH(A20,Export!AU:AU,0)) -> CABLES & CONNECTORS | E20: =SUM(Revenue!N19:Y19) -> 3848.57 | F20: =SUM(Quantity!N19:Y19) -> 255
A21: =Quantity!A20 -> ADAPTER RJ45 TO DB9M | B21: =INDEX(Export!AJ:AJ,MATCH(A21,Export!AU:AU,0)) -> 998-1003-232 | C21: =INDEX(Export!AF:AF,MATCH(A21,Export!AU:AU,0)) -> ACCESSORIES | D21: =INDEX(Export!AG:AG,MATCH(A21,Export!AU:AU,0)) -> CABLES & CONNECTORS | E21: =SUM(Revenue!N20:Y20) -> 30 | F21: =SUM(Quantity!N20:Y20) -> 3
A22: =Quantity!A21 -> ADAPTER RS-422 TO CAT5 | B22: =INDEX(Export!AJ:AJ,MATCH(A22,Export!AU:AU,0)) -> 998-1005-232 | C22: =INDEX(Export!AF:AF,MATCH(A22,Export!AU:AU,0)) -> ACCESSORIES | D22: =INDEX(Export!AG:AG,MATCH(A22,Export!AU:AU,0)) -> CABLES & CONNECTORS | E22: =SUM(Revenue!N21:Y21) -> 0 | F22: =SUM(Quantity!N21:Y21) -> 0
A23: =Quantity!A22 -> Adjustable Mount HuddleSHOT BLACK | B23: =INDEX(Export!AJ:AJ,MATCH(A23,Export!AU:AU,0)) -> 535-2100-207 | C23: =INDEX(Export!AF:AF,MATCH(A23,Export!AU:AU,0)) -> CAMERA MOUNT | D23: =INDEX(Export!AG:AG,MATCH(A23,Export!AU:AU,0)) -> WALL | E23: =SUM(Revenue!N22:Y22) -> 8265.3 | F23: =SUM(Quantity!N22:Y22) -> 77
A24: =Quantity!A23 -> Adjustable Mount HuddleSHOT WHITE | B24: =INDEX(Export!AJ:AJ,MATCH(A24,Export!AU:AU,0)) -> 535-2100-207W | C24: =INDEX(Export!AF:AF,MATCH(A24,Export!AU:AU,0)) -> CAMERA MOUNT | D24: =INDEX(Export!AG:AG,MATCH(A24,Export!AU:AU,0)) -> WALL | E24: =SUM(Revenue!N23:Y23) -> 465.13 | F24: =SUM(Quantity!N23:Y23) -> 4
A25: =Quantity!A24 -> ADJUSTABLE WALL BRACKET FOR CONCEAL | B25: =INDEX(Export!AJ:AJ,MATCH(A25,Export!AU:AU,0)) -> 535-2100-202 | C25: =INDEX(Export!AF:AF,MATCH(A25,Export!AU:AU,0)) -> CAMERA MOUNT | D25: =INDEX(Export!AG:AG,MATCH(A25,Export!AU:AU,0)) -> WALL | E25: =SUM(Revenue!N24:Y24) -> 6001.48 | F25: =SUM(Quantity!N24:Y24) -> 41
A26: =Quantity!A25 -> Advanced Replacement | B26: =INDEX(Export!AJ:AJ,MATCH(A26,Export!AU:AU,0)) -> ADV_REPL | C26: =INDEX(Export!AF:AF,MATCH(A26,Export!AU:AU,0)) -> SERVICE | D26: =INDEX(Export!AG:AG,MATCH(A26,Export!AU:AU,0)) -> ADV_REPL | E26: =SUM(Revenue!N25:Y25) -> 64636.91 | F26: =SUM(Quantity!N25:Y25) -> 28
A27: =Quantity!A26 -> ASSY DOME HEATER/BLOWER | B27: =INDEX(Export!AJ:AJ,MATCH(A27,Export!AU:AU,0)) -> 342-0189 | C27: =INDEX(Export!AF:AF,MATCH(A27,Export!AU:AU,0)) -> ACCESSORIES | D27: =INDEX(Export!AG:AG,MATCH(A27,Export!AU:AU,0)) -> RAW | E27: =SUM(Revenue!N26:Y26) -> 0 | F27: =SUM(Quantity!N26:Y26) -> 0
A28: =Quantity!A27 -> ASSY DOME W/SCREWS - CLR | B28: =INDEX(Export!AJ:AJ,MATCH(A28,Export!AU:AU,0)) -> 342-0185-1 | C28: =INDEX(Export!AF:AF,MATCH(A28,Export!AU:AU,0)) -> ACCESSORIES | D28: =INDEX(Export!AG:AG,MATCH(A28,Export!AU:AU,0)) -> RAW | E28: =SUM(Revenue!N27:Y27) -> 80.85 | F28: =SUM(Quantity!N27:Y27) -> 1
A29: =Quantity!A28 -> AUTOVIEW IR SENSOR KIT | B29: =INDEX(Export!AJ:AJ,MATCH(A29,Export!AU:AU,0)) -> 999-1701-100 | C29: =INDEX(Export!AF:AF,MATCH(A29,Export!AU:AU,0)) -> CONTROL | D29: =INDEX(Export!AG:AG,MATCH(A29,Export!AU:AU,0)) -> TRIGGERS | E29: =SUM(Revenue!N28:Y28) -> 26505.56 | F29: =SUM(Quantity!N28:Y28) -> 53
A30: =Quantity!A29 -> AUTOVIEW IR SENSOR KIT INT'L | B30: =INDEX(Export!AJ:AJ,MATCH(A30,Export!AU:AU,0)) -> 999-1701-101 | C30: =INDEX(Export!AF:AF,MATCH(A30,Export!AU:AU,0)) -> CONTROL | D30: =INDEX(Export!AG:AG,MATCH(A30,Export!AU:AU,0)) -> TRIGGERS | E30: =SUM(Revenue!N29:Y29) -> 1838.28 | F30: =SUM(Quantity!N29:Y29) -> 4
A31: =Quantity!A30 -> AV Bridge 2x1 | B31: =INDEX(Export!AJ:AJ,MATCH(A31,Export!AU:AU,0)) -> 998-8250-000 | C31: =INDEX(Export!AF:AF,MATCH(A31,Export!AU:AU,0)) -> SWITCHERS | D31: =INDEX(Export!AG:AG,MATCH(A31,Export!AU:AU,0)) -> BRIDGES | E31: =SUM(Revenue!N30:Y30) -> 8620.37 | F31: =SUM(Quantity!N30:Y30) -> 6
A32: =Quantity!A31 -> AV Bridge 2x1 AUS | B32: =INDEX(Export!AJ:AJ,MATCH(A32,Export!AU:AU,0)) -> 999-8250-009 | C32: =INDEX(Export!AF:AF,MATCH(A32,Export!AU:AU,0)) -> SWITCHERS | D32: =INDEX(Export!AG:AG,MATCH(A32,Export!AU:AU,0)) -> BRIDGES | E32: =SUM(Revenue!N31:Y31) -> 8882.77 | F32: =SUM(Quantity!N31:Y31) -> 6
A33: =Quantity!A32 -> AV Bridge 2x1 INT | B33: =INDEX(Export!AJ:AJ,MATCH(A33,Export!AU:AU,0)) -> 999-8250-001 | C33: =INDEX(Export!AF:AF,MATCH(A33,Export!AU:AU,0)) -> SWITCHERS | D33: =INDEX(Export!AG:AG,MATCH(A33,Export!AU:AU,0)) -> BRIDGES | E33: =SUM(Revenue!N32:Y32) -> 1789799.89 | F33: =SUM(Quantity!N32:Y32) -> 1303
A34: =Quantity!A33 -> AV Bridge 2x1 N/A | B34: =INDEX(Export!AJ:AJ,MATCH(A34,Export!AU:AU,0)) -> 999-8250-000 | C34: =INDEX(Export!AF:AF,MATCH(A34,Export!AU:AU,0)) -> SWITCHERS | D34: =INDEX(Export!AG:AG,MATCH(A34,Export!AU:AU,0)) -> BRIDGES | E34: =SUM(Revenue!N33:Y33) -> 2536928.01 | F34: =SUM(Quantity!N33:Y33) -> 1485
A35: =Quantity!A34 -> AV BRIDGE CONFERENCE SYSTEM | B35: =INDEX(Export!AJ:AJ,MATCH(A35,Export!AU:AU,0)) -> 999-8215-000 | C35: =INDEX(Export!AF:AF,MATCH(A35,Export!AU:AU,0)) -> SWITCHERS | D35: =INDEX(Export!AG:AG,MATCH(A35,Export!AU:AU,0)) -> BRIDGES | E35: =SUM(Revenue!N34:Y34) -> 1174080.41 | F35: =SUM(Quantity!N34:Y34) -> 653
A36: =Quantity!A35 -> AV BRIDGE CONFERENCE SYSTEM AUS/NZ | B36: =INDEX(Export!AJ:AJ,MATCH(A36,Export!AU:AU,0)) -> 999-8215-009 | C36: =INDEX(Export!AF:AF,MATCH(A36,Export!AU:AU,0)) -> SWITCHERS | D36: =INDEX(Export!AG:AG,MATCH(A36,Export!AU:AU,0)) -> BRIDGES | E36: =SUM(Revenue!N35:Y35) -> 1472.58 | F36: =SUM(Quantity!N35:Y35) -> 1
A37: =Quantity!A36 -> AV BRIDGE CONFERENCE SYSTEM INT'L | B37: =INDEX(Export!AJ:AJ,MATCH(A37,Export!AU:AU,0)) -> 999-8215-001 | C37: =INDEX(Export!AF:AF,MATCH(A37,Export!AU:AU,0)) -> SWITCHERS | D37: =INDEX(Export!AG:AG,MATCH(A37,Export!AU:AU,0)) -> BRIDGES | E37: =SUM(Revenue!N36:Y36) -> 38065.54 | F37: =SUM(Quantity!N36:Y36) -> 29
A38: =Quantity!A37 -> AV BRIDGE CONFERENCE UNIT | B38: =INDEX(Export!AJ:AJ,MATCH(A38,Export!AU:AU,0)) -> 998-8215-000 | C38: =INDEX(Export!AF:AF,MATCH(A38,Export!AU:AU,0)) -> SWITCHERS | D38: =INDEX(Export!AG:AG,MATCH(A38,Export!AU:AU,0)) -> BRIDGES | E38: =SUM(Revenue!N37:Y37) -> 998 | F38: =SUM(Quantity!N37:Y37) -> 1
A39: =Quantity!A38 -> AV BRIDGE MATRIX PRO SYSTEM | B39: =INDEX(Export!AJ:AJ,MATCH(A39,Export!AU:AU,0)) -> 999-8230-000 | C39: =INDEX(Export!AF:AF,MATCH(A39,Export!AU:AU,0)) -> SWITCHERS | D39: =INDEX(Export!AG:AG,MATCH(A39,Export!AU:AU,0)) -> BRIDGES | E39: =SUM(Revenue!N38:Y38) -> 519269.78 | F39: =SUM(Quantity!N38:Y38) -> 140
A40: =Quantity!A39 -> AV BRIDGE MATRIX PRO SYSTEM AUS/NZ | B40: =INDEX(Export!AJ:AJ,MATCH(A40,Export!AU:AU,0)) -> 999-8230-009 | C40: =INDEX(Export!AF:AF,MATCH(A40,Export!AU:AU,0)) -> SWITCHERS | D40: =INDEX(Export!AG:AG,MATCH(A40,Export!AU:AU,0)) -> BRIDGES | E40: =SUM(Revenue!N39:Y39) -> 13012.19 | F40: =SUM(Quantity!N39:Y39) -> 4
A41: =Quantity!A40 -> AV BRIDGE MATRIX PRO SYSTEM INT'L | B41: =INDEX(Export!AJ:AJ,MATCH(A41,Export!AU:AU,0)) -> 999-8230-001 | C41: =INDEX(Export!AF:AF,MATCH(A41,Export!AU:AU,0)) -> SWITCHERS | D41: =INDEX(Export!AG:AG,MATCH(A41,Export!AU:AU,0)) -> BRIDGES | E41: =SUM(Revenue!N40:Y40) -> 7726.62 | F41: =SUM(Quantity!N40:Y40) -> 3
A42: =Quantity!A41 -> AV BRIDGE MATRIX PRO UNIT | B42: =INDEX(Export!AJ:AJ,MATCH(A42,Export!AU:AU,0)) -> 998-8230-000 | C42: =INDEX(Export!AF:AF,MATCH(A42,Export!AU:AU,0)) -> SWITCHERS | D42: =INDEX(Export!AG:AG,MATCH(A42,Export!AU:AU,0)) -> BRIDGES | E42: =SUM(Revenue!N41:Y41) -> -3429.32 | F42: =SUM(Quantity!N41:Y41) -> -1
A43: =Quantity!A42 -> AV Bridge MatrixMIX INTL | B43: =INDEX(Export!AJ:AJ,MATCH(A43,Export!AU:AU,0)) -> 999-5660-001 | C43: =INDEX(Export!AF:AF,MATCH(A43,Export!AU:AU,0)) -> SWITCHERS | D43: =INDEX(Export!AG:AG,MATCH(A43,Export!AU:AU,0)) -> PRODUCTIONVIEW | E43: =SUM(Revenue!N42:Y42) -> 85311.66 | F43: =SUM(Quantity!N42:Y42) -> 29
A44: =Quantity!A43 -> AV Bridge MatrixMIX N/A | B44: =INDEX(Export!AJ:AJ,MATCH(A44,Export!AU:AU,0)) -> 999-5660-000 | C44: =INDEX(Export!AF:AF,MATCH(A44,Export!AU:AU,0)) -> SWITCHERS | D44: =INDEX(Export!AG:AG,MATCH(A44,Export!AU:AU,0)) -> BRIDGES | E44: =SUM(Revenue!N43:Y43) -> 485716.72 | F44: =SUM(Quantity!N43:Y43) -> 98
A45: =Quantity!A44 -> AV Bridge MatrixMIX Production Sys INTL | B45: =INDEX(Export!AJ:AJ,MATCH(A45,Export!AU:AU,0)) -> 999-5660-501 | C45: =INDEX(Export!AF:AF,MATCH(A45,Export!AU:AU,0)) -> SWITCHERS | D45: =INDEX(Export!AG:AG,MATCH(A45,Export!AU:AU,0)) -> PRODUCTIONVIEW | E45: =SUM(Revenue!N44:Y44) -> 116652.67 | F45: =SUM(Quantity!N44:Y44) -> 17
A46: =Quantity!A45 -> AV Bridge MatrixMIX Production Sys N/A | B46: =INDEX(Export!AJ:AJ,MATCH(A46,Export!AU:AU,0)) -> 999-5660-500 | C46: =INDEX(Export!AF:AF,MATCH(A46,Export!AU:AU,0)) -> SWITCHERS | D46: =INDEX(Export!AG:AG,MATCH(A46,Export!AU:AU,0)) -> BRIDGES | E46: =SUM(Revenue!N45:Y45) -> 1165364.04 | F46: =SUM(Quantity!N45:Y45) -> 162
A47: =Quantity!A46 -> AV Bridge Mini | B47: =INDEX(Export!AJ:AJ,MATCH(A47,Export!AU:AU,0)) -> 998-8240-000 | C47: =INDEX(Export!AF:AF,MATCH(A47,Export!AU:AU,0)) -> SWITCHERS | D47: =INDEX(Export!AG:AG,MATCH(A47,Export!AU:AU,0)) -> BRIDGES | E47: =SUM(Revenue!N46:Y46) -> -762.43 | F47: =SUM(Quantity!N46:Y46) -> 2
A48: =Quantity!A47 -> AV Bridge Mini AUS | B48: =INDEX(Export!AJ:AJ,MATCH(A48,Export!AU:AU,0)) -> 999-8240-009 | C48: =INDEX(Export!AF:AF,MATCH(A48,Export!AU:AU,0)) -> SWITCHERS | D48: =INDEX(Export!AG:AG,MATCH(A48,Export!AU:AU,0)) -> BRIDGES | E48: =SUM(Revenue!N47:Y47) -> 81610.36 | F48: =SUM(Quantity!N47:Y47) -> 65
A49: =Quantity!A48 -> AV Bridge Mini INT | B49: =INDEX(Export!AJ:AJ,MATCH(A49,Export!AU:AU,0)) -> 999-8240-001 | C49: =INDEX(Export!AF:AF,MATCH(A49,Export!AU:AU,0)) -> SWITCHERS | D49: =INDEX(Export!AG:AG,MATCH(A49,Export!AU:AU,0)) -> BRIDGES | E49: =SUM(Revenue!N48:Y48) -> 879412.57 | F49: =SUM(Quantity!N48:Y48) -> 851
A50: =Quantity!A49 -> AV Bridge Mini N/A | B50: =INDEX(Export!AJ:AJ,MATCH(A50,Export!AU:AU,0)) -> 999-8240-000 | C50: =INDEX(Export!AF:AF,MATCH(A50,Export!AU:AU,0)) -> SWITCHERS | D50: =INDEX(Export!AG:AG,MATCH(A50,Export!AU:AU,0)) -> BRIDGES | E50: =SUM(Revenue!N49:Y49) -> 3911740.86 | F50: =SUM(Quantity!N49:Y49) -> 2943
A51: =Quantity!A50 -> AV BRIDGE SYSTEM | B51: =INDEX(Export!AJ:AJ,MATCH(A51,Export!AU:AU,0)) -> 999-8210-000 | C51: =INDEX(Export!AF:AF,MATCH(A51,Export!AU:AU,0)) -> SWITCHERS | D51: =INDEX(Export!AG:AG,MATCH(A51,Export!AU:AU,0)) -> BRIDGES | E51: =SUM(Revenue!N50:Y50) -> 1252214.52 | F51: =SUM(Quantity!N50:Y50) -> 868
A52: =Quantity!A51 -> AV BRIDGE SYSTEM AUS/NZ | B52: =INDEX(Export!AJ:AJ,MATCH(A52,Export!AU:AU,0)) -> 999-8210-009 | C52: =INDEX(Export!AF:AF,MATCH(A52,Export!AU:AU,0)) -> SWITCHERS | D52: =INDEX(Export!AG:AG,MATCH(A52,Export!AU:AU,0)) -> BRIDGES | E52: =SUM(Revenue!N51:Y51) -> 11660.69 | F52: =SUM(Quantity!N51:Y51) -> 9
A53: =Quantity!A52 -> AV BRIDGE SYSTEM INT'L | B53: =INDEX(Export!AJ:AJ,MATCH(A53,Export!AU:AU,0)) -> 999-8210-001 | C53: =INDEX(Export!AF:AF,MATCH(A53,Export!AU:AU,0)) -> SWITCHERS | D53: =INDEX(Export!AG:AG,MATCH(A53,Export!AU:AU,0)) -> BRIDGES | E53: =SUM(Revenue!N52:Y52) -> 19954.37 | F53: =SUM(Quantity!N52:Y52) -> 17
A54: =Quantity!A53 -> AV BRIDGE UNIT | B54: =INDEX(Export!AJ:AJ,MATCH(A54,Export!AU:AU,0)) -> 998-8210-000 | C54: =INDEX(Export!AF:AF,MATCH(A54,Export!AU:AU,0)) -> SWITCHERS | D54: =INDEX(Export!AG:AG,MATCH(A54,Export!AU:AU,0)) -> BRIDGES | E54: =SUM(Revenue!N53:Y53) -> 992 | F54: =SUM(Quantity!N53:Y53) -> 1
A55: =Quantity!A54 -> AV REMOTE COMMANDER INTL | B55: =INDEX(Export!AJ:AJ,MATCH(A55,Export!AU:AU,0)) -> 998-2102-001 | C55: =INDEX(Export!AF:AF,MATCH(A55,Export!AU:AU,0)) -> ACCESSORIES | D55: =INDEX(Export!AG:AG,MATCH(A55,Export!AU:AU,0)) -> MISCELLANOUS | E55: =SUM(Revenue!N54:Y54) -> 172.91 | F55: =SUM(Quantity!N54:Y54) -> 3
A56: =Quantity!A55 -> AV REMOTE COMMANDER N/A | B56: =INDEX(Export!AJ:AJ,MATCH(A56,Export!AU:AU,0)) -> 998-2102-000 | C56: =INDEX(Export!AF:AF,MATCH(A56,Export!AU:AU,0)) -> ACCESSORIES | D56: =INDEX(Export!AG:AG,MATCH(A56,Export!AU:AU,0)) -> MISCELLANOUS | E56: =SUM(Revenue!N55:Y55) -> 5582.15 | F56: =SUM(Quantity!N55:Y55) -> 91
A57: =Quantity!A56 -> Boot Strain Relief Ceiling MIC White | B57: =INDEX(Export!AJ:AJ,MATCH(A57,Export!AU:AU,0)) -> 342-1465-3 | C57: =INDEX(Export!AF:AF,MATCH(A57,Export!AU:AU,0)) -> ACCESSORIES | D57: =INDEX(Export!AG:AG,MATCH(A57,Export!AU:AU,0)) -> RAW | E57: =SUM(Revenue!N56:Y56) -> 0 | F57: =SUM(Quantity!N56:Y56) -> 0
A58: =Quantity!A57 -> BOSE DS-16 SPEAKER KIT | B58: =INDEX(Export!AJ:AJ,MATCH(A58,Export!AU:AU,0)) -> 999-8560-000 | C58: =INDEX(Export!AF:AF,MATCH(A58,Export!AU:AU,0)) -> CONFERENCE | D58: =INDEX(Export!AG:AG,MATCH(A58,Export!AU:AU,0)) -> AUDIO | E58: =SUM(Revenue!N57:Y57) -> 0 | F58: =SUM(Quantity!N57:Y57) -> 0
A59: =Quantity!A58 -> BOSE FS2C SPEAKER KIT | B59: =INDEX(Export!AJ:AJ,MATCH(A59,Export!AU:AU,0)) -> 999-8561-000 | C59: =INDEX(Export!AF:AF,MATCH(A59,Export!AU:AU,0)) -> CONFERENCE | D59: =INDEX(Export!AG:AG,MATCH(A59,Export!AU:AU,0)) -> AUDIO | E59: =SUM(Revenue!N58:Y58) -> 1391.81 | F59: =SUM(Quantity!N58:Y58) -> 5
A60: =Quantity!A59 -> BOX 15" X 9 1/8" X 3 1/8" | B60: =INDEX(Export!AJ:AJ,MATCH(A60,Export!AU:AU,0)) -> 807-173 | C60: =INDEX(Export!AF:AF,MATCH(A60,Export!AU:AU,0)) -> ACCESSORIES | D60: =INDEX(Export!AG:AG,MATCH(A60,Export!AU:AU,0)) -> RAW | E60: =SUM(Revenue!N59:Y59) -> 0 | F60: =SUM(Quantity!N59:Y59) -> 0
A61: =Quantity!A60 -> BOX 22 x 12 x 20 VAD LOGO | B61: =INDEX(Export!AJ:AJ,MATCH(A61,Export!AU:AU,0)) -> 807-0280 | C61: =INDEX(Export!AF:AF,MATCH(A61,Export!AU:AU,0)) -> ACCESSORIES | D61: =INDEX(Export!AG:AG,MATCH(A61,Export!AU:AU,0)) -> RAW | E61: =SUM(Revenue!N60:Y60) -> 695.1 | F61: =SUM(Quantity!N60:Y60) -> 168
A62: =Quantity!A61 -> BOX 23 1/4" X 14 1/8" X 9 1/2" NG PC | B62: =INDEX(Export!AJ:AJ,MATCH(A62,Export!AU:AU,0)) -> 807-247 | C62: =INDEX(Export!AF:AF,MATCH(A62,Export!AU:AU,0)) -> ACCESSORIES | D62: =INDEX(Export!AG:AG,MATCH(A62,Export!AU:AU,0)) -> RAW | E62: =SUM(Revenue!N61:Y61) -> 0 | F62: =SUM(Quantity!N61:Y61) -> 0
A63: =Quantity!A62 -> BOX 25 5/16" X 11 3/4" X 11.5" | B63: =INDEX(Export!AJ:AJ,MATCH(A63,Export!AU:AU,0)) -> 807-064 | C63: =INDEX(Export!AF:AF,MATCH(A63,Export!AU:AU,0)) -> ACCESSORIES | D63: =INDEX(Export!AG:AG,MATCH(A63,Export!AU:AU,0)) -> RAW | E63: =SUM(Revenue!N62:Y62) -> 33.07 | F63: =SUM(Quantity!N62:Y62) -> 6
A64: =Quantity!A63 -> BOX 7 9/16" X 4 5/8" X 2 3/4" | B64: =INDEX(Export!AJ:AJ,MATCH(A64,Export!AU:AU,0)) -> 807-099 | C64: =INDEX(Export!AF:AF,MATCH(A64,Export!AU:AU,0)) -> ACCESSORIES | D64: =INDEX(Export!AG:AG,MATCH(A64,Export!AU:AU,0)) -> RAW | E64: =SUM(Revenue!N63:Y63) -> 0 | F64: =SUM(Quantity!N63:Y63) -> 0
A65: =Quantity!A64 -> BOX 8 3/4" X 6 1/8" X 2.75" | B65: =INDEX(Export!AJ:AJ,MATCH(A65,Export!AU:AU,0)) -> 807-065 | C65: =INDEX(Export!AF:AF,MATCH(A65,Export!AU:AU,0)) -> ACCESSORIES | D65: =INDEX(Export!AG:AG,MATCH(A65,Export!AU:AU,0)) -> RAW | E65: =SUM(Revenue!N64:Y64) -> 27.14 | F65: =SUM(Quantity!N64:Y64) -> 31
A66: =Quantity!A65 -> BOX FILLER FOR SOUND BAR SYSTEM BUNDLE | B66: =INDEX(Export!AJ:AJ,MATCH(A66,Export!AU:AU,0)) -> 807-180 | C66: =INDEX(Export!AF:AF,MATCH(A66,Export!AU:AU,0)) -> ACCESSORIES | D66: =INDEX(Export!AG:AG,MATCH(A66,Export!AU:AU,0)) -> RAW | E66: =SUM(Revenue!N65:Y65) -> 17.04 | F66: =SUM(Quantity!N65:Y65) -> 15
A67: =Quantity!A66 -> BOX OUT 15 7/16" X 12 1/2" X 16 1/2" | B67: =INDEX(Export!AJ:AJ,MATCH(A67,Export!AU:AU,0)) -> 807-231 | C67: =INDEX(Export!AF:AF,MATCH(A67,Export!AU:AU,0)) -> ACCESSORIES | D67: =INDEX(Export!AG:AG,MATCH(A67,Export!AU:AU,0)) -> RAW | E67: =SUM(Revenue!N66:Y66) -> 281.42 | F67: =SUM(Quantity!N66:Y66) -> 137
A68: =Quantity!A67 -> BOX OUT 16 1/2" X 9 3/4" X 13" ZOOM/WALL | B68: =INDEX(Export!AJ:AJ,MATCH(A68,Export!AU:AU,0)) -> 807-190 | C68: =INDEX(Export!AF:AF,MATCH(A68,Export!AU:AU,0)) -> ACCESSORIES | D68: =INDEX(Export!AG:AG,MATCH(A68,Export!AU:AU,0)) -> RAW | E68: =SUM(Revenue!N67:Y67) -> 12.24 | F68: =SUM(Quantity!N67:Y67) -> 4
A69: =Quantity!A68 -> BOX OUT 17 5/8" X 12 1/2" X 21" ROBO CCU | B69: =INDEX(Export!AJ:AJ,MATCH(A69,Export!AU:AU,0)) -> 807-232 | C69: =INDEX(Export!AF:AF,MATCH(A69,Export!AU:AU,0)) -> ACCESSORIES | D69: =INDEX(Export!AG:AG,MATCH(A69,Export!AU:AU,0)) -> RAW | E69: =SUM(Revenue!N68:Y68) -> 17.03 | F69: =SUM(Quantity!N68:Y68) -> 5
A70: =Quantity!A69 -> BOX OUTER 40 1/2" X 41" FOR ONELINK | B70: =INDEX(Export!AJ:AJ,MATCH(A70,Export!AU:AU,0)) -> 807-237 | C70: =INDEX(Export!AF:AF,MATCH(A70,Export!AU:AU,0)) -> ACCESSORIES | D70: =INDEX(Export!AG:AG,MATCH(A70,Export!AU:AU,0)) -> RAW | E70: =SUM(Revenue!N69:Y69) -> 37.15 | F70: =SUM(Quantity!N69:Y69) -> 18
A71: =Quantity!A70 -> BOX OUTER 9 5/8 x 8 3/16 x 6 3/4 USB EXT | B71: =INDEX(Export!AJ:AJ,MATCH(A71,Export!AU:AU,0)) -> 807-0266 | C71: =INDEX(Export!AF:AF,MATCH(A71,Export!AU:AU,0)) -> ACCESSORIES | D71: =INDEX(Export!AG:AG,MATCH(A71,Export!AU:AU,0)) -> RAW | E71: =SUM(Revenue!N70:Y70) -> 0 | F71: =SUM(Quantity!N70:Y70) -> 0
A72: =Quantity!A71 -> BOX OUTER BOX FOR SPEAKER SYSTEM | B72: =INDEX(Export!AJ:AJ,MATCH(A72,Export!AU:AU,0)) -> 807-178 | C72: =INDEX(Export!AF:AF,MATCH(A72,Export!AU:AU,0)) -> ACCESSORIES | D72: =INDEX(Export!AG:AG,MATCH(A72,Export!AU:AU,0)) -> RAW | E72: =SUM(Revenue!N71:Y71) -> 496.01 | F72: =SUM(Quantity!N71:Y71) -> 78
A73: =Quantity!A72 -> BOX OUTER CAM 12" X 11 1/2" X 12 15/16" | B73: =INDEX(Export!AJ:AJ,MATCH(A73,Export!AU:AU,0)) -> 807-077 | C73: =INDEX(Export!AF:AF,MATCH(A73,Export!AU:AU,0)) -> ACCESSORIES | D73: =INDEX(Export!AG:AG,MATCH(A73,Export!AU:AU,0)) -> RAW | E73: =SUM(Revenue!N72:Y72) -> 16.3 | F73: =SUM(Quantity!N72:Y72) -> 12
A74: =Quantity!A73 -> BOX OUTER FOR CEIL/TBL MIC AND MIXER/AMP | B74: =INDEX(Export!AJ:AJ,MATCH(A74,Export!AU:AU,0)) -> 807-182 | C74: =INDEX(Export!AF:AF,MATCH(A74,Export!AU:AU,0)) -> ACCESSORIES | D74: =INDEX(Export!AG:AG,MATCH(A74,Export!AU:AU,0)) -> RAW | E74: =SUM(Revenue!N73:Y73) -> 0 | F74: =SUM(Quantity!N73:Y73) -> 0
A75: =Quantity!A74 -> BOX OUTER WHT W/LOGO 27 1/4 x 12 1/8 x19 | B75: =INDEX(Export!AJ:AJ,MATCH(A75,Export!AU:AU,0)) -> 807-0292 | C75: =INDEX(Export!AF:AF,MATCH(A75,Export!AU:AU,0)) -> ACCESSORIES | D75: =INDEX(Export!AG:AG,MATCH(A75,Export!AU:AU,0)) -> RAW | E75: =SUM(Revenue!N74:Y74) -> 634.76 | F75: =SUM(Quantity!N74:Y74) -> 292
A76: =Quantity!A75 -> BOX SHIP 26" X 18" X 14" | B76: =INDEX(Export!AJ:AJ,MATCH(A76,Export!AU:AU,0)) -> 807-051 | C76: =INDEX(Export!AF:AF,MATCH(A76,Export!AU:AU,0)) -> ACCESSORIES | D76: =INDEX(Export!AG:AG,MATCH(A76,Export!AU:AU,0)) -> RAW | E76: =SUM(Revenue!N75:Y75) -> 49.69 | F76: =SUM(Quantity!N75:Y75) -> 18
A77: =Quantity!A76 -> BUMPER POLY .50 SQ .12 THK BLK ADHESIVE | B77: =INDEX(Export!AJ:AJ,MATCH(A77,Export!AU:AU,0)) -> 802-1880 | C77: =INDEX(Export!AF:AF,MATCH(A77,Export!AU:AU,0)) -> ACCESSORIES | D77: =INDEX(Export!AG:AG,MATCH(A77,Export!AU:AU,0)) -> RAW | E77: =SUM(Revenue!N76:Y76) -> 1.12 | F77: =SUM(Quantity!N76:Y76) -> 2
A78: =Quantity!A77 -> CABLE 4 FOOT AUDIO/POWER | B78: =INDEX(Export!AJ:AJ,MATCH(A78,Export!AU:AU,0)) -> 440-4000-048 | C78: =INDEX(Export!AF:AF,MATCH(A78,Export!AU:AU,0)) -> ACCESSORIES | D78: =INDEX(Export!AG:AG,MATCH(A78,Export!AU:AU,0)) -> CABLES & CONNECTORS | E78: =SUM(Revenue!N77:Y77) -> 21.6 | F78: =SUM(Quantity!N77:Y77) -> 4
A79: =Quantity!A78 -> CABLE ACTIVE 3.0 TYPE-A TO B M/M 20M | B79: =INDEX(Export!AJ:AJ,MATCH(A79,Export!AU:AU,0)) -> 440-1005-023 | C79: =INDEX(Export!AF:AF,MATCH(A79,Export!AU:AU,0)) -> CAM EXTENSIONS | D79: =INDEX(Export!AG:AG,MATCH(A79,Export!AU:AU,0)) -> EXT CABLES | E79: =SUM(Revenue!N78:Y78) -> 814172.3 | F79: =SUM(Quantity!N78:Y78) -> 2194
A80: =Quantity!A79 -> CABLE ACTIVE 3.0 TYPE-A TO B M/M 30M | B80: =INDEX(Export!AJ:AJ,MATCH(A80,Export!AU:AU,0)) -> 440-1005-025 | C80: =INDEX(Export!AF:AF,MATCH(A80,Export!AU:AU,0)) -> CAM EXTENSIONS | D80: =INDEX(Export!AG:AG,MATCH(A80,Export!AU:AU,0)) -> EXT CABLES | E80: =SUM(Revenue!N79:Y79) -> 280329 | F80: =SUM(Quantity!N79:Y79) -> 530
A81: =Quantity!A80 -> CABLE ACTIVE USB 2.0 EXTENSION 20M | B81: =INDEX(Export!AJ:AJ,MATCH(A81,Export!AU:AU,0)) -> 440-1005-020 | C81: =INDEX(Export!AF:AF,MATCH(A81,Export!AU:AU,0)) -> CAM EXTENSIONS | D81: =INDEX(Export!AG:AG,MATCH(A81,Export!AU:AU,0)) -> EXT CABLES | E81: =SUM(Revenue!N80:Y80) -> 14649.12 | F81: =SUM(Quantity!N80:Y80) -> 205
A82: =Quantity!A81 -> Cable Assembly Ceiling MIC White | B82: =INDEX(Export!AJ:AJ,MATCH(A82,Export!AU:AU,0)) -> 342-1478-3 | C82: =INDEX(Export!AF:AF,MATCH(A82,Export!AU:AU,0)) -> ACCESSORIES | D82: =INDEX(Export!AG:AG,MATCH(A82,Export!AU:AU,0)) -> RAW | E82: =SUM(Revenue!N81:Y81) -> 0 | F82: =SUM(Quantity!N81:Y81) -> 0
A83: =Quantity!A82 -> CABLE ASSY CEILING CAMERA | B83: =INDEX(Export!AJ:AJ,MATCH(A83,Export!AU:AU,0)) -> 415-2800-001 | C83: =INDEX(Export!AF:AF,MATCH(A83,Export!AU:AU,0)) -> ACCESSORIES | D83: =INDEX(Export!AG:AG,MATCH(A83,Export!AU:AU,0)) -> CABLES & CONNECTORS | E83: =SUM(Revenue!N82:Y82) -> 14.72 | F83: =SUM(Quantity!N82:Y82) -> 2
A84: =Quantity!A83 -> CABLE CAT-5E PATCH 1' BLACK | B84: =INDEX(Export!AJ:AJ,MATCH(A84,Export!AU:AU,0)) -> 440-0006-001 | C84: =INDEX(Export!AF:AF,MATCH(A84,Export!AU:AU,0)) -> ACCESSORIES | D84: =INDEX(Export!AG:AG,MATCH(A84,Export!AU:AU,0)) -> CABLES & CONNECTORS | E84: =SUM(Revenue!N83:Y83) -> 33.81 | F84: =SUM(Quantity!N83:Y83) -> 18
A85: =Quantity!A84 -> CABLE CAT5E PATCH 10' BLK N002-010-BK | B85: =INDEX(Export!AJ:AJ,MATCH(A85,Export!AU:AU,0)) -> 802-3012 | C85: =INDEX(Export!AF:AF,MATCH(A85,Export!AU:AU,0)) -> ACCESSORIES | D85: =INDEX(Export!AG:AG,MATCH(A85,Export!AU:AU,0)) -> RAW | E85: =SUM(Revenue!N84:Y84) -> 4.16 | F85: =SUM(Quantity!N84:Y84) -> 2
A86: =Quantity!A85 -> CABLE CAT5E PATCH 3' BLK N002-003-BK | B86: =INDEX(Export!AJ:AJ,MATCH(A86,Export!AU:AU,0)) -> 802-3014 | C86: =INDEX(Export!AF:AF,MATCH(A86,Export!AU:AU,0)) -> ACCESSORIES | D86: =INDEX(Export!AG:AG,MATCH(A86,Export!AU:AU,0)) -> RAW | E86: =SUM(Revenue!N85:Y85) -> 0 | F86: =SUM(Quantity!N85:Y85) -> 0
A87: =Quantity!A86 -> CABLE CONTROL 12" CISCO 1080HD S1 | B87: =INDEX(Export!AJ:AJ,MATCH(A87,Export!AU:AU,0)) -> 440-1002-001 | C87: =INDEX(Export!AF:AF,MATCH(A87,Export!AU:AU,0)) -> ACCESSORIES | D87: =INDEX(Export!AG:AG,MATCH(A87,Export!AU:AU,0)) -> RAW | E87: =SUM(Revenue!N86:Y86) -> 0 | F87: =SUM(Quantity!N86:Y86) -> 0
A88: =Quantity!A87 -> CABLE CONTROL 3' CISCO SX20 | B88: =INDEX(Export!AJ:AJ,MATCH(A88,Export!AU:AU,0)) -> 440-1003-003 | C88: =INDEX(Export!AF:AF,MATCH(A88,Export!AU:AU,0)) -> ACCESSORIES | D88: =INDEX(Export!AG:AG,MATCH(A88,Export!AU:AU,0)) -> RAW | E88: =SUM(Revenue!N87:Y87) -> 0 | F88: =SUM(Quantity!N87:Y87) -> 0
A89: =Quantity!A88 -> Cable Cover Eagle White | B89: =INDEX(Export!AJ:AJ,MATCH(A89,Export!AU:AU,0)) -> 342-1659-1 | C89: =INDEX(Export!AF:AF,MATCH(A89,Export!AU:AU,0)) -> ACCESSORIES | D89: =INDEX(Export!AG:AG,MATCH(A89,Export!AU:AU,0)) -> RAW | E89: =SUM(Revenue!N88:Y88) -> 34.99 | F89: =SUM(Quantity!N88:Y88) -> 7
A90: =Quantity!A89 -> CABLE DC-PLUG DC-PLUG CABLE 1' | B90: =INDEX(Export!AJ:AJ,MATCH(A90,Export!AU:AU,0)) -> 440-0008-001 | C90: =INDEX(Export!AF:AF,MATCH(A90,Export!AU:AU,0)) -> ACCESSORIES | D90: =INDEX(Export!AG:AG,MATCH(A90,Export!AU:AU,0)) -> CABLES & CONNECTORS | E90: =SUM(Revenue!N89:Y89) -> 4.16 | F90: =SUM(Quantity!N89:Y89) -> 4
A91: =Quantity!A90 -> CABLE EIAJ-04 TO 3MMX6.3MM | B91: =INDEX(Export!AJ:AJ,MATCH(A91,Export!AU:AU,0)) -> 440-0012-001 | C91: =INDEX(Export!AF:AF,MATCH(A91,Export!AU:AU,0)) -> ACCESSORIES | D91: =INDEX(Export!AG:AG,MATCH(A91,Export!AU:AU,0)) -> CABLES & CONNECTORS | E91: =SUM(Revenue!N90:Y90) -> 128.88 | F91: =SUM(Quantity!N90:Y90) -> 30
A92: =Quantity!A91 -> CABLE EIAJ-04 TO 5.5X2.1 1' | B92: =INDEX(Export!AJ:AJ,MATCH(A92,Export!AU:AU,0)) -> 440-9560-001 | C92: =INDEX(Export!AF:AF,MATCH(A92,Export!AU:AU,0)) -> ACCESSORIES | D92: =INDEX(Export!AG:AG,MATCH(A92,Export!AU:AU,0)) -> RAW | E92: =SUM(Revenue!N91:Y91) -> 7.47 | F92: =SUM(Quantity!N91:Y91) -> 3
A93: =Quantity!A92 -> CABLE EIAJ-04 TO EIAJ-04 | B93: =INDEX(Export!AJ:AJ,MATCH(A93,Export!AU:AU,0)) -> 440-0010-001 | C93: =INDEX(Export!AF:AF,MATCH(A93,Export!AU:AU,0)) -> ACCESSORIES | D93: =INDEX(Export!AG:AG,MATCH(A93,Export!AU:AU,0)) -> CABLES & CONNECTORS | E93: =SUM(Revenue!N92:Y92) -> 29.49 | F93: =SUM(Quantity!N92:Y92) -> 11
A94: =Quantity!A93 -> CABLE EURO IP 3-CONDUCTOR IEC-C13 | B94: =INDEX(Export!AJ:AJ,MATCH(A94,Export!AU:AU,0)) -> 470-0000-001 | C94: =INDEX(Export!AF:AF,MATCH(A94,Export!AU:AU,0)) -> ACCESSORIES | D94: =INDEX(Export!AG:AG,MATCH(A94,Export!AU:AU,0)) -> POWER | E94: =SUM(Revenue!N93:Y93) -> 6.57 | F94: =SUM(Quantity!N93:Y93) -> 2
A95: =Quantity!A94 -> CABLE EZIM CCU FOR PANASONIC AW-HE100 | B95: =INDEX(Export!AJ:AJ,MATCH(A95,Export!AU:AU,0)) -> 440-6707-100 | C95: =INDEX(Export!AF:AF,MATCH(A95,Export!AU:AU,0)) -> ACCESSORIES | D95: =INDEX(Export!AG:AG,MATCH(A95,Export!AU:AU,0)) -> RAW | E95: =SUM(Revenue!N94:Y94) -> 0 | F95: =SUM(Quantity!N94:Y94) -> 0
A96: =Quantity!A95 -> CABLE HDMI 1 METER BLACK QVS HDG-1MC | B96: =INDEX(Export!AJ:AJ,MATCH(A96,Export!AU:AU,0)) -> 802-3013 | C96: =INDEX(Export!AF:AF,MATCH(A96,Export!AU:AU,0)) -> ACCESSORIES | D96: =INDEX(Export!AG:AG,MATCH(A96,Export!AU:AU,0)) -> RAW | E96: =SUM(Revenue!N95:Y95) -> 0 | F96: =SUM(Quantity!N95:Y95) -> 0
A97: =Quantity!A96 -> CABLE HDMI MALE-MALE 1' CABLE | B97: =INDEX(Export!AJ:AJ,MATCH(A97,Export!AU:AU,0)) -> 440-0007-001 | C97: =INDEX(Export!AF:AF,MATCH(A97,Export!AU:AU,0)) -> ACCESSORIES | D97: =INDEX(Export!AG:AG,MATCH(A97,Export!AU:AU,0)) -> CABLES & CONNECTORS | E97: =SUM(Revenue!N96:Y96) -> 44.33 | F97: =SUM(Quantity!N96:Y96) -> 25
A98: =Quantity!A97 -> CABLE KEL 30 58CM 30 POS PIN1 TO PIN1 | B98: =INDEX(Export!AJ:AJ,MATCH(A98,Export!AU:AU,0)) -> 440-0030-158 | C98: =INDEX(Export!AF:AF,MATCH(A98,Export!AU:AU,0)) -> ACCESSORIES | D98: =INDEX(Export!AG:AG,MATCH(A98,Export!AU:AU,0)) -> RAW | E98: =SUM(Revenue!N97:Y97) -> 0 | F98: =SUM(Quantity!N97:Y97) -> 0
A99: =Quantity!A98 -> CABLE ONELINK CODEC SIDE 2' | B99: =INDEX(Export!AJ:AJ,MATCH(A99,Export!AU:AU,0)) -> 440-9520-002 | C99: =INDEX(Export!AF:AF,MATCH(A99,Export!AU:AU,0)) -> ACCESSORIES | D99: =INDEX(Export!AG:AG,MATCH(A99,Export!AU:AU,0)) -> RAW | E99: =SUM(Revenue!N98:Y98) -> 759.44 | F99: =SUM(Quantity!N98:Y98) -> 17
A100: =Quantity!A99 -> CABLE ONELINK EZIM SIDE 1' | B100: =INDEX(Export!AJ:AJ,MATCH(A100,Export!AU:AU,0)) -> 440-9520-001 | C100: =INDEX(Export!AF:AF,MATCH(A100,Export!AU:AU,0)) -> ACCESSORIES | D100: =INDEX(Export!AG:AG,MATCH(A100,Export!AU:AU,0)) -> RAW | E100: =SUM(Revenue!N99:Y99) -> 431.96 | F100: =SUM(Quantity!N99:Y99) -> 7
A101: =Quantity!A100 -> CABLE POWER 6' BLACK FIGURE 8 | B101: =INDEX(Export!AJ:AJ,MATCH(A101,Export!AU:AU,0)) -> 802-2654 | C101: =INDEX(Export!AF:AF,MATCH(A101,Export!AU:AU,0)) -> ACCESSORIES | D101: =INDEX(Export!AG:AG,MATCH(A101,Export!AU:AU,0)) -> POWER | E101: =SUM(Revenue!N100:Y100) -> 98.96 | F101: =SUM(Quantity!N100:Y100) -> 11
A102: =Quantity!A101 -> CABLE PRODUCTIONVIEW HD COMPONENT 3' | B102: =INDEX(Export!AJ:AJ,MATCH(A102,Export!AU:AU,0)) -> 440-5600-001 | C102: =INDEX(Export!AF:AF,MATCH(A102,Export!AU:AU,0)) -> ACCESSORIES | D102: =INDEX(Export!AG:AG,MATCH(A102,Export!AU:AU,0)) -> CABLES & CONNECTORS | E102: =SUM(Revenue!N101:Y101) -> 412.99 | F102: =SUM(Quantity!N101:Y101) -> 8
A103: =Quantity!A102 -> CABLE PRODUCTIONVIEW HD Y-C & COMP 1' | B103: =INDEX(Export!AJ:AJ,MATCH(A103,Export!AU:AU,0)) -> 0440-5600-000 | C103: =INDEX(Export!AF:AF,MATCH(A103,Export!AU:AU,0)) -> ACCESSORIES | D103: =INDEX(Export!AG:AG,MATCH(A103,Export!AU:AU,0)) -> CABLES & CONNECTORS | E103: =SUM(Revenue!N102:Y102) -> 84 | F103: =SUM(Quantity!N102:Y102) -> 2
A104: =Quantity!A103 -> CABLE PTZ CAMERA CONTROL 10' | B104: =INDEX(Export!AJ:AJ,MATCH(A104,Export!AU:AU,0)) -> 999-1005-010 | C104: =INDEX(Export!AF:AF,MATCH(A104,Export!AU:AU,0)) -> ACCESSORIES | D104: =INDEX(Export!AG:AG,MATCH(A104,Export!AU:AU,0)) -> CABLES & CONNECTORS | E104: =SUM(Revenue!N103:Y103) -> 5459.08 | F104: =SUM(Quantity!N103:Y103) -> 468
A105: =Quantity!A104 -> CABLE RJ45-8PIN MINI-DIN 1 FT | B105: =INDEX(Export!AJ:AJ,MATCH(A105,Export!AU:AU,0)) -> 440-0011-001 | C105: =INDEX(Export!AF:AF,MATCH(A105,Export!AU:AU,0)) -> ACCESSORIES | D105: =INDEX(Export!AG:AG,MATCH(A105,Export!AU:AU,0)) -> CABLES & CONNECTORS | E105: =SUM(Revenue!N104:Y104) -> 42.84 | F105: =SUM(Quantity!N104:Y104) -> 7
A106: =Quantity!A105 -> CABLE UK IP 3-CONDUCTOR IEC-C13 | B106: =INDEX(Export!AJ:AJ,MATCH(A106,Export!AU:AU,0)) -> 470-0000-002 | C106: =INDEX(Export!AF:AF,MATCH(A106,Export!AU:AU,0)) -> ACCESSORIES | D106: =INDEX(Export!AG:AG,MATCH(A106,Export!AU:AU,0)) -> POWER | E106: =SUM(Revenue!N105:Y105) -> 11.52 | F106: =SUM(Quantity!N105:Y105) -> 2
A107: =Quantity!A106 -> CABLE US IP IEC | B107: =INDEX(Export!AJ:AJ,MATCH(A107,Export!AU:AU,0)) -> 470-0000-000 | C107: =INDEX(Export!AF:AF,MATCH(A107,Export!AU:AU,0)) -> ACCESSORIES | D107: =INDEX(Export!AG:AG,MATCH(A107,Export!AU:AU,0)) -> POWER | E107: =SUM(Revenue!N106:Y106) -> 2.83 | F107: =SUM(Quantity!N106:Y106) -> 2
A108: =Quantity!A107 -> CABLE USB 3.0 6' C to A M/M Black | B108: =INDEX(Export!AJ:AJ,MATCH(A108,Export!AU:AU,0)) -> 802-3274 | C108: =INDEX(Export!AF:AF,MATCH(A108,Export!AU:AU,0)) -> ACCESSORIES | D108: =INDEX(Export!AG:AG,MATCH(A108,Export!AU:AU,0)) -> CABLES & CONNECTORS | E108: =SUM(Revenue!N107:Y107) -> 0 | F108: =SUM(Quantity!N107:Y107) -> 0
A109: =Quantity!A108 -> CABLE USB 3.0 MALE A-B 6' | B109: =INDEX(Export!AJ:AJ,MATCH(A109,Export!AU:AU,0)) -> 440-0004-306 | C109: =INDEX(Export!AF:AF,MATCH(A109,Export!AU:AU,0)) -> ACCESSORIES | D109: =INDEX(Export!AG:AG,MATCH(A109,Export!AU:AU,0)) -> CABLES & CONNECTORS | E109: =SUM(Revenue!N108:Y108) -> 38.9 | F109: =SUM(Quantity!N108:Y108) -> 19
A110: =Quantity!A109 -> CABLE USB TYPE A-B | B110: =INDEX(Export!AJ:AJ,MATCH(A110,Export!AU:AU,0)) -> 802-2561 | C110: =INDEX(Export!AF:AF,MATCH(A110,Export!AU:AU,0)) -> ACCESSORIES | D110: =INDEX(Export!AG:AG,MATCH(A110,Export!AU:AU,0)) -> CABLES & CONNECTORS | E110: =SUM(Revenue!N109:Y109) -> 5.84 | F110: =SUM(Quantity!N109:Y109) -> 3
A111: =Quantity!A110 -> CAM MODULE SONY ER8300 ROBO20 FW V1.21 | B111: =INDEX(Export!AJ:AJ,MATCH(A111,Export!AU:AU,0)) -> 802-3164 | C111: =INDEX(Export!AF:AF,MATCH(A111,Export!AU:AU,0)) -> ACCESSORIES | D111: =INDEX(Export!AG:AG,MATCH(A111,Export!AU:AU,0)) -> RAW | E111: =SUM(Revenue!N110:Y110) -> 1457.29 | F111: =SUM(Quantity!N110:Y110) -> 2
A112: =Quantity!A111 -> CAMERA SHELF | B112: =INDEX(Export!AJ:AJ,MATCH(A112,Export!AU:AU,0)) -> 341-622 | C112: =INDEX(Export!AF:AF,MATCH(A112,Export!AU:AU,0)) -> ACCESSORIES | D112: =INDEX(Export!AG:AG,MATCH(A112,Export!AU:AU,0)) -> RAW | E112: =SUM(Revenue!N111:Y111) -> 50.41 | F112: =SUM(Quantity!N111:Y111) -> 2
A113: =Quantity!A112 -> CAUTION ACCESSORIES LABEL PACKING LABEL | B113: =INDEX(Export!AJ:AJ,MATCH(A113,Export!AU:AU,0)) -> 342-1141 | C113: =INDEX(Export!AF:AF,MATCH(A113,Export!AU:AU,0)) -> ACCESSORIES | D113: =INDEX(Export!AG:AG,MATCH(A113,Export!AU:AU,0)) -> RAW | E113: =SUM(Revenue!N112:Y112) -> 0.04 | F113: =SUM(Quantity!N112:Y112) -> 16
A114: =Quantity!A113 -> Ceiling MIC System Black | B114: =INDEX(Export!AJ:AJ,MATCH(A114,Export!AU:AU,0)) -> 999-85150-000 | C114: =INDEX(Export!AF:AF,MATCH(A114,Export!AU:AU,0)) -> CONFERENCE | D114: =INDEX(Export!AG:AG,MATCH(A114,Export!AU:AU,0)) -> AUDIO | E114: =SUM(Revenue!N113:Y113) -> 113503.25 | F114: =SUM(Quantity!N113:Y113) -> 279
A115: =Quantity!A114 -> Ceiling MIC System White | B115: =INDEX(Export!AJ:AJ,MATCH(A115,Export!AU:AU,0)) -> 999-85100-000 | C115: =INDEX(Export!AF:AF,MATCH(A115,Export!AU:AU,0)) -> CONFERENCE | D115: =INDEX(Export!AG:AG,MATCH(A115,Export!AU:AU,0)) -> AUDIO | E115: =SUM(Revenue!N114:Y114) -> 1388159.01 | F115: =SUM(Quantity!N114:Y114) -> 3702
A116: =Quantity!A115 -> Ceiling MICPOD SE White | B116: =INDEX(Export!AJ:AJ,MATCH(A116,Export!AU:AU,0)) -> 998-85110-000 | C116: =INDEX(Export!AF:AF,MATCH(A116,Export!AU:AU,0)) -> CONFERENCE | D116: =INDEX(Export!AG:AG,MATCH(A116,Export!AU:AU,0)) -> AUDIO | E116: =SUM(Revenue!N115:Y115) -> 58.05 | F116: =SUM(Quantity!N115:Y115) -> 1
A117: =Quantity!A116 -> CEILING MOUNT KIT FOR PENDANT DOMES | B117: =INDEX(Export!AJ:AJ,MATCH(A117,Export!AU:AU,0)) -> 998-9300-002 | C117: =INDEX(Export!AF:AF,MATCH(A117,Export!AU:AU,0)) -> CAMERA MOUNT | D117: =INDEX(Export!AG:AG,MATCH(A117,Export!AU:AU,0)) -> DOME | E117: =SUM(Revenue!N116:Y116) -> 0 | F117: =SUM(Quantity!N116:Y116) -> 0
A118: =Quantity!A117 -> CeilingMIC Interface Box | B118: =INDEX(Export!AJ:AJ,MATCH(A118,Export!AU:AU,0)) -> 998-85100-000 | C118: =INDEX(Export!AF:AF,MATCH(A118,Export!AU:AU,0)) -> CONFERENCE | D118: =INDEX(Export!AG:AG,MATCH(A118,Export!AU:AU,0)) -> AUDIO | E118: =SUM(Revenue!N117:Y117) -> 71.59 | F118: =SUM(Quantity!N117:Y117) -> 5
A119: =Quantity!A118 -> CeilingMIC Interface Box /Dante | B119: =INDEX(Export!AJ:AJ,MATCH(A119,Export!AU:AU,0)) -> 998-85800-000 | C119: =INDEX(Export!AF:AF,MATCH(A119,Export!AU:AU,0)) -> CONFERENCE | D119: =INDEX(Export!AG:AG,MATCH(A119,Export!AU:AU,0)) -> AUDIO | E119: =SUM(Revenue!N118:Y118) -> 0 | F119: =SUM(Quantity!N118:Y118) -> 0
A120: =Quantity!A119 -> CLEARVIEW HD-20SE HD PTZ CAMERA - BLACK | B120: =INDEX(Export!AJ:AJ,MATCH(A120,Export!AU:AU,0)) -> 999-6980-000 | C120: =INDEX(Export!AF:AF,MATCH(A120,Export!AU:AU,0)) -> PTZ CAMERA | D120: =INDEX(Export!AG:AG,MATCH(A120,Export!AU:AU,0)) -> EXTENSION KIT | E120: =SUM(Revenue!N119:Y119) -> 0 | F120: =SUM(Quantity!N119:Y119) -> 0
A121: =Quantity!A120 -> CLEARVIEW HD-20SE HD PTZ CAMERA - WHITE | B121: =INDEX(Export!AJ:AJ,MATCH(A121,Export!AU:AU,0)) -> 999-6980-000AW | C121: =INDEX(Export!AF:AF,MATCH(A121,Export!AU:AU,0)) -> PTZ CAMERA | D121: =INDEX(Export!AG:AG,MATCH(A121,Export!AU:AU,0)) -> EXTENSION KIT | E121: =SUM(Revenue!N120:Y120) -> 0 | F121: =SUM(Quantity!N120:Y120) -> 0
A122: =Quantity!A121 -> CLEARVIEW HD-20SE QCCU SYSTEM - WHITE | B122: =INDEX(Export!AJ:AJ,MATCH(A122,Export!AU:AU,0)) -> 999-6987-000AW | C122: =INDEX(Export!AF:AF,MATCH(A122,Export!AU:AU,0)) -> PTZ CAMERA | D122: =INDEX(Export!AG:AG,MATCH(A122,Export!AU:AU,0)) -> EXTENSION KIT | E122: =SUM(Revenue!N121:Y121) -> 3693.36 | F122: =SUM(Quantity!N121:Y121) -> 1
A123: =Quantity!A122 -> CONFERENCESHOT 10 CAMERA UNIT WHITE | B123: =INDEX(Export!AJ:AJ,MATCH(A123,Export!AU:AU,0)) -> 998-9990-000W | C123: =INDEX(Export!AF:AF,MATCH(A123,Export!AU:AU,0)) -> PTZ CAMERA | D123: =INDEX(Export!AG:AG,MATCH(A123,Export!AU:AU,0)) -> NATIVE | E123: =SUM(Revenue!N122:Y122) -> -1026.08 | F123: =SUM(Quantity!N122:Y122) -> -1
A124: =Quantity!A123 -> CONFERENCESHOT 10 GOOG WHITE | B124: =INDEX(Export!AJ:AJ,MATCH(A124,Export!AU:AU,0)) -> 999-9990-000WG | C124: =INDEX(Export!AF:AF,MATCH(A124,Export!AU:AU,0)) -> PTZ CAMERA | D124: =INDEX(Export!AG:AG,MATCH(A124,Export!AU:AU,0)) -> NATIVE | E124: =SUM(Revenue!N123:Y123) -> 0 | F124: =SUM(Quantity!N123:Y123) -> 0
A125: =Quantity!A124 -> CONFERENCESHOT 10 SYSTEM | B125: =INDEX(Export!AJ:AJ,MATCH(A125,Export!AU:AU,0)) -> 999-9990-000B | C125: =INDEX(Export!AF:AF,MATCH(A125,Export!AU:AU,0)) -> CONFERENCE | D125: =INDEX(Export!AG:AG,MATCH(A125,Export!AU:AU,0)) -> CAMERA | E125: =SUM(Revenue!N124:Y124) -> 722617.36 | F125: =SUM(Quantity!N124:Y124) -> 571
A126: =Quantity!A125 -> CONFERENCESHOT 10 SYSTEM AUS | B126: =INDEX(Export!AJ:AJ,MATCH(A126,Export!AU:AU,0)) -> 999-9990-009B | C126: =INDEX(Export!AF:AF,MATCH(A126,Export!AU:AU,0)) -> CONFERENCE | D126: =INDEX(Export!AG:AG,MATCH(A126,Export!AU:AU,0)) -> CAMERA | E126: =SUM(Revenue!N125:Y125) -> 2376.45 | F126: =SUM(Quantity!N125:Y125) -> 2
A127: =Quantity!A126 -> CONFERENCESHOT 10 SYSTEM AUS/NZ | B127: =INDEX(Export!AJ:AJ,MATCH(A127,Export!AU:AU,0)) -> 999-9990-009 | C127: =INDEX(Export!AF:AF,MATCH(A127,Export!AU:AU,0)) -> CONFERENCE | D127: =INDEX(Export!AG:AG,MATCH(A127,Export!AU:AU,0)) -> CAMERA | E127: =SUM(Revenue!N126:Y126) -> 0 | F127: =SUM(Quantity!N126:Y126) -> 0
A128: =Quantity!A127 -> CONFERENCESHOT 10 SYSTEM INT WHITE | B128: =INDEX(Export!AJ:AJ,MATCH(A128,Export!AU:AU,0)) -> 999-9990-001W | C128: =INDEX(Export!AF:AF,MATCH(A128,Export!AU:AU,0)) -> CONFERENCE | D128: =INDEX(Export!AG:AG,MATCH(A128,Export!AU:AU,0)) -> CAMERA | E128: =SUM(Revenue!N127:Y127) -> 112643.09 | F128: =SUM(Quantity!N127:Y127) -> 105
A129: =Quantity!A128 -> CONFERENCESHOT 10 SYSTEM INT'L | B129: =INDEX(Export!AJ:AJ,MATCH(A129,Export!AU:AU,0)) -> 999-9990-001B | C129: =INDEX(Export!AF:AF,MATCH(A129,Export!AU:AU,0)) -> CONFERENCE | D129: =INDEX(Export!AG:AG,MATCH(A129,Export!AU:AU,0)) -> CAMERA | E129: =SUM(Revenue!N128:Y128) -> 167354.52 | F129: =SUM(Quantity!N128:Y128) -> 164
A130: =Quantity!A129 -> CONFERENCESHOT 10 SYSTEM WHITE | B130: =INDEX(Export!AJ:AJ,MATCH(A130,Export!AU:AU,0)) -> 999-9990-000W | C130: =INDEX(Export!AF:AF,MATCH(A130,Export!AU:AU,0)) -> CONFERENCE | D130: =INDEX(Export!AG:AG,MATCH(A130,Export!AU:AU,0)) -> CAMERA | E130: =SUM(Revenue!N129:Y129) -> 384384.53 | F130: =SUM(Quantity!N129:Y129) -> 313
A131: =Quantity!A130 -> CONFERENCESHOT 10 SYSTEM WHITE AUS/NZ | B131: =INDEX(Export!AJ:AJ,MATCH(A131,Export!AU:AU,0)) -> 999-9990-009W | C131: =INDEX(Export!AF:AF,MATCH(A131,Export!AU:AU,0)) -> CONFERENCE | D131: =INDEX(Export!AG:AG,MATCH(A131,Export!AU:AU,0)) -> CAMERA | E131: =SUM(Revenue!N130:Y130) -> 3460.17 | F131: =SUM(Quantity!N130:Y130) -> 3
A132: =Quantity!A131 -> CONFERENCESHOT AV CAMERA | B132: =INDEX(Export!AJ:AJ,MATCH(A132,Export!AU:AU,0)) -> 999-9995-000B | C132: =INDEX(Export!AF:AF,MATCH(A132,Export!AU:AU,0)) -> CONFERENCE | D132: =INDEX(Export!AG:AG,MATCH(A132,Export!AU:AU,0)) -> ROOM SYSTEM | E132: =SUM(Revenue!N131:Y131) -> 310693.23 | F132: =SUM(Quantity!N131:Y131) -> 211
A133: =Quantity!A132 -> CONFERENCESHOT AV CAMERA INTL | B133: =INDEX(Export!AJ:AJ,MATCH(A133,Export!AU:AU,0)) -> 999-9995-001B | C133: =INDEX(Export!AF:AF,MATCH(A133,Export!AU:AU,0)) -> CONFERENCE | D133: =INDEX(Export!AG:AG,MATCH(A133,Export!AU:AU,0)) -> ROOM SYSTEM | E133: =SUM(Revenue!N132:Y132) -> 147694.86 | F133: =SUM(Quantity!N132:Y132) -> 152
A134: =Quantity!A133 -> CONFERENCESHOT AV CAMERA - WHITE | B134: =INDEX(Export!AJ:AJ,MATCH(A134,Export!AU:AU,0)) -> 998-9995-000W | C134: =INDEX(Export!AF:AF,MATCH(A134,Export!AU:AU,0)) -> CONFERENCE | D134: =INDEX(Export!AG:AG,MATCH(A134,Export!AU:AU,0)) -> ROOM SYSTEM | E134: =SUM(Revenue!N133:Y133) -> -7716.12 | F134: =SUM(Quantity!N133:Y133) -> -1
A135: =Quantity!A134 -> CONFERENCESHOT AV CAMERA Black | B135: =INDEX(Export!AJ:AJ,MATCH(A135,Export!AU:AU,0)) -> 998-9995-000B | C135: =INDEX(Export!AF:AF,MATCH(A135,Export!AU:AU,0)) -> CONFERENCE | D135: =INDEX(Export!AG:AG,MATCH(A135,Export!AU:AU,0)) -> ROOM SYSTEM | E135: =SUM(Revenue!N134:Y134) -> 2964.32 | F135: =SUM(Quantity!N134:Y134) -> 5
A136: =Quantity!A135 -> CONFERENCESHOT AV CAMERA WHITE | B136: =INDEX(Export!AJ:AJ,MATCH(A136,Export!AU:AU,0)) -> 999-9995-000W | C136: =INDEX(Export!AF:AF,MATCH(A136,Export!AU:AU,0)) -> CONFERENCE | D136: =INDEX(Export!AG:AG,MATCH(A136,Export!AU:AU,0)) -> ROOM SYSTEM | E136: =SUM(Revenue!N135:Y135) -> 723145.63 | F136: =SUM(Quantity!N135:Y135) -> 555
A137: =Quantity!A136 -> CONFERENCESHOT AV CAMERA WHITE AUS | B137: =INDEX(Export!AJ:AJ,MATCH(A137,Export!AU:AU,0)) -> 999-9995-009W | C137: =INDEX(Export!AF:AF,MATCH(A137,Export!AU:AU,0)) -> CONFERENCE | D137: =INDEX(Export!AG:AG,MATCH(A137,Export!AU:AU,0)) -> ROOM SYSTEM | E137: =SUM(Revenue!N136:Y136) -> 0 | F137: =SUM(Quantity!N136:Y136) -> 0
A138: =Quantity!A137 -> CONFERENCESHOT AV CAMERA WHITE INTL | B138: =INDEX(Export!AJ:AJ,MATCH(A138,Export!AU:AU,0)) -> 999-9995-001W | C138: =INDEX(Export!AF:AF,MATCH(A138,Export!AU:AU,0)) -> CONFERENCE | D138: =INDEX(Export!AG:AG,MATCH(A138,Export!AU:AU,0)) -> ROOM SYSTEM | E138: =SUM(Revenue!N137:Y137) -> 269829.8 | F138: =SUM(Quantity!N137:Y137) -> 297
A139: =Quantity!A138 -> CONFERENCESHOT AV SPEAKER KIT | B139: =INDEX(Export!AJ:AJ,MATCH(A139,Export!AU:AU,0)) -> 999-9995-003 | C139: =INDEX(Export!AF:AF,MATCH(A139,Export!AU:AU,0)) -> CONFERENCE | D139: =INDEX(Export!AG:AG,MATCH(A139,Export!AU:AU,0)) -> ROOM SYSTEM | E139: =SUM(Revenue!N138:Y138) -> 32144.41 | F139: =SUM(Quantity!N138:Y138) -> 138
A140: =Quantity!A139 -> CONFERENCESHOT AV SPEAKER KIT WHITE | B140: =INDEX(Export!AJ:AJ,MATCH(A140,Export!AU:AU,0)) -> 999-9995-003W | C140: =INDEX(Export!AF:AF,MATCH(A140,Export!AU:AU,0)) -> CONFERENCE | D140: =INDEX(Export!AG:AG,MATCH(A140,Export!AU:AU,0)) -> ROOM SYSTEM | E140: =SUM(Revenue!N139:Y139) -> 62730.44 | F140: =SUM(Quantity!N139:Y139) -> 259
A141: =Quantity!A140 -> CONFERENCESHOT AV SPEAKER-WHITE | B141: =INDEX(Export!AJ:AJ,MATCH(A141,Export!AU:AU,0)) -> 998-9995-003W | C141: =INDEX(Export!AF:AF,MATCH(A141,Export!AU:AU,0)) -> CONFERENCE | D141: =INDEX(Export!AG:AG,MATCH(A141,Export!AU:AU,0)) -> ROOM SYSTEM | E141: =SUM(Revenue!N140:Y140) -> -317.44 | F141: =SUM(Quantity!N140:Y140) -> 0
A142: =Quantity!A141 -> ConferenceSHOT AV Sys Table Mount - BLK | B142: =INDEX(Export!AJ:AJ,MATCH(A142,Export!AU:AU,0)) -> 999-89995-000 | C142: =INDEX(Export!AF:AF,MATCH(A142,Export!AU:AU,0)) -> CAMERA MOUNT | D142: =INDEX(Export!AG:AG,MATCH(A142,Export!AU:AU,0)) -> WALL | E142: =SUM(Revenue!N141:Y141) -> 1961.62 | F142: =SUM(Quantity!N141:Y141) -> 25
A143: =Quantity!A142 -> ConferenceSHOT AV Sys Table Mount - WHT | B143: =INDEX(Export!AJ:AJ,MATCH(A143,Export!AU:AU,0)) -> 999-89995-000W | C143: =INDEX(Export!AF:AF,MATCH(A143,Export!AU:AU,0)) -> CAMERA MOUNT | D143: =INDEX(Export!AG:AG,MATCH(A143,Export!AU:AU,0)) -> WALL | E143: =SUM(Revenue!N142:Y142) -> 248.7 | F143: =SUM(Quantity!N142:Y142) -> 11
A144: =Quantity!A143 -> ConferenceSHOT ePTZ Camera | B144: =INDEX(Export!AJ:AJ,MATCH(A144,Export!AU:AU,0)) -> 999-21050-000 | C144: =INDEX(Export!AF:AF,MATCH(A144,Export!AU:AU,0)) -> PTZ CAMERA | D144: =INDEX(Export!AG:AG,MATCH(A144,Export!AU:AU,0)) -> NATIVE | E144: =SUM(Revenue!N143:Y143) -> 824.25 | F144: =SUM(Quantity!N143:Y143) -> 1
A145: =Quantity!A144 -> ConferenceSHOT ePTZ Camera INT | B145: =INDEX(Export!AJ:AJ,MATCH(A145,Export!AU:AU,0)) -> 999-21050-001 | C145: =INDEX(Export!AF:AF,MATCH(A145,Export!AU:AU,0)) -> PTZ CAMERA | D145: =INDEX(Export!AG:AG,MATCH(A145,Export!AU:AU,0)) -> NATIVE | E145: =SUM(Revenue!N144:Y144) -> 7312.55 | F145: =SUM(Quantity!N144:Y144) -> 14
A146: =Quantity!A145 -> ConferenceSHOT FX Camera Assembly | B146: =INDEX(Export!AJ:AJ,MATCH(A146,Export!AU:AU,0)) -> 998-20000-000 | C146: =INDEX(Export!AF:AF,MATCH(A146,Export!AU:AU,0)) -> FIXED CAMERA | D146: =INDEX(Export!AG:AG,MATCH(A146,Export!AU:AU,0)) -> EXTENSION KIT | E146: =SUM(Revenue!N145:Y145) -> -950.95 | F146: =SUM(Quantity!N145:Y145) -> -1
A147: =Quantity!A146 -> ConferenceSHOT FX Camera Assembly WHT | B147: =INDEX(Export!AJ:AJ,MATCH(A147,Export!AU:AU,0)) -> 998-20000-000W | C147: =INDEX(Export!AF:AF,MATCH(A147,Export!AU:AU,0)) -> FIXED CAMERA | D147: =INDEX(Export!AG:AG,MATCH(A147,Export!AU:AU,0)) -> EXTENSION KIT | E147: =SUM(Revenue!N146:Y146) -> 601.46 | F147: =SUM(Quantity!N146:Y146) -> 1
A148: =Quantity!A147 -> ConferenceSHOT FX Camera BLACK | B148: =INDEX(Export!AJ:AJ,MATCH(A148,Export!AU:AU,0)) -> 999-20000-000 | C148: =INDEX(Export!AF:AF,MATCH(A148,Export!AU:AU,0)) -> CONFERENCE | D148: =INDEX(Export!AG:AG,MATCH(A148,Export!AU:AU,0)) -> CAMERA | E148: =SUM(Revenue!N147:Y147) -> 190693.57 | F148: =SUM(Quantity!N147:Y147) -> 232
A149: =Quantity!A148 -> ConferenceSHOT FX Camera WHITE | B149: =INDEX(Export!AJ:AJ,MATCH(A149,Export!AU:AU,0)) -> 999-20000-000W | C149: =INDEX(Export!AF:AF,MATCH(A149,Export!AU:AU,0)) -> CONFERENCE | D149: =INDEX(Export!AG:AG,MATCH(A149,Export!AU:AU,0)) -> CAMERA | E149: =SUM(Revenue!N148:Y148) -> 34794 | F149: =SUM(Quantity!N148:Y148) -> 41
A150: =Quantity!A149 -> CONN EURO-STYLE 5MM 3 POS | B150: =INDEX(Export!AJ:AJ,MATCH(A150,Export!AU:AU,0)) -> 401-0001-003 | C150: =INDEX(Export!AF:AF,MATCH(A150,Export!AU:AU,0)) -> ACCESSORIES | D150: =INDEX(Export!AG:AG,MATCH(A150,Export!AU:AU,0)) -> RAW | E150: =SUM(Revenue!N149:Y149) -> 76.21 | F150: =SUM(Quantity!N149:Y149) -> 4
A151: =Quantity!A150 -> CSAV SYS CEILINGMIC 1 (W/O SPKR) | B151: =INDEX(Export!AJ:AJ,MATCH(A151,Export!AU:AU,0)) -> 999-99950-800B | C151: =INDEX(Export!AF:AF,MATCH(A151,Export!AU:AU,0)) -> CONFERENCE | D151: =INDEX(Export!AG:AG,MATCH(A151,Export!AU:AU,0)) -> ROOM SYSTEM | E151: =SUM(Revenue!N150:Y150) -> 32390.91 | F151: =SUM(Quantity!N150:Y150) -> 15
A152: =Quantity!A151 -> CSAV SYS CEILINGMIC 1 (W/O SPKR) INTL | B152: =INDEX(Export!AJ:AJ,MATCH(A152,Export!AU:AU,0)) -> 999-99950-801 | C152: =INDEX(Export!AF:AF,MATCH(A152,Export!AU:AU,0)) -> CONFERENCE | D152: =INDEX(Export!AG:AG,MATCH(A152,Export!AU:AU,0)) -> ROOM SYSTEM | E152: =SUM(Revenue!N151:Y151) -> 7328.83 | F152: =SUM(Quantity!N151:Y151) -> 4
A153: =Quantity!A152 -> CSAV SYS CEILINGMIC 1 (W/O SPKR) WHT | B153: =INDEX(Export!AJ:AJ,MATCH(A153,Export!AU:AU,0)) -> 999-99950-800W | C153: =INDEX(Export!AF:AF,MATCH(A153,Export!AU:AU,0)) -> CONFERENCE | D153: =INDEX(Export!AG:AG,MATCH(A153,Export!AU:AU,0)) -> ROOM SYSTEM | E153: =SUM(Revenue!N152:Y152) -> 459056.83 | F153: =SUM(Quantity!N152:Y152) -> 255
A154: =Quantity!A153 -> CSAV SYS CEILINGMIC 1 (W/O SPKR) WHT INT | B154: =INDEX(Export!AJ:AJ,MATCH(A154,Export!AU:AU,0)) -> 999-99950-801W | C154: =INDEX(Export!AF:AF,MATCH(A154,Export!AU:AU,0)) -> CONFERENCE | D154: =INDEX(Export!AG:AG,MATCH(A154,Export!AU:AU,0)) -> ROOM SYSTEM | E154: =SUM(Revenue!N153:Y153) -> 75002.22 | F154: =SUM(Quantity!N153:Y153) -> 44
A155: =Quantity!A154 -> CSAV SYS CEILINGMIC 2 (W/O SPKR) | B155: =INDEX(Export!AJ:AJ,MATCH(A155,Export!AU:AU,0)) -> 999-99950-700B | C155: =INDEX(Export!AF:AF,MATCH(A155,Export!AU:AU,0)) -> CONFERENCE | D155: =INDEX(Export!AG:AG,MATCH(A155,Export!AU:AU,0)) -> ROOM SYSTEM | E155: =SUM(Revenue!N154:Y154) -> 297376.27 | F155: =SUM(Quantity!N154:Y154) -> 129
A156: =Quantity!A155 -> CSAV SYS CEILINGMIC 2 (W/O SPKR) AUS | B156: =INDEX(Export!AJ:AJ,MATCH(A156,Export!AU:AU,0)) -> 999-99950-709B | C156: =INDEX(Export!AF:AF,MATCH(A156,Export!AU:AU,0)) -> CONFERENCE | D156: =INDEX(Export!AG:AG,MATCH(A156,Export!AU:AU,0)) -> ROOM SYSTEM | E156: =SUM(Revenue!N155:Y155) -> 0 | F156: =SUM(Quantity!N155:Y155) -> 0
A157: =Quantity!A156 -> CSAV SYS CEILINGMIC 2 (W/O SPKR) INTL | B157: =INDEX(Export!AJ:AJ,MATCH(A157,Export!AU:AU,0)) -> 999-99950-701B | C157: =INDEX(Export!AF:AF,MATCH(A157,Export!AU:AU,0)) -> CONFERENCE | D157: =INDEX(Export!AG:AG,MATCH(A157,Export!AU:AU,0)) -> ROOM SYSTEM | E157: =SUM(Revenue!N156:Y156) -> 55508.21 | F157: =SUM(Quantity!N156:Y156) -> 25
A158: =Quantity!A157 -> CSAV SYS CEILINGMIC 2 (W/O SPKR) WHT | B158: =INDEX(Export!AJ:AJ,MATCH(A158,Export!AU:AU,0)) -> 999-99950-700W | C158: =INDEX(Export!AF:AF,MATCH(A158,Export!AU:AU,0)) -> CONFERENCE | D158: =INDEX(Export!AG:AG,MATCH(A158,Export!AU:AU,0)) -> ROOM SYSTEM | E158: =SUM(Revenue!N157:Y157) -> 2352903.2 | F158: =SUM(Quantity!N157:Y157) -> 1089
A159: =Quantity!A158 -> CSAV SYS CEILINGMIC 2 (W/O SPKR) WHT INT | B159: =INDEX(Export!AJ:AJ,MATCH(A159,Export!AU:AU,0)) -> 999-99950-701W | C159: =INDEX(Export!AF:AF,MATCH(A159,Export!AU:AU,0)) -> CONFERENCE | D159: =INDEX(Export!AG:AG,MATCH(A159,Export!AU:AU,0)) -> ROOM SYSTEM | E159: =SUM(Revenue!N158:Y158) -> 253585.21 | F159: =SUM(Quantity!N158:Y158) -> 121
A160: =Quantity!A159 -> CSAV SYS INTEGRATOR 2 (W/O SPKR) | B160: =INDEX(Export!AJ:AJ,MATCH(A160,Export!AU:AU,0)) -> 999-9995-700 | C160: =INDEX(Export!AF:AF,MATCH(A160,Export!AU:AU,0)) -> CONFERENCE | D160: =INDEX(Export!AG:AG,MATCH(A160,Export!AU:AU,0)) -> ROOM SYSTEM | E160: =SUM(Revenue!N159:Y159) -> 0 | F160: =SUM(Quantity!N159:Y159) -> 0
A161: =Quantity!A160 -> CSAV SYSTEM - BASIC 1 | B161: =INDEX(Export!AJ:AJ,MATCH(A161,Export!AU:AU,0)) -> 999-9995-500 | C161: =INDEX(Export!AF:AF,MATCH(A161,Export!AU:AU,0)) -> CONFERENCE | D161: =INDEX(Export!AG:AG,MATCH(A161,Export!AU:AU,0)) -> ROOM SYSTEM | E161: =SUM(Revenue!N160:Y160) -> 0 | F161: =SUM(Quantity!N160:Y160) -> 0
A162: =Quantity!A161 -> CSAV SYSTEM - BASIC 2 WHT | B162: =INDEX(Export!AJ:AJ,MATCH(A162,Export!AU:AU,0)) -> 999-9995-600W | C162: =INDEX(Export!AF:AF,MATCH(A162,Export!AU:AU,0)) -> CONFERENCE | D162: =INDEX(Export!AG:AG,MATCH(A162,Export!AU:AU,0)) -> ROOM SYSTEM | E162: =SUM(Revenue!N161:Y161) -> 0 | F162: =SUM(Quantity!N161:Y161) -> 0
A163: =Quantity!A162 -> CSAV SYSTEM - CEILINGMIC 1 | B163: =INDEX(Export!AJ:AJ,MATCH(A163,Export!AU:AU,0)) -> 999-99950-100B | C163: =INDEX(Export!AF:AF,MATCH(A163,Export!AU:AU,0)) -> CONFERENCE | D163: =INDEX(Export!AG:AG,MATCH(A163,Export!AU:AU,0)) -> ROOM SYSTEM | E163: =SUM(Revenue!N162:Y162) -> 26249.52 | F163: =SUM(Quantity!N162:Y162) -> 12
A164: =Quantity!A163 -> CSAV SYSTEM - CEILINGMIC 1 INTL | B164: =INDEX(Export!AJ:AJ,MATCH(A164,Export!AU:AU,0)) -> 999-99950-101B | C164: =INDEX(Export!AF:AF,MATCH(A164,Export!AU:AU,0)) -> CONFERENCE | D164: =INDEX(Export!AG:AG,MATCH(A164,Export!AU:AU,0)) -> ROOM SYSTEM | E164: =SUM(Revenue!N163:Y163) -> 11836.97 | F164: =SUM(Quantity!N163:Y163) -> 6
A165: =Quantity!A164 -> CSAV SYSTEM - CEILINGMIC 1 WHT | B165: =INDEX(Export!AJ:AJ,MATCH(A165,Export!AU:AU,0)) -> 999-99950-100W | C165: =INDEX(Export!AF:AF,MATCH(A165,Export!AU:AU,0)) -> CONFERENCE | D165: =INDEX(Export!AG:AG,MATCH(A165,Export!AU:AU,0)) -> ROOM SYSTEM | E165: =SUM(Revenue!N164:Y164) -> 66614.18 | F165: =SUM(Quantity!N164:Y164) -> 35
A166: =Quantity!A165 -> CSAV SYSTEM - CEILINGMIC 1 WHT AUS | B166: =INDEX(Export!AJ:AJ,MATCH(A166,Export!AU:AU,0)) -> 999-99950-109W | C166: =INDEX(Export!AF:AF,MATCH(A166,Export!AU:AU,0)) -> CONFERENCE | D166: =INDEX(Export!AG:AG,MATCH(A166,Export!AU:AU,0)) -> ROOM SYSTEM | E166: =SUM(Revenue!N165:Y165) -> 0 | F166: =SUM(Quantity!N165:Y165) -> 0
A167: =Quantity!A166 -> CSAV SYSTEM - CEILINGMIC 1 WHT INTL | B167: =INDEX(Export!AJ:AJ,MATCH(A167,Export!AU:AU,0)) -> 999-99950-101W | C167: =INDEX(Export!AF:AF,MATCH(A167,Export!AU:AU,0)) -> CONFERENCE | D167: =INDEX(Export!AG:AG,MATCH(A167,Export!AU:AU,0)) -> ROOM SYSTEM | E167: =SUM(Revenue!N166:Y166) -> 45991.69 | F167: =SUM(Quantity!N166:Y166) -> 23
A168: =Quantity!A167 -> CSAV SYSTEM - CEILINGMIC 2 | B168: =INDEX(Export!AJ:AJ,MATCH(A168,Export!AU:AU,0)) -> 999-99950-200B | C168: =INDEX(Export!AF:AF,MATCH(A168,Export!AU:AU,0)) -> CONFERENCE | D168: =INDEX(Export!AG:AG,MATCH(A168,Export!AU:AU,0)) -> ROOM SYSTEM | E168: =SUM(Revenue!N167:Y167) -> 55143.27 | F168: =SUM(Quantity!N167:Y167) -> 22
A169: =Quantity!A168 -> CSAV SYSTEM - CEILINGMIC 2 INTL | B169: =INDEX(Export!AJ:AJ,MATCH(A169,Export!AU:AU,0)) -> 999-99950-201B | C169: =INDEX(Export!AF:AF,MATCH(A169,Export!AU:AU,0)) -> CONFERENCE | D169: =INDEX(Export!AG:AG,MATCH(A169,Export!AU:AU,0)) -> ROOM SYSTEM | E169: =SUM(Revenue!N168:Y168) -> 34134.65 | F169: =SUM(Quantity!N168:Y168) -> 13
A170: =Quantity!A169 -> CSAV SYSTEM - CEILINGMIC 2 WHT | B170: =INDEX(Export!AJ:AJ,MATCH(A170,Export!AU:AU,0)) -> 999-99950-200W | C170: =INDEX(Export!AF:AF,MATCH(A170,Export!AU:AU,0)) -> CONFERENCE | D170: =INDEX(Export!AG:AG,MATCH(A170,Export!AU:AU,0)) -> ROOM SYSTEM | E170: =SUM(Revenue!N169:Y169) -> 1262870.17 | F170: =SUM(Quantity!N169:Y169) -> 554
A171: =Quantity!A170 -> CSAV SYSTEM - CEILINGMIC 2 WHT AUS | B171: =INDEX(Export!AJ:AJ,MATCH(A171,Export!AU:AU,0)) -> 999-99950-209W | C171: =INDEX(Export!AF:AF,MATCH(A171,Export!AU:AU,0)) -> CONFERENCE | D171: =INDEX(Export!AG:AG,MATCH(A171,Export!AU:AU,0)) -> ROOM SYSTEM | E171: =SUM(Revenue!N170:Y170) -> 0 | F171: =SUM(Quantity!N170:Y170) -> 0
A172: =Quantity!A171 -> CSAV SYSTEM - CEILINGMIC 2 WHT INTL | B172: =INDEX(Export!AJ:AJ,MATCH(A172,Export!AU:AU,0)) -> 999-99950-201W | C172: =INDEX(Export!AF:AF,MATCH(A172,Export!AU:AU,0)) -> CONFERENCE | D172: =INDEX(Export!AG:AG,MATCH(A172,Export!AU:AU,0)) -> ROOM SYSTEM | E172: =SUM(Revenue!N171:Y171) -> 280116.39 | F172: =SUM(Quantity!N171:Y171) -> 117
A173: =Quantity!A172 -> CSAV SYSTEM - GROUP WHT | B173: =INDEX(Export!AJ:AJ,MATCH(A173,Export!AU:AU,0)) -> 999-9995-400W | C173: =INDEX(Export!AF:AF,MATCH(A173,Export!AU:AU,0)) -> CONFERENCE | D173: =INDEX(Export!AG:AG,MATCH(A173,Export!AU:AU,0)) -> ROOM SYSTEM | E173: =SUM(Revenue!N172:Y172) -> -53.45 | F173: =SUM(Quantity!N172:Y172) -> 0
A174: =Quantity!A173 -> CSAV SYSTEM - HUDDLE WHT | B174: =INDEX(Export!AJ:AJ,MATCH(A174,Export!AU:AU,0)) -> 999-9995-300W | C174: =INDEX(Export!AF:AF,MATCH(A174,Export!AU:AU,0)) -> CONFERENCE | D174: =INDEX(Export!AG:AG,MATCH(A174,Export!AU:AU,0)) -> ROOM SYSTEM | E174: =SUM(Revenue!N173:Y173) -> -222.7 | F174: =SUM(Quantity!N173:Y173) -> 0
A175: =Quantity!A174 -> CSAV SYSTEM - INTEGRATOR 1 WHT | B175: =INDEX(Export!AJ:AJ,MATCH(A175,Export!AU:AU,0)) -> 999-9995-100W | C175: =INDEX(Export!AF:AF,MATCH(A175,Export!AU:AU,0)) -> CONFERENCE | D175: =INDEX(Export!AG:AG,MATCH(A175,Export!AU:AU,0)) -> ROOM SYSTEM | E175: =SUM(Revenue!N174:Y174) -> -49.87 | F175: =SUM(Quantity!N174:Y174) -> 0
A176: =Quantity!A175 -> CSAV-TableMIC 1 | B176: =INDEX(Export!AJ:AJ,MATCH(A176,Export!AU:AU,0)) -> 999-99950-300B | C176: =INDEX(Export!AF:AF,MATCH(A176,Export!AU:AU,0)) -> CONFERENCE | D176: =INDEX(Export!AG:AG,MATCH(A176,Export!AU:AU,0)) -> ROOM SYSTEM | E176: =SUM(Revenue!N175:Y175) -> 25945.06 | F176: =SUM(Quantity!N175:Y175) -> 13
A177: =Quantity!A176 -> CSAV-TableMIC 1 AUS | B177: =INDEX(Export!AJ:AJ,MATCH(A177,Export!AU:AU,0)) -> 999-99950-309B | C177: =INDEX(Export!AF:AF,MATCH(A177,Export!AU:AU,0)) -> CONFERENCE | D177: =INDEX(Export!AG:AG,MATCH(A177,Export!AU:AU,0)) -> ROOM SYSTEM | E177: =SUM(Revenue!N176:Y176) -> 0 | F177: =SUM(Quantity!N176:Y176) -> 0
A178: =Quantity!A177 -> CSAV-TableMIC 1 INTL | B178: =INDEX(Export!AJ:AJ,MATCH(A178,Export!AU:AU,0)) -> 999-99950-301B | C178: =INDEX(Export!AF:AF,MATCH(A178,Export!AU:AU,0)) -> CONFERENCE | D178: =INDEX(Export!AG:AG,MATCH(A178,Export!AU:AU,0)) -> ROOM SYSTEM | E178: =SUM(Revenue!N177:Y177) -> 39971.28 | F178: =SUM(Quantity!N177:Y177) -> 24
A179: =Quantity!A178 -> CSAV-TableMIC 1 w/o Speaker | B179: =INDEX(Export!AJ:AJ,MATCH(A179,Export!AU:AU,0)) -> 999-99950-500B | C179: =INDEX(Export!AF:AF,MATCH(A179,Export!AU:AU,0)) -> CONFERENCE | D179: =INDEX(Export!AG:AG,MATCH(A179,Export!AU:AU,0)) -> ROOM SYSTEM | E179: =SUM(Revenue!N178:Y178) -> 25675.52 | F179: =SUM(Quantity!N178:Y178) -> 15
A180: =Quantity!A179 -> CSAV-TableMIC 1 w/o Speaker INTL | B180: =INDEX(Export!AJ:AJ,MATCH(A180,Export!AU:AU,0)) -> 999-99950-501B | C180: =INDEX(Export!AF:AF,MATCH(A180,Export!AU:AU,0)) -> CONFERENCE | D180: =INDEX(Export!AG:AG,MATCH(A180,Export!AU:AU,0)) -> ROOM SYSTEM | E180: =SUM(Revenue!N179:Y179) -> 19817.16 | F180: =SUM(Quantity!N179:Y179) -> 12
A181: =Quantity!A180 -> CSAV-TableMIC 1 w/o Speaker White | B181: =INDEX(Export!AJ:AJ,MATCH(A181,Export!AU:AU,0)) -> 999-99950-500W | C181: =INDEX(Export!AF:AF,MATCH(A181,Export!AU:AU,0)) -> CONFERENCE | D181: =INDEX(Export!AG:AG,MATCH(A181,Export!AU:AU,0)) -> ROOM SYSTEM | E181: =SUM(Revenue!N180:Y180) -> 61659.12 | F181: =SUM(Quantity!N180:Y180) -> 39
A182: =Quantity!A181 -> CSAV-TableMIC 1 w/o Speaker White INTL | B182: =INDEX(Export!AJ:AJ,MATCH(A182,Export!AU:AU,0)) -> 999-99950-501W | C182: =INDEX(Export!AF:AF,MATCH(A182,Export!AU:AU,0)) -> CONFERENCE | D182: =INDEX(Export!AG:AG,MATCH(A182,Export!AU:AU,0)) -> ROOM SYSTEM | E182: =SUM(Revenue!N181:Y181) -> 3513.96 | F182: =SUM(Quantity!N181:Y181) -> 2
A183: =Quantity!A182 -> CSAV-TableMIC 1 White | B183: =INDEX(Export!AJ:AJ,MATCH(A183,Export!AU:AU,0)) -> 999-99950-300W | C183: =INDEX(Export!AF:AF,MATCH(A183,Export!AU:AU,0)) -> CONFERENCE | D183: =INDEX(Export!AG:AG,MATCH(A183,Export!AU:AU,0)) -> ROOM SYSTEM | E183: =SUM(Revenue!N182:Y182) -> 502.5 | F183: =SUM(Quantity!N182:Y182) -> -1
A184: =Quantity!A183 -> CSAV-TableMIC 1 White INTL | B184: =INDEX(Export!AJ:AJ,MATCH(A184,Export!AU:AU,0)) -> 999-99950-301W | C184: =INDEX(Export!AF:AF,MATCH(A184,Export!AU:AU,0)) -> CONFERENCE | D184: =INDEX(Export!AG:AG,MATCH(A184,Export!AU:AU,0)) -> ROOM SYSTEM | E184: =SUM(Revenue!N183:Y183) -> 29802.62 | F184: =SUM(Quantity!N183:Y183) -> 16
A185: =Quantity!A184 -> CSAV-TableMIC 1 WHT AUS | B185: =INDEX(Export!AJ:AJ,MATCH(A185,Export!AU:AU,0)) -> 999-99950-309W | C185: =INDEX(Export!AF:AF,MATCH(A185,Export!AU:AU,0)) -> CONFERENCE | D185: =INDEX(Export!AG:AG,MATCH(A185,Export!AU:AU,0)) -> ROOM SYSTEM | E185: =SUM(Revenue!N184:Y184) -> 0 | F185: =SUM(Quantity!N184:Y184) -> 0
A186: =Quantity!A185 -> CSAV-TableMIC 2 | B186: =INDEX(Export!AJ:AJ,MATCH(A186,Export!AU:AU,0)) -> 999-99950-400B | C186: =INDEX(Export!AF:AF,MATCH(A186,Export!AU:AU,0)) -> CONFERENCE | D186: =INDEX(Export!AG:AG,MATCH(A186,Export!AU:AU,0)) -> ROOM SYSTEM | E186: =SUM(Revenue!N185:Y185) -> 240995.79 | F186: =SUM(Quantity!N185:Y185) -> 107
A187: =Quantity!A186 -> CSAV-TableMIC 2 AUS | B187: =INDEX(Export!AJ:AJ,MATCH(A187,Export!AU:AU,0)) -> 999-99950-409B | C187: =INDEX(Export!AF:AF,MATCH(A187,Export!AU:AU,0)) -> CONFERENCE | D187: =INDEX(Export!AG:AG,MATCH(A187,Export!AU:AU,0)) -> ROOM SYSTEM | E187: =SUM(Revenue!N186:Y186) -> 12839.02 | F187: =SUM(Quantity!N186:Y186) -> 6
A188: =Quantity!A187 -> CSAV-TableMIC 2 INTL | B188: =INDEX(Export!AJ:AJ,MATCH(A188,Export!AU:AU,0)) -> 999-99950-401B | C188: =INDEX(Export!AF:AF,MATCH(A188,Export!AU:AU,0)) -> CONFERENCE | D188: =INDEX(Export!AG:AG,MATCH(A188,Export!AU:AU,0)) -> ROOM SYSTEM | E188: =SUM(Revenue!N187:Y187) -> 31800.28 | F188: =SUM(Quantity!N187:Y187) -> 14
A189: =Quantity!A188 -> CSAV-TableMIC 2 w/o Speaker | B189: =INDEX(Export!AJ:AJ,MATCH(A189,Export!AU:AU,0)) -> 999-99950-600B | C189: =INDEX(Export!AF:AF,MATCH(A189,Export!AU:AU,0)) -> CONFERENCE | D189: =INDEX(Export!AG:AG,MATCH(A189,Export!AU:AU,0)) -> ROOM SYSTEM | E189: =SUM(Revenue!N188:Y188) -> 41413.86 | F189: =SUM(Quantity!N188:Y188) -> 20
A190: =Quantity!A189 -> CSAV-TableMIC 2 w/o Speaker INTL | B190: =INDEX(Export!AJ:AJ,MATCH(A190,Export!AU:AU,0)) -> 999-99950-601B | C190: =INDEX(Export!AF:AF,MATCH(A190,Export!AU:AU,0)) -> CONFERENCE | D190: =INDEX(Export!AG:AG,MATCH(A190,Export!AU:AU,0)) -> ROOM SYSTEM | E190: =SUM(Revenue!N189:Y189) -> 36040.78 | F190: =SUM(Quantity!N189:Y189) -> 18
A191: =Quantity!A190 -> CSAV-TableMIC 2 w/o Speaker White | B191: =INDEX(Export!AJ:AJ,MATCH(A191,Export!AU:AU,0)) -> 999-99950-600W | C191: =INDEX(Export!AF:AF,MATCH(A191,Export!AU:AU,0)) -> CONFERENCE | D191: =INDEX(Export!AG:AG,MATCH(A191,Export!AU:AU,0)) -> ROOM SYSTEM | E191: =SUM(Revenue!N190:Y190) -> 69968.46 | F191: =SUM(Quantity!N190:Y190) -> 32
A192: =Quantity!A191 -> CSAV-TableMIC 2 w/o Speaker White AUS | B192: =INDEX(Export!AJ:AJ,MATCH(A192,Export!AU:AU,0)) -> 999-99950-609W | C192: =INDEX(Export!AF:AF,MATCH(A192,Export!AU:AU,0)) -> CONFERENCE | D192: =INDEX(Export!AG:AG,MATCH(A192,Export!AU:AU,0)) -> ROOM SYSTEM | E192: =SUM(Revenue!N191:Y191) -> 0 | F192: =SUM(Quantity!N191:Y191) -> 0
A193: =Quantity!A192 -> CSAV-TableMIC 2 w/o Speaker White INTL | B193: =INDEX(Export!AJ:AJ,MATCH(A193,Export!AU:AU,0)) -> 999-99950-601W | C193: =INDEX(Export!AF:AF,MATCH(A193,Export!AU:AU,0)) -> CONFERENCE | D193: =INDEX(Export!AG:AG,MATCH(A193,Export!AU:AU,0)) -> ROOM SYSTEM | E193: =SUM(Revenue!N192:Y192) -> 18897.94 | F193: =SUM(Quantity!N192:Y192) -> 10
A194: =Quantity!A193 -> CSAV-TableMIC 2 White | B194: =INDEX(Export!AJ:AJ,MATCH(A194,Export!AU:AU,0)) -> 999-99950-400W | C194: =INDEX(Export!AF:AF,MATCH(A194,Export!AU:AU,0)) -> CONFERENCE | D194: =INDEX(Export!AG:AG,MATCH(A194,Export!AU:AU,0)) -> ROOM SYSTEM | E194: =SUM(Revenue!N193:Y193) -> 70306.23 | F194: =SUM(Quantity!N193:Y193) -> 31
A195: =Quantity!A194 -> CSAV-TableMIC 2 White INTL | B195: =INDEX(Export!AJ:AJ,MATCH(A195,Export!AU:AU,0)) -> 999-99950-401W | C195: =INDEX(Export!AF:AF,MATCH(A195,Export!AU:AU,0)) -> CONFERENCE | D195: =INDEX(Export!AG:AG,MATCH(A195,Export!AU:AU,0)) -> ROOM SYSTEM | E195: =SUM(Revenue!N194:Y194) -> 31335.41 | F195: =SUM(Quantity!N194:Y194) -> 14
A196: =Quantity!A195 -> CSAV-TableMIC 2 WHT AUS | B196: =INDEX(Export!AJ:AJ,MATCH(A196,Export!AU:AU,0)) -> 999-99950-409W | C196: =INDEX(Export!AF:AF,MATCH(A196,Export!AU:AU,0)) -> CONFERENCE | D196: =INDEX(Export!AG:AG,MATCH(A196,Export!AU:AU,0)) -> ROOM SYSTEM | E196: =SUM(Revenue!N195:Y195) -> 0 | F196: =SUM(Quantity!N195:Y195) -> 0
A197: =Quantity!A196 -> DocCAM 20 HDBT C1 | B197: =INDEX(Export!AJ:AJ,MATCH(A197,Export!AU:AU,0)) -> 998-9968-100 | C197: =INDEX(Export!AF:AF,MATCH(A197,Export!AU:AU,0)) -> FIXED CAMERA | D197: =INDEX(Export!AG:AG,MATCH(A197,Export!AU:AU,0)) -> EXTENSION KIT | E197: =SUM(Revenue!N196:Y196) -> 0 | F197: =SUM(Quantity!N196:Y196) -> 0
A198: =Quantity!A197 -> DocCAM 20 HDBT Camera | B198: =INDEX(Export!AJ:AJ,MATCH(A198,Export!AU:AU,0)) -> 999-9968-000 | C198: =INDEX(Export!AF:AF,MATCH(A198,Export!AU:AU,0)) -> FIXED CAMERA | D198: =INDEX(Export!AG:AG,MATCH(A198,Export!AU:AU,0)) -> EXTENSION KIT | E198: =SUM(Revenue!N197:Y197) -> 246464.64 | F198: =SUM(Quantity!N197:Y197) -> 96
A199: =Quantity!A198 -> DocCAM 20 HDBT Camera INT | B199: =INDEX(Export!AJ:AJ,MATCH(A199,Export!AU:AU,0)) -> 999-9968-001 | C199: =INDEX(Export!AF:AF,MATCH(A199,Export!AU:AU,0)) -> FIXED CAMERA | D199: =INDEX(Export!AG:AG,MATCH(A199,Export!AU:AU,0)) -> EXTENSION KIT | E199: =SUM(Revenue!N198:Y198) -> 0 | F199: =SUM(Quantity!N198:Y198) -> 0
A200: =Quantity!A199 -> DocCAM 20 HDBT OneLINK Bridge System INT | B200: =INDEX(Export!AJ:AJ,MATCH(A200,Export!AU:AU,0)) -> 999-9968-301 | C200: =INDEX(Export!AF:AF,MATCH(A200,Export!AU:AU,0)) -> FIXED CAMERA | D200: =INDEX(Export!AG:AG,MATCH(A200,Export!AU:AU,0)) -> EXTENSION KIT | E200: =SUM(Revenue!N199:Y199) -> 13502.6 | F200: =SUM(Quantity!N199:Y199) -> 4
A201: =Quantity!A200 -> DocCAM 20 HDBT OneLINK Bridge System N/A | B201: =INDEX(Export!AJ:AJ,MATCH(A201,Export!AU:AU,0)) -> 999-9968-300 | C201: =INDEX(Export!AF:AF,MATCH(A201,Export!AU:AU,0)) -> FIXED CAMERA | D201: =INDEX(Export!AG:AG,MATCH(A201,Export!AU:AU,0)) -> EXTENSION KIT | E201: =SUM(Revenue!N200:Y200) -> 418790.21 | F201: =SUM(Quantity!N200:Y200) -> 100
A202: =Quantity!A201 -> DocCAM 20 HDBT OneLINK HDMI System INT | B202: =INDEX(Export!AJ:AJ,MATCH(A202,Export!AU:AU,0)) -> 999-9968-201 | C202: =INDEX(Export!AF:AF,MATCH(A202,Export!AU:AU,0)) -> FIXED CAMERA | D202: =INDEX(Export!AG:AG,MATCH(A202,Export!AU:AU,0)) -> EXTENSION KIT | E202: =SUM(Revenue!N201:Y201) -> 48785.93 | F202: =SUM(Quantity!N201:Y201) -> 16
... 550 more rows

Sheet Export
A1: SalesID | B1: AccountAssignCode | C1: AcctShipTo | D1: AcctSoldTo | E1: AspectRatio | F1: BillingType | G1: Brand | H1: BrandCode | I1: BusinessType | J1: BusinessTypeCode | K1: BuyingGroup | L1: CompCode | M1: CorporateKeyAcct | N1: ControllingArea | O1: CustomerShipTo | P1: CustomerSoldTo | Q1: CompCodeName | R1: CostPerUnit | S1: CostOfGoodsSold | T1: DatePosted | U1: DistributionChannel | V1: DistributionChannelCode | W1: Distributor | X1: DocNumber | Y1: DocType | Z1: DocTypeCode | AA1: FamilyNeed | AB1: FiscalYear | AC1: FiscalYearMonth | AD1: FreightBilledToCust | AE1: Level1 | AF1: Level2 | AG1: Level3 | AH1: MarketSegment | AI1: MarketSegmentCode | AJ1: MaterialEntered | AK1: OnlyParentCustomer | AL1: ParentCustomer | AM1: Plant | AN1: PlantCode | AO1: PostalCode | AP1: ProcurementType | AQ1: ProdH1 | AR1: ProdH2 | AS1: ProdH3 | AT1: ProductCategory | AU1: ProductDescription | AV1: ProductGroup | AW1: ProductHierarchy | AX1: ProfitCenter | AY1: RealignedSalesOrg | AZ1: ReferenceDocNo | BA1: RepFirm | BB1: SalesChannel | BC1: SalesChannelCode | BD1: SalesDistrict | BE1: SalesDistrictCode | BF1: SalesDistrictGroup | BG1: SalesOrg | BH1: SalesOrgCode | BI1: SalesRep | BJ1: ScreenDiagonal | BK1: ScreenSurface | BL1: Series2 | BM1: ShipToRegion | BN1: ShipToCountry | BO1: SoldToCountry | BP1: SoldToRegion | BQ1: Source | BR1: SubSegment | BS1: SubSegmentCode | BT1: Tier | BU1: Margin | BV1: UnitPrice | BW1: CostPerUnit | BX1: Quantity | BY1: SalesRevenue | BZ1: LocalCurrency | CA1: LocalCurrencyRate | CB1: LocalSalesRevenue
A2: 535840227 | B2: 01 | D2: 132696 | F2: Invoice | G2: Vaddio | H2: B0004 | I2: Dealer | J2: 001 | K2: Unassigned | L2: 3000 | M2: Undefined | N2: 3000 | O2: ENTER ALTERNATE ADDRESS (US) | P2: HOWARD INDUSTRIES INC | Q2: Americas LLC | R2: 159.75 | S2: 49842.21 | T2: 03/31/2021 | U2: Standard Distribution | V2: 01 | W2: Unassigned | X2: 0002588575 | Y2: Standard Order | Z2: TA | AA2: AV CONFERENCING (VADDIO) | AB2: 2021 | AC2: 2021-03 | AD2: 0 | AE2: Vaddio | AF2: CONFERENCE | AG2: AUDIO | AH2: AV | AI2: 001 | AJ2: 999-85100-000 | AL2: HOWARD INDUSTRIES INC | AM2: Vaddio | AN2: 3002 | AO2: 39437 | AP2: E | AQ2: B0004 | AR2: B0004P0435 | AS2: B0004P0435G0014090 | AT2: Unassigned | AU2: Ceiling MIC System White | AV2: Projection Screens | AW2: B0004P0435G0014090 | AX2: US Camera Profit Center | AY2: 3000 | AZ2: 0096992488 | BA2: Unassigned | BB2: AV Integrators | BC2: 01 | BD2: South | BE2: U1DXP2 | BF2: United States | BG2: Americas - LLC | BH2: 3000 | BI2: Angela Tener | BK2: Undefined | BM2: Georgia | BN2: United States | BO2: United States | BP2: Unassigned | BQ2: DIRECT | BR2: AV CAPTURE & COLLABORATION - CAMERAS | BS2: 4210 | BT2: 1 | BU2: -116.1297206 | BV2: 425.53 | BW2: 159.75 | BX2: 312 | BY2: 132765.36 | BZ2: USD | CA2: 1 | CB2: 132765.36
A3: 533711350 | B3: 01 | D3: 101463 | F3: EDI Invoice | G3: Vaddio | H3: B0004 | I3: Online Reseller | J3: 010 | K3: Unassigned | L3: 3000 | M3: Undefined | N3: 3000 | O3: ENTER ALTERNATE ADDRESS (US) | P3: B&H PHOTO VIDEO - NY | Q3: Americas LLC | R3: 160.58 | S3: 48172.84 | T3: 04/22/2021 | U3: Standard Distribution | V3: 01 | W3: Unassigned | X3: 0040798486 | Y3: EDI Order | Z3: ZEDI | AA3: AV CONFERENCING (VADDIO) | AB3: 2021 | AC3: 2021-04 | AD3: 1278 | AE3: Vaddio | AF3: CONFERENCE | AG3: AUDIO | AH3: AV | AI3: 001 | AJ3: 999-85100-000 | AL3: B&H PHOTO VIDEO - NY | AM3: Vaddio | AN3: 3002 | AO3: 10001 | AP3: E | AQ3: B0004 | AR3: B0004P0435 | AS3: B0004P0435G0014090 | AT3: Unassigned | AU3: Ceiling MIC System White | AV3: Projection Screens | AW3: B0004P0435G0014090 | AX3: US Camera Profit Center | AY3: 3000 | AZ3: 0097066961 | BA3: Unassigned | BB3: AV Integrators | BC3: 01 | BD3: NorthEast | BE3: U1DXP1 | BF3: United States | BG3: Americas - LLC | BH3: 3000 | BI3: John Ruggiero | BK3: Undefined | BM3: Unassigned | BN3: United States | BO3: United States | BP3: New York | BQ3: DIRECT | BR3: AV CAPTURE & COLLABORATION - CAMERAS | BS3: 4210 | BT3: 1 | BU3: -119.34485 | BV3: 400.29 | BW3: 160.58 | BX3: 300 | BY3: 120087 | BZ3: USD | CA3: 1 | CB3: 120087
A4: 532898645 | B4: 0 | F4: Intercompany Billing | G4: Vaddio | H4: B0004 | I4: Undefined | J4: 000 | K4: Unassigned | L4: 3000 | M4: Undefined | N4: 3000 | O4: LEGRAND AV NETHERLANDS B.V. | P4: Unassigned | Q4: Americas LLC | R4: 160.17 | S4: 47251.43 | T4: 04/09/2021 | U4: Standard Distribution | V4: 01 | W4: Unassigned | Y4: Undefined | Z4: 00 | AA4: AV CONFERENCING (VADDIO) | AB4: 2021 | AC4: 2021-04 | AD4: 0 | AE4: Vaddio | AF4: CONFERENCE | AG4: AUDIO | AH4: Undefined | AI4: 000 | AJ4: 999-85100-000 | AM4: Vaddio | AN4: 3002 | AP4: E | AQ4: B0004 | AR4: B0004P0435 | AS4: B0004P0435G0014090 | AT4: Unassigned | AU4: Ceiling MIC System White | AV4: Projection Screens | AW4: B0004P0435G0014090 | AX4: US Camera Profit Center | AZ4: 0097017459 | BA4: Unassigned | BB4: Undefined | BC4: 0 | BD4: Undefined | BE4: 0000000 | BF4: Undefined | BG4: Americas - LLC | BH4: 3000 | BI4: Unassigned | BK4: Undefined | BM4: Undefined | BN4: Undefined | BO4: Netherlands | BP4: Undefined | BQ4: DIRECT | BR4: AV CAPTURE & COLLABORATION - CAMERAS | BS4: 4210 | BT4: 0 | BU4: -255.521725 | BV4: 184.2005 | BW4: 160.17 | BX4: 295 | BY4: 54339.14 | BZ4: USD | CA4: 1 | CB4: 54339.14
A5: 532382852 | B5: 01 | C5: 132473 | D5: 132473 | F5: Invoice | G5: Vaddio | H5: B0004 | I5: Dealer | J5: 001 | K5: PROFESSIONAL SYSTEMS NETWORK INTL | L5: 3000 | M5: Undefined | N5: 3000 | O5: TEL SYSTEMS | P5: TEL SYSTEMS | Q5: Americas LLC | R5: 237.83 | S5: 65641.73 | T5: 06/16/2021 | U5: Standard Distribution | V5: 01 | W5: Unassigned | X5: 0002650051 | Y5: Standard Order | Z5: TA | AA5: AV CONFERENCING (VADDIO) | AB5: 2021 | AC5: 2021-06 | AD5: 774 | AE5: Vaddio | AF5: CONFERENCE | AG5: AUDIO | AH5: AV | AI5: 001 | AJ5: 999-85810-000 | AL5: TEL SYSTEMS | AM5: Vaddio | AN5: 3002 | AO5: 48103 | AP5: E | AQ5: B0004 | AR5: B0004P0435 | AS5: B0004P0435G0014090 | AT5: Unassigned | AU5: EasyIP CeilingMIC D White | AV5: Projection Screens | AW5: B0004P0435G0014090 | AX5: US Camera Profit Center | AY5: 3000 | AZ5: 0097288755 | BA5: Unassigned | BB5: AV Integrators | BC5: 01 | BD5: MidWest | BE5: U1DXP3 | BF5: United States | BG5: Americas - LLC | BH5: 3000 | BI5: Aaron Silveus | BK5: Undefined | BM5: Unassigned | BN5: United States | BO5: United States | BP5: Unassigned | BQ5: DIRECT | BR5: AV CAPTURE & COLLABORATION - CAMERAS | BS5: 4210 | BT5: 2 | BU5: -112.0779156 | BV5: 580.5 | BW5: 237.83 | BX5: 276 | BY5: 160218 | BZ5: USD | CA5: 1 | CB5: 160218
A6: 533435052 | B6: 01 | D6: 132696 | F6: Invoice | G6: Vaddio | H6: B0004 | I6: Dealer | J6: 001 | K6: Unassigned | L6: 3000 | M6: Undefined | N6: 3000 | O6: 1TST - MILESTONE INC. SAVAGE (3000) | P6: HOWARD INDUSTRIES INC | Q6: Americas LLC | R6: 162.67 | S6: 42943.83 | T6: 06/10/2021 | U6: Standard Distribution | V6: 01 | W6: Unassigned | X6: 0002638227 | Y6: Standard Order | Z6: TA | AA6: AV CONFERENCING (VADDIO) | AB6: 2021 | AC6: 2021-06 | AD6: 170 | AE6: Vaddio | AF6: CONFERENCE | AG6: AUDIO | AH6: AV | AI6: 001 | AJ6: 999-85100-000 | AL6: HOWARD INDUSTRIES INC | AM6: Vaddio | AN6: 3002 | AO6: 39437 | AP6: E | AQ6: B0004 | AR6: B0004P0435 | AS6: B0004P0435G0014090 | AT6: Unassigned | AU6: Ceiling MIC System White | AV6: Projection Screens | AW6: B0004P0435G0014090 | AX6: US Camera Profit Center | AY6: 3000 | AZ6: 0097259763 | BA6: Unassigned | BB6: AV Integrators | BC6: 01 | BD6: South | BE6: U1DXP2 | BF6: United States | BG6: Americas - LLC | BH6: 3000 | BI6: David Sweeney | BK6: Undefined | BM6: Texas | BN6: United States | BO6: United States | BP6: Unassigned | BQ6: DIRECT | BR6: AV CAPTURE & COLLABORATION - CAMERAS | BS6: 4210 | BT6: 1 | BU6: -105.1652163 | BV6: 404.5 | BW6: 162.67 | BX6: 264 | BY6: 106788 | BZ6: USD | CA6: 1 | CB6: 106788
A7: 535151607 | B7: 01 | D7: 106890 | F7: EDI Invoice | G7: Vaddio | H7: B0004 | I7: Distributor - National | J7: 002 | K7: Unassigned | L7: 3000 | M7: Undefined | N7: 3000 | O7: ENTER ALTERNATE ADDRESS (US) | P7: EXERTIS | Q7: Americas LLC | R7: 8.21 | S7: 2053.56 | T7: 11/24/2021 | U7: Standard Distribution | V7: 01 | W7: STAMPEDE | X7: 0040969112 | Y7: EDI Order | Z7: ZEDI | AA7: AV CONTENT CAPTURE (VADDIO) | AB7: 2021 | AC7: 2021-11 | AD7: 1433 | AE7: Vaddio | AF7: CAMERA MOUNT | AG7: WALL | AH7: AV | AI7: 001 | AJ7: 535-2000-251 | AK7: STAMPEDE PRESENTATION | AL7: STAMPEDE PRESENTATION | AM7: Vaddio | AN7: 3002 | AO7: 14228 | AP7: E | AQ7: B0004 | AR7: B0004P0420 | AS7: B0004P0420G0014060 | AT7: Unassigned | AU7: THIN PROFILE WALL MNT PR60/HD EAGLE EYE | AV7: Projection Screens | AW7: B0004P0420G0014060 | AX7: US Camera Profit Center | AY7: 3000 | AZ7: 0098005948 | BA7: Unassigned | BB7: AV Distribution | BC7: 08 | BD7: US - Channel Sales | BE7: U1DXC1 | BF7: United States | BG7: Americas - LLC | BH7: 3000 | BI7: Patrick Mead | BK7: Undefined | BM7: Texas | BN7: United States | BO7: United States | BP7: New York | BQ7: DIRECT | BR7: AV CAPTURE & COLLABORATION - CAMERAS | BS7: 4210 | BT7: 1 | BU7: -17.80205091 | BV7: 109.22 | BW7: 8.21 | BX7: 250 | BY7: 27305 | BZ7: USD | CA7: 1 | CB7: 27305
A8: 533688346 | B8: 01 | D8: 111032 | F8: Invoice | G8: Vaddio | H8: B0004 | I8: Distributor - National | J8: 002 | K8: Unassigned | L8: 3000 | M8: Undefined | N8: 3000 | O8: ALMO DISTRIBUTING - GROVE CITY | P8: ALMO DISTRIBUTING PA INC | Q8: Americas LLC | R8: 4.6 | S8: 1035.95 | T8: 11/04/2021 | U8: Standard Distribution | V8: 01 | W8: ALMO | X8: 0002710196 | Y8: Standard Order | Z8: TA | AA8: AV CONTENT CAPTURE (VADDIO) | AB8: 2021 | AC8: 2021-11 | AD8: 540 | AE8: Vaddio | AF8: ACCESSORIES | AG8: CABLES & CONNECTORS | AH8: AV | AI8: 001 | AJ8: 999-1005-010 | AL8: ALMO DISTRIBUTING PA INC | AM8: Vaddio | AN8: 3002 | AO8: 19154 | AP8: F | AQ8: B0004 | AR8: B0004P0440 | AS8: B0004P0440G0014105 | AT8: Unassigned | AU8: CABLE PTZ CAMERA CONTROL 10' | AV8: Other/Misc | AW8: B0004P0440G0014105 | AX8: US Camera Profit Center | AY8: 3000 | AZ8: 0097893207 | BA8: Unassigned | BB8: AV Distribution | BC8: 08 | BD8: US - Channel Sales | BE8: U1DXC1 | BF8: United States | BG8: Americas - LLC | BH8: 3000 | BI8: Patrick Mead | BK8: Undefined | BM8: Ohio | BN8: United States | BO8: United States | BP8: Unassigned | BQ8: DIRECT | BR8: AV CAPTURE & COLLABORATION - CAMERAS | BS8: 4210 | BT8: 1 | BU8: -88.38308887 | BV8: 11.59 | BW8: 4.6 | BX8: 225 | BY8: 2607.75 | BZ8: USD | CA8: 1 | CB8: 2607.75
A9: 538416171 | B9: 0 | F9: Intercompany Billing | G9: Vaddio | H9: B0004 | I9: Undefined | J9: 000 | K9: Unassigned | L9: 3000 | M9: Undefined | N9: 3000 | O9: LEGRAND AV NETHERLANDS B.V. | P9: Unassigned | Q9: Americas LLC | R9: 149.46 | S9: 33029.9 | T9: 12/09/2020 | U9: Standard Distribution | V9: 01 | W9: Unassigned | Y9: Undefined | Z9: 00 | AA9: AV CONFERENCING (VADDIO) | AB9: 2020 | AC9: 2020-12 | AD9: 0 | AE9: Vaddio | AF9: CONFERENCE | AG9: AUDIO | AH9: Undefined | AI9: 000 | AJ9: 999-85100-000 | AM9: Vaddio | AN9: 3002 | AP9: E | AQ9: B0004 | AR9: B0004P0435 | AS9: B0004P0435G0014090 | AT9: Unassigned | AU9: Ceiling MIC System White | AV9: Projection Screens | AW9: B0004P0435G0014090 | AX9: US Camera Profit Center | AZ9: 0096482573 | BA9: Unassigned | BB9: Undefined | BC9: 0 | BD9: Undefined | BE9: 0000000 | BF9: Undefined | BG9: Americas - LLC | BH9: 3000 | BI9: Unassigned | BK9: Undefined | BM9: Undefined | BN9: Undefined | BO9: Netherlands | BP9: Undefined | BQ9: DIRECT | BR9: AV CAPTURE & COLLABORATION - CAMERAS | BS9: 4210 | BT9: 0 | BU9: -191.1738518 | BV9: 171.8751 | BW9: 149.46 | BX9: 221 | BY9: 37984.39 | BZ9: USD | CA9: 1 | CB9: 37984.39
A10: 538416085 | B10: 01 | D10: 131671 | F10: Invoice | G10: Vaddio | H10: B0004 | I10: Dealer | J10: 001 | K10: Unassigned | L10: 3000 | M10: Undefined | N10: 3000 | O10: AVI SYSTEMS, INC - SAN DIEGO | P10: AVI SYSTEMS, INC | Q10: Americas LLC | R10: 651.77 | S10: 141433.12 | T10: 05/20/2020 | U10: Standard Distribution | V10: 01 | W10: Unassigned | X10: 0002341110 | Y10: Standard Order | Z10: TA | AA10: AV CONTENT CAPTURE (VADDIO) | AB10: 2020 | AC10: 2020-05 | AD10: 1605 | AE10: Vaddio | AF10: CONFERENCE | AG10: CAMERA | AH10: AV | AI10: 001 | AJ10: 999-9990-000W | AK10: AVI SYSTEMS, INC | AL10: AVI SYSTEMS, INC | AM10: Vaddio | AN10: 3002 | AO10: 66214 | AP10: E | AQ10: B0004 | AR10: B0004P0435 | AS10: B0004P0435G0014105 | AT10: Unassigned | AU10: CONFERENCESHOT 10 SYSTEM WHITE | AV10: Projection Screens | AW10: B0004P0435G0014105 | AX10: US Camera Profit Center | AY10: 3000 | AZ10: 0095646105 | BA10: Unassigned | BB10: AV Integrators | BC10: 01 | BD10: West | BE10: U1DXP4 | BF10: United States | BG10: Americas - LLC | BH10: 3000 | BI10: Comm So Cal - Shomper/Yates | BK10: Undefined | BM10: Unassigned | BN10: United States | BO10: United States | BP10: Kansas | BQ10: DIRECT | BR10: AV CAPTURE & COLLABORATION - CAMERAS | BS10: 4210 | BT10: 1 | BU10: -147.8769684 | BV10: 950 | BW10: 651.77 | BX10: 217 | BY10: 206150 | BZ10: USD | CA10: 1 | CB10: 206150
A11: 540172855 | B11: 01 | D11: 131713 | F11: Invoice | G11: Vaddio | H11: B0004 | I11: Dealer | J11: 001 | K11: Unassigned | L11: 3000 | M11: Undefined | N11: 3000 | O11: ONE TIME - BID SHIP TO ONLY | P11: ADVANCED VIDEO GROUP INC. | Q11: Americas LLC | R11: 652.64 | S11: 138358.79 | T11: 09/30/2020 | U11: Standard Distribution | V11: 01 | W11: Unassigned | X11: 0002360821 | Y11: Standard Order | Z11: TA | AA11: AV CONFERENCING (VADDIO) | AB11: 2020 | AC11: 2020-09 | AD11: 0 | AE11: Vaddio | AF11: CONFERENCE | AG11: ROOM SYSTEM | AH11: AV | AI11: 001 | AJ11: 999-9995-000W | AL11: ADVANCED VIDEO GROUP INC. | AM11: Vaddio | AN11: 3002 | AO11: 29063 | AP11: E | AQ11: B0004 | AR11: B0004P0435 | AS11: B0004P0435G0014100 | AT11: Unassigned | AU11: CONFERENCESHOT AV CAMERA WHITE | AV11: Projection Screens | AW11: B0004P0435G0014100 | AX11: US Camera Profit Center | AY11: 3000 | AZ11: 0096168032 | BA11: Unassigned | BB11: AV Integrators | BC11: 01 | BD11: South | BE11: U1DXP2 | BF11: United States | BG11: Americas - LLC | BH11: 3000 | BI11: Bradley Carson | BK11: Undefined | BM11: Unassigned | BN11: United States | BO11: United States | BP11: Unassigned | BQ11: DIRECT | BR11: AV CAPTURE & COLLABORATION - CAMERAS | BS11: 4210 | BT11: 2 | BU11: -121.1527806 | BV11: 1132.67 | BW11: 652.64 | BX11: 212 | BY11: 240126.04 | BZ11: USD | CA11: 1 | CB11: 240126.04
A12: 533449042 | B12: 01 | D12: 132696 | F12: Invoice | G12: Vaddio | H12: B0004 | I12: Dealer | J12: 001 | K12: Unassigned | L12: 3000 | M12: Undefined | N12: 3000 | O12: ONE TIME - BID SHIP TO ONLY | P12: HOWARD INDUSTRIES INC | Q12: Americas LLC | R12: 224.21 | S12: 47084.64 | T12: 09/08/2021 | U12: Standard Distribution | V12: 01 | W12: Unassigned | X12: 0002723269 | Y12: Standard Order | Z12: TA | AA12: AV CONFERENCING (VADDIO) | AB12: 2021 | AC12: 2021-09 | AD12: 1410 | AE12: Vaddio | AF12: CONFERENCE | AG12: AUDIO | AH12: AV | AI12: 001 | AJ12: 999-85810-000 | AL12: HOWARD INDUSTRIES INC | AM12: Vaddio | AN12: 3002 | AO12: 39437 | AP12: E | AQ12: B0004 | AR12: B0004P0435 | AS12: B0004P0435G0014090 | AT12: Unassigned | AU12: EasyIP CeilingMIC D White | AV12: Projection Screens | AW12: B0004P0435G0014090 | AX12: US Camera Profit Center | AY12: 3000 | AZ12: 0097654707 | BA12: Unassigned | BB12: AV Integrators | BC12: 01 | BD12: South | BE12: U1DXP2 | BF12: United States | BG12: Americas - LLC | BH12: 3000 | BI12: Angela Tener | BK12: Undefined | BM12: Georgia | BN12: United States | BO12: United States | BP12: Unassigned | BQ12: DIRECT | BR12: AV CAPTURE & COLLABORATION - CAMERAS | BS12: 4210 | BT12: 1 | BU12: -72.85710028 | BV12: 637.51 | BW12: 224.21 | BX12: 210 | BY12: 133877.1 | BZ12: USD | CA12: 1 | CB12: 133877.1
A13: 532590268 | B13: 01 | C13: 131958 | D13: 131958 | F13: Invoice | G13: Vaddio | H13: B0004 | I13: Dealer | J13: 001 | K13: Unassigned | L13: 3000 | M13: Undefined | N13: 3000 | O13: ACADEMIC TECHNOLOGIES INC. | P13: ACADEMIC TECHNOLOGIES INC. | Q13: Americas LLC | R13: 222.63 | S13: 42744.26 | T13: 11/05/2021 | U13: Standard Distribution | V13: 01 | W13: Unassigned | X13: 0002769498 | Y13: Standard Order | Z13: TA | AA13: AV CONFERENCING (VADDIO) | AB13: 2021 | AC13: 2021-11 | AD13: 1533 | AE13: Vaddio | AF13: CONFERENCE | AG13: AUDIO | AH13: AV | AI13: 001 | AJ13: 999-85810-000 | AL13: ACADEMIC TECHNOLOGIES INC. | AM13: Vaddio | AN13: 3002 | AO13: 39157 | AP13: E | AQ13: B0004 | AR13: B0004P0435 | AS13: B0004P0435G0014090 | AT13: Unassigned | AU13: EasyIP CeilingMIC D White | AV13: Projection Screens | AW13: B0004P0435G0014090 | AX13: US Camera Profit Center | AY13: 3000 | AZ13: 0097894937 | BA13: Unassigned | BB13: AV Integrators | BC13: 01 | BD13: South | BE13: U1DXP2 | BF13: United States | BG13: Americas - LLC | BH13: 3000 | BI13: Kalee Luke | BK13: Undefined | BM13: Unassigned | BN13: United States | BO13: United States | BP13: Unassigned | BQ13: DIRECT | BR13: AV CAPTURE & COLLABORATION - CAMERAS | BS13: 4210 | BT13: 2 | BU13: -66.04876786 | BV13: 637.51 | BW13: 222.63 | BX13: 192 | BY13: 122401.92 | BZ13: USD | CA13: 1 | CB13: 122401.92
A14: 534792529 | B14: 01 | D14: 139707 | F14: Invoice | G14: Vaddio | H14: B0004 | I14: Dealer | J14: 001 | K14: Unassigned | L14: 3000 | M14: Undefined | N14: 3000 | O14: EOS IT MGMT SOLUTIONS-HAYWARD | P14: EOS IT MANAGEMENT SOLUTIONS | Q14: Americas LLC | R14: 5.36 | S14: 975.66 | T14: 02/19/2020 | U14: Standard Distribution | V14: 01 | W14: Unassigned | X14: 0002279693 | Y14: Standard Order | Z14: TA | AA14: AV CONTENT CAPTURE (VADDIO) | AB14: 2020 | AC14: 2020-02 | AD14: 411 | AE14: Vaddio | AF14: CAMERA MOUNT | AG14: WALL | AH14: AV | AI14: 001 | AJ14: 535-2000-251 | AL14: EOS IT MANAGEMENT SOLUTIONS | AM14: Vaddio | AN14: 3002 | AO14: 95131 | AP14: E | AQ14: B0004 | AR14: B0004P0420 | AS14: B0004P0420G0014060 | AT14: Unassigned | AU14: THIN PROFILE WALL MNT PR60/HD EAGLE EYE | AV14: Projection Screens | AW14: B0004P0420G0014060 | AX14: US Camera Profit Center | AY14: 3000 | AZ14: 0095331067 | BA14: Unassigned | BB14: AV Integrators | BC14: 01 | BD14: West | BE14: U1DXP4 | BF14: United States | BG14: Americas - LLC | BH14: 3000 | BI14: Cynthia Podgurski | BK14: Undefined | BM14: Unassigned | BN14: United States | BO14: United States | BP14: Unassigned | BQ14: DIRECT | BR14: AV CAPTURE & COLLABORATION - CAMERAS | BS14: 4210 | BT14: 1 | BU14: -7.596123348 | BV14: 113.5 | BW14: 5.36 | BX14: 182 | BY14: 20657 | BZ14: USD | CA14: 1 | CB14: 20657
A15: 537227014 | B15: 01 | D15: 131672 | F15: EDI Invoice | G15: Vaddio | H15: B0004 | I15: Dealer | J15: 001 | K15: Unassigned | L15: 3000 | M15: Undefined | N15: 3000 | O15: ENTER ALTERNATE ADDRESS (US) | P15: AVI-SPL LLC | Q15: Americas LLC | R15: 2.51 | S15: 421.85 | T15: 03/04/2021 | U15: Standard Distribution | V15: 01 | W15: Unassigned | X15: 0040762111 | Y15: EDI Order | Z15: ZEDI | AA15: AV CONTENT CAPTURE (VADDIO) | AB15: 2021 | AC15: 2021-03 | AD15: 0 | AE15: Vaddio | AF15: ACCESSORIES | AG15: CABLES & CONNECTORS | AH15: AV | AI15: 001 | AJ15: 998-1001-232 | AK15: AVI-SPL | AL15: AVI-SPL | AM15: Vaddio | AN15: 3002 | AO15: 33634 | AP15: F | AQ15: B0004 | AR15: B0004P0440 | AS15: B0004P0440G0014105 | AT15: Unassigned | AU15: ADAPTER CONTROL DB-9M TO RJ-45F | AV15: Other/Misc | AW15: B0004P0440G0014105 | AX15: US Camera Profit Center | AY15: 3000 | AZ15: 0096850950 | BA15: Unassigned | BB15: AV Integrators | BC15: 01 | BD15: South | BE15: U1DXP2 | BF15: United States | BG15: Americas - LLC | BH15: 3000 | BI15: Kalee Luke | BK15: Undefined | BM15: Unassigned | BN15: United States | BO15: United States | BP15: Unassigned | BQ15: DIRECT | BR15: AV CAPTURE & COLLABORATION - CAMERAS | BS15: 4210 | BT15: 1 | BU15: -27.31208054 | BV15: 14.9 | BW15: 2.51 | BX15: 168 | BY15: 2503.2 | BZ15: USD | CA15: 1 | CB15: 2503.2
A16: 537126135 | B16: 0 | F16: Intercompany Billing | G16: Vaddio | H16: B0004 | I16: Undefined | J16: 000 | K16: Unassigned | L16: 3000 | M16: Undefined | N16: 3000 | O16: LEGRAND AV NETHERLANDS B.V. | P16: Unassigned | Q16: Americas LLC | R16: 146.7 | S16: 24206.32 | T16: 12/21/2020 | U16: Standard Distribution | V16: 01 | W16: Unassigned | Y16: Undefined | Z16: 00 | AA16: AV CONFERENCING (VADDIO) | AB16: 2020 | AC16: 2020-12 | AD16: 0 | AE16: Vaddio | AF16: CONFERENCE | AG16: AUDIO | AH16: Undefined | AI16: 000 | AJ16: 999-85100-000 | AM16: Vaddio | AN16: 3002 | AP16: E | AQ16: B0004 | AR16: B0004P0435 | AS16: B0004P0435G0014090 | AT16: Unassigned | AU16: Ceiling MIC System White | AV16: Projection Screens | AW16: B0004P0435G0014090 | AX16: US Camera Profit Center | AZ16: 0096529178 | BA16: Unassigned | BB16: Undefined | BC16: 0 | BD16: Undefined | BE16: 0000000 | BF16: Undefined | BG16: Americas - LLC | BH16: 3000 | BI16: Unassigned | BK16: Undefined | BM16: Undefined | BN16: Undefined | BO16: Netherlands | BP16: Undefined | BQ16: DIRECT | BR16: AV CAPTURE & COLLABORATION - CAMERAS | BS16: 4210 | BT16: 0 | BU16: -142.4782738 | BV16: 168.7107 | BW16: 146.7 | BX16: 165 | BY16: 27837.27 | BZ16: USD | CA16: 1 | CB16: 27837.27
A17: 534655048 | B17: 0 | F17: Intercompany Billing | G17: Vaddio | H17: B0004 | I17: Undefined | J17: 000 | K17: Unassigned | L17: 3000 | M17: Undefined | N17: 3000 | O17: LEGRAND AV NETHERLANDS B.V. | P17: Unassigned | Q17: Americas LLC | R17: 558.45 | S17: 90468.28 | T17: 12/09/2020 | U17: Standard Distribution | V17: 01 | W17: Unassigned | Y17: Undefined | Z17: 00 | AA17: AV CONFERENCING (VADDIO) | AB17: 2020 | AC17: 2020-12 | AD17: 0 | AE17: Vaddio | AF17: CONFERENCE | AG17: ROOM SYSTEM | AH17: Undefined | AI17: 000 | AJ17: 999-60320-000 | AM17: Vaddio | AN17: 3002 | AP17: E | AQ17: B0004 | AR17: B0004P0435 | AS17: B0004P0435G0014100 | AT17: Unassigned | AU17: EasyIP Mixer System Global | AV17: Projection Screens | AW17: B0004P0435G0014100 | AX17: US Camera Profit Center | AZ17: 0096482573 | BA17: Unassigned | BB17: Undefined | BC17: 0 | BD17: Undefined | BE17: 0000000 | BF17: Undefined | BG17: Americas - LLC | BH17: 3000 | BI17: Unassigned | BK17: Undefined | BM17: Undefined | BN17: Undefined | BO17: Netherlands | BP17: Undefined | BQ17: DIRECT | BR17: AV CAPTURE & COLLABORATION - CAMERAS | BS17: 4210 | BT17: 0 | BU17: -139.8695649 | BV17: 642.2131 | BW17: 558.45 | BX17: 162 | BY17: 104038.52 | BZ17: USD | CA17: 1 | CB17: 104038.52
A18: 540394705 | B18: 01 | D18: 130518 | F18: Invoice | G18: Vaddio | H18: B0004 | I18: Dealer | J18: 001 | K18: Unassigned | L18: 3000 | M18: Undefined | N18: 3000 | O18: 1TST - MILESTONE INC. SAVAGE (3000) | P18: ASPEN CUSTOM ELECTRONICS INC. | Q18: Americas LLC | R18: 174.36 | S18: 27897.98 | T18: 10/20/2020 | U18: Standard Distribution | V18: 01 | W18: Unassigned | X18: 0002428132 | Y18: Standard Order | Z18: TA | AA18: AV CONFERENCING (VADDIO) | AB18: 2020 | AC18: 2020-10 | AD18: 532 | AE18: Vaddio | AF18: CONFERENCE | AG18: AUDIO | AH18: AV | AI18: 001 | AJ18: 999-85100-000 | AL18: ASPEN CUSTOM ELECTRONICS INC. | AM18: Vaddio | AN18: 3002 | AO18: 74075 | AP18: E | AQ18: B0004 | AR18: B0004P0435 | AS18: B0004P0435G0014090 | AT18: Unassigned | AU18: Ceiling MIC System White | AV18: Projection Screens | AW18: B0004P0435G0014090 | AX18: US Camera Profit Center | AY18: 3000 | AZ18: 0096229918 | BA18: Unassigned | BB18: AV Integrators | BC18: 01 | BD18: South | BE18: U1DXP2 | BF18: United States | BG18: Americas - LLC | BH18: 3000 | BI18: Robert Dutton | BK18: Undefined | BM18: Oklahoma | BN18: United States | BO18: United States | BP18: Oklahoma | BQ18: DIRECT | BR18: AV CAPTURE & COLLABORATION - CAMERAS | BS18: 4210 | BT18: 2 | BU18: -64.56054802 | BV18: 425.53 | BW18: 174.36 | BX18: 160 | BY18: 68084.8 | BZ18: USD | CA18: 1 | CB18: 68084.8
A19: 532521514 | B19: 01 | D19: 132696 | F19: Invoice | G19: Vaddio | H19: B0004 | I19: Dealer | J19: 001 | K19: Unassigned | L19: 3000 | M19: Undefined | N19: 3000 | O19: ENTER ALTERNATE ADDRESS (US) | P19: HOWARD INDUSTRIES INC | Q19: Americas LLC | R19: 634.27 | S19: 98946.78 | T19: 03/31/2021 | U19: Standard Distribution | V19: 01 | W19: Unassigned | X19: 0002588575 | Y19: Standard Order | Z19: TA | AA19: AV CONFERENCING (VADDIO) | AB19: 2021 | AC19: 2021-03 | AD19: 0 | AE19: Vaddio | AF19: CONFERENCE | AG19: ROOM SYSTEM | AH19: AV | AI19: 001 | AJ19: 999-30200-000W | AL19: HOWARD INDUSTRIES INC | AM19: Vaddio | AN19: 3002 | AO19: 39437 | AP19: E | AQ19: B0004 | AR19: B0004P0435 | AS19: B0004P0435G0014100 | AT19: Unassigned | AU19: EasyIP 10 Camera White | AV19: Projection Screens | AW19: B0004P0435G0014100 | AX19: US Camera Profit Center | AY19: 3000 | AZ19: 0096992488 | BA19: Unassigned | BB19: AV Integrators | BC19: 01 | BD19: South | BE19: U1DXP2 | BF19: United States | BG19: Americas - LLC | BH19: 3000 | BI19: Angela Tener | BK19: Undefined | BM19: Georgia | BN19: United States | BO19: United States | BP19: Unassigned | BQ19: DIRECT | BR19: AV CAPTURE & COLLABORATION - CAMERAS | BS19: 4210 | BT19: 1 | BU19: -50.4533135 | BV19: 1923.04 | BW19: 634.27 | BX19: 156 | BY19: 299994.24 | BZ19: USD | CA19: 1 | CB19: 299994.24
A20: 538506606 | B20: 01 | D20: 132696 | F20: Invoice | G20: Vaddio | H20: B0004 | I20: Dealer | J20: 001 | K20: Unassigned | L20: 3000 | M20: Undefined | N20: 3000 | O20: ENTER ALTERNATE ADDRESS (US) | P20: HOWARD INDUSTRIES INC | Q20: Americas LLC | R20: 269.58 | S20: 42054.9 | T20: 03/31/2021 | U20: Standard Distribution | V20: 01 | W20: Unassigned | X20: 0002588575 | Y20: Standard Order | Z20: TA | AA20: AV CONFERENCING (VADDIO) | AB20: 2021 | AC20: 2021-03 | AD20: 924 | AE20: Vaddio | AF20: CONFERENCE | AG20: ROOM SYSTEM | AH20: AV | AI20: 001 | AJ20: 999-60210-000 | AL20: HOWARD INDUSTRIES INC | AM20: Vaddio | AN20: 3002 | AO20: 39437 | AP20: E | AQ20: B0004 | AR20: B0004P0435 | AS20: B0004P0435G0014100 | AT20: Unassigned | AU20: EasyIP Decoder | AV20: Projection Screens | AW20: B0004P0435G0014100 | AX20: US Camera Profit Center | AY20: 3000 | AZ20: 0096992488 | BA20: Unassigned | BB20: AV Integrators | BC20: 01 | BD20: South | BE20: U1DXP2 | BF20: United States | BG20: Americas - LLC | BH20: 3000 | BI20: Angela Tener | BK20: Undefined | BM20: Georgia | BN20: United States | BO20: United States | BP20: Unassigned | BQ20: DIRECT | BR20: AV CAPTURE & COLLABORATION - CAMERAS | BS20: 4210 | BT20: 1 | BU20: -72.87254299 | BV20: 569.29 | BW20: 269.58 | BX20: 156 | BY20: 88809.24 | BZ20: USD | CA20: 1 | CB20: 88809.24
A21: 537784655 | B21: 0 | F21: Intercompany Billing | G21: Vaddio | H21: B0004 | I21: Undefined | J21: 000 | K21: Unassigned | L21: 3000 | M21: Undefined | N21: 3000 | O21: LEGRAND AV NETHERLANDS B.V. | P21: Unassigned | Q21: Americas LLC | R21: 5.36 | S21: 819.48 | T21: 01/27/2020 | U21: Standard Distribution | V21: 01 | W21: Unassigned | Y21: Undefined | Z21: 00 | AA21: AV CONTENT CAPTURE (VADDIO) | AB21: 2020 | AC21: 2020-01 | AD21: 0 | AE21: Vaddio | AF21: CAMERA MOUNT | AG21: WALL | AH21: Undefined | AI21: 000 | AJ21: 535-2000-251 | AM21: Vaddio | AN21: 3002 | AP21: E | AQ21: B0004 | AR21: B0004P0420 | AS21: B0004P0420G0014060 | AT21: Unassigned | AU21: THIN PROFILE WALL MNT PR60/HD EAGLE EYE | AV21: Projection Screens | AW21: B0004P0420G0014060 | AX21: US Camera Profit Center | AZ21: 0095147480 | BA21: Unassigned | BB21: Undefined | BC21: 0 | BD21: Undefined | BE21: 0000000 | BF21: Undefined | BG21: Americas - LLC | BH21: 3000 | BI21: Unassigned | BK21: Undefined | BM21: Undefined | BN21: Undefined | BO21: Netherlands | BP21: Undefined | BQ21: DIRECT | BR21: AV CAPTURE & COLLABORATION - CAMERAS | BS21: 4210 | BT21: 0 | BU21: -132.0432665 | BV21: 6.1595 | BW21: 5.36 | BX21: 153 | BY21: 942.4 | BZ21: USD | CA21: 1 | CB21: 942.4
A22: 532273229 | B22: 01 | D22: 132105 | F22: Invoice | G22: Vaddio | H22: B0004 | I22: Dealer | J22: 001 | K22: PROFESSIONAL SYSTEMS NETWORK INTL | L22: 3000 | M22: Undefined | N22: 3000 | O22: ONE TIME - BID SHIP TO ONLY | P22: ONE DIVERSIFIED (OR) | Q22: Americas LLC | R22: 65.58 | S22: 9837.28 | T22: 04/23/2021 | U22: Standard Distribution | V22: 01 | W22: Unassigned | X22: 0002607730 | Y22: Standard Order | Z22: TA | AA22: AV CONTENT CAPTURE (VADDIO) | AB22: 2021 | AC22: 2021-04 | AD22: 2332 | AE22: Vaddio | AF22: CAMERA MOUNT | AG22: CEILING | AH22: AV | AI22: 001 | AJ22: 535-2000-290 | AL22: ONE DIVERSIFIED (OR) | AM22: Vaddio | AN22: 3002 | AO22: 97075 | AP22: E | AQ22: B0004 | AR22: B0004P0420 | AS22: B0004P0420G0014055 | AT22: Unassigned | AU22: DROP DN MT FOR SMALL PTZ CAMERAS - SHORT | AV22: Projection Screens | AW22: B0004P0420G0014055 | AX22: US Camera Profit Center | AY22: 3000 | AZ22: 0097068738 | BA22: Unassigned | BB22: AV Integrators | BC22: 01 | BD22: West | BE22: U1DXP4 | BF22: United States | BG22: Americas - LLC | BH22: 3000 | BI22: Comm So Cal - Shomper/Yates | BK22: Undefined | BM22: Unassigned | BN22: United States | BO22: United States | BP22: Unassigned | BQ22: DIRECT | BR22: AV CAPTURE & COLLABORATION - CAMERAS | BS22: 4210 | BT22: 1 | BU22: -56.17354411 | BV22: 172.06 | BW22: 65.58 | BX22: 150 | BY22: 25809 | BZ22: USD | CA22: 1 | CB22: 25809
A23: 535053826 | B23: 0 | F23: Intercompany Billing | G23: Vaddio | H23: B0004 | I23: Undefined | J23: 000 | K23: Unassigned | L23: 3000 | M23: Undefined | N23: 3000 | O23: LEGRAND AV NETHERLANDS B.V. | P23: Unassigned | Q23: Americas LLC | R23: 82.8 | S23: 12419.7 | T23: 12/09/2020 | U23: Standard Distribution | V23: 01 | W23: Unassigned | Y23: Undefined | Z23: 00 | AA23: AV CONTENT CAPTURE (VADDIO) | AB23: 2020 | AC23: 2020-12 | AD23: 0 | AE23: Vaddio | AF23: CAM EXTENSIONS | AG23: EXT CABLES | AH23: Undefined | AI23: 000 | AJ23: 440-1005-008 | AM23: Vaddio | AN23: 3002 | AP23: F | AQ23: B0004 | AR23: B0004P0415 | AS23: B0004P0415G0014040 | AT23: Unassigned | AU23: USB 3.0 CABLE 8METER TYPE A TO B ACTIVE | AV23: Projection Screens | AW23: B0004P0415G0014040 | AX23: US Camera Profit Center | AZ23: 0096482573 | BA23: Unassigned | BB23: Undefined | BC23: 0 | BD23: Undefined | BE23: 0000000 | BF23: Undefined | BG23: Americas - LLC | BH23: 3000 | BI23: Unassigned | BK23: Undefined | BM23: Undefined | BN23: Undefined | BO23: Netherlands | BP23: Undefined | BQ23: DIRECT | BR23: AV CAPTURE & COLLABORATION - CAMERAS | BS23: 4210 | BT23: 0 | BU23: -129.4347826 | BV23: 95.2177 | BW23: 82.8 | BX23: 150 | BY23: 14282.66 | BZ23: USD | CA23: 1 | CB23: 14282.66
A24: 535417509 | B24: 01 | D24: 106466 | F24: EDI Invoice | G24: Vaddio | H24: B0004 | I24: Distributor - National | J24: 002 | K24: Unassigned | L24: 3000 | M24: Undefined | N24: 3000 | O24: ENTER ALTERNATE ADDRESS (US) | P24: SYNNEX - CA | Q24: Americas LLC | R24: 182.35 | S24: 27352.4 | T24: 10/13/2020 | U24: Standard Distribution | V24: 01 | W24: SYNNEX | X24: 0040587881 | Y24: EDI Order | Z24: ZEDI | AA24: AV CONFERENCING (VADDIO) | AB24: 2020 | AC24: 2020-10 | AD24: 0 | AE24: Vaddio | AF24: CONFERENCE | AG24: AUDIO | AH24: IT/DMR | AI24: 002 | AJ24: 999-85100-000 | AL24: SYNNEX - CA | AM24: Vaddio | AN24: 3002 | AO24: 94538 | AP24: E | AQ24: B0004 | AR24: B0004P0435 | AS24: B0004P0435G0014090 | AT24: Unassigned | AU24: Ceiling MIC System White | AV24: Projection Screens | AW24: B0004P0435G0014090 | AX24: US Camera Profit Center | AY24: 3000 | AZ24: 0096211604 | BA24: Unassigned | BB24: IT Distribution | BC24: 12 | BD24: US - Channel Sales | BE24: U1DXC1 | BF24: United States | BG24: Americas - LLC | BH24: 3000 | BI24: Beth Roberson | BK24: Undefined | BM24: Texas | BN24: United States | BO24: United States | BP24: Unassigned | BQ24: DIRECT | BR24: AV CAPTURE & COLLABORATION - CAMERAS | BS24: 4210 | BT24: 1 | BU24: -68.39063372 | BV24: 394.18 | BW24: 182.35 | BX24: 150 | BY24: 59127 | BZ24: USD | CA24: 1 | CB24: 59127
A25: 536059459 | B25: 01 | D25: 101298 | F25: Invoice | G25: Vaddio | H25: B0004 | I25: Distributor - National | J25: 002 | K25: Unassigned | L25: 3000 | M25: Undefined | N25: 3000 | O25: ENTER ALTERNATE ADDRESS (US) | P25: AB DISTRIBUTING INC | Q25: Americas LLC | R25: 81.05 | S25: 12157.31 | T25: 11/11/2021 | U25: Standard Distribution | V25: 01 | W25: AB | X25: 0002780933 | Y25: Standard Order | Z25: TA | AA25: AV CONTENT CAPTURE (VADDIO) | AB25: 2021 | AC25: 2021-11 | AD25: 0 | AE25: Vaddio | AF25: CAMERA MOUNT | AG25: CEILING | AH25: IT/DMR | AI25: 002 | AJ25: 535-2000-291 | AK25: AB DISTRIBUTING | AL25: AB DISTRIBUTING | AM25: Vaddio | AN25: 3002 | AO25: 60004 | AP25: E | AQ25: B0004 | AR25: B0004P0420 | AS25: B0004P0420G0014055 | AT25: Unassigned | AU25: DROP DN MT FOR SMALL PTZ CAMERAS - LONG | AV25: Projection Screens | AW25: B0004P0420G0014055 | AX25: US Camera Profit Center | AY25: 3000 | AZ25: 0097934435 | BA25: Unassigned | BB25: IT Distribution | BC25: 12 | BD25: US - Channel Sales | BE25: U1DXC1 | BF25: United States | BG25: Americas - LLC | BH25: 3000 | BI25: Jack Gerts | BK25: Undefined | BM25: Illinois | BN25: United States | BO25: United States | BP25: Illinois | BQ25: DIRECT | BR25: AV CAPTURE & COLLABORATION - CAMERAS | BS25: 4210 | BT25: 1 | BU25: -59.48713866 | BV25: 200.99 | BW25: 81.05 | BX25: 150 | BY25: 30148.5 | BZ25: USD | CA25: 1 | CB25: 30148.5
A26: 537090988 | B26: 01 | D26: 101463 | F26: EDI Invoice | G26: Vaddio | H26: B0004 | I26: Online Reseller | J26: 010 | K26: Unassigned | L26: 3000 | M26: Undefined | N26: 3000 | O26: ENTER ALTERNATE ADDRESS (US) | P26: B&H PHOTO VIDEO - NY | Q26: Americas LLC | R26: 706.43 | S26: 105964.01 | T26: 04/22/2021 | U26: Standard Distribution | V26: 01 | W26: Unassigned | X26: 0040798486 | Y26: EDI Order | Z26: ZEDI | AA26: AV CONFERENCING (VADDIO) | AB26: 2021 | AC26: 2021-04 | AD26: 2139 | AE26: Vaddio | AF26: CONFERENCE | AG26: ROOM SYSTEM | AH26: AV | AI26: 001 | AJ26: 999-9995-000W | AL26: B&H PHOTO VIDEO - NY | AM26: Vaddio | AN26: 3002 | AO26: 10001 | AP26: E | AQ26: B0004 | AR26: B0004P0435 | AS26: B0004P0435G0014100 | AT26: Unassigned | AU26: CONFERENCESHOT AV CAMERA WHITE | AV26: Projection Screens | AW26: B0004P0435G0014100 | AX26: US Camera Profit Center | AY26: 3000 | AZ26: 0097066961 | BA26: Unassigned | BB26: AV Integrators | BC26: 01 | BD26: NorthEast | BE26: U1DXP1 | BF26: United States | BG26: Americas - LLC | BH26: 3000 | BI26: John Ruggiero | BK26: Undefined | BM26: Unassigned | BN26: United States | BO26: United States | BP26: New York | BQ26: DIRECT | BR26: AV CAPTURE & COLLABORATION - CAMERAS | BS26: 4210 | BT26: 1 | BU26: -78.07643916 | BV26: 1340.02 | BW26: 706.43 | BX26: 150 | BY26: 201003 | BZ26: USD | CA26: 1 | CB26: 201003
A27: 533588992 | B27: 01 | D27: 131672 | F27: EDI Invoice | G27: Vaddio | H27: B0004 | I27: Dealer | J27: 001 | K27: Unassigned | L27: 3000 | M27: Undefined | N27: 3000 | O27: ENTER ALTERNATE ADDRESS (US) | P27: AVI-SPL LLC | Q27: Americas LLC | R27: 163.76 | S27: 23908.34 | T27: 11/24/2021 | U27: Standard Distribution | V27: 01 | W27: Unassigned | X27: 0040962400 | Y27: EDI Order | Z27: ZEDI | AA27: AV CONFERENCING (VADDIO) | AB27: 2021 | AC27: 2021-11 | AD27: 0 | AE27: Vaddio | AF27: CONFERENCE | AG27: AUDIO | AH27: AV | AI27: 001 | AJ27: 999-85100-000 | AK27: AVI-SPL | AL27: AVI-SPL | AM27: Vaddio | AN27: 3002 | AO27: 33634 | AP27: E | AQ27: B0004 | AR27: B0004P0435 | AS27: B0004P0435G0014090 | AT27: Unassigned | AU27: Ceiling MIC System White | AV27: Projection Screens | AW27: B0004P0435G0014090 | AX27: US Camera Profit Center | AY27: 3000 | AZ27: 0098004947 | BA27: Unassigned | BB27: AV Integrators | BC27: 01 | BD27: West | BE27: U1DXP4 | BF27: United States | BG27: Americas - LLC | BH27: 3000 | BI27: Dana Sanders Nickel | BK27: Undefined | BM27: New Mexico | BN27: United States | BO27: United States | BP27: Unassigned | BQ27: DIRECT | BR27: AV CAPTURE & COLLABORATION - CAMERAS | BS27: 4210 | BT27: 1 | BU27: -53.00207802 | BV27: 442.73 | BW27: 163.76 | BX27: 146 | BY27: 64638.58 | BZ27: USD | CA27: 1 | CB27: 64638.58
A28: 532151650 | B28: 01 | D28: 131672 | F28: Invoice | G28: Vaddio | H28: B0004 | I28: Dealer | J28: 001 | K28: Unassigned | L28: 3000 | M28: Undefined | N28: 3000 | O28: ONE TIME - BID SHIP TO ONLY | P28: AVI-SPL LLC | Q28: Americas LLC | R28: 4.62 | S28: 665.48 | T28: 05/27/2020 | U28: Standard Distribution | V28: 01 | W28: Unassigned | X28: 0002338819 | Y28: Standard Order | Z28: TA | AA28: AV CONTENT CAPTURE (VADDIO) | AB28: 2020 | AC28: 2020-05 | AD28: 17 | AE28: Vaddio | AF28: ACCESSORIES | AG28: RACK | AH28: AV | AI28: 001 | AJ28: 998-6000-004 | AK28: AVI-SPL | AL28: WHITLOCK | AM28: Vaddio | AN28: 3002 | AO28: 23238 | AP28: E | AQ28: B0004 | AR28: B0004P0440 | AS28: B0004P0440G0014120 | AT28: Unassigned | AU28: SINGLE 1/2 RACK MOUNTING KIT | AV28: Other/Misc | AW28: B0004P0440G0014120 | AX28: US Camera Profit Center | AY28: 3000 | AZ28: 0095681300 | BA28: Unassigned | BB28: AV Integrators | BC28: 01 | BD28: South | BE28: U1DXP2 | BF28: United States | BG28: Americas - LLC | BH28: 3000 | BI28: Bradley Carson | BK28: Undefined | BM28: North Carolina | BN28: United States | BO28: United States | BP28: Unassigned | BQ28: DIRECT | BR28: AV CAPTURE & COLLABORATION - CAMERAS | BS28: 4210 | BT28: 1 | BU28: -13.02782462 | BV28: 47.44 | BW28: 4.62 | BX28: 144 | BY28: 6831.36 | BZ28: USD | CA28: 1 | CB28: 6831.36
A29: 533414898 | B29: 01 | D29: 131672 | F29: Invoice | G29: Vaddio | H29: B0004 | I29: Dealer | J29: 001 | K29: Unassigned | L29: 3000 | M29: Undefined | N29: 3000 | O29: ONE TIME - BID SHIP TO ONLY | P29: AVI-SPL LLC | Q29: Americas LLC | R29: 1573.28 | S29: 226552.51 | T29: 05/27/2020 | U29: Standard Distribution | V29: 01 | W29: Unassigned | X29: 0002338819 | Y29: Standard Order | Z29: TA | AA29: AV CONTENT CAPTURE (VADDIO) | AB29: 2020 | AC29: 2020-05 | AD29: 1357 | AE29: Vaddio | AF29: PTZ CAMERA | AG29: EXTENSION KIT | AH29: AV | AI29: 001 | AJ29: 999-99630-200W | AK29: AVI-SPL | AL29: WHITLOCK | AM29: Vaddio | AN29: 3002 | AO29: 23238 | AP29: E | AQ29: B0004 | AR29: B0004P0400 | AS29: B0004P0400G0014000 | AT29: Unassigned | AU29: RoboSHOT 30E OneLINK BRIDGE SYS WHT | AV29: Projection Screens | AW29: B0004P0400G0014000 | AX29: US Camera Profit Center | AY29: 3000 | AZ29: 0095681300 | BA29: Unassigned | BB29: AV Integrators | BC29: 01 | BD29: South | BE29: U1DXP2 | BF29: United States | BG29: Americas - LLC | BH29: 3000 | BI29: Bradley Carson | BK29: Undefined | BM29: North Carolina | BN29: United States | BO29: United States | BP29: Unassigned | BQ29: DIRECT | BR29: AV CAPTURE & COLLABORATION - CAMERAS | BS29: 4210 | BT29: 1 | BU29: -59.0554317 | BV29: 3772.39 | BW29: 1573.28 | BX29: 144 | BY29: 543224.16 | BZ29: USD | CA29: 1 | CB29: 543224.16
A30: 533780911 | B30: 0 | F30: Intercompany Billing | G30: Vaddio | H30: B0004 | I30: Undefined | J30: 000 | K30: Unassigned | L30: 3000 | M30: Undefined | N30: 3000 | O30: LEGRAND AV NETHERLANDS B.V. | P30: Unassigned | Q30: Americas LLC | R30: 147.12 | S30: 21185.69 | T30: 06/29/2021 | U30: Standard Distribution | V30: 01 | W30: Unassigned | Y30: Undefined | Z30: 00 | AA30: AV CONFERENCING (VADDIO) | AB30: 2021 | AC30: 2021-06 | AD30: 0 | AE30: Vaddio | AF30: CONFERENCE | AG30: AUDIO | AH30: Undefined | AI30: 000 | AJ30: 999-85100-000 | AM30: Vaddio | AN30: 3002 | AP30: E | AQ30: B0004 | AR30: B0004P0435 | AS30: B0004P0435G0014090 | AT30: Unassigned | AU30: Ceiling MIC System White | AV30: Projection Screens | AW30: B0004P0435G0014090 | AX30: US Camera Profit Center | AZ30: 0097324183 | BA30: Unassigned | BB30: Undefined | BC30: 0 | BD30: Undefined | BE30: 0000000 | BF30: Undefined | BG30: Americas - LLC | BH30: 3000 | BI30: Unassigned | BK30: Undefined | BM30: Undefined | BN30: Undefined | BO30: Netherlands | BP30: Undefined | BQ30: DIRECT | BR30: AV CAPTURE & COLLABORATION - CAMERAS | BS30: 4210 | BT30: 0 | BU30: -124.2173723 | BV30: 169.1913 | BW30: 147.12 | BX30: 144 | BY30: 24363.54 | BZ30: USD | CA30: 1 | CB30: 24363.54
A31: 537807927 | B31: 01 | D31: 131672 | F31: Invoice | G31: Vaddio | H31: B0004 | I31: Dealer | J31: 001 | K31: Unassigned | L31: 3000 | M31: Undefined | N31: 3000 | O31: ONE TIME - BID SHIP TO ONLY | P31: AVI-SPL LLC | Q31: Americas LLC | R31: 26.97 | S31: 3883.88 | T31: 05/27/2020 | U31: Standard Distribution | V31: 01 | W31: Unassigned | X31: 0002338819 | Y31: Standard Order | Z31: TA | AA31: AV CONTENT CAPTURE (VADDIO) | AB31: 2020 | AC31: 2020-05 | AD31: 22 | AE31: Vaddio | AF31: CAMERA MOUNT | AG31: CEILING | AH31: AV | AI31: 001 | AJ31: 535-2000-206 | AK31: AVI-SPL | AL31: WHITLOCK | AM31: Vaddio | AN31: 3002 | AO31: 23238 | AP31: E | AQ31: B0004 | AR31: B0004P0420 | AS31: B0004P0420G0014055 | AT31: Unassigned | AU31: SUSPENDED CEILING PTZ CAMERA MOUNT | AV31: Projection Screens | AW31: B0004P0420G0014055 | AX31: US Camera Profit Center | AY31: 3000 | AZ31: 0095681300 | BA31: Unassigned | BB31: AV Integrators | BC31: 01 | BD31: South | BE31: U1DXP2 | BF31: United States | BG31: Americas - LLC | BH31: 3000 | BI31: Bradley Carson | BK31: Undefined | BM31: North Carolina | BN31: United States | BO31: United States | BP31: Unassigned | BQ31: DIRECT | BR31: AV CAPTURE & COLLABORATION - CAMERAS | BS31: 4210 | BT31: 1 | BU31: -63.16454651 | BV31: 60.53 | BW31: 26.97 | BX31: 144 | BY31: 8716.32 | BZ31: USD | CA31: 1 | CB31: 8716.32
A32: 540291087 | B32: 0 | F32: Intercompany Billing | G32: Vaddio | H32: B0004 | I32: Undefined | J32: 000 | K32: Unassigned | L32: 3000 | M32: Undefined | N32: 3000 | O32: LEGRAND AV NETHERLANDS B.V. | P32: Unassigned | Q32: Americas LLC | R32: 7.53 | S32: 1084.49 | T32: 08/26/2021 | U32: Standard Distribution | V32: 01 | W32: Unassigned | Y32: Undefined | Z32: 00 | AA32: AV CONTENT CAPTURE (VADDIO) | AB32: 2021 | AC32: 2021-08 | AD32: 0 | AE32: Vaddio | AF32: CAMERA MOUNT | AG32: WALL | AH32: Undefined | AI32: 000 | AJ32: 535-2000-251 | AM32: Vaddio | AN32: 3002 | AP32: E | AQ32: B0004 | AR32: B0004P0420 | AS32: B0004P0420G0014060 | AT32: Unassigned | AU32: THIN PROFILE WALL MNT PR60/HD EAGLE EYE | AV32: Projection Screens | AW32: B0004P0420G0014060 | AX32: US Camera Profit Center | AZ32: 0097599306 | BA32: Unassigned | BB32: Undefined | BC32: 0 | BD32: Undefined | BE32: 0000000 | BF32: Undefined | BG32: Americas - LLC | BH32: 3000 | BI32: Unassigned | BK32: Undefined | BM32: Undefined | BN32: Undefined | BO32: Netherlands | BP32: Undefined | BQ32: DIRECT | BR32: AV CAPTURE & COLLABORATION - CAMERAS | BS32: 4210 | BT32: 0 | BU32: -124.2182246 | BV32: 8.6608 | BW32: 7.53 | BX32: 144 | BY32: 1247.16 | BZ32: USD | CA32: 1 | CB32: 1247.16
A33: 535011971 | B33: 01 | D33: 132104 | F33: Invoice | G33: Vaddio | H33: B0004 | I33: Dealer | J33: 001 | K33: PROFESSIONAL SYSTEMS NETWORK INTL | L33: 3000 | M33: Undefined | N33: 3000 | O33: ENTER ALTERNATE ADDRESS (US) | P33: CONFERENCE TECHNOLOGIES INC. | Q33: Americas LLC | R33: 7.53 | S33: 1076.9 | T33: 09/07/2021 | U33: Standard Distribution | V33: 01 | W33: Unassigned | X33: 0002723790 | Y33: Standard Order | Z33: TA | AA33: AV CONTENT CAPTURE (VADDIO) | AB33: 2021 | AC33: 2021-09 | AD33: 1097 | AE33: Vaddio | AF33: CAMERA MOUNT | AG33: WALL | AH33: AV | AI33: 001 | AJ33: 535-2000-251 | AL33: CONFERENCE TECHNOLOGIES INC. | AM33: Vaddio | AN33: 3002 | AO33: 63043 | AP33: E | AQ33: B0004 | AR33: B0004P0420 | AS33: B0004P0420G0014060 | AT33: Unassigned | AU33: THIN PROFILE WALL MNT PR60/HD EAGLE EYE | AV33: Projection Screens | AW33: B0004P0420G0014060 | AX33: US Camera Profit Center | AY33: 3000 | AZ33: 0097651746 | BA33: Unassigned | BB33: AV Integrators | BC33: 01 | BD33: West | BE33: U1DXP4 | BF33: United States | BG33: Americas - LLC | BH33: 3000 | BI33: Abbi Rath | BK33: Undefined | BM33: Unassigned | BN33: United States | BO33: United States | BP33: Unassigned | BQ33: DIRECT | BR33: AV CAPTURE & COLLABORATION - CAMERAS | BS33: 4210 | BT33: 1 | BU33: -7.676980098 | BV33: 124.11 | BW33: 7.53 | BX33: 143 | BY33: 17747.73 | BZ33: USD | CA33: 1 | CB33: 17747.73
A34: 537908282 | B34: 01 | D34: 106890 | F34: EDI Invoice | G34: Vaddio | H34: B0004 | I34: Distributor - National | J34: 002 | K34: Unassigned | L34: 3000 | M34: Undefined | N34: 3000 | O34: ENTER ALTERNATE ADDRESS (US) | P34: EXERTIS | Q34: Americas LLC | R34: 10.46 | S34: 1496.37 | T34: 10/28/2021 | U34: Standard Distribution | V34: 01 | W34: STAMPEDE | X34: 0040923226 | Y34: EDI Order | Z34: ZEDI | AA34: AV CONTENT CAPTURE (VADDIO) | AB34: 2021 | AC34: 2021-10 | AD34: 951 | AE34: Vaddio | AF34: CAMERA MOUNT | AG34: WALL | AH34: AV | AI34: 001 | AJ34: 535-2020-230W | AK34: STAMPEDE PRESENTATION | AL34: STAMPEDE PRESENTATION | AM34: Vaddio | AN34: 3002 | AO34: 14228 | AP34: E | AQ34: B0004 | AR34: B0004P0420 | AS34: B0004P0420G0014060 | AT34: Unassigned | AU34: THIN PROFILE WALL MOUNT HD-SERIES WHITE | AV34: Projection Screens | AW34: B0004P0420G0014060 | AX34: US Camera Profit Center | AY34: 3000 | AZ34: 0097878877 | BA34: Unassigned | BB34: AV Distribution | BC34: 08 | BD34: US - Channel Sales | BE34: U1DXC1 | BF34: United States | BG34: Americas - LLC | BH34: 3000 | BI34: Patrick Mead | BK34: Undefined | BM34: New Jersey | BN34: United States | BO34: United States | BP34: New York | BQ34: DIRECT | BR34: AV CAPTURE & COLLABORATION - CAMERAS | BS34: 4210 | BT34: 1 | BU34: -16.53216169 | BV34: 85.35 | BW34: 10.46 | BX34: 143 | BY34: 12205.05 | BZ34: USD | CA34: 1 | CB34: 12205.05
A35: 535331454 | B35: 01 | D35: 132696 | F35: Invoice | G35: Vaddio | H35: B0004 | I35: Dealer | J35: 001 | K35: Unassigned | L35: 3000 | M35: Undefined | N35: 3000 | O35: ENTER ALTERNATE ADDRESS (US) | P35: HOWARD INDUSTRIES INC | Q35: Americas LLC | R35: 5.83 | S35: 815.58 | T35: 06/22/2020 | U35: Standard Distribution | V35: 01 | W35: Unassigned | X35: 0002355798 | Y35: Standard Order | Z35: TA | AA35: AV CONTENT CAPTURE (VADDIO) | AB35: 2020 | AC35: 2020-06 | AD35: 0 | AE35: Vaddio | AF35: CAMERA MOUNT | AG35: WALL | AH35: AV | AI35: 001 | AJ35: 535-2000-244 | AL35: HOWARD INDUSTRIES INC | AM35: Vaddio | AN35: 3002 | AO35: 39437 | AP35: E | AQ35: B0004 | AR35: B0004P0420 | AS35: B0004P0420G0014060 | AT35: Unassigned | AU35: THIN PROFILE MNT KIT BLK CONFERENCESHOT | AV35: Projection Screens | AW35: B0004P0420G0014060 | AX35: US Camera Profit Center | AY35: 3000 | AZ35: 0095753690 | BA35: Unassigned | BB35: AV Integrators | BC35: 01 | BD35: South | BE35: U1DXP2 | BF35: United States | BG35: Americas - LLC | BH35: 3000 | BI35: Kalee Luke | BK35: Undefined | BM35: Undefined | BN35: Montserrat | BO35: United States | BP35: Unassigned | BQ35: DIRECT | BR35: AV CAPTURE & COLLABORATION - CAMERAS | BS35: 4210 | BT35: 1 | BU35: -14.8027514 | BV35: 51.61 | BW35: 5.83 | BX35: 140 | BY35: 7225.4 | BZ35: USD | CA35: 1 | CB35: 7225.4
A36: 536227357 | B36: 0 | F36: Intercompany Billing | G36: Vaddio | H36: B0004 | I36: Undefined | J36: 000 | K36: Unassigned | L36: 3000 | M36: Undefined | N36: 3000 | O36: LEGRAND AV NETHERLANDS B.V. | P36: Unassigned | Q36: Americas LLC | R36: 95.15 | S36: 13320.34 | T36: 06/29/2021 | U36: Standard Distribution | V36: 01 | W36: Unassigned | Y36: Undefined | Z36: 00 | AA36: AV CONTENT CAPTURE (VADDIO) | AB36: 2021 | AC36: 2021-06 | AD36: 0 | AE36: Vaddio | AF36: CAM EXTENSIONS | AG36: EXT CABLES | AH36: Undefined | AI36: 000 | AJ36: 440-1005-008 | AM36: Vaddio | AN36: 3002 | AP36: F | AQ36: B0004 | AR36: B0004P0415 | AS36: B0004P0415G0014040 | AT36: Unassigned | AU36: USB 3.0 CABLE 8METER TYPE A TO B ACTIVE | AV36: Projection Screens | AW36: B0004P0415G0014040 | AX36: US Camera Profit Center | AZ36: 0097324183 | BA36: Unassigned | BB36: Undefined | BC36: 0 | BD36: Undefined | BE36: 0000000 | BF36: Undefined | BG36: Americas - LLC | BH36: 3000 | BI36: Unassigned | BK36: Undefined | BM36: Undefined | BN36: Undefined | BO36: Netherlands | BP36: Undefined | BQ36: DIRECT | BR36: AV CAPTURE & COLLABORATION - CAMERAS | BS36: 4210 | BT36: 0 | BU36: -120.7391066 | BV36: 109.4171 | BW36: 95.15 | BX36: 140 | BY36: 15318.39 | BZ36: USD | CA36: 1 | CB36: 15318.39
A37: 537158517 | B37: 0 | F37: Intercompany Billing | G37: Vaddio | H37: B0004 | I37: Undefined | J37: 000 | K37: Unassigned | L37: 3000 | M37: Undefined | N37: 3000 | O37: LEGRAND AV NETHERLANDS B.V. | P37: Unassigned | Q37: Americas LLC | R37: 1.69 | S37: 231.04 | T37: 04/09/2021 | U37: Standard Distribution | V37: 01 | W37: Unassigned | Y37: Undefined | Z37: 00 | AA37: AV CONTENT CAPTURE (VADDIO) | AB37: 2021 | AC37: 2021-04 | AD37: 0 | AE37: Vaddio | AF37: ACCESSORIES | AG37: RAW | AH37: Undefined | AI37: 000 | AJ37: 807-0292 | AM37: Vaddio | AN37: 3002 | AP37: F | AQ37: B0004 | AR37: B0004P0440 | AS37: B0004P0440G0014125 | AT37: Unassigned | AU37: BOX OUTER WHT W/LOGO 27 1/4 x 12 1/8 x19 | AV37: Other/Misc | AW37: B0004P0440G0014125 | AX37: US Camera Profit Center | AZ37: 0097017459 | BA37: Unassigned | BB37: Undefined | BC37: 0 | BD37: Undefined | BE37: 0000000 | BF37: Undefined | BG37: Americas - LLC | BH37: 3000 | BI37: Unassigned | BK37: Undefined | BM37: Undefined | BN37: Undefined | BO37: Netherlands | BP37: Undefined | BQ37: DIRECT | BR37: AV CAPTURE & COLLABORATION - CAMERAS | BS37: 4210 | BT37: 0 | BU37: -118.1296277 | BV37: 1.9394 | BW37: 1.69 | BX37: 137 | BY37: 265.7 | BZ37: USD | CA37: 1 | CB37: 265.7
A38: 534720574 | B38: 01 | D38: 106890 | F38: EDI Invoice | G38: Vaddio | H38: B0004 | I38: Distributor - National | J38: 002 | K38: Unassigned | L38: 3000 | M38: Undefined | N38: 3000 | O38: STAMPEDE PRESENTATION | P38: EXERTIS | Q38: Americas LLC | R38: 6.82 | S38: 927.29 | T38: 07/02/2021 | U38: Standard Distribution | V38: 01 | W38: STAMPEDE | X38: 0040848383 | Y38: EDI Order | Z38: ZEDI | AA38: AV CONTENT CAPTURE (VADDIO) | AB38: 2021 | AC38: 2021-07 | AD38: 256 | AE38: Vaddio | AF38: CAMERA MOUNT | AG38: WALL | AH38: AV | AI38: 001 | AJ38: 535-2000-251 | AK38: STAMPEDE PRESENTATION | AL38: STAMPEDE PRESENTATION | AM38: Vaddio | AN38: 3002 | AO38: 14228 | AP38: E | AQ38: B0004 | AR38: B0004P0420 | AS38: B0004P0420G0014060 | AT38: Unassigned | AU38: THIN PROFILE WALL MNT PR60/HD EAGLE EYE | AV38: Projection Screens | AW38: B0004P0420G0014060 | AX38: US Camera Profit Center | AY38: 3000 | AZ38: 0097354519 | BA38: Unassigned | BB38: AV Distribution | BC38: 08 | BD38: US - Channel Sales | BE38: U1DXC1 | BF38: United States | BG38: Americas - LLC | BH38: 3000 | BI38: Patrick Mead | BK38: Undefined | BM38: Arizona | BN38: United States | BO38: United States | BP38: New York | BQ38: DIRECT | BR38: AV CAPTURE & COLLABORATION - CAMERAS | BS38: 4210 | BT38: 1 | BU38: -7.659787075 | BV38: 107.08 | BW38: 6.82 | BX38: 136 | BY38: 14562.88 | BZ38: USD | CA38: 1 | CB38: 14562.88
A39: 536425336 | B39: 01 | C39: 106890 | D39: 106890 | F39: EDI Invoice | G39: Vaddio | H39: B0004 | I39: Distributor - National | J39: 002 | K39: Unassigned | L39: 3000 | M39: Undefined | N39: 3000 | O39: EXERTIS | P39: EXERTIS | Q39: Americas LLC | R39: 6.82 | S39: 927.29 | T39: 07/02/2021 | U39: Standard Distribution | V39: 01 | W39: STAMPEDE | X39: 0040848336 | Y39: EDI Order | Z39: ZEDI | AA39: AV CONTENT CAPTURE (VADDIO) | AB39: 2021 | AC39: 2021-07 | AD39: 362 | AE39: Vaddio | AF39: CAMERA MOUNT | AG39: WALL | AH39: AV | AI39: 001 | AJ39: 535-2000-251 | AK39: STAMPEDE PRESENTATION | AL39: STAMPEDE PRESENTATION | AM39: Vaddio | AN39: 3002 | AO39: 14228 | AP39: E | AQ39: B0004 | AR39: B0004P0420 | AS39: B0004P0420G0014060 | AT39: Unassigned | AU39: THIN PROFILE WALL MNT PR60/HD EAGLE EYE | AV39: Projection Screens | AW39: B0004P0420G0014060 | AX39: US Camera Profit Center | AY39: 3000 | AZ39: 0097354517 | BA39: Unassigned | BB39: AV Distribution | BC39: 08 | BD39: US - Channel Sales | BE39: U1DXC1 | BF39: United States | BG39: Americas - LLC | BH39: 3000 | BI39: Patrick Mead | BK39: Undefined | BM39: New York | BN39: United States | BO39: United States | BP39: New York | BQ39: DIRECT | BR39: AV CAPTURE & COLLABORATION - CAMERAS | BS39: 4210 | BT39: 1 | BU39: -7.659787075 | BV39: 107.08 | BW39: 6.82 | BX39: 136 | BY39: 14562.88 | BZ39: USD | CA39: 1 | CB39: 14562.88
A40: 534792470 | B40: 01 | D40: 106466 | F40: Invoice | G40: Vaddio | H40: B0004 | I40: Distributor - National | J40: 002 | K40: Unassigned | L40: 3000 | M40: Undefined | N40: 3000 | O40: ENTER ALTERNATE ADDRESS (US) | P40: SYNNEX - CA | Q40: Americas LLC | R40: 65.26 | S40: 8809.87 | T40: 07/13/2020 | U40: Standard Distribution | V40: 01 | W40: SYNNEX | X40: 0040561260 | Y40: EDI Order | Z40: ZEDI | AA40: AV CONTENT CAPTURE (VADDIO) | AB40: 2020 | AC40: 2020-07 | AD40: 0 | AE40: Vaddio | AF40: CAMERA MOUNT | AG40: CEILING | AH40: IT/DMR | AI40: 002 | AJ40: 535-2000-290 | AL40: SYNNEX - CA | AM40: Vaddio | AN40: 3002 | AO40: 94538 | AP40: E | AQ40: B0004 | AR40: B0004P0420 | AS40: B0004P0420G0014055 | AT40: Unassigned | AU40: DROP DN MT FOR SMALL PTZ CAMERAS - SHORT | AV40: Projection Screens | AW40: B0004P0420G0014055 | AX40: US Camera Profit Center | AY40: 3000 | AZ40: 0095849750 | BA40: Unassigned | BB40: IT Distribution | BC40: 12 | BD40: US - Channel Sales | BE40: U1DXC1 | BF40: United States | BG40: Americas - LLC | BH40: 3000 | BI40: Beth Roberson | BK40: Undefined | BM40: Arizona | BN40: United States | BO40: United States | BP40: Unassigned | BQ40: DIRECT | BR40: AV CAPTURE & COLLABORATION - CAMERAS | BS40: 4210 | BT40: 1 | BU40: -54.27241358 | BV40: 159.39 | BW40: 65.26 | BX40: 135 | BY40: 21517.65 | BZ40: USD | CA40: 1 | CB40: 21517.65
A41: 537946246 | B41: 01 | D41: 106466 | F41: Invoice | G41: Vaddio | H41: B0004 | I41: Distributor - National | J41: 002 | K41: Unassigned | L41: 3000 | M41: Undefined | N41: 3000 | O41: ENTER ALTERNATE ADDRESS (US) | P41: SYNNEX - CA | Q41: Americas LLC | R41: 68.49 | S41: 9246.13 | T41: 07/29/2020 | U41: Standard Distribution | V41: 01 | W41: SYNNEX | X41: 0040561260 | Y41: EDI Order | Z41: ZEDI | AA41: AV CONTENT CAPTURE (VADDIO) | AB41: 2020 | AC41: 2020-07 | AD41: 0 | AE41: Vaddio | AF41: CAMERA MOUNT | AG41: CEILING | AH41: IT/DMR | AI41: 002 | AJ41: 535-2000-291 | AL41: SYNNEX - CA | AM41: Vaddio | AN41: 3002 | AO41: 94538 | AP41: E | AQ41: B0004 | AR41: B0004P0420 | AS41: B0004P0420G0014055 | AT41: Unassigned | AU41: DROP DN MT FOR SMALL PTZ CAMERAS - LONG | AV41: Projection Screens | AW41: B0004P0420G0014055 | AX41: US Camera Profit Center | AY41: 3000 | AZ41: 0095911366 | BA41: Unassigned | BB41: IT Distribution | BC41: 12 | BD41: US - Channel Sales | BE41: U1DXC1 | BF41: United States | BG41: Americas - LLC | BH41: 3000 | BI41: Beth Roberson | BK41: Undefined | BM41: Arizona | BN41: United States | BO41: United States | BP41: Unassigned | BQ41: DIRECT | BR41: AV CAPTURE & COLLABORATION - CAMERAS | BS41: 4210 | BT41: 1 | BU41: -48.27064905 | BV41: 187.66 | BW41: 68.49 | BX41: 135 | BY41: 25334.1 | BZ41: USD | CA41: 1 | CB41: 25334.1
A42: 534761567 | B42: 01 | D42: 132696 | F42: Invoice | G42: Vaddio | H42: B0004 | I42: Dealer | J42: 001 | K42: Unassigned | L42: 3000 | M42: Undefined | N42: 3000 | O42: ONE TIME - BID SHIP TO ONLY | P42: HOWARD INDUSTRIES INC | Q42: Americas LLC | R42: 211.93 | S42: 28186.25 | T42: 08/12/2020 | U42: Standard Distribution | V42: 01 | W42: Unassigned | X42: 0002375863 | Y42: Standard Order | Z42: TA | AA42: AV CONTENT CAPTURE (VADDIO) | AB42: 2020 | AC42: 2020-08 | AD42: 0 | AE42: Vaddio | AF42: CAM EXTENSIONS | AG42: EXT CABLES | AH42: AV | AI42: 001 | AJ42: 440-1005-023 | AL42: HOWARD INDUSTRIES INC | AM42: Vaddio | AN42: 3002 | AO42: 39437 | AP42: F | AQ42: B0004 | AR42: B0004P0415 | AS42: B0004P0415G0014040 | AT42: Unassigned | AU42: CABLE ACTIVE 3.0 TYPE-A TO B M/M 20M | AV42: Projection Screens | AW42: B0004P0415G0014040 | AX42: US Camera Profit Center | AY42: 3000 | AZ42: 0095969089 | BA42: Unassigned | BB42: AV Integrators | BC42: 01 | BD42: West | BE42: U1DXP4 | BF42: United States | BG42: Americas - LLC | BH42: 3000 | BI42: Dana Sanders Nickel | BK42: Undefined | BM42: Utah | BN42: United States | BO42: United States | BP42: Unassigned | BQ42: DIRECT | BR42: AV CAPTURE & COLLABORATION - CAMERAS | BS42: 4210 | BT42: 1 | BU42: -77.82942723 | BV42: 357.56 | BW42: 211.93 | BX42: 133 | BY42: 47555.48 | BZ42: USD | CA42: 1 | CB42: 47555.48
A43: 540274859 | B43: 01 | D43: 101463 | F43: EDI Invoice | G43: Vaddio | H43: B0004 | I43: Online Reseller | J43: 010 | K43: Unassigned | L43: 3000 | M43: Undefined | N43: 3000 | O43: ENTER ALTERNATE ADDRESS (US) | P43: B&H PHOTO VIDEO - NY | Q43: Americas LLC | R43: 258.04 | S43: 34319.29 | T43: 04/22/2021 | U43: Standard Distribution | V43: 01 | W43: Unassigned | X43: 0040798486 | Y43: EDI Order | Z43: ZEDI | AA43: AV CONTENT CAPTURE (VADDIO) | AB43: 2021 | AC43: 2021-04 | AD43: 534 | AE43: Vaddio | AF43: CAM EXTENSIONS | AG43: EXT CABLES | AH43: AV | AI43: 001 | AJ43: 440-1005-023 | AL43: B&H PHOTO VIDEO - NY | AM43: Vaddio | AN43: 3002 | AO43: 10001 | AP43: F | AQ43: B0004 | AR43: B0004P0415 | AS43: B0004P0415G0014040 | AT43: Unassigned | AU43: CABLE ACTIVE 3.0 TYPE-A TO B M/M 20M | AV43: Projection Screens | AW43: B0004P0415G0014040 | AX43: US Camera Profit Center | AY43: 3000 | AZ43: 0097066961 | BA43: Unassigned | BB43: AV Integrators | BC43: 01 | BD43: NorthEast | BE43: U1DXP1 | BF43: United States | BG43: Americas - LLC | BH43: 3000 | BI43: John Ruggiero | BK43: Undefined | BM43: Unassigned | BN43: United States | BO43: United States | BP43: New York | BQ43: DIRECT | BR43: AV CAPTURE & COLLABORATION - CAMERAS | BS43: 4210 | BT43: 1 | BU43: -89.92888748 | BV43: 377.43 | BW43: 258.04 | BX43: 133 | BY43: 50198.19 | BZ43: USD | CA43: 1 | CB43: 50198.19
A44: 532413449 | B44: 01 | D44: 132696 | F44: Invoice | G44: Vaddio | H44: B0004 | I44: Dealer | J44: 001 | K44: Unassigned | L44: 3000 | M44: Undefined | N44: 3000 | O44: 1TST - MILESTONE INC. SAVAGE (3000) | P44: HOWARD INDUSTRIES INC | Q44: Americas LLC | R44: 81.96 | S44: 10818.67 | T44: 06/07/2021 | U44: Standard Distribution | V44: 01 | W44: Unassigned | X44: 0002638227 | Y44: Standard Order | Z44: TA | AA44: AV CONTENT CAPTURE (VADDIO) | AB44: 2021 | AC44: 2021-06 | AD44: 141 | AE44: Vaddio | AF44: CAMERA MOUNT | AG44: CEILING | AH44: AV | AI44: 001 | AJ44: 535-2000-296 | AL44: HOWARD INDUSTRIES INC | AM44: Vaddio | AN44: 3002 | AO44: 39437 | AP44: E | AQ44: B0004 | AR44: B0004P0420 | AS44: B0004P0420G0014055 | AT44: Unassigned | AU44: OFF-SET DROP DN MT FOR HD SERIES CAMERAS | AV44: Projection Screens | AW44: B0004P0420G0014055 | AX44: US Camera Profit Center | AY44: 3000 | AZ44: 0097247749 | BA44: Unassigned | BB44: AV Integrators | BC44: 01 | BD44: South | BE44: U1DXP2 | BF44: United States | BG44: Americas - LLC | BH44: 3000 | BI44: David Sweeney | BK44: Undefined | BM44: Texas | BN44: United States | BO44: United States | BP44: Unassigned | BQ44: DIRECT | BR44: AV CAPTURE & COLLABORATION - CAMERAS | BS44: 4210 | BT44: 1 | BU44: -47.52727191 | BV44: 222.94 | BW44: 81.96 | BX44: 132 | BY44: 29428.08 | BZ44: USD | CA44: 1 | CB44: 29428.08
A45: 536033451 | B45: 01 | D45: 132696 | F45: Invoice | G45: Vaddio | H45: B0004 | I45: Dealer | J45: 001 | K45: Unassigned | L45: 3000 | M45: Undefined | N45: 3000 | O45: 1TST - MILESTONE INC. SAVAGE (3000) | P45: HOWARD INDUSTRIES INC | Q45: Americas LLC | R45: 644.13 | S45: 85025.68 | T45: 06/08/2021 | U45: Standard Distribution | V45: 01 | W45: Unassigned | X45: 0002638227 | Y45: Standard Order | Z45: TA | AA45: AV CONFERENCING (VADDIO) | AB45: 2021 | AC45: 2021-06 | AD45: 1186 | AE45: Vaddio | AF45: CONFERENCE | AG45: ROOM SYSTEM | AH45: AV | AI45: 001 | AJ45: 999-9995-000W | AL45: HOWARD INDUSTRIES INC | AM45: Vaddio | AN45: 3002 | AO45: 39437 | AP45: E | AQ45: B0004 | AR45: B0004P0435 | AS45: B0004P0435G0014100 | AT45: Unassigned | AU45: CONFERENCESHOT AV CAMERA WHITE | AV45: Projection Screens | AW45: B0004P0435G0014100 | AX45: US Camera Profit Center | AY45: 3000 | AZ45: 0097250304 | BA45: Unassigned | BB45: AV Integrators | BC45: 01 | BD45: South | BE45: U1DXP2 | BF45: United States | BG45: Americas - LLC | BH45: 3000 | BI45: David Sweeney | BK45: Undefined | BM45: Texas | BN45: United States | BO45: United States | BP45: Unassigned | BQ45: DIRECT | BR45: AV CAPTURE & COLLABORATION - CAMERAS | BS45: 4210 | BT45: 1 | BU45: -62.85226795 | BV45: 1331.6 | BW45: 644.13 | BX45: 132 | BY45: 175771.2 | BZ45: USD | CA45: 1 | CB45: 175771.2
A46: 536044050 | B46: 0 | F46: Intercompany Billing | G46: Vaddio | H46: B0004 | I46: Undefined | J46: 000 | K46: Unassigned | L46: 3000 | M46: Undefined | N46: 3000 | O46: LEGRAND AV NETHERLANDS B.V. | P46: Unassigned | Q46: Americas LLC | R46: 3.34 | S46: 440.45 | T46: 12/09/2020 | U46: Standard Distribution | V46: 01 | W46: Unassigned | Y46: Undefined | Z46: 00 | AA46: AV CONTENT CAPTURE (VADDIO) | AB46: 2020 | AC46: 2020-12 | AD46: 0 | AE46: Vaddio | AF46: ACCESSORIES | AG46: RAW | AH46: Undefined | AI46: 000 | AJ46: 807-0280 | AM46: Vaddio | AN46: 3002 | AP46: F | AQ46: B0004 | AR46: B0004P0440 | AS46: B0004P0440G0014125 | AT46: Unassigned | AU46: BOX 22 x 12 x 20 VAD LOGO | AV46: Other/Misc | AW46: B0004P0440G0014125 | AX46: US Camera Profit Center | AZ46: 0096482573 | BA46: Unassigned | BB46: Undefined | BC46: 0 | BD46: Undefined | BE46: 0000000 | BF46: Undefined | BG46: Americas - LLC | BH46: 3000 | BI46: Unassigned | BK46: Undefined | BM46: Undefined | BN46: Undefined | BO46: Netherlands | BP46: Undefined | BQ46: DIRECT | BR46: AV CAPTURE & COLLABORATION - CAMERAS | BS46: 4210 | BT46: 0 | BU46: -113.7812264 | BV46: 3.8373 | BW46: 3.34 | BX46: 132 | BY46: 506.52 | BZ46: USD | CA46: 1 | CB46: 506.52
A47: 534604530 | B47: 01 | D47: 106466 | F47: EDI Invoice | G47: Vaddio | H47: B0004 | I47: Distributor - National | J47: 002 | K47: Unassigned | L47: 3000 | M47: Undefined | N47: 3000 | O47: ENTER ALTERNATE ADDRESS (US) | P47: SYNNEX - CA | Q47: Americas LLC | R47: 80.56 | S47: 10472.8 | T47: 04/12/2021 | U47: Standard Distribution | V47: 01 | W47: SYNNEX | X47: 0040752348 | Y47: EDI Order | Z47: ZEDI | AA47: AV CONTENT CAPTURE (VADDIO) | AB47: 2021 | AC47: 2021-04 | AD47: 0 | AE47: Vaddio | AF47: CAM EXTENSIONS | AG47: EXT CABLES | AH47: IT/DMR | AI47: 002 | AJ47: 440-1007-008 | AL47: SYNNEX - CA | AM47: Vaddio | AN47: 3002 | AO47: 94538 | AP47: F | AQ47: B0004 | AR47: B0004P0415 | AS47: B0004P0415G0014040 | AT47: Unassigned | AU47: ACTIVEOPTICAL C/A USB 3.0/2.0 PLENUM 8M | AV47: Projection Screens | AW47: B0004P0415G0014040 | AX47: US Camera Profit Center | AY47: 3000 | AZ47: 0097019249 | BA47: Unassigned | BB47: IT Distribution | BC47: 12 | BD47: US - Channel Sales | BE47: U1DXC1 | BF47: United States | BG47: Americas - LLC | BH47: 3000 | BI47: Beth Roberson | BK47: Undefined | BM47: Unassigned | BN47: United States | BO47: United States | BP47: Unassigned | BQ47: DIRECT | BR47: AV CAPTURE & COLLABORATION - CAMERAS | BS47: 4210 | BT47: 1 | BU47: -54.5527265 | BV47: 188.52 | BW47: 80.56 | BX47: 130 | BY47: 24507.6 | BZ47: USD | CA47: 1 | CB47: 24507.6
A48: 540115662 | B48: 01 | D48: 132104 | F48: Invoice | G48: Vaddio | H48: B0004 | I48: Dealer | J48: 001 | K48: PROFESSIONAL SYSTEMS NETWORK INTL | L48: 3000 | M48: Undefined | N48: 3000 | O48: ONE TIME - BID SHIP TO ONLY | P48: CONFERENCE TECHNOLOGIES INC. | Q48: Americas LLC | R48: 5.48 | S48: 712.24 | T48: 12/23/2020 | U48: Standard Distribution | V48: 01 | W48: Unassigned | X48: 0002510812 | Y48: Standard Order | Z48: TA | AA48: AV CONTENT CAPTURE (VADDIO) | AB48: 2020 | AC48: 2020-12 | AD48: 402 | AE48: Vaddio | AF48: CAMERA MOUNT | AG48: WALL | AH48: AV | AI48: 001 | AJ48: 535-2000-251 | AL48: CONFERENCE TECHNOLOGIES INC. | AM48: Vaddio | AN48: 3002 | AO48: 63043 | AP48: E | AQ48: B0004 | AR48: B0004P0420 | AS48: B0004P0420G0014060 | AT48: Unassigned | AU48: THIN PROFILE WALL MNT PR60/HD EAGLE EYE | AV48: Projection Screens | AW48: B0004P0420G0014060 | AX48: US Camera Profit Center | AY48: 3000 | AZ48: 0096567155 | BA48: Unassigned | BB48: AV Integrators | BC48: 01 | BD48: South | BE48: U1DXP2 | BF48: United States | BG48: Americas - LLC | BH48: 3000 | BI48: David Sweeney | BK48: Undefined | BM48: Texas | BN48: United States | BO48: United States | BP48: Unassigned | BQ48: DIRECT | BR48: AV CAPTURE & COLLABORATION - CAMERAS | BS48: 4210 | BT48: 1 | BU48: -5.146358302 | BV48: 115.88 | BW48: 5.48 | BX48: 130 | BY48: 15064.4 | BZ48: USD | CA48: 1 | CB48: 15064.4
A49: 536089377 | B49: 01 | C49: 131865 | D49: 131865 | F49: Invoice | G49: Vaddio | H49: B0004 | I49: Dealer | J49: 001 | K49: USAV BUYING GROUP | L49: 3000 | M49: Undefined | N49: 3000 | O49: TEAMLINX LLP DBA LINX | P49: TEAMLINX LLP DBA LINX | Q49: Americas LLC | R49: 173.63 | S49: 22224.64 | T49: 08/19/2020 | U49: Standard Distribution | V49: 01 | W49: Unassigned | X49: 0002362817 | Y49: Standard Order | Z49: TA | AA49: AV CONFERENCING (VADDIO) | AB49: 2020 | AC49: 2020-08 | AD49: 0 | AE49: Vaddio | AF49: CONFERENCE | AG49: AUDIO | AH49: AV | AI49: 001 | AJ49: 999-85100-000 | AL49: TEAMLINX LLP DBA LINX | AM49: Vaddio | AN49: 3002 | AO49: 80238 | AP49: E | AQ49: B0004 | AR49: B0004P0435 | AS49: B0004P0435G0014090 | AT49: Unassigned | AU49: Ceiling MIC System White | AV49: Projection Screens | AW49: B0004P0435G0014090 | AX49: US Camera Profit Center | AY49: 3000 | AZ49: 0095979464 | BA49: Unassigned | BB49: AV Integrators | BC49: 01 | BD49: West | BE49: U1DXP4 | BF49: United States | BG49: Americas - LLC | BH49: 3000 | BI49: Dana Sanders Nickel | BK49: Undefined | BM49: Unassigned | BN49: United States | BO49: United States | BP49: Unassigned | BQ49: DIRECT | BR49: AV CAPTURE & COLLABORATION - CAMERAS | BS49: 4210 | BT49: 1 | BU49: -53.94212751 | BV49: 404.51 | BW49: 173.63 | BX49: 128 | BY49: 51777.28 | BZ49: USD | CA49: 1 | CB49: 51777.28
A50: 536953651 | B50: 01 | D50: 132377 | F50: Invoice | G50: Vaddio | H50: B0004 | I50: Dealer | J50: 001 | K50: Unassigned | L50: 3000 | M50: Undefined | N50: 3000 | O50: 1TST - MILESTONE INC. SAVAGE (3000) | P50: EPA AUDIO VISUAL INC | Q50: Americas LLC | R50: 236.96 | S50: 29145.58 | T50: 06/10/2021 | U50: Standard Distribution | V50: 01 | W50: Unassigned | X50: 0002642570 | Y50: Standard Order | Z50: TA | AA50: AV CONFERENCING (VADDIO) | AB50: 2021 | AC50: 2021-06 | AD50: 229 | AE50: Vaddio | AF50: CONFERENCE | AG50: AUDIO | AH50: AV | AI50: 001 | AJ50: 999-85810-000 | AL50: EPA AUDIO VISUAL INC | AM50: Vaddio | AN50: 3002 | AO50: 55373 | AP50: E | AQ50: B0004 | AR50: B0004P0435 | AS50: B0004P0435G0014090 | AT50: Unassigned | AU50: EasyIP CeilingMIC D White | AV50: Projection Screens | AW50: B0004P0435G0014090 | AX50: US Camera Profit Center | AY50: 3000 | AZ50: 0097259648 | BA50: Unassigned | BB50: AV Integrators | BC50: 01 | BD50: MidWest | BE50: U1DXP3 | BF50: United States | BG50: Americas - LLC | BH50: 3000 | BI50: Kristin Dacey | BK50: Undefined | BM50: Unassigned | BN50: United States | BO50: United States | BP50: Unassigned | BQ50: DIRECT | BR50: AV CAPTURE & COLLABORATION - CAMERAS | BS50: 4210 | BT50: 1 | BU50: -45.63218189 | BV50: 625.01 | BW50: 236.96 | BX50: 123 | BY50: 76876.23 | BZ50: USD | CA50: 1 | CB50: 76876.23
A51: 539997971 | B51: 01 | D51: 111032 | F51: Invoice | G51: Vaddio | H51: B0004 | I51: Distributor - National | J51: 002 | K51: Unassigned | L51: 3000 | M51: Undefined | N51: 3000 | O51: ENTER ALTERNATE ADDRESS (US) | P51: ALMO DISTRIBUTING PA INC | Q51: Americas LLC | R51: 5.48 | S51: 673.89 | T51: 01/04/2021 | U51: Standard Distribution | V51: 01 | W51: ALMO | X51: 0002502136 | Y51: Standard Order | Z51: TA | AA51: AV CONTENT CAPTURE (VADDIO) | AB51: 2021 | AC51: 2021-01 | AD51: 435 | AE51: Vaddio | AF51: CAMERA MOUNT | AG51: WALL | AH51: AV | AI51: 001 | AJ51: 535-2000-251 | AL51: ALMO DISTRIBUTING PA INC | AM51: Vaddio | AN51: 3002 | AO51: 19154 | AP51: E | AQ51: B0004 | AR51: B0004P0420 | AS51: B0004P0420G0014060 | AT51: Unassigned | AU51: THIN PROFILE WALL MNT PR60/HD EAGLE EYE | AV51: Projection Screens | AW51: B0004P0420G0014060 | AX51: US Camera Profit Center | AY51: 3000 | AZ51: 0096591162 | BA51: Unassigned | BB51: AV Distribution | BC51: 08 | BD51: US - Channel Sales | BE51: U1DXC1 | BF51: United States | BG51: Americas - LLC | BH51: 3000 | BI51: Patrick Mead | BK51: Undefined | BM51: Unassigned | BN51: United States | BO51: United States | BP51: Unassigned | BQ51: DIRECT | BR51: AV CAPTURE & COLLABORATION - CAMERAS | BS51: 4210 | BT51: 1 | BU51: -5.608708444 | BV51: 101.97 | BW51: 5.48 | BX51: 123 | BY51: 12542.31 | BZ51: USD | CA51: 1 | CB51: 12542.31
A52: 534442452 | B52: 01 | D52: 133711 | F52: Invoice | G52: Vaddio | H52: B0004 | I52: Dealer | J52: 001 | K52: PROFESSIONAL SYSTEMS NETWORK INTL | L52: 3000 | M52: Undefined | N52: 3000 | O52: ENTER ALTERNATE ADDRESS (US) | P52: ONE DIVERSIFIED (GA) | Q52: Americas LLC | R52: 7.09 | S52: 857.89 | T52: 05/10/2021 | U52: Standard Distribution | V52: 01 | W52: Unassigned | X52: 0002620603 | Y52: Standard Order | Z52: TA | AA52: AV CONTENT CAPTURE (VADDIO) | AB52: 2021 | AC52: 2021-05 | AD52: 0 | AE52: Vaddio | AF52: CAMERA MOUNT | AG52: WALL | AH52: AV | AI52: 001 | AJ52: 535-2000-244 | AL52: ONE DIVERSIFIED (GA) | AM52: Vaddio | AN52: 3002 | AO52: 30071 | AP52: E | AQ52: B0004 | AR52: B0004P0420 | AS52: B0004P0420G0014060 | AT52: Unassigned | AU52: THIN PROFILE MNT KIT BLK CONFERENCESHOT | AV52: Projection Screens | AW52: B0004P0420G0014060 | AX52: US Camera Profit Center | AY52: 3000 | AZ52: 0097136716 | BA52: Unassigned | BB52: AV Integrators | BC52: 01 | BD52: West | BE52: U1DXP4 | BF52: United States | BG52: Americas - LLC | BH52: 3000 | BI52: Cynthia Podgurski | BK52: Undefined | BM52: Unassigned | BN52: United States | BO52: United States | BP52: Georgia | BQ52: DIRECT | BR52: AV CAPTURE & COLLABORATION - CAMERAS | BS52: 4210 | BT52: 1 | BU52: -15.62255377 | BV52: 51.61 | BW52: 7.09 | BX52: 121 | BY52: 6244.81 | BZ52: USD | CA52: 1 | CB52: 6244.81
A53: 535824872 | B53: 01 | D53: 133711 | F53: Invoice | G53: Vaddio | H53: B0004 | I53: Dealer | J53: 001 | K53: PROFESSIONAL SYSTEMS NETWORK INTL | L53: 3000 | M53: Undefined | N53: 3000 | O53: 1TST - MILESTONE INC. SAVAGE (3000) | P53: ONE DIVERSIFIED (GA) | Q53: Americas LLC | R53: 969.93 | S53: 116391.82 | T53: 02/11/2021 | U53: Standard Distribution | V53: 01 | W53: Unassigned | X53: 0002543927 | Y53: Standard Order | Z53: TA | AA53: AV CONFERENCING (VADDIO) | AB53: 2021 | AC53: 2021-02 | AD53: 2437 | AE53: Vaddio | AF53: CONFERENCE | AG53: ROOM SYSTEM | AH53: AV | AI53: 001 | AJ53: 999-99950-700W | AL53: ONE DIVERSIFIED (GA) | AM53: Vaddio | AN53: 3002 | AO53: 30071 | AP53: E | AQ53: B0004 | AR53: B0004P0435 | AS53: B0004P0435G0014100 | AT53: Unassigned | AU53: CSAV SYS CEILINGMIC 2 (W/O SPKR) WHT | AV53: Projection Screens | AW53: B0004P0435G0014100 | AX53: US Camera Profit Center | AY53: 3000 | AZ53: 0096780378 | BA53: Unassigned | BB53: AV Integrators | BC53: 01 | BD53: South | BE53: U1DXP2 | BF53: United States | BG53: Americas - LLC | BH53: 3000 | BI53: Kalee Luke | BK53: Undefined | BM53: Unassigned | BN53: United States | BO53: United States | BP53: Georgia | BQ53: DIRECT | BR53: AV CAPTURE & COLLABORATION - CAMERAS | BS53: 4210 | BT53: 1 | BU53: -53.37345604 | BV53: 2140.6 | BW53: 969.93 | BX53: 120 | BY53: 256872 | BZ53: USD | CA53: 1 | CB53: 256872
A54: 536493791 | B54: 01 | D54: 133711 | F54: Invoice | G54: Vaddio | H54: B0004 | I54: Dealer | J54: 001 | K54: PROFESSIONAL SYSTEMS NETWORK INTL | L54: 3000 | M54: Undefined | N54: 3000 | O54: 1TST - MILESTONE INC. SAVAGE (3000) | P54: ONE DIVERSIFIED (GA) | Q54: Americas LLC | R54: 26.51 | S54: 3180.77 | T54: 02/11/2021 | U54: Standard Distribution | V54: 01 | W54: Unassigned | X54: 0002543927 | Y54: Standard Order | Z54: TA | AA54: AV CONTENT CAPTURE (VADDIO) | AB54: 2021 | AC54: 2021-02 | AD54: 78 | AE54: Vaddio | AF54: CAMERA MOUNT | AG54: CEILING | AH54: AV | AI54: 001 | AJ54: 535-2000-206 | AL54: ONE DIVERSIFIED (GA) | AM54: Vaddio | AN54: 3002 | AO54: 30071 | AP54: E | AQ54: B0004 | AR54: B0004P0420 | AS54: B0004P0420G0014055 | AT54: Unassigned | AU54: SUSPENDED CEILING PTZ CAMERA MOUNT | AV54: Projection Screens | AW54: B0004P0420G0014055 | AX54: US Camera Profit Center | AY54: 3000 | AZ54: 0096780378 | BA54: Unassigned | BB54: AV Integrators | BC54: 01 | BD54: South | BE54: U1DXP2 | BF54: United States | BG54: Americas - LLC | BH54: 3000 | BI54: Kalee Luke | BK54: Undefined | BM54: Unassigned | BN54: United States | BO54: United States | BP54: Georgia | BQ54: DIRECT | BR54: AV CAPTURE & COLLABORATION - CAMERAS | BS54: 4210 | BT54: 1 | BU54: -45.46172948 | BV54: 68.46 | BW54: 26.51 | BX54: 120 | BY54: 8215.2 | BZ54: USD | CA54: 1 | CB54: 8215.2
A55: 540172826 | B55: 01 | D55: 131713 | F55: Invoice | G55: Vaddio | H55: B0004 | I55: Dealer | J55: 001 | K55: Unassigned | L55: 3000 | M55: Undefined | N55: 3000 | O55: ONE TIME - BID SHIP TO ONLY | P55: ADVANCED VIDEO GROUP INC. | Q55: Americas LLC | R55: 157.36 | S55: 18883.08 | T55: 06/15/2020 | U55: Standard Distribution | V55: 01 | W55: Unassigned | X55: 0002342071 | Y55: Standard Order | Z55: TA | AA55: AV CONFERENCING (VADDIO) | AB55: 2020 | AC55: 2020-06 | AD55: 0 | AE55: Vaddio | AF55: CONFERENCE | AG55: AUDIO | AH55: AV | AI55: 001 | AJ55: 999-85100-000 | AL55: ADVANCED VIDEO GROUP INC. | AM55: Vaddio | AN55: 3002 | AO55: 29063 | AP55: E | AQ55: B0004 | AR55: B0004P0435 | AS55: B0004P0435G0014090 | AT55: Unassigned | AU55: Ceiling MIC System White | AV55: Projection Screens | AW55: B0004P0435G0014090 | AX55: US Camera Profit Center | AY55: 3000 | AZ55: 0095743350 | BA55: Unassigned | BB55: AV Integrators | BC55: 01 | BD55: South | BE55: U1DXP2 | BF55: United States | BG55: Americas - LLC | BH55: 3000 | BI55: Bradley Carson | BK55: Undefined | BM55: Unassigned | BN55: United States | BO55: United States | BP55: Unassigned | BQ55: DIRECT | BR55: AV CAPTURE & COLLABORATION - CAMERAS | BS55: 4210 | BT55: 2 | BU55: -43.81460034 | BV55: 421.36 | BW55: 157.36 | BX55: 120 | BY55: 50563.2 | BZ55: USD | CA55: 1 | CB55: 50563.2
A56: 535122919 | B56: 01 | D56: 101298 | F56: Invoice | G56: Vaddio | H56: B0004 | I56: Distributor - National | J56: 002 | K56: Unassigned | L56: 3000 | M56: Undefined | N56: 3000 | O56: ENTER ALTERNATE ADDRESS (US) | P56: AB DISTRIBUTING INC | Q56: Americas LLC | R56: 212.65 | S56: 25305.91 | T56: 12/15/2020 | U56: Standard Distribution | V56: 01 | W56: AB | X56: 0002502171 | Y56: Standard Order | Z56: TA | AA56: AV CONTENT CAPTURE (VADDIO) | AB56: 2020 | AC56: 2020-12 | AD56: 0 | AE56: Vaddio | AF56: CAM EXTENSIONS | AG56: EXT CABLES | AH56: IT/DMR | AI56: 002 | AJ56: 440-1005-023 | AK56: AB DISTRIBUTING | AL56: AB DISTRIBUTING | AM56: Vaddio | AN56: 3002 | AO56: 60004 | AP56: F | AQ56: B0004 | AR56: B0004P0415 | AS56: B0004P0415G0014040 | AT56: Unassigned | AU56: CABLE ACTIVE 3.0 TYPE-A TO B M/M 20M | AV56: Projection Screens | AW56: B0004P0415G0014040 | AX56: US Camera Profit Center | AY56: 3000 | AZ56: 0096517776 | BA56: Unassigned | BB56: IT Distribution | BC56: 12 | BD56: US - Channel Sales | BE56: U1DXC1 | BF56: United States | BG56: Americas - LLC | BH56: 3000 | BI56: Jack Gerts | BK56: Undefined | BM56: Unassigned | BN56: United States | BO56: United States | BP56: Illinois | BQ56: DIRECT | BR56: AV CAPTURE & COLLABORATION - CAMERAS | BS56: 4210 | BT56: 1 | BU56: -71.38118529 | BV56: 349.62 | BW56: 212.65 | BX56: 119 | BY56: 41604.78 | BZ56: USD | CA56: 1 | CB56: 41604.78
A57: 531995603 | B57: 0 | F57: Intercompany Billing | G57: Vaddio | H57: B0004 | I57: Undefined | J57: 000 | K57: Unassigned | L57: 3000 | M57: Undefined | N57: 3000 | O57: LEGRAND AV NETHERLANDS B.V. | P57: Unassigned | Q57: Americas LLC | R57: 8.08 | S57: 953.17 | T57: 10/11/2021 | U57: Standard Distribution | V57: 01 | W57: Unassigned | Y57: Undefined | Z57: 00 | AA57: AV CONTENT CAPTURE (VADDIO) | AB57: 2021 | AC57: 2021-10 | AD57: 0 | AE57: Vaddio | AF57: CAMERA MOUNT | AG57: WALL | AH57: Undefined | AI57: 000 | AJ57: 535-2000-251 | AM57: Vaddio | AN57: 3002 | AP57: E | AQ57: B0004 | AR57: B0004P0420 | AS57: B0004P0420G0014060 | AT57: Unassigned | AU57: THIN PROFILE WALL MNT PR60/HD EAGLE EYE | AV57: Projection Screens | AW57: B0004P0420G0014060 | AX57: US Camera Profit Center | AZ57: 0097782948 | BA57: Unassigned | BB57: Undefined | BC57: 0 | BD57: Undefined | BE57: 0000000 | BF57: Undefined | BG57: Americas - LLC | BH57: 3000 | BI57: Unassigned | BK57: Undefined | BM57: Undefined | BN57: Undefined | BO57: Netherlands | BP57: Undefined | BQ57: DIRECT | BR57: AV CAPTURE & COLLABORATION - CAMERAS | BS57: 4210 | BT57: 0 | BU57: -101.6083493 | BV57: 9.2894 | BW57: 8.08 | BX57: 118 | BY57: 1096.15 | BZ57: USD | CA57: 1 | CB57: 1096.15
A58: 532173572 | B58: 01 | C58: 132377 | D58: 132377 | F58: Invoice | G58: Vaddio | H58: B0004 | I58: Dealer | J58: 001 | K58: Unassigned | L58: 3000 | M58: Undefined | N58: 3000 | O58: EPA AUDIO VISUAL INC | P58: EPA AUDIO VISUAL INC | Q58: Americas LLC | R58: 161.63 | S58: 19072.67 | T58: 10/22/2021 | U58: Standard Distribution | V58: 01 | W58: Unassigned | X58: 0002761294 | Y58: Standard Order | Z58: TA | AA58: AV CONFERENCING (VADDIO) | AB58: 2021 | AC58: 2021-10 | AD58: 167 | AE58: Vaddio | AF58: CONFERENCE | AG58: AUDIO | AH58: AV | AI58: 001 | AJ58: 999-85100-000 | AL58: EPA AUDIO VISUAL INC | AM58: Vaddio | AN58: 3002 | AO58: 55373 | AP58: E | AQ58: B0004 | AR58: B0004P0435 | AS58: B0004P0435G0014090 | AT58: Unassigned | AU58: Ceiling MIC System White | AV58: Projection Screens | AW58: B0004P0435G0014090 | AX58: US Camera Profit Center | AY58: 3000 | AZ58: 0097836752 | BA58: Unassigned | BB58: AV Integrators | BC58: 01 | BD58: MidWest | BE58: U1DXP3 | BF58: United States | BG58: Americas - LLC | BH58: 3000 | BI58: Kristin Dacey | BK58: Undefined | BM58: Unassigned | BN58: United States | BO58: United States | BP58: Unassigned | BQ58: DIRECT | BR58: AV CAPTURE & COLLABORATION - CAMERAS | BS58: 4210 | BT58: 1 | BU58: -42.07968739 | BV58: 442.73 | BW58: 161.63 | BX58: 118 | BY58: 52242.14 | BZ58: USD | CA58: 1 | CB58: 52242.14
A59: 532967010 | B59: 0 | F59: Intercompany Billing | G59: Vaddio | H59: B0004 | I59: Undefined | J59: 000 | K59: Unassigned | L59: 3000 | M59: Undefined | N59: 3000 | O59: LEGRAND AV NETHERLANDS B.V. | P59: Unassigned | Q59: Americas LLC | R59: 158.29 | S59: 18519.81 | T59: 04/09/2021 | U59: Standard Distribution | V59: 01 | W59: Unassigned | Y59: Undefined | Z59: 00 | AA59: AV CONFERENCING (VADDIO) | AB59: 2021 | AC59: 2021-04 | AD59: 0 | AE59: Vaddio | AF59: CONFERENCE | AG59: AUDIO | AH59: Undefined | AI59: 000 | AJ59: 999-85000-000 | AM59: Vaddio | AN59: 3002 | AP59: E | AQ59: B0004 | AR59: B0004P0435 | AS59: B0004P0435G0014090 | AT59: Unassigned | AU59: TableMIC Microphone Black | AV59: Projection Screens | AW59: B0004P0435G0014090 | AX59: US Camera Profit Center | AZ59: 0097017459 | BA59: Unassigned | BB59: Undefined | BC59: 0 | BD59: Undefined | BE59: 0000000 | BF59: Undefined | BG59: Americas - LLC | BH59: 3000 | BI59: Unassigned | BK59: Undefined | BM59: Undefined | BN59: Undefined | BO59: Netherlands | BP59: Undefined | BQ59: DIRECT | BR59: AV CAPTURE & COLLABORATION - CAMERAS | BS59: 4210 | BT59: 0 | BU59: -100.7391419 | BV59: 182.0323 | BW59: 158.29 | BX59: 117 | BY59: 21297.78 | BZ59: USD | CA59: 1 | CB59: 21297.78
A60: 533035614 | B60: 01 | C60: 133809 | D60: 133809 | F60: Invoice | G60: Vaddio | H60: B0004 | I60: Dealer | J60: 001 | K60: PROFESSIONAL SYSTEMS NETWORK INTL | L60: 3000 | M60: Undefined | N60: 3000 | O60: TIERNEY BROTHERS INC. | P60: TIERNEY BROTHERS INC. | Q60: Americas LLC | R60: 1344.93 | S60: 154666.67 | T60: 07/28/2021 | U60: Standard Distribution | V60: 01 | W60: Unassigned | X60: 0002680543 | Y60: Standard Order | Z60: TA | AA60: AV CONFERENCING (VADDIO) | AB60: 2021 | AC60: 2021-07 | AD60: 0 | AE60: Vaddio | AF60: CONFERENCE | AG60: ROOM SYSTEM | AH60: AV | AI60: 001 | AJ60: 999-60321-000W | AK60: TIERNEY BROTHERS INC. | AL60: TIERNEY BROTHERS INC. | AM60: Vaddio | AN60: 3002 | AO60: 55108 | AP60: E | AQ60: B0004 | AR60: B0004P0435 | AS60: B0004P0435G0014100 | AT60: Unassigned | AU60: EasyIP 10 Mixer Base Kit Wht N/A | AV60: Projection Screens | AW60: B0004P0435G0014100 | AX60: US Camera Profit Center | AY60: 3000 | AZ60: 0097471501 | BA60: Unassigned | BB60: AV Integrators | BC60: 01 | BD60: MidWest | BE60: U1DXP3 | BF60: United States | BG60: Americas - LLC | BH60: 3000 | BI60: Kristin Dacey | BK60: Undefined | BM60: Unassigned | BN60: United States | BO60: United States | BP60: Unassigned | BQ60: DIRECT | BR60: AV CAPTURE & COLLABORATION - CAMERAS | BS60: 4210 | BT60: 1 | BU60: -43.26091523 | BV60: 3494.43 | BW60: 1344.93 | BX60: 115 | BY60: 401859.45 | BZ60: USD | CA60: 1 | CB60: 401859.45
A61: 539384594 | B61: 0 | F61: Intercompany Billing | G61: Vaddio | H61: B0004 | I61: Undefined | J61: 000 | K61: Unassigned | L61: 3000 | M61: Undefined | N61: 3000 | O61: LEGRAND AV NETHERLANDS B.V. | P61: Unassigned | Q61: Americas LLC | R61: 2.44 | S61: 278.1 | T61: 12/09/2020 | U61: Standard Distribution | V61: 01 | W61: Unassigned | Y61: Undefined | Z61: 00 | AA61: AV CONTENT CAPTURE (VADDIO) | AB61: 2020 | AC61: 2020-12 | AD61: 0 | AE61: Vaddio | AF61: ACCESSORIES | AG61: RAW | AH61: Undefined | AI61: 000 | AJ61: 807-0292 | AM61: Vaddio | AN61: 3002 | AP61: F | AQ61: B0004 | AR61: B0004P0440 | AS61: B0004P0440G0014125 | AT61: Unassigned | AU61: BOX OUTER WHT W/LOGO 27 1/4 x 12 1/8 x19 | AV61: Other/Misc | AW61: B0004P0440G0014125 | AX61: US Camera Profit Center | AZ61: 0096482573 | BA61: Unassigned | BB61: Undefined | BC61: 0 | BD61: Undefined | BE61: 0000000 | BF61: Undefined | BG61: Americas - LLC | BH61: 3000 | BI61: Unassigned | BK61: Undefined | BM61: Undefined | BN61: Undefined | BO61: Netherlands | BP61: Undefined | BQ61: DIRECT | BR61: AV CAPTURE & COLLABORATION - CAMERAS | BS61: 4210 | BT61: 0 | BU61: -98.13024881 | BV61: 2.8054 | BW61: 2.44 | BX61: 114 | BY61: 319.82 | BZ61: USD | CA61: 1 | CB61: 319.82
A62: 534159051 | B62: 01 | D62: 132696 | F62: Invoice | G62: Vaddio | H62: B0004 | I62: Dealer | J62: 001 | K62: Unassigned | L62: 3000 | M62: Undefined | N62: 3000 | O62: ONE TIME - BID SHIP TO ONLY | P62: HOWARD INDUSTRIES INC | Q62: Americas LLC | R62: 993.69 | S62: 112286.97 | T62: 08/27/2020 | U62: Standard Distribution | V62: 01 | W62: Unassigned | X62: 0002375863 | Y62: Standard Order | Z62: TA | AA62: AV CONFERENCING (VADDIO) | AB62: 2020 | AC62: 2020-08 | AD62: 1077 | AE62: Vaddio | AF62: CONFERENCE | AG62: ROOM SYSTEM | AH62: AV | AI62: 001 | AJ62: 999-99950-700W | AL62: HOWARD INDUSTRIES INC | AM62: Vaddio | AN62: 3002 | AO62: 39437 | AP62: E | AQ62: B0004 | AR62: B0004P0435 | AS62: B0004P0435G0014100 | AT62: Unassigned | AU62: CSAV SYS CEILINGMIC 2 (W/O SPKR) WHT | AV62: Projection Screens | AW62: B0004P0435G0014100 | AX62: US Camera Profit Center | AY62: 3000 | AZ62: 0096024050 | BA62: Unassigned | BB62: AV Integrators | BC62: 01 | BD62: West | BE62: U1DXP4 | BF62: United States | BG62: Americas - LLC | BH62: 3000 | BI62: Dana Sanders Nickel | BK62: Undefined | BM62: Utah | BN62: United States | BO62: United States | BP62: Unassigned | BQ62: DIRECT | BR62: AV CAPTURE & COLLABORATION - CAMERAS | BS62: 4210 | BT62: 1 | BU62: -51.45583948 | BV62: 2140.6 | BW62: 993.69 | BX62: 113 | BY62: 241887.8 | BZ62: USD | CA62: 1 | CB62: 241887.8
A63: 538541141 | B63: 0 | F63: Intercompany Billing | G63: Vaddio | H63: B0004 | I63: Undefined | J63: 000 | K63: Unassigned | L63: 3000 | M63: Undefined | N63: 3000 | O63: LEGRAND AV NETHERLANDS B.V. | P63: Unassigned | Q63: Americas LLC | R63: 651.69 | S63: 72989.47 | T63: 12/21/2020 | U63: Standard Distribution | V63: 01 | W63: Unassigned | Y63: Undefined | Z63: 00 | AA63: AV CONFERENCING (VADDIO) | AB63: 2020 | AC63: 2020-12 | AD63: 0 | AE63: Vaddio | AF63: CONFERENCE | AG63: ROOM SYSTEM | AH63: Undefined | AI63: 000 | AJ63: 999-9995-001W | AM63: Vaddio | AN63: 3002 | AP63: E | AQ63: B0004 | AR63: B0004P0435 | AS63: B0004P0435G0014100 | AT63: Unassigned | AU63: CONFERENCESHOT AV CAMERA WHITE INTL | AV63: Projection Screens | AW63: B0004P0435G0014100 | AX63: US Camera Profit Center | AZ63: 0096529178 | BA63: Unassigned | BB63: Undefined | BC63: 0 | BD63: Undefined | BE63: 0000000 | BF63: Undefined | BG63: Americas - LLC | BH63: 3000 | BI63: Unassigned | BK63: Undefined | BM63: Undefined | BN63: Undefined | BO63: Netherlands | BP63: Undefined | BQ63: DIRECT | BR63: AV CAPTURE & COLLABORATION - CAMERAS | BS63: 4210 | BT63: 0 | BU63: -96.39131096 | BV63: 749.4454 | BW63: 651.69 | BX63: 112 | BY63: 83937.89 | BZ63: USD | CA63: 1 | CB63: 83937.89
A64: 534976099 | B64: 01 | C64: 133144 | D64: 133144 | F64: Invoice | G64: Vaddio | H64: B0004 | I64: Dealer | J64: 001 | K64: Unassigned | L64: 3000 | M64: Undefined | N64: 3000 | O64: MOSS TELECOMMUNICATIONS SVCS. | P64: MOSS TELECOMMUNICATIONS SVCS. | Q64: Americas LLC | R64: 26.51 | S64: 2916.38 | T64: 11/11/2020 | U64: Standard Distribution | V64: 01 | W64: Unassigned | X64: 0002469245 | Y64: Standard Order | Z64: TA | AA64: AV CONTENT CAPTURE (VADDIO) | AB64: 2020 | AC64: 2020-11 | AD64: 124 | AE64: Vaddio | AF64: CAMERA MOUNT | AG64: CEILING | AH64: AV | AI64: 001 | AJ64: 535-2000-206 | AL64: MOSS TELECOMMUNICATIONS SVCS. | AM64: Vaddio | AN64: 3002 | AO64: 49503 | AP64: E | AQ64: B0004 | AR64: B0004P0420 | AS64: B0004P0420G0014055 | AT64: Unassigned | AU64: SUSPENDED CEILING PTZ CAMERA MOUNT | AV64: Projection Screens | AW64: B0004P0420G0014055 | AX64: US Camera Profit Center | AY64: 3000 | AZ64: 0096303602 | BA64: Unassigned | BB64: AV Integrators | BC64: 01 | BD64: MidWest | BE64: U1DXP3 | BF64: United States | BG64: Americas - LLC | BH64: 3000 | BI64: Aaron Silveus | BK64: Undefined | BM64: Unassigned | BN64: United States | BO64: United States | BP64: Unassigned | BQ64: DIRECT | BR64: AV CAPTURE & COLLABORATION - CAMERAS | BS64: 4210 | BT64: 2 | BU64: -39.47155148 | BV64: 72.06 | BW64: 26.51 | BX64: 110 | BY64: 7926.6 | BZ64: USD | CA64: 1 | CB64: 7926.6
A65: 536987771 | B65: 01 | C65: 132946 | D65: 132946 | F65: Invoice | G65: Vaddio | H65: B0004 | I65: Dealer | J65: 001 | K65: Unassigned | L65: 3000 | M65: Undefined | N65: 3000 | O65: KEYSTONE DIGITAL | P65: KEYSTONE DIGITAL | Q65: Americas LLC | R65: 954.83 | S65: 105031.24 | T65: 10/05/2021 | U65: Standard Distribution | V65: 01 | W65: Unassigned | X65: 0002712114 | Y65: Standard Order | Z65: TA | AA65: AV CONTENT CAPTURE (VADDIO) | AB65: 2021 | AC65: 2021-10 | AD65: 1281 | AE65: Vaddio | AF65: FIXED CAMERA | AG65: EXTENSION KIT | AH65: AV | AI65: 001 | AJ65: 999-6930-100 | AL65: KEYSTONE DIGITAL | AM65: Vaddio | AN65: 3002 | AO65: 65721 | AP65: E | AQ65: B0004 | AR65: B0004P0405 | AS65: B0004P0405G0014010 | AT65: Unassigned | AU65: ZoomSHOT 30 QUSB System | AV65: Projection Screens | AW65: B0004P0405G0014010 | AX65: US Camera Profit Center | AY65: 3000 | AZ65: 0097769771 | BA65: Unassigned | BB65: AV Integrators | BC65: 01 | BD65: MidWest | BE65: U1DXP3 | BF65: United States | BG65: Americas - LLC | BH65: 3000 | BI65: Andre White | BK65: Undefined | BM65: Unassigned | BN65: United States | BO65: United States | BP65: Unassigned | BQ65: DIRECT | BR65: AV CAPTURE & COLLABORATION - CAMERAS | BS65: 4210 | BT65: 2 | BU65: -49.67510036 | BV65: 2072.64 | BW65: 954.83 | BX65: 110 | BY65: 227990.4 | BZ65: USD | CA65: 1 | CB65: 227990.4
A66: 535448021 | B66: 01 | D66: 131958 | F66: Invoice | G66: Vaddio | H66: B0004 | I66: Dealer | J66: 001 | K66: Unassigned | L66: 3000 | M66: Undefined | N66: 3000 | O66: ENTER ALTERNATE ADDRESS (US) | P66: ACADEMIC TECHNOLOGIES INC. | Q66: Americas LLC | R66: 5.38 | S66: 581.45 | T66: 10/22/2020 | U66: Standard Distribution | V66: 01 | W66: Unassigned | X66: 0002456326 | Y66: Standard Order | Z66: TA | AA66: AV CONTENT CAPTURE (VADDIO) | AB66: 2020 | AC66: 2020-10 | AD66: 0 | AE66: Vaddio | AF66: CAMERA MOUNT | AG66: WALL | AH66: AV | AI66: 001 | AJ66: 535-2000-251 | AL66: ACADEMIC TECHNOLOGIES INC. | AM66: Vaddio | AN66: 3002 | AO66: 39157 | AP66: E | AQ66: B0004 | AR66: B0004P0420 | AS66: B0004P0420G0014060 | AT66: Unassigned | AU66: THIN PROFILE WALL MNT PR60/HD EAGLE EYE | AV66: Projection Screens | AW66: B0004P0420G0014060 | AX66: US Camera Profit Center | AY66: 3000 | AZ66: 0096236671 | BA66: Unassigned | BB66: AV Integrators | BC66: 01 | BD66: South | BE66: U1DXP2 | BF66: United States | BG66: Americas - LLC | BH66: 3000 | BI66: Kalee Luke | BK66: Undefined | BM66: Unassigned | BN66: United States | BO66: United States | BP66: Unassigned | BQ66: DIRECT | BR66: AV CAPTURE & COLLABORATION - CAMERAS | BS66: 4210 | BT66: 2 | BU66: -4.281587792 | BV66: 110.09 | BW66: 5.38 | BX66: 108 | BY66: 11889.72 | BZ66: USD | CA66: 1 | CB66: 11889.72
A67: 535779579 | B67: 01 | C67: 132473 | D67: 132473 | F67: Invoice | G67: Vaddio | H67: B0004 | I67: Dealer | J67: 001 | K67: PROFESSIONAL SYSTEMS NETWORK INTL | L67: 3000 | M67: Undefined | N67: 3000 | O67: TEL SYSTEMS | P67: TEL SYSTEMS | Q67: Americas LLC | R67: 574.05 | S67: 60849.42 | T67: 07/20/2021 | U67: Standard Distribution | V67: 01 | W67: Unassigned | X67: 0002650051 | Y67: Standard Order | Z67: TA | AA67: AV CONFERENCING (VADDIO) | AB67: 2021 | AC67: 2021-07 | AD67: 2607 | AE67: Vaddio | AF67: CONFERENCE | AG67: ROOM SYSTEM | AH67: AV | AI67: 001 | AJ67: 999-30200-000W | AL67: TEL SYSTEMS | AM67: Vaddio | AN67: 3002 | AO67: 48103 | AP67: E | AQ67: B0004 | AR67: B0004P0435 | AS67: B0004P0435G0014100 | AT67: Unassigned | AU67: EasyIP 10 Camera White | AV67: Projection Screens | AW67: B0004P0435G0014100 | AX67: US Camera Profit Center | AY67: 3000 | AZ67: 0097423431 | BA67: Unassigned | BB67: AV Integrators | BC67: 01 | BD67: MidWest | BE67: U1DXP3 | BF67: United States | BG67: Americas - LLC | BH67: 3000 | BI67: Aaron Silveus | BK67: Undefined | BM67: Unassigned | BN67: United States | BO67: United States | BP67: Unassigned | BQ67: DIRECT | BR67: AV CAPTURE & COLLABORATION - CAMERAS | BS67: 4210 | BT67: 2 | BU67: -32.40016357 | BV67: 1821.83 | BW67: 574.05 | BX67: 106 | BY67: 193113.98 | BZ67: USD | CA67: 1 | CB67: 193113.98
A68: 533952650 | B68: 0 | F68: Intercompany Billing | G68: Vaddio | H68: B0004 | I68: Undefined | J68: 000 | K68: Unassigned | L68: 3000 | M68: Undefined | N68: 3000 | O68: LEGRAND AV NETHERLANDS B.V. | P68: Unassigned | Q68: Americas LLC | R68: 157.03 | S68: 16488.28 | T68: 03/02/2020 | U68: Standard Distribution | V68: 01 | W68: Unassigned | Y68: Undefined | Z68: 00 | AA68: AV CONFERENCING (VADDIO) | AB68: 2020 | AC68: 2020-03 | AD68: 0 | AE68: Vaddio | AF68: CONFERENCE | AG68: AUDIO | AH68: Undefined | AI68: 000 | AJ68: 999-85100-000 | AM68: Vaddio | AN68: 3002 | AP68: E | AQ68: B0004 | AR68: B0004P0435 | AS68: B0004P0435G0014090 | AT68: Unassigned | AU68: Ceiling MIC System White | AV68: Projection Screens | AW68: B0004P0435G0014090 | AX68: US Camera Profit Center | AZ68: 0095428217 | BA68: Unassigned | BB68: Undefined | BC68: 0 | BD68: Undefined | BE68: 0000000 | BF68: Undefined | BG68: Americas - LLC | BH68: 3000 | BI68: Unassigned | BK68: Undefined | BM68: Undefined | BN68: Undefined | BO68: Netherlands | BP68: Undefined | BQ68: DIRECT | BR68: AV CAPTURE & COLLABORATION - CAMERAS | BS68: 4210 | BT68: 0 | BU68: -90.30435986 | BV68: 180.5859 | BW68: 157.03 | BX68: 105 | BY68: 18961.52 | BZ68: USD | CA68: 1 | CB68: 18961.52
A69: 533434964 | B69: 01 | D69: 132696 | F69: Invoice | G69: Vaddio | H69: B0004 | I69: Dealer | J69: 001 | K69: Unassigned | L69: 3000 | M69: Undefined | N69: 3000 | O69: ONE TIME - BID SHIP TO ONLY | P69: HOWARD INDUSTRIES INC | Q69: Americas LLC | R69: 1022.75 | S69: 105343 | T69: 05/12/2021 | U69: Standard Distribution | V69: 01 | W69: Unassigned | X69: 0002617341 | Y69: Standard Order | Z69: TA | AA69: AV CONFERENCING (VADDIO) | AB69: 2021 | AC69: 2021-05 | AD69: 2118 | AE69: Vaddio | AF69: CONFERENCE | AG69: ROOM SYSTEM | AH69: AV | AI69: 001 | AJ69: 999-99950-700W | AL69: HOWARD INDUSTRIES INC | AM69: Vaddio | AN69: 3002 | AO69: 39437 | AP69: E | AQ69: B0004 | AR69: B0004P0435 | AS69: B0004P0435G0014100 | AT69: Unassigned | AU69: CSAV SYS CEILINGMIC 2 (W/O SPKR) WHT | AV69: Projection Screens | AW69: B0004P0435G0014100 | AX69: US Camera Profit Center | AY69: 3000 | AZ69: 0097142155 | BA69: Unassigned | BB69: AV Integrators | BC69: 01 | BD69: South | BE69: U1DXP2 | BF69: United States | BG69: Americas - LLC | BH69: 3000 | BI69: Robert Dutton | BK69: Undefined | BM69: Oklahoma | BN69: United States | BO69: United States | BP69: Unassigned | BQ69: DIRECT | BR69: AV CAPTURE & COLLABORATION - CAMERAS | BS69: 4210 | BT69: 1 | BU69: -48.2119032 | BV69: 2140.6 | BW69: 1022.75 | BX69: 103 | BY69: 220481.8 | BZ69: USD | CA69: 1 | CB69: 220481.8
A70: 538339833 | B70: 01 | D70: 132696 | F70: Invoice | G70: Vaddio | H70: B0004 | I70: Dealer | J70: 001 | K70: Unassigned | L70: 3000 | M70: Undefined | N70: 3000 | O70: ONE TIME - BID SHIP TO ONLY | P70: HOWARD INDUSTRIES INC | Q70: Americas LLC | R70: 83.75 | S70: 8626.74 | T70: 05/04/2021 | U70: Standard Distribution | V70: 01 | W70: Unassigned | X70: 0002617341 | Y70: Standard Order | Z70: TA | AA70: AV CONTENT CAPTURE (VADDIO) | AB70: 2021 | AC70: 2021-05 | AD70: 291 | AE70: Vaddio | AF70: CAM EXTENSIONS | AG70: EXT CABLES | AH70: AV | AI70: 001 | AJ70: 440-1005-008 | AL70: HOWARD INDUSTRIES INC | AM70: Vaddio | AN70: 3002 | AO70: 39437 | AP70: F | AQ70: B0004 | AR70: B0004P0415 | AS70: B0004P0415G0014040 | AT70: Unassigned | AU70: USB 3.0 CABLE 8METER TYPE A TO B ACTIVE | AV70: Projection Screens | AW70: B0004P0415G0014040 | AX70: US Camera Profit Center | AY70: 3000 | AZ70: 0097093879 | BA70: Unassigned | BB70: AV Integrators | BC70: 01 | BD70: South | BE70: U1DXP2 | BF70: United States | BG70: Americas - LLC | BH70: 3000 | BI70: Robert Dutton | BK70: Undefined | BM70: Oklahoma | BN70: United States | BO70: United States | BP70: Unassigned | BQ70: DIRECT | BR70: AV CAPTURE & COLLABORATION - CAMERAS | BS70: 4210 | BT70: 1 | BU70: -56.90535642 | BV70: 148.98 | BW70: 83.75 | BX70: 103 | BY70: 15344.94 | BZ70: USD | CA70: 1 | CB70: 15344.94
A71: 538404863 | B71: 01 | D71: 134911 | F71: Invoice | G71: Vaddio | H71: B0004 | I71: Dealer | J71: 001 | K71: Unassigned | L71: 3000 | M71: Undefined | N71: 3000 | O71: ENTER ALTERNATE ADDRESS (US) | P71: PALADIN TECHNOLOGIES | Q71: Americas LLC | R71: 5.44 | S71: 549.64 | T71: 03/12/2021 | U71: Standard Distribution | V71: 01 | W71: Unassigned | X71: 0002572985 | Y71: Standard Order | Z71: TA | AA71: AV CONTENT CAPTURE (VADDIO) | AB71: 2021 | AC71: 2021-03 | AD71: 833 | AE71: Vaddio | AF71: CAMERA MOUNT | AG71: WALL | AH71: AV | AI71: 001 | AJ71: 535-2000-251 | AL71: PALADIN TECHNOLOGIES | AM71: Vaddio | AN71: 3002 | AO71: 92064 | AP71: E | AQ71: B0004 | AR71: B0004P0420 | AS71: B0004P0420G0014060 | AT71: Unassigned | AU71: THIN PROFILE WALL MNT PR60/HD EAGLE EYE | AV71: Projection Screens | AW71: B0004P0420G0014060 | AX71: US Camera Profit Center | AY71: 3000 | AZ71: 0096898004 | BA71: JTECH SYSTEMS | BB71: AV Integrators | BC71: 01 | BD71: West | BE71: U1DXP4 | BF71: United States | BG71: Americas - LLC | BH71: 3000 | BI71: Comm So Cal - Shomper/Yates | BK71: Undefined | BM71: Unassigned | BN71: United States | BO71: United States | BP71: Unassigned | BQ71: DIRECT | BR71: AV CAPTURE & COLLABORATION - CAMERAS | BS71: 4210 | BT71: 2 | BU71: -3.743182603 | BV71: 115.88 | BW71: 5.44 | BX71: 101 | BY71: 11703.88 | BZ71: USD | CA71: 1 | CB71: 11703.88
A72: 532300870 | B72: 01 | D72: 132696 | F72: Invoice | G72: Vaddio | H72: B0004 | I72: Dealer | J72: 001 | K72: Unassigned | L72: 3000 | M72: Undefined | N72: 3000 | O72: ONE TIME - BID SHIP TO ONLY | P72: HOWARD INDUSTRIES INC | Q72: Americas LLC | R72: 225.38 | S72: 22538.45 | T72: 09/07/2021 | U72: Standard Distribution | V72: 01 | W72: Unassigned | X72: 0002723269 | Y72: Standard Order | Z72: TA | AA72: AV CONFERENCING (VADDIO) | AB72: 2021 | AC72: 2021-09 | AD72: 0 | AE72: Vaddio | AF72: CONFERENCE | AG72: AUDIO | AH72: AV | AI72: 001 | AJ72: 999-85300-000 | AL72: HOWARD INDUSTRIES INC | AM72: Vaddio | AN72: 3002 | AO72: 39437 | AP72: E | AQ72: B0004 | AR72: B0004P0435 | AS72: B0004P0435G0014090 | AT72: Unassigned | AU72: TableMIC D Microphone Black | AV72: Projection Screens | AW72: B0004P0435G0014090 | AX72: US Camera Profit Center | AY72: 3000 | AZ72: 0097651949 | BA72: Unassigned | BB72: AV Integrators | BC72: 01 | BD72: South | BE72: U1DXP2 | BF72: United States | BG72: Americas - LLC | BH72: 3000 | BI72: Angela Tener | BK72: Undefined | BM72: Georgia | BN72: United States | BO72: United States | BP72: Unassigned | BQ72: DIRECT | BR72: AV CAPTURE & COLLABORATION - CAMERAS | BS72: 4210 | BT72: 1 | BU72: -34.3538768 | BV72: 637.51 | BW72: 225.38 | BX72: 100 | BY72: 63751 | BZ72: USD | CA72: 1 | CB72: 63751
A73: 532387886 | B73: 01 | D73: 132696 | F73: Invoice | G73: Vaddio | H73: B0004 | I73: Dealer | J73: 001 | K73: Unassigned | L73: 3000 | M73: Undefined | N73: 3000 | O73: ONE TIME - BID SHIP TO ONLY | P73: HOWARD INDUSTRIES INC | Q73: Americas LLC | R73: 1616.71 | S73: 161671.29 | T73: 09/08/2021 | U73: Standard Distribution | V73: 01 | W73: Unassigned | X73: 0002723269 | Y73: Standard Order | Z73: TA | AA73: AV CONFERENCING (VADDIO) | AB73: 2021 | AC73: 2021-09 | AD73: 0 | AE73: Vaddio | AF73: CONFERENCE | AG73: ROOM SYSTEM | AH73: AV | AI73: 001 | AJ73: 999-30231-000W | AL73: HOWARD INDUSTRIES INC | AM73: Vaddio | AN73: 3002 | AO73: 39437 | AP73: E | AQ73: B0004 | AR73: B0004P0435 | AS73: B0004P0435G0014100 | AT73: Unassigned | AU73: EasyIP 20 Mixer Base Kit White NA | AV73: Projection Screens | AW73: B0004P0435G0014100 | AX73: US Camera Profit Center | AY73: 3000 | AZ73: 0097654707 | BA73: Unassigned | BB73: AV Integrators | BC73: 01 | BD73: South | BE73: U1DXP2 | BF73: United States | BG73: Americas - LLC | BH73: 3000 | BI73: Angela Tener | BK73: Undefined | BM73: Georgia | BN73: United States | BO73: United States | BP73: Unassigned | BQ73: DIRECT | BR73: AV CAPTURE & COLLABORATION - CAMERAS | BS73: 4210 | BT73: 1 | BU73: -38.15004613 | BV73: 4129.53 | BW73: 1616.71 | BX73: 100 | BY73: 412953 | BZ73: USD | CA73: 1 | CB73: 412953
A74: 533264917 | B74: 01 | C74: 131865 | D74: 131865 | F74: Invoice | G74: Vaddio | H74: B0004 | I74: Dealer | J74: 001 | K74: USAV BUYING GROUP | L74: 3000 | M74: Undefined | N74: 3000 | O74: TEAMLINX LLP DBA LINX | P74: TEAMLINX LLP DBA LINX | Q74: Americas LLC | R74: 206.21 | S74: 20620.68 | T74: 06/23/2020 | U74: Standard Distribution | V74: 01 | W74: Unassigned | X74: 0002362817 | Y74: Standard Order | Z74: TA | AA74: AV CONTENT CAPTURE (VADDIO) | AB74: 2020 | AC74: 2020-06 | AD74: 0 | AE74: Vaddio | AF74: CAM EXTENSIONS | AG74: EXT CABLES | AH74: AV | AI74: 001 | AJ74: 440-1005-023 | AL74: TEAMLINX LLP DBA LINX | AM74: Vaddio | AN74: 3002 | AO74: 80238 | AP74: F | AQ74: B0004 | AR74: B0004P0415 | AS74: B0004P0415G0014040 | AT74: Unassigned | AU74: CABLE ACTIVE 3.0 TYPE-A TO B M/M 20M | AV74: Projection Screens | AW74: B0004P0415G0014040 | AX74: US Camera Profit Center | AY74: 3000 | AZ74: 0095762041 | BA74: Unassigned | BB74: AV Integrators | BC74: 01 | BD74: West | BE74: U1DXP4 | BF74: United States | BG74: Americas - LLC | BH74: 3000 | BI74: Dana Sanders Nickel | BK74: Undefined | BM74: Unassigned | BN74: United States | BO74: United States | BP74: Unassigned | BQ74: DIRECT | BR74: AV CAPTURE & COLLABORATION - CAMERAS | BS74: 4210 | BT74: 1 | BU74: -53.06717533 | BV74: 381.39 | BW74: 206.21 | BX74: 100 | BY74: 38139 | BZ74: USD | CA74: 1 | CB74: 38139
A75: 533333097 | B75: 01 | D75: 133557 | F75: Invoice | G75: Vaddio | H75: B0004 | I75: Dealer | J75: 001 | K75: Unassigned | L75: 3000 | M75: Undefined | N75: 3000 | O75: ONE TIME - BID SHIP TO ONLY | P75: SKC COMMUNICATION PRODUCTS LLC | Q75: Americas LLC | R75: 205.99 | S75: 20598.61 | T75: 05/26/2020 | U75: Standard Distribution | V75: 01 | W75: Unassigned | X75: 0002345958 | Y75: Standard Order | Z75: TA | AA75: AV CONTENT CAPTURE (VADDIO) | AB75: 2020 | AC75: 2020-05 | AD75: 0 | AE75: Vaddio | AF75: CAM EXTENSIONS | AG75: EXT CABLES | AH75: AV | AI75: 001 | AJ75: 440-1005-023 | AL75: SKC COMMUNICATION PRODUCTS LLC | AM75: Vaddio | AN75: 3002 | AO75: 66227 | AP75: F | AQ75: B0004 | AR75: B0004P0415 | AS75: B0004P0415G0014040 | AT75: Unassigned | AU75: CABLE ACTIVE 3.0 TYPE-A TO B M/M 20M | AV75: Projection Screens | AW75: B0004P0415G0014040 | AX75: US Camera Profit Center | AY75: 3000 | AZ75: 0095657772 | BA75: Unassigned | BB75: AV Integrators | BC75: 01 | BD75: South | BE75: U1DXP2 | BF75: United States | BG75: Americas - LLC | BH75: 3000 | BI75: Robert Dutton | BK75: Undefined | BM75: Texas | BN75: United States | BO75: United States | BP75: Kansas | BQ75: DIRECT | BR75: AV CAPTURE & COLLABORATION - CAMERAS | BS75: 4210 | BT75: 1 | BU75: -56.6088209 | BV75: 357.56 | BW75: 205.99 | BX75: 100 | BY75: 35756 | BZ75: USD | CA75: 1 | CB75: 35756
A76: 533540967 | B76: 01 | D76: 101298 | F76: Invoice | G76: Vaddio | H76: B0004 | I76: Distributor - National | J76: 002 | K76: Unassigned | L76: 3000 | M76: Undefined | N76: 3000 | O76: ENTER ALTERNATE ADDRESS (US) | P76: AB DISTRIBUTING INC | Q76: Americas LLC | R76: 6.03 | S76: 603 | T76: 07/28/2020 | U76: Standard Distribution | V76: 01 | W76: AB | X76: 0002383737 | Y76: Standard Order | Z76: TA | AA76: AV CONTENT CAPTURE (VADDIO) | AB76: 2020 | AC76: 2020-07 | AD76: 0 | AE76: Vaddio | AF76: CAMERA MOUNT | AG76: WALL | AH76: IT/DMR | AI76: 002 | AJ76: 535-2000-214 | AK76: AB DISTRIBUTING | AL76: AB DISTRIBUTING | AM76: Vaddio | AN76: 3002 | AO76: 60004 | AP76: E | AQ76: B0004 | AR76: B0004P0420 | AS76: B0004P0420G0014060 | AT76: Unassigned | AU76: EXPANDABLE WALL MOUNT | AV76: Projection Screens | AW76: B0004P0420G0014060 | AX76: US Camera Profit Center | AY76: 3000 | AZ76: 0095909070 | BA76: Unassigned | BB76: IT Distribution | BC76: 12 | BD76: US - Channel Sales | BE76: U1DXC1 | BF76: United States | BG76: Americas - LLC | BH76: 3000 | BI76: Jack Gerts | BK76: Undefined | BM76: New Jersey | BN76: United States | BO76: United States | BP76: Illinois | BQ76: DIRECT | BR76: AV CAPTURE & COLLABORATION - CAMERAS | BS76: 4210 | BT76: 1 | BU76: -15.36363636 | BV76: 36.85 | BW76: 6.03 | BX76: 100 | BY76: 3685 | BZ76: USD | CA76: 1 | CB76: 3685
A77: 533540968 | B77: 01 | D77: 101298 | F77: Invoice | G77: Vaddio | H77: B0004 | I77: Distributor - National | J77: 002 | K77: Unassigned | L77: 3000 | M77: Undefined | N77: 3000 | O77: ENTER ALTERNATE ADDRESS (US) | P77: AB DISTRIBUTING INC | Q77: Americas LLC | R77: 6.03 | S77: 603 | T77: 07/28/2020 | U77: Standard Distribution | V77: 01 | W77: AB | X77: 0002383737 | Y77: Standard Order | Z77: TA | AA77: AV CONTENT CAPTURE (VADDIO) | AB77: 2020 | AC77: 2020-07 | AD77: 0 | AE77: Vaddio | AF77: CAMERA MOUNT | AG77: WALL | AH77: IT/DMR | AI77: 002 | AJ77: 535-2000-214 | AK77: AB DISTRIBUTING | AL77: AB DISTRIBUTING | AM77: Vaddio | AN77: 3002 | AO77: 60004 | AP77: E | AQ77: B0004 | AR77: B0004P0420 | AS77: B0004P0420G0014060 | AT77: Unassigned | AU77: EXPANDABLE WALL MOUNT | AV77: Projection Screens | AW77: B0004P0420G0014060 | AX77: US Camera Profit Center | AY77: 3000 | AZ77: 0095909070 | BA77: Unassigned | BB77: IT Distribution | BC77: 12 | BD77: US - Channel Sales | BE77: U1DXC1 | BF77: United States | BG77: Americas - LLC | BH77: 3000 | BI77: Jack Gerts | BK77: Undefined | BM77: New Jersey | BN77: United States | BO77: United States | BP77: Illinois | BQ77: DIRECT | BR77: AV CAPTURE & COLLABORATION - CAMERAS | BS77: 4210 | BT77: 1 | BU77: -15.36363636 | BV77: 36.85 | BW77: 6.03 | BX77: 100 | BY77: 3685 | BZ77: USD | CA77: 1 | CB77: 3685
A78: 534425624 | B78: 01 | D78: 132696 | F78: Invoice | G78: Vaddio | H78: B0004 | I78: Dealer | J78: 001 | K78: Unassigned | L78: 3000 | M78: Undefined | N78: 3000 | O78: 1TST - MILESTONE INC. SAVAGE (3000) | P78: HOWARD INDUSTRIES INC | Q78: Americas LLC | R78: 26.56 | S78: 2656 | T78: 08/20/2020 | U78: Standard Distribution | V78: 01 | W78: Unassigned | X78: 0002395552 | Y78: Standard Order | Z78: TA | AA78: AV CONTENT CAPTURE (VADDIO) | AB78: 2020 | AC78: 2020-08 | AD78: 245 | AE78: Vaddio | AF78: CAMERA MOUNT | AG78: CEILING | AH78: AV | AI78: 001 | AJ78: 535-2000-206 | AL78: HOWARD INDUSTRIES INC | AM78: Vaddio | AN78: 3002 | AO78: 39437 | AP78: E | AQ78: B0004 | AR78: B0004P0420 | AS78: B0004P0420G0014055 | AT78: Unassigned | AU78: SUSPENDED CEILING PTZ CAMERA MOUNT | AV78: Projection Screens | AW78: B0004P0420G0014055 | AX78: US Camera Profit Center | AY78: 3000 | AZ78: 0095982432 | BA78: Unassigned | BB78: AV Integrators | BC78: 01 | BD78: South | BE78: U1DXP2 | BF78: United States | BG78: Americas - LLC | BH78: 3000 | BI78: Keri Manasa | BK78: Undefined | BM78: Unassigned | BN78: United States | BO78: United States | BP78: Unassigned | BQ78: DIRECT | BR78: AV CAPTURE & COLLABORATION - CAMERAS | BS78: 4210 | BT78: 1 | BU78: -35.85817374 | BV78: 72.06 | BW78: 26.56 | BX78: 100 | BY78: 7206 | BZ78: USD | CA78: 1 | CB78: 7206
A79: 534442558 | B79: 01 | D79: 132696 | F79: Invoice | G79: Vaddio | H79: B0004 | I79: Dealer | J79: 001 | K79: Unassigned | L79: 3000 | M79: Undefined | N79: 3000 | O79: ENTER ALTERNATE ADDRESS (US) | P79: HOWARD INDUSTRIES INC | Q79: Americas LLC | R79: 8.38 | S79: 837.94 | T79: 08/24/2021 | U79: Standard Distribution | V79: 01 | W79: Unassigned | X79: 0002711382 | Y79: Standard Order | Z79: TA | AA79: AV CONTENT CAPTURE (VADDIO) | AB79: 2021 | AC79: 2021-08 | AD79: 1028 | AE79: Vaddio | AF79: CAMERA MOUNT | AG79: WALL | AH79: AV | AI79: 001 | AJ79: 535-2020-230W | AL79: HOWARD INDUSTRIES INC | AM79: Vaddio | AN79: 3002 | AO79: 39437 | AP79: E | AQ79: B0004 | AR79: B0004P0420 | AS79: B0004P0420G0014060 | AT79: Unassigned | AU79: THIN PROFILE WALL MOUNT HD-SERIES WHITE | AV79: Projection Screens | AW79: B0004P0420G0014060 | AX79: US Camera Profit Center | AY79: 3000 | AZ79: 0097587719 | BA79: Unassigned | BB79: AV Integrators | BC79: 01 | BD79: South | BE79: U1DXP2 | BF79: United States | BG79: Americas - LLC | BH79: 3000 | BI79: Keri Manasa | BK79: Undefined | BM79: Unassigned | BN79: United States | BO79: United States | BP79: Unassigned | BQ79: DIRECT | BR79: AV CAPTURE & COLLABORATION - CAMERAS | BS79: 4210 | BT79: 1 | BU79: -7.639447366 | BV79: 96.99 | BW79: 8.38 | BX79: 100 | BY79: 9699 | BZ79: USD | CA79: 1 | CB79: 9699
A80: 534587308 | B80: 01 | D80: 111032 | F80: Invoice | G80: Vaddio | H80: B0004 | I80: Distributor - National | J80: 002 | K80: Unassigned | L80: 3000 | M80: Undefined | N80: 3000 | O80: ALMO DISTRIBUTING - RENO | P80: ALMO DISTRIBUTING PA INC | Q80: Americas LLC | R80: 5.36 | S80: 535.77 | T80: 01/15/2020 | U80: Standard Distribution | V80: 01 | W80: ALMO | X80: 0002257116 | Y80: Standard Order | Z80: TA | AA80: AV CONTENT CAPTURE (VADDIO) | AB80: 2020 | AC80: 2020-01 | AD80: 1466 | AE80: Vaddio | AF80: CAMERA MOUNT | AG80: WALL | AH80: AV | AI80: 001 | AJ80: 535-2000-251 | AL80: ALMO DISTRIBUTING PA INC | AM80: Vaddio | AN80: 3002 | AO80: 19154 | AP80: E | AQ80: B0004 | AR80: B0004P0420 | AS80: B0004P0420G0014060 | AT80: Unassigned | AU80: THIN PROFILE WALL MNT PR60/HD EAGLE EYE | AV80: Projection Screens | AW80: B0004P0420G0014060 | AX80: US Camera Profit Center | AY80: 3000 | AZ80: 0095097783 | BA80: Unassigned | BB80: AV Distribution | BC80: 08 | BD80: US - Channel Sales | BE80: U1DXC1 | BF80: United States | BG80: Americas - LLC | BH80: 3000 | BI80: Patrick Mead | BK80: Undefined | BM80: Nevada | BN80: United States | BO80: United States | BP80: Unassigned | BQ80: DIRECT | BR80: AV CAPTURE & COLLABORATION - CAMERAS | BS80: 4210 | BT80: 1 | BU80: -4.25419241 | BV80: 101.97 | BW80: 5.36 | BX80: 100 | BY80: 10197 | BZ80: USD | CA80: 1 | CB80: 10197
A81: 534587325 | B81: 01 | D81: 111032 | F81: Invoice | G81: Vaddio | H81: B0004 | I81: Distributor - National | J81: 002 | K81: Unassigned | L81: 3000 | M81: Undefined | N81: 3000 | O81: ALMO DISTRIBUTING - RENO | P81: ALMO DISTRIBUTING PA INC | Q81: Americas LLC | R81: 5.36 | S81: 535.65 | T81: 01/20/2020 | U81: Standard Distribution | V81: 01 | W81: ALMO | X81: 0002256919 | Y81: Standard Order | Z81: TA | AA81: AV CONTENT CAPTURE (VADDIO) | AB81: 2020 | AC81: 2020-01 | AD81: 523 | AE81: Vaddio | AF81: CAMERA MOUNT | AG81: WALL | AH81: AV | AI81: 001 | AJ81: 535-2000-251 | AL81: ALMO DISTRIBUTING PA INC | AM81: Vaddio | AN81: 3002 | AO81: 19154 | AP81: E | AQ81: B0004 | AR81: B0004P0420 | AS81: B0004P0420G0014060 | AT81: Unassigned | AU81: THIN PROFILE WALL MNT PR60/HD EAGLE EYE | AV81: Projection Screens | AW81: B0004P0420G0014060 | AX81: US Camera Profit Center | AY81: 3000 | AZ81: 0095103978 | BA81: Unassigned | BB81: AV Distribution | BC81: 08 | BD81: US - Channel Sales | BE81: U1DXC1 | BF81: United States | BG81: Americas - LLC | BH81: 3000 | BI81: Patrick Mead | BK81: Undefined | BM81: Nevada | BN81: United States | BO81: United States | BP81: Unassigned | BQ81: DIRECT | BR81: AV CAPTURE & COLLABORATION - CAMERAS | BS81: 4210 | BT81: 1 | BU81: -4.253015593 | BV81: 101.97 | BW81: 5.36 | BX81: 100 | BY81: 10197 | BZ81: USD | CA81: 1 | CB81: 10197
A82: 534654981 | B82: 0 | F82: Intercompany Billing | G82: Vaddio | H82: B0004 | I82: Undefined | J82: 000 | K82: Unassigned | L82: 3000 | M82: Undefined | N82: 3000 | O82: LEGRAND AV NETHERLANDS B.V. | P82: Unassigned | Q82: Americas LLC | R82: 173.63 | S82: 17363 | T82: 08/27/2020 | U82: Standard Distribution | V82: 01 | W82: Unassigned | Y82: Undefined | Z82: 00 | AA82: AV CONFERENCING (VADDIO) | AB82: 2020 | AC82: 2020-08 | AD82: 0 | AE82: Vaddio | AF82: CONFERENCE | AG82: AUDIO | AH82: Undefined | AI82: 000 | AJ82: 999-85100-000 | AM82: Vaddio | AN82: 3002 | AP82: E | AQ82: B0004 | AR82: B0004P0435 | AS82: B0004P0435G0014090 | AT82: Unassigned | AU82: Ceiling MIC System White | AV82: Projection Screens | AW82: B0004P0435G0014090 | AX82: US Camera Profit Center | AZ82: 0096024878 | BA82: Unassigned | BB82: Undefined | BC82: 0 | BD82: Undefined | BE82: 0000000 | BF82: Undefined | BG82: Americas - LLC | BH82: 3000 | BI82: Unassigned | BK82: Undefined | BM82: Undefined | BN82: Undefined | BO82: Netherlands | BP82: Undefined | BQ82: DIRECT | BR82: AV CAPTURE & COLLABORATION - CAMERAS | BS82: 4210 | BT82: 0 | BU82: -85.95652174 | BV82: 199.6745 | BW82: 173.63 | BX82: 100 | BY82: 19967.45 | BZ82: USD | CA82: 1 | CB82: 19967.45
A83: 534720578 | B83: 01 | D83: 106890 | F83: EDI Invoice | G83: Vaddio | H83: B0004 | I83: Distributor - National | J83: 002 | K83: Unassigned | L83: 3000 | M83: Undefined | N83: 3000 | O83: ENTER ALTERNATE ADDRESS (US) | P83: EXERTIS | Q83: Americas LLC | R83: 9.08 | S83: 907.65 | T83: 07/29/2021 | U83: Standard Distribution | V83: 01 | W83: STAMPEDE | X83: 0040871432 | Y83: EDI Order | Z83: ZEDI | AA83: AV CONTENT CAPTURE (VADDIO) | AB83: 2021 | AC83: 2021-07 | AD83: 779 | AE83: Vaddio | AF83: CAMERA MOUNT | AG83: WALL | AH83: AV | AI83: 001 | AJ83: 535-2020-230W | AK83: STAMPEDE PRESENTATION | AL83: STAMPEDE PRESENTATION | AM83: Vaddio | AN83: 3002 | AO83: 14228 | AP83: E | AQ83: B0004 | AR83: B0004P0420 | AS83: B0004P0420G0014060 | AT83: Unassigned | AU83: THIN PROFILE WALL MOUNT HD-SERIES WHITE | AV83: Projection Screens | AW83: B0004P0420G0014060 | AX83: US Camera Profit Center | AY83: 3000 | AZ83: 0097480606 | BA83: Unassigned | BB83: AV Distribution | BC83: 08 | BD83: US - Channel Sales | BE83: U1DXC1 | BF83: United States | BG83: Americas - LLC | BH83: 3000 | BI83: Patrick Mead | BK83: Undefined | BM83: New Jersey | BN83: United States | BO83: United States | BP83: New York | BQ83: DIRECT | BR83: AV CAPTURE & COLLABORATION - CAMERAS | BS83: 4210 | BT83: 1 | BU83: -9.634446397 | BV83: 85.35 | BW83: 9.08 | BX83: 100 | BY83: 8535 | BZ83: USD | CA83: 1 | CB83: 8535
A84: 534980102 | B84: 0 | F84: Intercompany Billing | G84: Vaddio | H84: B0004 | I84: Undefined | J84: 000 | K84: Unassigned | L84: 3000 | M84: Undefined | N84: 3000 | O84: LEGRAND AV NETHERLANDS B.V. | P84: Unassigned | Q84: Americas LLC | R84: 174.6 | S84: 17459.61 | T84: 09/17/2020 | U84: Standard Distribution | V84: 01 | W84: Unassigned | Y84: Undefined | Z84: 00 | AA84: AV CONFERENCING (VADDIO) | AB84: 2020 | AC84: 2020-09 | AD84: 0 | AE84: Vaddio | AF84: CONFERENCE | AG84: AUDIO | AH84: Undefined | AI84: 000 | AJ84: 999-85100-000 | AM84: Vaddio | AN84: 3002 | AP84: E | AQ84: B0004 | AR84: B0004P0435 | AS84: B0004P0435G0014090 | AT84: Unassigned | AU84: Ceiling MIC System White | AV84: Projection Screens | AW84: B0004P0435G0014090 | AX84: US Camera Profit Center | AZ84: 0096119995 | BA84: Unassigned | BB84: Undefined | BC84: 0 | BD84: Undefined | BE84: 0000000 | BF84: Undefined | BG84: Americas - LLC | BH84: 3000 | BI84: Unassigned | BK84: Undefined | BM84: Undefined | BN84: Undefined | BO84: Netherlands | BP84: Undefined | BQ84: DIRECT | BR84: AV CAPTURE & COLLABORATION - CAMERAS | BS84: 4210 | BT84: 0 | BU84: -85.95652824 | BV84: 200.7855 | BW84: 174.6 | BX84: 100 | BY84: 20078.55 | BZ84: USD | CA84: 1 | CB84: 20078.55
A85: 535140457 | B85: 0 | F85: Intercompany Billing | G85: Vaddio | H85: B0004 | I85: Undefined | J85: 000 | K85: Unassigned | L85: 3000 | M85: Undefined | N85: 3000 | O85: LEGRAND AV NETHERLANDS B.V. | P85: Unassigned | Q85: Americas LLC | R85: 154.56 | S85: 15456.44 | T85: 01/27/2020 | U85: Standard Distribution | V85: 01 | W85: Unassigned | Y85: Undefined | Z85: 00 | AA85: AV CONFERENCING (VADDIO) | AB85: 2020 | AC85: 2020-01 | AD85: 0 | AE85: Vaddio | AF85: CONFERENCE | AG85: AUDIO | AH85: Undefined | AI85: 000 | AJ85: 999-85100-000 | AM85: Vaddio | AN85: 3002 | AP85: E | AQ85: B0004 | AR85: B0004P0435 | AS85: B0004P0435G0014090 | AT85: Unassigned | AU85: Ceiling MIC System White | AV85: Projection Screens | AW85: B0004P0435G0014090 | AX85: US Camera Profit Center | AZ85: 0095147480 | BA85: Unassigned | BB85: Undefined | BC85: 0 | BD85: Undefined | BE85: 0000000 | BF85: Undefined | BG85: Americas - LLC | BH85: 3000 | BI85: Unassigned | BK85: Undefined | BM85: Undefined | BN85: Undefined | BO85: Netherlands | BP85: Undefined | BQ85: DIRECT | BR85: AV CAPTURE & COLLABORATION - CAMERAS | BS85: 4210 | BT85: 0 | BU85: -85.95650217 | BV85: 177.7491 | BW85: 154.56 | BX85: 100 | BY85: 17774.91 | BZ85: USD | CA85: 1 | CB85: 17774.91
A86: 535331456 | B86: 01 | D86: 132696 | F86: Invoice | G86: Vaddio | H86: B0004 | I86: Dealer | J86: 001 | K86: Unassigned | L86: 3000 | M86: Undefined | N86: 3000 | O86: 1TST - MILESTONE INC. SAVAGE (3000) | P86: HOWARD INDUSTRIES INC | Q86: Americas LLC | R86: 26.56 | S86: 2656 | T86: 08/06/2020 | U86: Standard Distribution | V86: 01 | W86: Unassigned | X86: 0002395552 | Y86: Standard Order | Z86: TA | AA86: AV CONTENT CAPTURE (VADDIO) | AB86: 2020 | AC86: 2020-08 | AD86: 0 | AE86: Vaddio | AF86: CAMERA MOUNT | AG86: CEILING | AH86: AV | AI86: 001 | AJ86: 535-2000-206 | AL86: HOWARD INDUSTRIES INC | AM86: Vaddio | AN86: 3002 | AO86: 39437 | AP86: E | AQ86: B0004 | AR86: B0004P0420 | AS86: B0004P0420G0014055 | AT86: Unassigned | AU86: SUSPENDED CEILING PTZ CAMERA MOUNT | AV86: Projection Screens | AW86: B0004P0420G0014055 | AX86: US Camera Profit Center | AY86: 3000 | AZ86: 0095955484 | BA86: Unassigned | BB86: AV Integrators | BC86: 01 | BD86: South | BE86: U1DXP2 | BF86: United States | BG86: Americas - LLC | BH86: 3000 | BI86: Keri Manasa | BK86: Undefined | BM86: Unassigned | BN86: United States | BO86: United States | BP86: Unassigned | BQ86: DIRECT | BR86: AV CAPTURE & COLLABORATION - CAMERAS | BS86: 4210 | BT86: 1 | BU86: -37.79637745 | BV86: 68.46 | BW86: 26.56 | BX86: 100 | BY86: 6846 | BZ86: USD | CA86: 1 | CB86: 6846
A87: 535400310 | B87: 01 | D87: 131672 | F87: Invoice | G87: Vaddio | H87: B0004 | I87: Dealer | J87: 001 | K87: Unassigned | L87: 3000 | M87: Undefined | N87: 3000 | O87: AVI-SPL-LYNDHURST | P87: AVI-SPL LLC | Q87: Americas LLC | R87: 7.24 | S87: 724.13 | T87: 06/24/2020 | U87: Standard Distribution | V87: 01 | W87: Unassigned | X87: 0002362819 | Y87: Standard Order | Z87: TA | AA87: AV CONTENT CAPTURE (VADDIO) | AB87: 2020 | AC87: 2020-06 | AD87: 270 | AE87: Vaddio | AF87: CAMERA MOUNT | AG87: WALL | AH87: AV | AI87: 001 | AJ87: 535-2000-243 | AK87: AVI-SPL | AL87: AVI-SPL | AM87: Vaddio | AN87: 3002 | AO87: 33634 | AP87: E | AQ87: B0004 | AR87: B0004P0420 | AS87: B0004P0420G0014060 | AT87: Unassigned | AU87: THIN PROFILE WALL MOUNT SONY/PANA CAMS | AV87: Projection Screens | AW87: B0004P0420G0014060 | AX87: US Camera Profit Center | AY87: 3000 | AZ87: 0095786838 | BA87: Unassigned | BB87: AV Integrators | BC87: 01 | BD87: NorthEast | BE87: U1DXP1 | BF87: United States | BG87: Americas - LLC | BH87: 3000 | BI87: Bryan Torino | BK87: Undefined | BM87: New Jersey | BN87: United States | BO87: United States | BP87: Unassigned | BQ87: DIRECT | BR87: AV CAPTURE & COLLABORATION - CAMERAS | BS87: 4210 | BT87: 1 | BU87: -7.885030675 | BV87: 81.5 | BW87: 7.24 | BX87: 100 | BY87: 8150 | BZ87: USD | CA87: 1 | CB87: 8150
A88: 535462353 | B88: 01 | D88: 132104 | F88: Invoice | G88: Vaddio | H88: B0004 | I88: Dealer | J88: 001 | K88: PROFESSIONAL SYSTEMS NETWORK INTL | L88: 3000 | M88: Undefined | N88: 3000 | O88: ONE TIME - BID SHIP TO ONLY | P88: CONFERENCE TECHNOLOGIES INC. | Q88: Americas LLC | R88: 384.87 | S88: 38486.69 | T88: 11/10/2020 | U88: Standard Distribution | V88: 01 | W88: Unassigned | X88: 0002457897 | Y88: Standard Order | Z88: TA | AA88: AV CONTENT CAPTURE (VADDIO) | AB88: 2020 | AC88: 2020-11 | AD88: 193 | AE88: Vaddio | AF88: SWITCHERS | AG88: BRIDGES | AH88: AV | AI88: 001 | AJ88: 999-8240-000 | AL88: CONFERENCE TECHNOLOGIES INC. | AM88: Vaddio | AN88: 3002 | AO88: 63043 | AP88: E | AQ88: B0004 | AR88: B0004P0425 | AS88: B0004P0425G0014065 | AT88: Unassigned | AU88: AV Bridge Mini N/A | AV88: Projection Screens | AW88: B0004P0425G0014065 | AX88: US Camera Profit Center | AY88: 3000 | AZ88: 0096300058 | BA88: Unassigned | BB88: AV Integrators | BC88: 01 | BD88: MidWest | BE88: U1DXP3 | BF88: United States | BG88: Americas - LLC | BH88: 3000 | BI88: Steve Woll | BK88: Undefined | BM88: Iowa | BN88: United States | BO88: United States | BP88: Unassigned | BQ88: DIRECT | BR88: AV CAPTURE & COLLABORATION - CAMERAS | BS88: 4210 | BT88: 1 | BU88: -27.9119271 | BV88: 1331.17 | BW88: 384.87 | BX88: 100 | BY88: 133117 | BZ88: USD | CA88: 1 | CB88: 133117
A89: 535541933 | B89: 0 | F89: Intercompany Billing | G89: Vaddio | H89: B0004 | I89: Undefined | J89: 000 | K89: Unassigned | L89: 3000 | M89: Undefined | N89: 3000 | O89: LEGRAND AV NETHERLANDS B.V. | P89: Unassigned | Q89: Americas LLC | R89: 5.4 | S89: 540.3 | T89: 12/09/2020 | U89: Standard Distribution | V89: 01 | W89: Unassigned | Y89: Undefined | Z89: 00 | AA89: AV CONTENT CAPTURE (VADDIO) | AB89: 2020 | AC89: 2020-12 | AD89: 0 | AE89: Vaddio | AF89: ACCESSORIES | AG89: RAW | AH89: Undefined | AI89: 000 | AJ89: 807-178 | AM89: Vaddio | AN89: 3002 | AP89: F | AQ89: B0004 | AR89: B0004P0440 | AS89: B0004P0440G0014125 | AT89: Unassigned | AU89: BOX OUTER BOX FOR SPEAKER SYSTEM | AV89: Other/Misc | AW89: B0004P0440G0014125 | AX89: US Camera Profit Center | AZ89: 0096482573 | BA89: Unassigned | BB89: Undefined | BC89: 0 | BD89: Undefined | BE89: 0000000 | BF89: Undefined | BG89: Americas - LLC | BH89: 3000 | BI89: Unassigned | BK89: Undefined | BM89: Undefined | BN89: Undefined | BO89: Netherlands | BP89: Undefined | BQ89: DIRECT | BR89: AV CAPTURE & COLLABORATION - CAMERAS | BS89: 4210 | BT89: 0 | BU89: -85.955822 | BV89: 6.2135 | BW89: 5.4 | BX89: 100 | BY89: 621.35 | BZ89: USD | CA89: 1 | CB89: 621.35
A90: 535657086 | B90: 0 | F90: Intercompany Billing | G90: Vaddio | H90: B0004 | I90: Undefined | J90: 000 | K90: Unassigned | L90: 3000 | M90: Undefined | N90: 3000 | O90: LEGRAND AV NETHERLANDS B.V. | P90: Unassigned | Q90: Americas LLC | R90: 572.66 | S90: 57265.65 | T90: 12/09/2020 | U90: Standard Distribution | V90: 01 | W90: Unassigned | Y90: Undefined | Z90: 00 | AA90: AV CONTENT CAPTURE (VADDIO) | AB90: 2020 | AC90: 2020-12 | AD90: 0 | AE90: Vaddio | AF90: SWITCHERS | AG90: BRIDGES | AH90: Undefined | AI90: 000 | AJ90: 999-8250-001 | AM90: Vaddio | AN90: 3002 | AP90: E | AQ90: B0004 | AR90: B0004P0425 | AS90: B0004P0425G0014065 | AT90: Unassigned | AU90: AV Bridge 2x1 INT | AV90: Projection Screens | AW90: B0004P0425G0014065 | AX90: US Camera Profit Center | AZ90: 0096482573 | BA90: Unassigned | BB90: Undefined | BC90: 0 | BD90: Undefined | BE90: 0000000 | BF90: Undefined | BG90: Americas - LLC | BH90: 3000 | BI90: Unassigned | BK90: Undefined | BM90: Undefined | BN90: Undefined | BO90: Netherlands | BP90: Undefined | BQ90: DIRECT | BR90: AV CAPTURE & COLLABORATION - CAMERAS | BS90: 4210 | BT90: 0 | BU90: -85.95651844 | BV90: 658.555 | BW90: 572.66 | BX90: 100 | BY90: 65855.5 | BZ90: USD | CA90: 1 | CB90: 65855.5
A91: 535797876 | B91: 01 | D91: 101298 | F91: Invoice | G91: Vaddio | H91: B0004 | I91: Distributor - National | J91: 002 | K91: Unassigned | L91: 3000 | M91: Undefined | N91: 3000 | O91: ENTER ALTERNATE ADDRESS (US) | P91: AB DISTRIBUTING INC | Q91: Americas LLC | R91: 173.63 | S91: 17363 | T91: 07/28/2020 | U91: Standard Distribution | V91: 01 | W91: AB | X91: 0002345272 | Y91: Standard Order | Z91: TA | AA91: AV CONFERENCING (VADDIO) | AB91: 2020 | AC91: 2020-07 | AD91: 0 | AE91: Vaddio | AF91: CONFERENCE | AG91: AUDIO | AH91: IT/DMR | AI91: 002 | AJ91: 999-85100-000 | AK91: AB DISTRIBUTING | AL91: AB DISTRIBUTING | AM91: Vaddio | AN91: 3002 | AO91: 60004 | AP91: E | AQ91: B0004 | AR91: B0004P0435 | AS91: B0004P0435G0014090 | AT91: Unassigned | AU91: Ceiling MIC System White | AV91: Projection Screens | AW91: B0004P0435G0014090 | AX91: US Camera Profit Center | AY91: 3000 | AZ91: 0095909072 | BA91: Unassigned | BB91: IT Distribution | BC91: 12 | BD91: US - Channel Sales | BE91: U1DXC1 | BF91: United States | BG91: Americas - LLC | BH91: 3000 | BI91: Jack Gerts | BK91: Undefined | BM91: Unassigned | BN91: United States | BO91: United States | BP91: Illinois | BQ91: DIRECT | BR91: AV CAPTURE & COLLABORATION - CAMERAS | BS91: 4210 | BT91: 1 | BU91: -43.04840428 | BV91: 394.18 | BW91: 173.63 | BX91: 100 | BY91: 39418 | BZ91: USD | CA91: 1 | CB91: 39418
A92: 536447361 | B92: 01 | D92: 138189 | F92: Invoice | G92: Vaddio | H92: B0004 | I92: Dealer | J92: 001 | K92: Unassigned | L92: 3000 | M92: Undefined | N92: 3000 | O92: ONE TIME - BID SHIP TO ONLY | P92: CCS PRESENTATION SYS.- TX | Q92: Americas LLC | R92: 1563.52 | S92: 156351.92 | T92: 05/21/2020 | U92: Standard Distribution | V92: 01 | W92: Unassigned | X92: 0002332055 | Y92: Standard Order | Z92: TA | AA92: AV CONTENT CAPTURE (VADDIO) | AB92: 2020 | AC92: 2020-05 | AD92: 1120 | AE92: Vaddio | AF92: PTZ CAMERA | AG92: EXTENSION KIT | AH92: AV | AI92: 001 | AJ92: 999-96750-400 | AL92: CCS PRESENTATION SYS.- TX | AM92: Vaddio | AN92: 3002 | AO92: 77065 | AP92: E | AQ92: B0004 | AR92: B0004P0400 | AS92: B0004P0400G0014000 | AT92: Unassigned | AU92: ROBOSHOT 12E HDBT OLB SYS FOR CISCO | AV92: Projection Screens | AW92: B0004P0400G0014000 | AX92: US Camera Profit Center | AY92: 3000 | AZ92: 0095649258 | BA92: Unassigned | BB92: AV Integrators | BC92: 01 | BD92: South | BE92: U1DXP2 | BF92: United States | BG92: Americas - LLC | BH92: 3000 | BI92: David Sweeney | BK92: Undefined | BM92: Texas | BN92: United States | BO92: United States | BP92: Texas | BQ92: DIRECT | BR92: AV CAPTURE & COLLABORATION - CAMERAS | BS92: 4210 | BT92: 2 | BU92: -43.71119525 | BV92: 3496.93 | BW92: 1563.52 | BX92: 100 | BY92: 349693 | BZ92: USD | CA92: 1 | CB92: 349693
A93: 536673691 | B93: 0 | F93: Intercompany Billing | G93: Vaddio | H93: B0004 | I93: Undefined | J93: 000 | K93: Unassigned | L93: 3000 | M93: Undefined | N93: 3000 | O93: LEGRAND AV NETHERLANDS B.V. | P93: Unassigned | Q93: Americas LLC | R93: 7.51 | S93: 750.87 | T93: 07/22/2021 | U93: Standard Distribution | V93: 01 | W93: Unassigned | Y93: Undefined | Z93: 00 | AA93: AV CONTENT CAPTURE (VADDIO) | AB93: 2021 | AC93: 2021-07 | AD93: 0 | AE93: Vaddio | AF93: CAMERA MOUNT | AG93: WALL | AH93: Undefined | AI93: 000 | AJ93: 535-2000-251 | AM93: Vaddio | AN93: 3002 | AP93: E | AQ93: B0004 | AR93: B0004P0420 | AS93: B0004P0420G0014060 | AT93: Unassigned | AU93: THIN PROFILE WALL MNT PR60/HD EAGLE EYE | AV93: Projection Screens | AW93: B0004P0420G0014060 | AX93: US Camera Profit Center | AZ93: 0097431072 | BA93: Unassigned | BB93: Undefined | BC93: 0 | BD93: Undefined | BE93: 0000000 | BF93: Undefined | BG93: Americas - LLC | BH93: 3000 | BI93: Unassigned | BK93: Undefined | BM93: Undefined | BN93: Undefined | BO93: Netherlands | BP93: Undefined | BQ93: DIRECT | BR93: AV CAPTURE & COLLABORATION - CAMERAS | BS93: 4210 | BT93: 0 | BU93: -85.95657209 | BV93: 8.635 | BW93: 7.51 | BX93: 100 | BY93: 863.5 | BZ93: USD | CA93: 1 | CB93: 863.5
A94: 536850791 | B94: 01 | D94: 101298 | F94: Invoice | G94: Vaddio | H94: B0004 | I94: Distributor - National | J94: 002 | K94: Unassigned | L94: 3000 | M94: Undefined | N94: 3000 | O94: ENTER ALTERNATE ADDRESS (US) | P94: AB DISTRIBUTING INC | Q94: Americas LLC | R94: 6.04 | S94: 603.52 | T94: 07/15/2020 | U94: Standard Distribution | V94: 01 | W94: AB | X94: 0002383737 | Y94: Standard Order | Z94: TA | AA94: AV CONTENT CAPTURE (VADDIO) | AB94: 2020 | AC94: 2020-07 | AD94: 0 | AE94: Vaddio | AF94: CAMERA MOUNT | AG94: WALL | AH94: IT/DMR | AI94: 002 | AJ94: 535-2000-214 | AK94: AB DISTRIBUTING | AL94: AB DISTRIBUTING | AM94: Vaddio | AN94: 3002 | AO94: 60004 | AP94: E | AQ94: B0004 | AR94: B0004P0420 | AS94: B0004P0420G0014060 | AT94: Unassigned | AU94: EXPANDABLE WALL MOUNT | AV94: Projection Screens | AW94: B0004P0420G0014060 | AX94: US Camera Profit Center | AY94: 3000 | AZ94: 0095854899 | BA94: Unassigned | BB94: IT Distribution | BC94: 12 | BD94: US - Channel Sales | BE94: U1DXC1 | BF94: United States | BG94: Americas - LLC | BH94: 3000 | BI94: Jack Gerts | BK94: Undefined | BM94: New Jersey | BN94: United States | BO94: United States | BP94: Illinois | BQ94: DIRECT | BR94: AV CAPTURE & COLLABORATION - CAMERAS | BS94: 4210 | BT94: 1 | BU94: -15.37774763 | BV94: 36.85 | BW94: 6.04 | BX94: 100 | BY94: 3685 | BZ94: USD | CA94: 1 | CB94: 3685
A95: 536850792 | B95: 01 | D95: 101298 | F95: Invoice | G95: Vaddio | H95: B0004 | I95: Distributor - National | J95: 002 | K95: Unassigned | L95: 3000 | M95: Undefined | N95: 3000 | O95: ENTER ALTERNATE ADDRESS (US) | P95: AB DISTRIBUTING INC | Q95: Americas LLC | R95: 6.03 | S95: 603 | T95: 07/28/2020 | U95: Standard Distribution | V95: 01 | W95: AB | X95: 0002383737 | Y95: Standard Order | Z95: TA | AA95: AV CONTENT CAPTURE (VADDIO) | AB95: 2020 | AC95: 2020-07 | AD95: 0 | AE95: Vaddio | AF95: CAMERA MOUNT | AG95: WALL | AH95: IT/DMR | AI95: 002 | AJ95: 535-2000-214 | AK95: AB DISTRIBUTING | AL95: AB DISTRIBUTING | AM95: Vaddio | AN95: 3002 | AO95: 60004 | AP95: E | AQ95: B0004 | AR95: B0004P0420 | AS95: B0004P0420G0014060 | AT95: Unassigned | AU95: EXPANDABLE WALL MOUNT | AV95: Projection Screens | AW95: B0004P0420G0014060 | AX95: US Camera Profit Center | AY95: 3000 | AZ95: 0095909070 | BA95: Unassigned | BB95: IT Distribution | BC95: 12 | BD95: US - Channel Sales | BE95: U1DXC1 | BF95: United States | BG95: Americas - LLC | BH95: 3000 | BI95: Jack Gerts | BK95: Undefined | BM95: New Jersey | BN95: United States | BO95: United States | BP95: Illinois | BQ95: DIRECT | BR95: AV CAPTURE & COLLABORATION - CAMERAS | BS95: 4210 | BT95: 1 | BU95: -15.36363636 | BV95: 36.85 | BW95: 6.03 | BX95: 100 | BY95: 3685 | BZ95: USD | CA95: 1 | CB95: 3685
A96: 537347572 | B96: 01 | D96: 101298 | F96: Invoice | G96: Vaddio | H96: B0004 | I96: Distributor - National | J96: 002 | K96: Unassigned | L96: 3000 | M96: Undefined | N96: 3000 | O96: ENTER ALTERNATE ADDRESS (US) | P96: AB DISTRIBUTING INC | Q96: Americas LLC | R96: 6.03 | S96: 603 | T96: 07/28/2020 | U96: Standard Distribution | V96: 01 | W96: AB | X96: 0002383737 | Y96: Standard Order | Z96: TA | AA96: AV CONTENT CAPTURE (VADDIO) | AB96: 2020 | AC96: 2020-07 | AD96: 0 | AE96: Vaddio | AF96: CAMERA MOUNT | AG96: WALL | AH96: IT/DMR | AI96: 002 | AJ96: 535-2000-214 | AK96: AB DISTRIBUTING | AL96: AB DISTRIBUTING | AM96: Vaddio | AN96: 3002 | AO96: 60004 | AP96: E | AQ96: B0004 | AR96: B0004P0420 | AS96: B0004P0420G0014060 | AT96: Unassigned | AU96: EXPANDABLE WALL MOUNT | AV96: Projection Screens | AW96: B0004P0420G0014060 | AX96: US Camera Profit Center | AY96: 3000 | AZ96: 0095909070 | BA96: Unassigned | BB96: IT Distribution | BC96: 12 | BD96: US - Channel Sales | BE96: U1DXC1 | BF96: United States | BG96: Americas - LLC | BH96: 3000 | BI96: Jack Gerts | BK96: Undefined | BM96: New Jersey | BN96: United States | BO96: United States | BP96: Illinois | BQ96: DIRECT | BR96: AV CAPTURE & COLLABORATION - CAMERAS | BS96: 4210 | BT96: 1 | BU96: -15.36363636 | BV96: 36.85 | BW96: 6.03 | BX96: 100 | BY96: 3685 | BZ96: USD | CA96: 1 | CB96: 3685
A97: 537347573 | B97: 01 | D97: 101298 | F97: Invoice | G97: Vaddio | H97: B0004 | I97: Distributor - National | J97: 002 | K97: Unassigned | L97: 3000 | M97: Undefined | N97: 3000 | O97: ENTER ALTERNATE ADDRESS (US) | P97: AB DISTRIBUTING INC | Q97: Americas LLC | R97: 6.04 | S97: 603.53 | T97: 07/15/2020 | U97: Standard Distribution | V97: 01 | W97: AB | X97: 0002383737 | Y97: Standard Order | Z97: TA | AA97: AV CONTENT CAPTURE (VADDIO) | AB97: 2020 | AC97: 2020-07 | AD97: 0 | AE97: Vaddio | AF97: CAMERA MOUNT | AG97: WALL | AH97: IT/DMR | AI97: 002 | AJ97: 535-2000-214 | AK97: AB DISTRIBUTING | AL97: AB DISTRIBUTING | AM97: Vaddio | AN97: 3002 | AO97: 60004 | AP97: E | AQ97: B0004 | AR97: B0004P0420 | AS97: B0004P0420G0014060 | AT97: Unassigned | AU97: EXPANDABLE WALL MOUNT | AV97: Projection Screens | AW97: B0004P0420G0014060 | AX97: US Camera Profit Center | AY97: 3000 | AZ97: 0095854899 | BA97: Unassigned | BB97: IT Distribution | BC97: 12 | BD97: US - Channel Sales | BE97: U1DXC1 | BF97: United States | BG97: Americas - LLC | BH97: 3000 | BI97: Jack Gerts | BK97: Undefined | BM97: New Jersey | BN97: United States | BO97: United States | BP97: Illinois | BQ97: DIRECT | BR97: AV CAPTURE & COLLABORATION - CAMERAS | BS97: 4210 | BT97: 1 | BU97: -15.378019 | BV97: 36.85 | BW97: 6.04 | BX97: 100 | BY97: 3685 | BZ97: USD | CA97: 1 | CB97: 3685
A98: 537347575 | B98: 01 | D98: 101298 | F98: Invoice | G98: Vaddio | H98: B0004 | I98: Distributor - National | J98: 002 | K98: Unassigned | L98: 3000 | M98: Undefined | N98: 3000 | O98: ENTER ALTERNATE ADDRESS (US) | P98: AB DISTRIBUTING INC | Q98: Americas LLC | R98: 6.03 | S98: 603.01 | T98: 07/28/2020 | U98: Standard Distribution | V98: 01 | W98: AB | X98: 0002383737 | Y98: Standard Order | Z98: TA | AA98: AV CONTENT CAPTURE (VADDIO) | AB98: 2020 | AC98: 2020-07 | AD98: 0 | AE98: Vaddio | AF98: CAMERA MOUNT | AG98: WALL | AH98: IT/DMR | AI98: 002 | AJ98: 535-2000-214 | AK98: AB DISTRIBUTING | AL98: AB DISTRIBUTING | AM98: Vaddio | AN98: 3002 | AO98: 60004 | AP98: E | AQ98: B0004 | AR98: B0004P0420 | AS98: B0004P0420G0014060 | AT98: Unassigned | AU98: EXPANDABLE WALL MOUNT | AV98: Projection Screens | AW98: B0004P0420G0014060 | AX98: US Camera Profit Center | AY98: 3000 | AZ98: 0095909070 | BA98: Unassigned | BB98: IT Distribution | BC98: 12 | BD98: US - Channel Sales | BE98: U1DXC1 | BF98: United States | BG98: Americas - LLC | BH98: 3000 | BI98: Jack Gerts | BK98: Undefined | BM98: New Jersey | BN98: United States | BO98: United States | BP98: Illinois | BQ98: DIRECT | BR98: AV CAPTURE & COLLABORATION - CAMERAS | BS98: 4210 | BT98: 1 | BU98: -15.36390773 | BV98: 36.85 | BW98: 6.03 | BX98: 100 | BY98: 3685 | BZ98: USD | CA98: 1 | CB98: 3685
A99: 537415529 | B99: 01 | D99: 101298 | F99: Invoice | G99: Vaddio | H99: B0004 | I99: Distributor - National | J99: 002 | K99: Unassigned | L99: 3000 | M99: Undefined | N99: 3000 | O99: ENTER ALTERNATE ADDRESS (US) | P99: AB DISTRIBUTING INC | Q99: Americas LLC | R99: 6.03 | S99: 603 | T99: 07/28/2020 | U99: Standard Distribution | V99: 01 | W99: AB | X99: 0002383737 | Y99: Standard Order | Z99: TA | AA99: AV CONTENT CAPTURE (VADDIO) | AB99: 2020 | AC99: 2020-07 | AD99: 0 | AE99: Vaddio | AF99: CAMERA MOUNT | AG99: WALL | AH99: IT/DMR | AI99: 002 | AJ99: 535-2000-214 | AK99: AB DISTRIBUTING | AL99: AB DISTRIBUTING | AM99: Vaddio | AN99: 3002 | AO99: 60004 | AP99: E | AQ99: B0004 | AR99: B0004P0420 | AS99: B0004P0420G0014060 | AT99: Unassigned | AU99: EXPANDABLE WALL MOUNT | AV99: Projection Screens | AW99: B0004P0420G0014060 | AX99: US Camera Profit Center | AY99: 3000 | AZ99: 0095909070 | BA99: Unassigned | BB99: IT Distribution | BC99: 12 | BD99: US - Channel Sales | BE99: U1DXC1 | BF99: United States | BG99: Americas - LLC | BH99: 3000 | BI99: Jack Gerts | BK99: Undefined | BM99: New Jersey | BN99: United States | BO99: United States | BP99: Illinois | BQ99: DIRECT | BR99: AV CAPTURE & COLLABORATION - CAMERAS | BS99: 4210 | BT99: 1 | BU99: -15.36363636 | BV99: 36.85 | BW99: 6.03 | BX99: 100 | BY99: 3685 | BZ99: USD | CA99: 1 | CB99: 3685
A100: 537427183 | B100: 01 | D100: 131672 | F100: Invoice | G100: Vaddio | H100: B0004 | I100: Dealer | J100: 001 | K100: Unassigned | L100: 3000 | M100: Undefined | N100: 3000 | O100: ENTER ALTERNATE ADDRESS (US) | P100: AVI-SPL LLC | Q100: Americas LLC | R100: 9.91 | S100: 990.68 | T100: 07/08/2020 | U100: Standard Distribution | V100: 01 | W100: Unassigned | X100: 0040569542 | Y100: EDI Order | Z100: ZEDI | AA100: AV CONTENT CAPTURE (VADDIO) | AB100: 2020 | AC100: 2020-07 | AD100: 38 | AE100: Vaddio | AF100: ACCESSORIES | AG100: CABLES & CONNECTORS | AH100: AV | AI100: 001 | AJ100: 998-1001-232 | AK100: AVI-SPL | AL100: AVI-SPL | AM100: Vaddio | AN100: 3002 | AO100: 33634 | AP100: F | AQ100: B0004 | AR100: B0004P0440 | AS100: B0004P0440G0014105 | AT100: Unassigned | AU100: ADAPTER CONTROL DB-9M TO RJ-45F | AV100: Other/Misc | AW100: B0004P0440G0014105 | AX100: US Camera Profit Center | AY100: 3000 | AZ100: 0095839214 | BA100: Unassigned | BB100: AV Integrators | BC100: 01 | BD100: South | BE100: U1DXP2 | BF100: United States | BG100: Americas - LLC | BH100: 3000 | BI100: Kalee Luke | BK100: Undefined | BM100: Unassigned | BN100: United States | BO100: United States | BP100: Unassigned | BQ100: DIRECT | BR100: AV CAPTURE & COLLABORATION - CAMERAS | BS100: 4210 | BT100: 1 | BU100: -58.85981873 | BV100: 16.55 | BW100: 9.91 | BX100: 100 | BY100: 1655 | BZ100: USD | CA100: 1 | CB100: 1655
A101: 537760494 | B101: 01 | D101: 133557 | F101: Invoice | G101: Vaddio | H101: B0004 | I101: Dealer | J101: 001 | K101: Unassigned | L101: 3000 | M101: Undefined | N101: 3000 | O101: ONE TIME - BID SHIP TO ONLY | P101: SKC COMMUNICATION PRODUCTS LLC | Q101: Americas LLC | R101: 173.63 | S101: 17363 | T101: 08/12/2020 | U101: Standard Distribution | V101: 01 | W101: Unassigned | X101: 0002345250 | Y101: Standard Order | Z101: TA | AA101: AV CONFERENCING (VADDIO) | AB101: 2020 | AC101: 2020-08 | AD101: 0 | AE101: Vaddio | AF101: CONFERENCE | AG101: AUDIO | AH101: AV | AI101: 001 | AJ101: 999-85100-000 | AL101: SKC COMMUNICATION PRODUCTS LLC | AM101: Vaddio | AN101: 3002 | AO101: 66227 | AP101: E | AQ101: B0004 | AR101: B0004P0435 | AS101: B0004P0435G0014090 | AT101: Unassigned | AU101: Ceiling MIC System White | AV101: Projection Screens | AW101: B0004P0435G0014090 | AX101: US Camera Profit Center | AY101: 3000 | AZ101: 0095969269 | BA101: Unassigned | BB101: AV Integrators | BC101: 01 | BD101: South | BE101: U1DXP2 | BF101: United States | BG101: Americas - LLC | BH101: 3000 | BI101: Robert Dutton | BK101: Undefined | BM101: Texas | BN101: United States | BO101: United States | BP101: Kansas | BQ101: DIRECT | BR101: AV CAPTURE & COLLABORATION - CAMERAS | BS101: 4210 | BT101: 1 | BU101: -42.06940517 | BV101: 403.14 | BW101: 173.63 | BX101: 100 | BY101: 40314 | BZ101: USD | CA101: 1 | CB101: 40314
A102: 537877782 | B102: 01 | D102: 101298 | F102: Invoice | G102: Vaddio | H102: B0004 | I102: Distributor - National | J102: 002 | K102: Unassigned | L102: 3000 | M102: Undefined | N102: 3000 | O102: ENTER ALTERNATE ADDRESS (US) | P102: AB DISTRIBUTING INC | Q102: Americas LLC | R102: 6.03 | S102: 603 | T102: 07/28/2020 | U102: Standard Distribution | V102: 01 | W102: AB | X102: 0002383737 | Y102: Standard Order | Z102: TA | AA102: AV CONTENT CAPTURE (VADDIO) | AB102: 2020 | AC102: 2020-07 | AD102: 0 | AE102: Vaddio | AF102: CAMERA MOUNT | AG102: WALL | AH102: IT/DMR | AI102: 002 | AJ102: 535-2000-214 | AK102: AB DISTRIBUTING | AL102: AB DISTRIBUTING | AM102: Vaddio | AN102: 3002 | AO102: 60004 | AP102: E | AQ102: B0004 | AR102: B0004P0420 | AS102: B0004P0420G0014060 | AT102: Unassigned | AU102: EXPANDABLE WALL MOUNT | AV102: Projection Screens | AW102: B0004P0420G0014060 | AX102: US Camera Profit Center | AY102: 3000 | AZ102: 0095909070 | BA102: Unassigned | BB102: IT Distribution | BC102: 12 | BD102: US - Channel Sales | BE102: U1DXC1 | BF102: United States | BG102: Americas - LLC | BH102: 3000 | BI102: Jack Gerts | BK102: Undefined | BM102: New Jersey | BN102: United States | BO102: United States | BP102: Illinois | BQ102: DIRECT | BR102: AV CAPTURE & COLLABORATION - CAMERAS | BS102: 4210 | BT102: 1 | BU102: -15.36363636 | BV102: 36.85 | BW102: 6.03 | BX102: 100 | BY102: 3685 | BZ102: USD | CA102: 1 | CB102: 3685
A103: 537877788 | B103: 01 | D103: 101298 | F103: Invoice | G103: Vaddio | H103: B0004 | I103: Distributor - National | J103: 002 | K103: Unassigned | L103: 3000 | M103: Undefined | N103: 3000 | O103: ENTER ALTERNATE ADDRESS (US) | P103: AB DISTRIBUTING INC | Q103: Americas LLC | R103: 6.03 | S103: 603 | T103: 07/28/2020 | U103: Standard Distribution | V103: 01 | W103: AB | X103: 0002383737 | Y103: Standard Order | Z103: TA | AA103: AV CONTENT CAPTURE (VADDIO) | AB103: 2020 | AC103: 2020-07 | AD103: 0 | AE103: Vaddio | AF103: CAMERA MOUNT | AG103: WALL | AH103: IT/DMR | AI103: 002 | AJ103: 535-2000-214 | AK103: AB DISTRIBUTING | AL103: AB DISTRIBUTING | AM103: Vaddio | AN103: 3002 | AO103: 60004 | AP103: E | AQ103: B0004 | AR103: B0004P0420 | AS103: B0004P0420G0014060 | AT103: Unassigned | AU103: EXPANDABLE WALL MOUNT | AV103: Projection Screens | AW103: B0004P0420G0014060 | AX103: US Camera Profit Center | AY103: 3000 | AZ103: 0095909070 | BA103: Unassigned | BB103: IT Distribution | BC103: 12 | BD103: US - Channel Sales | BE103: U1DXC1 | BF103: United States | BG103: Americas - LLC | BH103: 3000 | BI103: Jack Gerts | BK103: Undefined | BM103: New Jersey | BN103: United States | BO103: United States | BP103: Illinois | BQ103: DIRECT | BR103: AV CAPTURE & COLLABORATION - CAMERAS | BS103: 4210 | BT103: 1 | BU103: -15.36363636 | BV103: 36.85 | BW103: 6.03 | BX103: 100 | BY103: 3685 | BZ103: USD | CA103: 1 | CB103: 3685
A104: 537908280 | B104: 01 | D104: 106890 | F104: EDI Invoice | G104: Vaddio | H104: B0004 | I104: Distributor - National | J104: 002 | K104: Unassigned | L104: 3000 | M104: Undefined | N104: 3000 | O104: ENTER ALTERNATE ADDRESS (US) | P104: EXERTIS | Q104: Americas LLC | R104: 10.02 | S104: 1001.55 | T104: 10/13/2021 | U104: Standard Distribution | V104: 01 | W104: STAMPEDE | X104: 0040923226 | Y104: EDI Order | Z104: ZEDI | AA104: AV CONTENT CAPTURE (VADDIO) | AB104: 2021 | AC104: 2021-10 | AD104: 785 | AE104: Vaddio | AF104: CAMERA MOUNT | AG104: WALL | AH104: AV | AI104: 001 | AJ104: 535-2020-230W | AK104: STAMPEDE PRESENTATION | AL104: STAMPEDE PRESENTATION | AM104: Vaddio | AN104: 3002 | AO104: 14228 | AP104: E | AQ104: B0004 | AR104: B0004P0420 | AS104: B0004P0420G0014060 | AT104: Unassigned | AU104: THIN PROFILE WALL MOUNT HD-SERIES WHITE | AV104: Projection Screens | AW104: B0004P0420G0014060 | AX104: US Camera Profit Center | AY104: 3000 | AZ104: 0097793513 | BA104: Unassigned | BB104: AV Distribution | BC104: 08 | BD104: US - Channel Sales | BE104: U1DXC1 | BF104: United States | BG104: Americas - LLC | BH104: 3000 | BI104: Patrick Mead | BK104: Undefined | BM104: New Jersey | BN104: United States | BO104: United States | BP104: New York | BQ104: DIRECT | BR104: AV CAPTURE & COLLABORATION - CAMERAS | BS104: 4210 | BT104: 1 | BU104: -10.73462214 | BV104: 85.35 | BW104: 10.02 | BX104: 100 | BY104: 8535 | BZ104: USD | CA104: 1 | CB104: 8535
A105: 537957153 | B105: 0 | F105: Intercompany Billing | G105: Vaddio | H105: B0004 | I105: Undefined | J105: 000 | K105: Unassigned | L105: 3000 | M105: Undefined | N105: 3000 | O105: LEGRAND AV NETHERLANDS B.V. | P105: Unassigned | Q105: Americas LLC | R105: 178.37 | S105: 17837.45 | T105: 07/22/2021 | U105: Standard Distribution | V105: 01 | W105: Unassigned | Y105: Undefined | Z105: 00 | AA105: AV CONFERENCING (VADDIO) | AB105: 2021 | AC105: 2021-07 | AD105: 0 | AE105: Vaddio | AF105: CONFERENCE | AG105: AUDIO | AH105: Undefined | AI105: 000 | AJ105: 999-85100-000 | AM105: Vaddio | AN105: 3002 | AP105: E | AQ105: B0004 | AR105: B0004P0435 | AS105: B0004P0435G0014090 | AT105: Unassigned | AU105: Ceiling MIC System White | AV105: Projection Screens | AW105: B0004P0435G0014090 | AX105: US Camera Profit Center | AZ105: 0097431072 | BA105: Unassigned | BB105: Undefined | BC105: 0 | BD105: Undefined | BE105: 0000000 | BF105: Undefined | BG105: Americas - LLC | BH105: 3000 | BI105: Unassigned | BK105: Undefined | BM105: Undefined | BN105: Undefined | BO105: Netherlands | BP105: Undefined | BQ105: DIRECT | BR105: AV CAPTURE & COLLABORATION - CAMERAS | BS105: 4210 | BT105: 0 | BU105: -85.95651114 | BV105: 205.1307 | BW105: 178.37 | BX105: 100 | BY105: 20513.07 | BZ105: USD | CA105: 1 | CB105: 20513.07
A106: 538416146 | B106: 0 | F106: Intercompany Billing | G106: Vaddio | H106: B0004 | I106: Undefined | J106: 000 | K106: Unassigned | L106: 3000 | M106: Undefined | N106: 3000 | O106: LEGRAND AV NETHERLANDS B.V. | P106: Unassigned | Q106: Americas LLC | R106: 66.89 | S106: 6689.14 | T106: 09/24/2020 | U106: Standard Distribution | V106: 01 | W106: Unassigned | Y106: Undefined | Z106: 00 | AA106: AV CONFERENCING (VADDIO) | AB106: 2020 | AC106: 2020-09 | AD106: 0 | AE106: Vaddio | AF106: CONFERENCE | AG106: AUDIO | AH106: Undefined | AI106: 000 | AJ106: 999-85100-000 | AM106: Vaddio | AN106: 3002 | AP106: E | AQ106: B0004 | AR106: B0004P0435 | AS106: B0004P0435G0014090 | AT106: Unassigned | AU106: Ceiling MIC System White | AV106: Projection Screens | AW106: B0004P0435G0014090 | AX106: US Camera Profit Center | AZ106: 0096135161 | BA106: Unassigned | BB106: Undefined | BC106: 0 | BD106: Undefined | BE106: 0000000 | BF106: Undefined | BG106: Americas - LLC | BH106: 3000 | BI106: Unassigned | BK106: Undefined | BM106: Undefined | BN106: Undefined | BO106: Netherlands | BP106: Undefined | BQ106: DIRECT | BR106: AV CAPTURE & COLLABORATION - CAMERAS | BS106: 4210 | BT106: 0 | BU106: -85.95653304 | BV106: 76.9251 | BW106: 66.89 | BX106: 100 | BY106: 7692.51 | BZ106: USD | CA106: 1 | CB106: 7692.51
A107: 538541130 | B107: 0 | F107: Intercompany Billing | G107: Vaddio | H107: B0004 | I107: Undefined | J107: 000 | K107: Unassigned | L107: 3000 | M107: Undefined | N107: 3000 | O107: LEGRAND AV NETHERLANDS B.V. | P107: Unassigned | Q107: Americas LLC | R107: 145.97 | S107: 14596.5 | T107: 12/23/2020 | U107: Standard Distribution | V107: 01 | W107: Unassigned | Y107: Undefined | Z107: 00 | AA107: AV CONFERENCING (VADDIO) | AB107: 2020 | AC107: 2020-12 | AD107: 0 | AE107: Vaddio | AF107: CONFERENCE | AG107: AUDIO | AH107: Undefined | AI107: 000 | AJ107: 999-85100-000 | AM107: Vaddio | AN107: 3002 | AP107: E | AQ107: B0004 | AR107: B0004P0435 | AS107: B0004P0435G0014090 | AT107: Unassigned | AU107: Ceiling MIC System White | AV107: Projection Screens | AW107: B0004P0435G0014090 | AX107: US Camera Profit Center | AZ107: 0096573222 | BA107: Unassigned | BB107: Undefined | BC107: 0 | BD107: Undefined | BE107: 0000000 | BF107: Undefined | BG107: Americas - LLC | BH107: 3000 | BI107: Unassigned | BK107: Undefined | BM107: Undefined | BN107: Undefined | BO107: Netherlands | BP107: Undefined | BQ107: DIRECT | BR107: AV CAPTURE & COLLABORATION - CAMERAS | BS107: 4210 | BT107: 0 | BU107: -85.95649584 | BV107: 167.8598 | BW107: 145.97 | BX107: 100 | BY107: 16785.98 | BZ107: USD | CA107: 1 | CB107: 16785.98
A108: 538565742 | B108: 0 | F108: Intercompany Billing | G108: Vaddio | H108: B0004 | I108: Undefined | J108: 000 | K108: Unassigned | L108: 3000 | M108: Undefined | N108: 3000 | O108: LEGRAND AV NETHERLANDS B.V. | P108: Unassigned | Q108: Americas LLC | R108: 652 | S108: 65199.53 | T108: 12/09/2020 | U108: Standard Distribution | V108: 01 | W108: Unassigned | Y108: Undefined | Z108: 00 | AA108: AV CONFERENCING (VADDIO) | AB108: 2020 | AC108: 2020-12 | AD108: 0 | AE108: Vaddio | AF108: CONFERENCE | AG108: ROOM SYSTEM | AH108: Undefined | AI108: 000 | AJ108: 999-9995-001W | AM108: Vaddio | AN108: 3002 | AP108: E | AQ108: B0004 | AR108: B0004P0435 | AS108: B0004P0435G0014100 | AT108: Unassigned | AU108: CONFERENCESHOT AV CAMERA WHITE INTL | AV108: Projection Screens | AW108: B0004P0435G0014100 | AX108: US Camera Profit Center | AZ108: 0096482573 | BA108: Unassigned | BB108: Undefined | BC108: 0 | BD108: Undefined | BE108: 0000000 | BF108: Undefined | BG108: Americas - LLC | BH108: 3000 | BI108: Unassigned | BK108: Undefined | BM108: Undefined | BN108: Undefined | BO108: Netherlands | BP108: Undefined | BQ108: DIRECT | BR108: AV CAPTURE & COLLABORATION - CAMERAS | BS108: 4210 | BT108: 0 | BU108: -85.95652116 | BV108: 749.7946 | BW108: 652 | BX108: 100 | BY108: 74979.46 | BZ108: USD | CA108: 1 | CB108: 74979.46
A109: 538838331 | B109: 01 | D109: 138189 | F109: Invoice | G109: Vaddio | H109: B0004 | I109: Dealer | J109: 001 | K109: Unassigned | L109: 3000 | M109: Undefined | N109: 3000 | O109: ENTER ALTERNATE ADDRESS (US) | P109: CCS PRESENTATION SYS.- TX | Q109: Americas LLC | R109: 4.6 | S109: 460.22 | T109: 03/29/2021 | U109: Standard Distribution | V109: 01 | W109: Unassigned | X109: 0002586044 | Y109: Standard Order | Z109: TA | AA109: AV CONTENT CAPTURE (VADDIO) | AB109: 2021 | AC109: 2021-03 | AD109: 0 | AE109: Vaddio | AF109: ACCESSORIES | AG109: RACK | AH109: AV | AI109: 001 | AJ109: 998-6000-004 | AL109: CCS PRESENTATION SYS.- TX | AM109: Vaddio | AN109: 3002 | AO109: 77065 | AP109: E | AQ109: B0004 | AR109: B0004P0440 | AS109: B0004P0440G0014120 | AT109: Unassigned | AU109: SINGLE 1/2 RACK MOUNTING KIT | AV109: Other/Misc | AW109: B0004P0440G0014120 | AX109: US Camera Profit Center | AY109: 3000 | AZ109: 0096958482 | BA109: Unassigned | BB109: AV Integrators | BC109: 01 | BD109: South | BE109: U1DXP2 | BF109: United States | BG109: Americas - LLC | BH109: 3000 | BI109: David Sweeney | BK109: Undefined | BM109: Texas | BN109: United States | BO109: United States | BP109: Texas | BQ109: DIRECT | BR109: AV CAPTURE & COLLABORATION - CAMERAS | BS109: 4210 | BT109: 2 | BU109: -7.148371105 | BV109: 56.48 | BW109: 4.6 | BX109: 100 | BY109: 5648 | BZ109: USD | CA109: 1 | CB109: 5648
A110: 540115690 | B110: 0 | F110: Intercompany Billing | G110: Vaddio | H110: B0004 | I110: Undefined | J110: 000 | K110: Unassigned | L110: 3000 | M110: Undefined | N110: 3000 | O110: LEGRAND AV NETHERLANDS B.V. | P110: Unassigned | Q110: Americas LLC | R110: 378.01 | S110: 37801.09 | T110: 12/09/2020 | U110: Standard Distribution | V110: 01 | W110: Unassigned | Y110: Undefined | Z110: 00 | AA110: AV CONTENT CAPTURE (VADDIO) | AB110: 2020 | AC110: 2020-12 | AD110: 0 | AE110: Vaddio | AF110: SWITCHERS | AG110: BRIDGES | AH110: Undefined | AI110: 000 | AJ110: 999-8240-001 | AM110: Vaddio | AN110: 3002 | AP110: E | AQ110: B0004 | AR110: B0004P0425 | AS110: B0004P0425G0014065 | AT110: Unassigned | AU110: AV Bridge Mini INT | AV110: Projection Screens | AW110: B0004P0425G0014065 | AX110: US Camera Profit Center | AZ110: 0096482573 | BA110: Unassigned | BB110: Undefined | BC110: 0 | BD110: Undefined | BE110: 0000000 | BF110: Undefined | BG110: Americas - LLC | BH110: 3000 | BI110: Unassigned | BK110: Undefined | BM110: Undefined | BN110: Undefined | BO110: Netherlands | BP110: Undefined | BQ110: DIRECT | BR110: AV CAPTURE & COLLABORATION - CAMERAS | BS110: 4210 | BT110: 0 | BU110: -85.95652874 | BV110: 434.7125 | BW110: 378.01 | BX110: 100 | BY110: 43471.25 | BZ110: USD | CA110: 1 | CB110: 43471.25
A111: 540404969 | B111: 01 | D111: 132104 | F111: Invoice | G111: Vaddio | H111: B0004 | I111: Dealer | J111: 001 | K111: PROFESSIONAL SYSTEMS NETWORK INTL | L111: 3000 | M111: Undefined | N111: 3000 | O111: ONE TIME - BID SHIP TO ONLY | P111: CONFERENCE TECHNOLOGIES INC. | Q111: Americas LLC | R111: 4.56 | S111: 455.9 | T111: 10/26/2020 | U111: Standard Distribution | V111: 01 | W111: Unassigned | X111: 0002457897 | Y111: Standard Order | Z111: TA | AA111: AV CONTENT CAPTURE (VADDIO) | AB111: 2020 | AC111: 2020-10 | AD111: 0 | AE111: Vaddio | AF111: ACCESSORIES | AG111: RACK | AH111: AV | AI111: 001 | AJ111: 998-6000-004 | AL111: CONFERENCE TECHNOLOGIES INC. | AM111: Vaddio | AN111: 3002 | AO111: 63043 | AP111: E | AQ111: B0004 | AR111: B0004P0440 | AS111: B0004P0440G0014120 | AT111: Unassigned | AU111: SINGLE 1/2 RACK MOUNTING KIT | AV111: Other/Misc | AW111: B0004P0440G0014120 | AX111: US Camera Profit Center | AY111: 3000 | AZ111: 0096242524 | BA111: Unassigned | BB111: AV Integrators | BC111: 01 | BD111: MidWest | BE111: U1DXP3 | BF111: United States | BG111: Americas - LLC | BH111: 3000 | BI111: Andre White | BK111: Undefined | BM111: Unassigned | BN111: United States | BO111: United States | BP111: Unassigned | BQ111: DIRECT | BR111: AV CAPTURE & COLLABORATION - CAMERAS | BS111: 4210 | BT111: 1 | BU111: -7.49608647 | BV111: 53.66 | BW111: 4.56 | BX111: 100 | BY111: 5366 | BZ111: USD | CA111: 1 | CB111: 5366
A112: 536953650 | B112: 01 | C112: 133809 | D112: 133809 | F112: Invoice | G112: Vaddio | H112: B0004 | I112: Dealer | J112: 001 | K112: PROFESSIONAL SYSTEMS NETWORK INTL | L112: 3000 | M112: Undefined | N112: 3000 | O112: TIERNEY BROTHERS INC. | P112: TIERNEY BROTHERS INC. | Q112: Americas LLC | R112: 574.8 | S112: 56330.55 | T112: 07/29/2021 | U112: Standard Distribution | V112: 01 | W112: Unassigned | X112: 0002680543 | Y112: Standard Order | Z112: TA | AA112: AV CONFERENCING (VADDIO) | AB112: 2021 | AC112: 2021-07 | AD112: 477 | AE112: Vaddio | AF112: CONFERENCE | AG112: ROOM SYSTEM | AH112: AV | AI112: 001 | AJ112: 999-30200-000W | AK112: TIERNEY BROTHERS INC. | AL112: TIERNEY BROTHERS INC. | AM112: Vaddio | AN112: 3002 | AO112: 55108 | AP112: E | AQ112: B0004 | AR112: B0004P0435 | AS112: B0004P0435G0014100 | AT112: Unassigned | AU112: EasyIP 10 Camera White | AV112: Projection Screens | AW112: B0004P0435G0014100 | AX112: US Camera Profit Center | AY112: 3000 | AZ112: 0097480385 | BA112: Unassigned | BB112: AV Integrators | BC112: 01 | BD112: MidWest | BE112: U1DXP3 | BF112: United States | BG112: Americas - LLC | BH112: 3000 | BI112: Kristin Dacey | BK112: Undefined | BM112: Unassigned | BN112: United States | BO112: United States | BP112: Unassigned | BQ112: DIRECT | BR112: AV CAPTURE & COLLABORATION - CAMERAS | BS112: 4210 | BT112: 1 | BU112: -28.29244842 | BV112: 1923.04 | BW112: 574.8 | BX112: 98 | BY112: 188457.92 | BZ112: USD | CA112: 1 | CB112: 188457.92
A113: 537193583 | B113: 0 | F113: Intercompany Billing | G113: Vaddio | H113: B0004 | I113: Undefined | J113: 000 | K113: Unassigned | L113: 3000 | M113: Undefined | N113: 3000 | O113: LEGRAND AV NETHERLANDS B.V. | P113: Unassigned | Q113: Americas LLC | R113: 7.62 | S113: 731.69 | T113: 06/29/2021 | U113: Standard Distribution | V113: 01 | W113: Unassigned | Y113: Undefined | Z113: 00 | AA113: AV CONTENT CAPTURE (VADDIO) | AB113: 2021 | AC113: 2021-06 | AD113: 0 | AE113: Vaddio | AF113: CAMERA MOUNT | AG113: WALL | AH113: Undefined | AI113: 000 | AJ113: 535-2000-243 | AM113: Vaddio | AN113: 3002 | AP113: E | AQ113: B0004 | AR113: B0004P0420 | AS113: B0004P0420G0014060 | AT113: Unassigned | AU113: THIN PROFILE WALL MOUNT SONY/PANA CAMS | AV113: Projection Screens | AW113: B0004P0420G0014060 | AX113: US Camera Profit Center | AZ113: 0097324183 | BA113: Unassigned | BB113: Undefined | BC113: 0 | BD113: Undefined | BE113: 0000000 | BF113: Undefined | BG113: Americas - LLC | BH113: 3000 | BI113: Unassigned | BK113: Undefined | BM113: Undefined | BN113: Undefined | BO113: Netherlands | BP113: Undefined | BQ113: DIRECT | BR113: AV CAPTURE & COLLABORATION - CAMERAS | BS113: 4210 | BT113: 0 | BU113: -82.4786081 | BV113: 8.765 | BW113: 7.62 | BX113: 96 | BY113: 841.44 | BZ113: USD | CA113: 1 | CB113: 841.44
A114: 537207764 | B114: 01 | C114: 145767 | D114: 145767 | F114: Invoice | G114: Vaddio | H114: B0004 | I114: Distributor - National | J114: 002 | K114: Unassigned | L114: 3200 | M114: Undefined | N114: 3000 | O114: DATAVISUAL - CAD CURRENCY ONLY | P114: DATAVISUAL - CAD CURRENCY ONLY | Q114: Canada ULC | R114: 5 | S114: 480 | T114: 06/11/2020 | U114: Standard Distribution | V114: 01 | W114: Unassigned | X114: 0002358603 | Y114: Standard Order | Z114: TA | AA114: AV CONTENT CAPTURE (VADDIO) | AB114: 2020 | AC114: 2020-06 | AD114: 0 | AE114: Vaddio | AF114: CAMERA MOUNT | AG114: WALL | AH114: AV | AI114: 001 | AJ114: 535-2000-213 | AL114: DATAVISUAL - CAD CURRENCY ONLY | AM114: Vaddio | AN114: 3002 | AO114: K1J 0B3 | AP114: E | AQ114: B0004 | AR114: B0004P0420 | AS114: B0004P0420G0014060 | AT114: Unassigned | AU114: UNIVERSAL WALL/CEILING MOUNT | AV114: Projection Screens | AW114: B0004P0420G0014060 | AX114: US Camera Profit Center | AY114: 3200 | AZ114: 0095735060 | BA114: Unassigned | BB114: AV Distribution | BC114: 08 | BD114: Central | BE114: C1XXP3 | BF114: Canada | BG114: Canada - ULC | BH114: 3200 | BI114: David Galos | BK114: Undefined | BM114: Ontario | BN114: Canada | BO114: Canada | BP114: Ontario | BQ114: DIRECT | BR114: AV CAPTURE & COLLABORATION - CAMERAS | BS114: 4210 | BT114: 1 | BU114: -11.69831192 | BV114: 37.8003 | BW114: 5 | BX114: 96 | BY114: 3628.83 | BZ114: CAD | CA114: 1.37432 | CB114: 4987.17
A115: 537601563 | B115: 0 | C115: 145767 | D115: 145767 | F115: Intercompany Billing | G115: Vaddio | H115: B0004 | I115: Undefined | J115: 000 | K115: Unassigned | L115: 3000 | M115: Undefined | N115: 3000 | O115: DATAVISUAL - CAD CURRENCY ONLY | P115: DATAVISUAL - CAD CURRENCY ONLY | Q115: Americas LLC | R115: 5 | S115: 480 | T115: 06/11/2020 | U115: Standard Distribution | V115: 01 | W115: Unassigned | X115: 0002358603 | Y115: Standard Order | Z115: TA | AA115: AV CONTENT CAPTURE (VADDIO) | AB115: 2020 | AC115: 2020-06 | AD115: 0 | AE115: Vaddio | AF115: CAMERA MOUNT | AG115: WALL | AH115: Undefined | AI115: 000 | AJ115: 535-2000-213 | AM115: Vaddio | AN115: 3002 | AO115: K1J 0B3 | AP115: E | AQ115: B0004 | AR115: B0004P0420 | AS115: B0004P0420G0014060 | AT115: Unassigned | AU115: UNIVERSAL WALL/CEILING MOUNT | AV115: Projection Screens | AW115: B0004P0420G0014060 | AX115: US Camera Profit Center | AZ115: 0095737134 | BA115: Unassigned | BB115: Undefined | BC115: 0 | BD115: Undefined | BE115: 0000000 | BF115: Undefined | BG115: Americas - LLC | BH115: 3000 | BI115: Unassigned | BK115: Undefined | BM115: Ontario | BN115: Canada | BO115: Canada | BP115: Ontario | BQ115: DIRECT | BR115: AV CAPTURE & COLLABORATION - CAMERAS | BS115: 4210 | BT115: 1 | BU115: -70.11005763 | BV115: 6.7501 | BW115: 5 | BX115: 96 | BY115: 648.01 | BZ115: USD | CA115: 1 | CB115: 648.01
A116: 533964785 | B116: 01 | D116: 132856 | F116: Invoice | G116: Vaddio | H116: B0004 | I116: Dealer | J116: 001 | K116: Unassigned | L116: 3000 | M116: Undefined | N116: 3000 | O116: ENTER ALTERNATE ADDRESS (US) | P116: KANSAS CITY AUDIO VISUAL | Q116: Americas LLC | R116: 59.96 | S116: 5695.75 | T116: 12/11/2020 | U116: Standard Distribution | V116: 01 | W116: Unassigned | X116: 0002499599 | Y116: Standard Order | Z116: TA | AA116: AV CONTENT CAPTURE (VADDIO) | AB116: 2020 | AC116: 2020-12 | AD116: 36 | AE116: Vaddio | AF116: CAM EXTENSIONS | AG116: EXT CABLES | AH116: AV | AI116: 001 | AJ116: 440-1005-048 | AL116: KANSAS CITY AUDIO VISUAL | AM116: Vaddio | AN116: 3002 | AO116: 64131 | AP116: F | AQ116: B0004 | AR116: B0004P0415 | AS116: B0004P0415G0014040 | AT116: Unassigned | AU116: ACTIVE OPTICAL USB 3.0 A/C PLENUM 8M | AV116: Projection Screens | AW116: B0004P0415G0014040 | AX116: US Camera Profit Center | AY116: 3000 | AZ116: 0096495583 | BA116: Unassigned | BB116: AV Integrators | BC116: 01 | BD116: MidWest | BE116: U1DXP3 | BF116: United States | BG116: Americas - LLC | BH116: 3000 | BI116: Andre White | BK116: Undefined | BM116: Unassigned | BN116: United States | BO116: United States | BP116: Unassigned | BQ116: DIRECT | BR116: AV CAPTURE & COLLABORATION - CAMERAS | BS116: 4210 | BT116: 2 | BU116: -25.58707931 | BV116: 214.23 | BW116: 59.96 | BX116: 95 | BY116: 20351.85 | BZ116: USD | CA116: 1 | CB116: 20351.85
A117: 537976926 | B117: 01 | D117: 134911 | F117: Invoice | G117: Vaddio | H117: B0004 | I117: Dealer | J117: 001 | K117: Unassigned | L117: 3000 | M117: Undefined | N117: 3000 | O117: ENTER ALTERNATE ADDRESS (US) | P117: PALADIN TECHNOLOGIES | Q117: Americas LLC | R117: 5.44 | S117: 516.82 | T117: 03/05/2021 | U117: Standard Distribution | V117: 01 | W117: Unassigned | X117: 0002567333 | Y117: Standard Order | Z117: TA | AA117: AV CONTENT CAPTURE (VADDIO) | AB117: 2021 | AC117: 2021-03 | AD117: 782 | AE117: Vaddio | AF117: CAMERA MOUNT | AG117: WALL | AH117: AV | AI117: 001 | AJ117: 535-2000-251 | AL117: PALADIN TECHNOLOGIES | AM117: Vaddio | AN117: 3002 | AO117: 92064 | AP117: E | AQ117: B0004 | AR117: B0004P0420 | AS117: B0004P0420G0014060 | AT117: Unassigned | AU117: THIN PROFILE WALL MNT PR60/HD EAGLE EYE | AV117: Projection Screens | AW117: B0004P0420G0014060 | AX117: US Camera Profit Center | AY117: 3000 | AZ117: 0096853865 | BA117: JTECH SYSTEMS | BB117: AV Integrators | BC117: 01 | BD117: West | BE117: U1DXP4 | BF117: United States | BG117: Americas - LLC | BH117: 3000 | BI117: Comm So Cal - Shomper/Yates | BK117: Undefined | BM117: Unassigned | BN117: United States | BO117: United States | BP117: Unassigned | BQ117: DIRECT | BR117: AV CAPTURE & COLLABORATION - CAMERAS | BS117: 4210 | BT117: 2 | BU117: -3.459958578 | BV117: 115.88 | BW117: 5.44 | BX117: 95 | BY117: 11008.6 | BZ117: USD | CA117: 1 | CB117: 11008.6
A118: 538061025 | B118: 01 | D118: 153742 | F118: Invoice | G118: Vaddio | H118: B0004 | I118: Dealer | J118: 001 | K118: Unassigned | L118: 3000 | M118: Undefined | N118: 3000 | O118: ACTION CARGO TRANSPORT | P118: AUDIO VISUAL CONCEPTS - PUERTO RICO | Q118: Americas LLC | R118: 74.41 | S118: 7068.95 | T118: 08/04/2020 | U118: Standard Distribution | V118: 01 | W118: Unassigned | X118: 0002371416 | Y118: Standard Order | Z118: TA | AA118: AV CONTENT CAPTURE (VADDIO) | AB118: 2020 | AC118: 2020-08 | AD118: 1091 | AE118: Vaddio | AF118: CAMERA MOUNT | AG118: CEILING | AH118: AV | AI118: 001 | AJ118: 535-2000-296 | AL118: AUDIO VISUAL CONCEPTS - USE 153742 | AM118: Vaddio | AN118: 3002 | AO118: 00970 | AP118: E | AQ118: B0004 | AR118: B0004P0420 | AS118: B0004P0420G0014055 | AT118: Unassigned | AU118: OFF-SET DROP DN MT FOR HD SERIES CAMERAS | AV118: Projection Screens | AW118: B0004P0420G0014055 | AX118: US Camera Profit Center | AY118: 3010 | AZ118: 0095953849 | BA118: Unassigned | BB118: AV Integrators | BC118: 01 | BD118: Latin Am | BE118: U1IXX3 | BF118: Mexico and Latin America | BG118: Export | BH118: 3010 | BI118: Andres Garrido | BK118: Undefined | BM118: Unassigned | BN118: United States | BO118: Puerto Rico | BP118: Undefined | BQ118: DIRECT | BR118: AV CAPTURE & COLLABORATION - CAMERAS | BS118: 4210 | BT118: 1 | BU118: -37.03373507 | BV118: 185.86 | BW118: 74.41 | BX118: 95 | BY118: 17656.7 | BZ118: USD | CA118: 1 | CB118: 17656.7
A119: 538264858 | B119: 01 | D119: 153742 | F119: Invoice | G119: Vaddio | H119: B0004 | I119: Dealer | J119: 001 | K119: Unassigned | L119: 3000 | M119: Undefined | N119: 3000 | O119: ACTION CARGO TRANSPORT | P119: AUDIO VISUAL CONCEPTS - PUERTO RICO | Q119: Americas LLC | R119: 74.41 | S119: 7068.95 | T119: 08/04/2020 | U119: Standard Distribution | V119: 01 | W119: Unassigned | X119: 0002371416 | Y119: Standard Order | Z119: TA | AA119: AV CONTENT CAPTURE (VADDIO) | AB119: 2020 | AC119: 2020-08 | AD119: 1091 | AE119: Vaddio | AF119: CAMERA MOUNT | AG119: CEILING | AH119: AV | AI119: 001 | AJ119: 535-2000-296 | AL119: AUDIO VISUAL CONCEPTS - USE 153742 | AM119: Vaddio | AN119: 3002 | AO119: 00970 | AP119: E | AQ119: B0004 | AR119: B0004P0420 | AS119: B0004P0420G0014055 | AT119: Unassigned | AU119: OFF-SET DROP DN MT FOR HD SERIES CAMERAS | AV119: Projection Screens | AW119: B0004P0420G0014055 | AX119: US Camera Profit Center | AY119: 3010 | AZ119: 0095921410 | BA119: Unassigned | BB119: AV Integrators | BC119: 01 | BD119: Latin Am | BE119: U1IXX3 | BF119: Mexico and Latin America | BG119: Export | BH119: 3010 | BI119: Andres Garrido | BK119: Undefined | BM119: Unassigned | BN119: United States | BO119: Puerto Rico | BP119: Undefined | BQ119: DIRECT | BR119: AV CAPTURE & COLLABORATION - CAMERAS | BS119: 4210 | BT119: 1 | BU119: -37.03373507 | BV119: 185.86 | BW119: 74.41 | BX119: 95 | BY119: 17656.7 | BZ119: USD | CA119: 1 | CB119: 17656.7
A120: 539967126 | B120: 0 | F120: Intercompany Billing | G120: Vaddio | H120: B0004 | I120: Undefined | J120: 000 | K120: Unassigned | L120: 3000 | M120: Undefined | N120: 3000 | O120: LEGRAND AV NETHERLANDS B.V. | P120: Unassigned | Q120: Americas LLC | R120: 154.04 | S120: 14634.08 | T120: 12/21/2020 | U120: Standard Distribution | V120: 01 | W120: Unassigned | Y120: Undefined | Z120: 00 | AA120: AV CONFERENCING (VADDIO) | AB120: 2020 | AC120: 2020-12 | AD120: 0 | AE120: Vaddio | AF120: CONFERENCE | AG120: AUDIO | AH120: Undefined | AI120: 000 | AJ120: 999-85000-000 | AM120: Vaddio | AN120: 3002 | AP120: E | AQ120: B0004 | AR120: B0004P0435 | AS120: B0004P0435G0014090 | AT120: Unassigned | AU120: TableMIC Microphone Black | AV120: Projection Screens | AW120: B0004P0435G0014090 | AX120: US Camera Profit Center | AZ120: 0096529178 | BA120: Unassigned | BB120: Undefined | BC120: 0 | BD120: Undefined | BE120: 0000000 | BF120: Undefined | BG120: Americas - LLC | BH120: 3000 | BI120: Unassigned | BK120: Undefined | BM120: Undefined | BN120: Undefined | BO120: Netherlands | BP120: Undefined | BQ120: DIRECT | BR120: AV CAPTURE & COLLABORATION - CAMERAS | BS120: 4210 | BT120: 0 | BU120: -81.60869074 | BV120: 177.1494 | BW120: 154.04 | BX120: 95 | BY120: 16829.19 | BZ120: USD | CA120: 1 | CB120: 16829.19
A121: 536642169 | B121: 01 | D121: 132221 | F121: Invoice | G121: Vaddio | H121: B0004 | I121: Dealer | J121: 001 | K121: Unassigned | L121: 3000 | M121: Undefined | N121: 3000 | O121: ENTER ALTERNATE ADDRESS (US) | P121: CHURCH INTERIORS INC | Q121: Americas LLC | R121: 1221.98 | S121: 114866.09 | T121: 04/21/2021 | U121: Standard Distribution | V121: 01 | W121: Unassigned | X121: 0002602718 | Y121: Standard Order | Z121: TA | AA121: AV CONTENT CAPTURE (VADDIO) | AB121: 2021 | AC121: 2021-04 | AD121: 1602 | AE121: Vaddio | AF121: PTZ CAMERA | AG121: EXTENSION KIT | AH121: AV | AI121: 001 | AJ121: 999-99600-100W | AL121: CHURCH INTERIORS INC | AM121: Vaddio | AN121: 3002 | AO121: 27107 | AP121: E | AQ121: B0004 | AR121: B0004P0400 | AS121: B0004P0400G0014000 | AT121: Unassigned | AU121: RoboSHOT 12E OneLINK HDMI SYS WHT | AV121: Projection Screens | AW121: B0004P0400G0014000 | AX121: US Camera Profit Center | AY121: 3000 | AZ121: 0097063557 | BA121: Unassigned | BB121: AV Integrators | BC121: 01 | BD121: South | BE121: U1DXP2 | BF121: United States | BG121: Americas - LLC | BH121: 3000 | BI121: Bradley Carson | BK121: Undefined | BM121: North Carolina | BN121: United States | BO121: United States | BP121: North Carolina | BQ121: DIRECT | BR121: AV CAPTURE & COLLABORATION - CAMERAS | BS121: 4210 | BT121: 2 | BU121: -37.45417781 | BV121: 2987.09 | BW121: 1221.98 | BX121: 94 | BY121: 280786.46 | BZ121: USD | CA121: 1 | CB121: 280786.46
